Workbook

Sheet CAPA
B3: DESCRIÇÃO DO PROJETO: | C3: =UPPER("Substituição das comportas na barragem de Boacica") -> SUBSTITUIÇÃO DAS COMPORTAS NA BARRAGEM DE BOACICA
B4: ENDEREÇO: | C4: Igreja Nova/AL (Coordenadas -10.114092491711494, -36.61240585148748)
B5: PRAZO DE EXECUÇÃO: | C5: 8 (oito) meses
B6: TABELAS REFERÊNCIA: | C6: ORSE (04/2023)/ SINAPI (05/2023)/ SICRO (01/2023)
B7: 2023-07-01
B8: COMPONENTES DO DOCUMENTO
B9: ABA | C9: DESCRIÇÃO DO CONTEÚDO DA ABA
B10: Geral
B11: Planilha Orçamentária' | C11: Apresenta os custos de uma obra agrupando serviços por macro itens ou por etapas (infraestrutura, superestrutura, vedações, canteiro, etc. Com composições de preço não desonerados
B12: Planilha Orçamentária Desoner' | C12: Apresenta os custos de uma obra agrupando serviços por macro itens ou por etapas (infraestrutura, superestrutura, vedações, canteiro, etc. Com composições de preço desonerados
B13: CPU | C13: Apresenta visão detalhada de macro itens ou etapas ao detalhar quantitativos e custos unitários de cada serviço a ser executado, além das parcelas referentes aos custos indiretos.
B14: MEM SERV | C14: Formulário para o cálculo das quantidades dos serviços.
B15: BDI serv | C15: Composição do BDI de serviços
B16: BDI forn | C16: Composição do BDI de fornecimento
B17: Encargos Sociais | C17: Encargos de acordo com SINAPI-AL
B18: Cronograma-não desonerado' | C18: Conograma fisico-financeiro de orçamento não desonerado
B19: Cronograma-desonerado' | C19: Conograma fisico-financeiro de orçamento desonerado
B21: RESUMO DA PLANILHA ORÇAMENTÁRIA - NÃO DESONERADA
B22: ITEM | C22: DESCRIÇÃO DA PARCELA | E22: VALOR
B23: 1 | C23: =VLOOKUP(B23,'Planilha Orçamentária'!$A$11:$F$104,4) -> 0 | E23: =SUMIF('Planilha Orçamentária'!$A$11:$A$104,B23,'Planilha Orçamentária'!$K$11:$K$104) -> 93036.81283
B24: 2 | C24: =VLOOKUP(B24,'Planilha Orçamentária'!$A$11:$F$104,4) -> 0 | E24: =SUMIF('Planilha Orçamentária'!$A$11:$A$104,B24,'Planilha Orçamentária'!$K$11:$K$104) -> 92550.25668
B25: 3 | C25: =VLOOKUP(B25,'Planilha Orçamentária'!$A$11:$F$104,4) -> 0 | E25: =SUMIF('Planilha Orçamentária'!$A$11:$A$104,B25,'Planilha Orçamentária'!$K$11:$K$104) -> 66822.9552
B26: 4 | C26: =VLOOKUP(B26,'Planilha Orçamentária'!$A$11:$F$104,4) -> 0 | E26: =SUMIF('Planilha Orçamentária'!$A$11:$A$104,B26,'Planilha Orçamentária'!$K$11:$K$104) -> 403920.7909
B27: 5 | C27: =VLOOKUP(B27,'Planilha Orçamentária'!$A$11:$F$104,4) -> 0 | E27: =SUMIF('Planilha Orçamentária'!$A$11:$A$104,B27,'Planilha Orçamentária'!$K$11:$K$104) -> 103784.0372
B28: 6 | C28: =VLOOKUP(B28,'Planilha Orçamentária'!$A$11:$F$104,4) -> 0 | E28: =SUMIF('Planilha Orçamentária'!$A$11:$A$104,B28,'Planilha Orçamentária'!$K$11:$K$104) -> 101020.8628
B29: 7 | C29: =VLOOKUP(B29,'Planilha Orçamentária'!$A$11:$F$104,4) -> 0 | E29: =SUMIF('Planilha Orçamentária'!$A$11:$A$104,B29,'Planilha Orçamentária'!$K$11:$K$104) -> 42854.61428
B30: TOTAL COM BDI: | E30: =SUM(E23:E29) -> 903990.3299
B32: RESUMO DA PLANILHA ORÇAMENTÁRIA - DESONERADA
B33: ITEM | C33: DESCRIÇÃO DA PARCELA | E33: VALOR
B34: 1 | C34: =VLOOKUP(B34,'Planilha Orçamentária'!$A$11:$F$104,4) -> 0 | E34: =SUMIF('Planilha Orçamentária Desoner'!$A$11:$A$105,B23,'Planilha Orçamentária Desoner'!$I$11:$I$105) -> 236643.0207
B35: 2 | C35: =VLOOKUP(B35,'Planilha Orçamentária'!$A$11:$F$104,4) -> 0 | E35: =SUMIF('Planilha Orçamentária Desoner'!$A$11:$A$105,B24,'Planilha Orçamentária Desoner'!$I$11:$I$105) -> 160622.7271
B36: 3 | C36: =VLOOKUP(B36,'Planilha Orçamentária'!$A$11:$F$104,4) -> 0 | E36: =SUMIF('Planilha Orçamentária Desoner'!$A$11:$A$105,B25,'Planilha Orçamentária Desoner'!$I$11:$I$105) -> 69753.5296
B37: 4 | C37: =VLOOKUP(B37,'Planilha Orçamentária'!$A$11:$F$104,4) -> 0 | E37: =SUMIF('Planilha Orçamentária Desoner'!$A$11:$A$105,B26,'Planilha Orçamentária Desoner'!$I$11:$I$105) -> 480336.0054
B38: 5 | C38: =VLOOKUP(B38,'Planilha Orçamentária'!$A$11:$F$104,4) -> 0 | E38: =SUMIF('Planilha Orçamentária Desoner'!$A$11:$A$105,B27,'Planilha Orçamentária Desoner'!$I$11:$I$105) -> 104195.4208
B39: 6 | C39: =VLOOKUP(B39,'Planilha Orçamentária'!$A$11:$F$104,4) -> 0 | E39: =SUMIF('Planilha Orçamentária Desoner'!$A$11:$A$105,B28,'Planilha Orçamentária Desoner'!$I$11:$I$105) -> 101733.0636
B40: 7 | C40: =VLOOKUP(B40,'Planilha Orçamentária'!$A$11:$F$104,4) -> 0 | E40: =SUMIF('Planilha Orçamentária Desoner'!$A$11:$A$105,B29,'Planilha Orçamentária Desoner'!$I$11:$I$105) -> 107300.4937
B41: TOTAL COM BDI: | E41: =SUM(E34:E40) -> 1260584.261
H173: =SUM(H174:H177) -> 0
D177: mec | F177: 2 | G177: 128

Sheet Planilha Orçamentária
A1: Ministério do desenvolvimento Regional
A2: Companhia de desenvolvimento dos Vales do São Francisco e do Parnaíba
A4: PLANILHA ORÇAMENTÁRIA - ORÇAMENTO NÃO DESONERADO
A5: OBRA: | B5: =UPPER("Substituição das comportas na barragem de Boacica") -> SUBSTITUIÇÃO DAS COMPORTAS NA BARRAGEM DE BOACICA | I5: BDI (serv.): | J5: ='BDI serv'!D23 -> 0.2591 | K5: Bancos
A6: LOCAL: | B6: BARRAGEM BOACICA (IGREJA NOVA - AL) | I6: BDI (forn.): | J6: ='BDI forn'!E6 -> 0.147 | K6: 05/2023 - SINAPI/AL
A7: DATA BASE: | B7: 2023-05-01 | G7: Encargos sociais Horistas: | J7: ='Encargos Sociais'!E45 -> 1.149 | K7: 01/2023 - SICRO/AL
A8: PRAZO: | B8: 240 DIAS | G8: Encargos sociais - Mensalista: | J8: ='Encargos Sociais'!F45 -> 0.7023 | K8: 02/2023 - ORSE
A9: ITEM | B9: REFERÊNCIA | F9: DESCRIÇÃO | G9: UNID. | H9: QUANT. | I9: CUSTO UNITÁRIO | J9: PREÇO UNITÁRIO | K9: PREÇO TOTAL | L9: TIPO de BDI | M9: CLASSIF
B10: FONTE | C10: CÓDIGO | D10: CATSER
A11: 1 | F11: ADMINISTRAÇÃO LOCAL | K11: =SUM(K12:K12) -> 93036.81283 | M11: ss
A12: 1.1 | B12: PRÓPRIA | C12: CPU.01 | D12: 1341 | E12: Supervisão / gerenciamento / fiscalização - projeto constru-ção / obras civis | F12: Administração local | G12: UNIDADE | H12: 1 | I12: =(SUMIFS(CPU!$H:$H,CPU!$B:$B,'Planilha Orçamentária'!$A12,CPU!$I:$I,"ss")+SUMIFS(CPU!$H:$H,CPU!$B:$B,'Planilha Orçamentária'!$A12,CPU!$I:$I,"mdo")+SUMIF('Comp SINAPI AL 03-2023 Onerado'!G:G,'Planilha Orçamentária'!C12,'Comp SINAPI AL 03-2023 Onerado'!K:K))*8 -> 73891.52 | J12: =(IF(L12="SERV",I12*(1+$J$5),I12*(1+$J$6))) -> 93036.81283 | K12: =(IF(L12="SERV",I12*H12*(1+$J$5),I12*H12*(1+$J$6))) -> 93036.81283 | L12: serv | M12: i | N12: =K12/K107 -> 0.1029179293
A14: 2 | F14: SERVIÇOS PRELIMINARES | K14: =SUM(K15:K26)/2 -> 92550.25668 | M14: ss
A15: 2.1 | F15: Canteiro de obras | K15: =SUM(K16:K24) -> 91644.91341 | M15: s
A16: 2.1.1 | B16: SINAPI | C16: 98524 | D16: 14044 | E16: Roçada / limpeza de área - mecanizada / manual | F16: =PROPER(IF(L16="i",VLOOKUP(C16,'Ins SINAPI AL 03-2023 Onerado'!$A$8:$E$7500,2,0),VLOOKUP(C16,'Comp SINAPI AL 03-2023 Onerado'!$G$7:$K$7500,2,0))) -> Limpeza Manual De Vegetação Em Terreno Com Enxada.Af_05/2018 | G16: =LOWER(IF(L16="i",VLOOKUP(C16,'Ins SINAPI AL 03-2023 Onerado'!$A$8:$E$5189,3,0),VLOOKUP(C16,'Comp SINAPI AL 03-2023 Onerado'!$G$7:$K$7500,3,0))) -> m2 | H16: =SUMIF('MEM SERV'!A:A,'Planilha Orçamentária'!A16,'MEM SERV'!H:H) -> 57 | I16: =SUMIFS(CPU!$H:$H,CPU!$B:$B,'Planilha Orçamentária'!$A16,CPU!$I:$I,"ss")+SUMIFS(CPU!$H:$H,CPU!$B:$B,'Planilha Orçamentária'!$A16,CPU!$I:$I,"mdo")+SUMIF('Comp SINAPI AL 03-2023 Onerado'!G:G,'Planilha Orçamentária'!C16,'Comp SINAPI AL 03-2023 Onerado'!K:K) -> 2.59 | J16: =IF(L16="SERV",I16*(1+$J$5),I16*(1+$J$6)) -> 3.261069 | K16: =IF(L16="SERV",I16*H16*(1+$J$5),I16*H16*(1+$J$6)) -> 185.880933 | L16: serv | M16: i
A17: 2.1.2 | B17: SINAPI | C17: 93207 | D17: 13455 | E17: Obras civis - pequenas obras / pintura em geral | F17: =PROPER(IF(L17="i",VLOOKUP(C17,'Ins SINAPI AL 03-2023 Onerado'!$A$8:$E$5189,2,0),VLOOKUP(C17,'Comp SINAPI AL 03-2023 Onerado'!$G$7:$K$6879,2,0))) -> Execução De Escritório Em Canteiro De Obra Em Chapa De Madeira Compensada, Não Incluso Mobiliário E Equipamentos. Af_02/2016 | G17: =LOWER(IF(L17="i",VLOOKUP(C17,'Ins SINAPI AL 03-2023 Onerado'!$A$8:$E$5189,3,0),VLOOKUP(C17,'Comp SINAPI AL 03-2023 Onerado'!$G$7:$K$6879,3,0))) -> m2 | H17: 12 | I17: =SUMIFS(CPU!$H:$H,CPU!$B:$B,'Planilha Orçamentária'!$A17,CPU!$I:$I,"ss")+SUMIFS(CPU!$H:$H,CPU!$B:$B,'Planilha Orçamentária'!$A17,CPU!$I:$I,"mdo")+SUMIF('Comp SINAPI AL 03-2023 Onerado'!G:G,'Planilha Orçamentária'!C17,'Comp SINAPI AL 03-2023 Onerado'!K:K) -> 1077.82 | J17: 1357.083162 | K17: 16284.99794 | L17: serv | M17: i
A18: 2.1.3 | B18: SINAPI | C18: 93208 | D18: 13455 | E18: Obras civis - pequenas obras / pintura em geral | F18: =PROPER(IF(L18="i",VLOOKUP(C18,'Ins SINAPI AL 03-2023 Onerado'!$A$8:$E$5189,2,0),VLOOKUP(C18,'Comp SINAPI AL 03-2023 Onerado'!$G$7:$K$6879,2,0))) -> Execução De Almoxarifado Em Canteiro De Obra Em Chapa De Madeira Compensada, Incluso Prateleiras. Af_02/2016 | G18: =LOWER(IF(L18="i",VLOOKUP(C18,'Ins SINAPI AL 03-2023 Onerado'!$A$8:$E$5189,3,0),VLOOKUP(C18,'Comp SINAPI AL 03-2023 Onerado'!$G$7:$K$6879,3,0))) -> m2 | H18: =SUMIF('MEM SERV'!A:A,'Planilha Orçamentária'!A18,'MEM SERV'!H:H) -> 7.5 | I18: =SUMIFS(CPU!$H:$H,CPU!$B:$B,'Planilha Orçamentária'!$A18,CPU!$I:$I,"ss")+SUMIFS(CPU!$H:$H,CPU!$B:$B,'Planilha Orçamentária'!$A18,CPU!$I:$I,"mdo")+SUMIF('Comp SINAPI AL 03-2023 Onerado'!G:G,'Planilha Orçamentária'!C18,'Comp SINAPI AL 03-2023 Onerado'!K:K) -> 886.82 | J18: 1116.595062 | K18: 8374.462965 | L18: serv | M18: i
A19: 2.1.4 | B19: PRÓPRIA | C19: CPU.04 | F19: Baia de resíduos para entulho, construção descoberta - Medindo (3,00x2,00)m, paredes em chapa de madeira compensada plastificada 20mm h=1,10m, piso em terreno natural fortemente apiloado, pilarete em eucalipto tratado 15cm (Adaptado AGESUL 0101000230) | G19: un | H19: =SUMIF('MEM SERV'!A:A,'Planilha Orçamentária'!A19,'MEM SERV'!H:H) -> 1 | I19: =SUMIFS(CPU!$H:$H,CPU!$B:$B,'Planilha Orçamentária'!$A19,CPU!$I:$I,"ss")+SUMIFS(CPU!$H:$H,CPU!$B:$B,'Planilha Orçamentária'!$A19,CPU!$I:$I,"mdo") -> 2700.13 | J19: 3399.733683 | K19: 3399.733683 | L19: serv | M19: i
A20: 2.1.5 | B20: SINAPI | C20: 93583 | D20: 13455 | E20: Obras civis - pequenas obras / pintura em geral | F20: =PROPER(IF(L20="i",VLOOKUP(C20,'Ins SINAPI AL 03-2023 Onerado'!$A$8:$E$5189,2,0),VLOOKUP(C20,'Comp SINAPI AL 03-2023 Onerado'!$G$7:$K$6879,2,0))) -> Execução De Central De Fôrmas, Produção De Argamassa Ou Concreto Em Canteiro De Obra, Não Incluso Mobiliário E Equipamentos. Af_04/2016 | G20: =LOWER(IF(L20="i",VLOOKUP(C20,'Ins SINAPI AL 03-2023 Onerado'!$A$8:$E$5189,3,0),VLOOKUP(C20,'Comp SINAPI AL 03-2023 Onerado'!$G$7:$K$6879,3,0))) -> m2 | H20: =SUMIF('MEM SERV'!A:A,'Planilha Orçamentária'!A20,'MEM SERV'!H:H) -> 12 | I20: =SUMIFS(CPU!$H:$H,CPU!$B:$B,'Planilha Orçamentária'!$A20,CPU!$I:$I,"ss")+SUMIFS(CPU!$H:$H,CPU!$B:$B,'Planilha Orçamentária'!$A20,CPU!$I:$I,"mdo")+SUMIF('Comp SINAPI AL 03-2023 Onerado'!G:G,'Planilha Orçamentária'!C20,'Comp SINAPI AL 03-2023 Onerado'!K:K) -> 473.69 | J20: 596.423079 | K20: 7157.076948 | L20: serv | M20: i
A21: 2.1.6 | B21: SINAPI | C21: 93210 | D21: 13455 | E21: Obras civis - pequenas obras / pintura em geral | F21: =PROPER(IF(L21="i",VLOOKUP(C21,'Ins SINAPI AL 03-2023 Onerado'!$A$8:$E$5189,2,0),VLOOKUP(C21,'Comp SINAPI AL 03-2023 Onerado'!$G$7:$K$6879,2,0))) -> Execução De Refeitório Em Canteiro De Obra Em Chapa De Madeira Compensada, Não Incluso Mobiliário E Equipamentos. Af_02/2016 | G21: =LOWER(IF(L21="i",VLOOKUP(C21,'Ins SINAPI AL 03-2023 Onerado'!$A$8:$E$5189,3,0),VLOOKUP(C21,'Comp SINAPI AL 03-2023 Onerado'!$G$7:$K$6879,3,0))) -> m2 | H21: =SUMIF('MEM SERV'!A:A,'Planilha Orçamentária'!A21,'MEM SERV'!H:H) -> 7.5 | I21: =SUMIFS(CPU!$H:$H,CPU!$B:$B,'Planilha Orçamentária'!$A21,CPU!$I:$I,"ss")+SUMIFS(CPU!$H:$H,CPU!$B:$B,'Planilha Orçamentária'!$A21,CPU!$I:$I,"mdo")+SUMIF('Comp SINAPI AL 03-2023 Onerado'!G:G,'Planilha Orçamentária'!C21,'Comp SINAPI AL 03-2023 Onerado'!K:K) -> 605.38 | J21: 762.233958 | K21: 5716.754685 | L21: serv | M21: i
A22: 2.1.7 | B22: SINAPI | C22: 93212 | D22: 13455 | E22: Obras civis - pequenas obras / pintura em geral | F22: =PROPER(IF(L22="i",VLOOKUP(C22,'Ins SINAPI AL 03-2023 Onerado'!$A$8:$E$5189,2,0),VLOOKUP(C22,'Comp SINAPI AL 03-2023 Onerado'!$G$7:$K$6879,2,0))) -> Execução De Sanitário E Vestiário Em Canteiro De Obra Em Chapa De Madeira Compensada, Não Incluso Mobiliário. Af_02/2016 | G22: =LOWER(IF(L22="i",VLOOKUP(C22,'Ins SINAPI AL 03-2023 Onerado'!$A$8:$E$5189,3,0),VLOOKUP(C22,'Comp SINAPI AL 03-2023 Onerado'!$G$7:$K$6879,3,0))) -> m2 | H22: =SUMIF('MEM SERV'!A:A,'Planilha Orçamentária'!A22,'MEM SERV'!H:H) -> 9 | I22: =SUMIFS(CPU!$H:$H,CPU!$B:$B,'Planilha Orçamentária'!$A22,CPU!$I:$I,"ss")+SUMIFS(CPU!$H:$H,CPU!$B:$B,'Planilha Orçamentária'!$A22,CPU!$I:$I,"mdo")+SUMIF('Comp SINAPI AL 03-2023 Onerado'!G:G,'Planilha Orçamentária'!C22,'Comp SINAPI AL 03-2023 Onerado'!K:K) -> 982.88 | J22: 1237.544208 | K22: 11137.89787 | L22: serv | M22: i
A23: 2.1.8 | B23: SINAPI | C23: 94975 | D23: 17140 | E23: Obras civis - concretagem | F23: =PROPER(IF(L23="i",VLOOKUP(C23,'Ins SINAPI AL 03-2023 Onerado'!$A$8:$E$5189,2,0),VLOOKUP(C23,'Comp SINAPI AL 03-2023 Onerado'!$G$7:$K$6879,2,0))) -> Concreto Fck = 15Mpa, Traço 1:3,4:3,5 (Em Massa Seca De Cimento/ Areia Média/ Brita 1) - Preparo Manual. Af_05/2021 | G23: =LOWER(IF(L23="i",VLOOKUP(C23,'Ins SINAPI AL 03-2023 Onerado'!$A$8:$E$5189,3,0),VLOOKUP(C23,'Comp SINAPI AL 03-2023 Onerado'!$G$7:$K$6879,3,0))) -> m3 | H23: =SUMIF('MEM SERV'!A:A,'Planilha Orçamentária'!A23,'MEM SERV'!H:H) -> 3.99 | I23: =SUMIFS(CPU!$H:$H,CPU!$B:$B,'Planilha Orçamentária'!$A23,CPU!$I:$I,"ss")+SUMIFS(CPU!$H:$H,CPU!$B:$B,'Planilha Orçamentária'!$A23,CPU!$I:$I,"mdo")+SUMIF('Comp SINAPI AL 03-2023 Onerado'!G:G,'Planilha Orçamentária'!C23,'Comp SINAPI AL 03-2023 Onerado'!K:K) -> 447.17 | J23: 563.031747 | K23: 2246.496671 | L23: serv | M23: i
A24: 2.1.9 | B24: PRÓPRIA | C24: CPU.37 | D24: 25259 | E24: Remanejamento de equipamento / mobiliário | F24: Mobilização | G24: un | H24: =SUMIF('MEM SERV'!A:A,'Planilha Orçamentária'!A24,'MEM SERV'!H:H) -> 1 | I24: =SUMIFS(CPU!$H:$H,CPU!$B:$B,'Planilha Orçamentária'!$A24,CPU!$I:$I,"ss")+SUMIFS(CPU!$H:$H,CPU!$B:$B,'Planilha Orçamentária'!$A24,CPU!$I:$I,"mdo")+SUMIF('Comp SINAPI AL 03-2023 Onerado'!G:G,'Planilha Orçamentária'!C24,'Comp SINAPI AL 03-2023 Onerado'!K:K) -> 29498.54 | J24: 37141.61171 | K24: 37141.61171 | L24: serv | M24: i
A25: 2.2 | F25: Sinalização | K25: =SUM(K26:K26) -> 905.343264 | M25: s
A26: 2.2.1 | B26: PRÓPRIA | C26: CPU.05 | D26: 13455 | E26: Obras civis - pequenas obras / pintura em geral | F26: Placa de obra em chapa aço galvanizado, instalada (Adaptado ORSE 51) | G26: m2 | H26: 2 | I26: =SUMIFS(CPU!$H:$H,CPU!$B:$B,'Planilha Orçamentária'!$A26,CPU!$I:$I,"ss")+SUMIFS(CPU!$H:$H,CPU!$B:$B,'Planilha Orçamentária'!$A26,CPU!$I:$I,"mdo")+SUMIF('Comp SINAPI AL 03-2023 Onerado'!G:G,'Planilha Orçamentária'!C26,'Comp SINAPI AL 03-2023 Onerado'!K:K) -> 359.52 | J26: =IF(L26="SERV",I26*(1+$J$5),I26*(1+$J$6)) -> 452.671632 | K26: =IF(L26="SERV",I26*H26*(1+$J$5),I26*H26*(1+$J$6)) -> 905.343264 | L26: serv | M26: i
A28: 3 | F28: VISITA TÉCNICA NA REGIÃO DA COMPORTA DA TOMADA D’ÁGUA E COMPORTA SEGMENTO | K28: =K29 -> 66822.9552
A29: 3.1 | F29: Vistoria e Laudo em região submersa | K29: =SUM(K30:K31) -> 66822.9552
A30: 3.1.1 | B30: PRÓPRIA | C30: CPU.06 | D30: 25259 | E30: Remanejamento de equipamento / mobiliário | F30: Mobilização e desmobilização da Equipe, Camara Hiperbarica e todos os equipamentos de mergulho envolvidos na operação | G30: un | H30: 1 | I30: =SUMIFS(CPU!$H:$H,CPU!$B:$B,'Planilha Orçamentária'!$A30,CPU!$I:$I,"ss")+SUMIFS(CPU!$H:$H,CPU!$B:$B,'Planilha Orçamentária'!$A30,CPU!$I:$I,"mdo")+SUMIF('Comp SINAPI AL 03-2023 Onerado'!G:G,'Planilha Orçamentária'!C30,'Comp SINAPI AL 03-2023 Onerado'!K:K) -> 42000 | J30: =IF(L30="SERV",I30*(1+$J$5),I30*(1+$J$6)) -> 52882.2 | K30: =IF(L30="SERV",I30*H30*(1+$J$5),I30*H30*(1+$J$6)) -> 52882.2 | L30: serv
A31: 3.1.2 | B31: SICRO | C31: 4816024 | D31: 22225 | E31: Serviço engenharia | F31: Operação de mergulho dependente em profundidade de até 30 m - inclusive descompressão | G31: h | H31: 40 | I31: =276.8 -> 276.8 | J31: =IF(L31="SERV",I31*(1+$J$5),I31*(1+$J$6)) -> 348.51888 | K31: =IF(L31="SERV",I31*H31*(1+$J$5),I31*H31*(1+$J$6)) -> 13940.7552 | L31: serv
A33: 4 | F33: PLANO DE TRABALHO PARA SUBSTITUIÇÃO DA COMPORTA | K33: =SUM(K34,K36) -> 403920.7909
A34: 4.1 | F34: Elaboração de plano para substituição da comporta | K34: =SUM(K35:K35) -> 69348.01729
A35: 4.1.1 | B35: PRÓPRIA | C35: CPU.07 | D35: 809 | E35: Consultoria / assessoria - engenharia | F35: =PROPER("PLANO DE TRABALHO PARA SUBSTITUIÇÃO DA COMPORTA") -> Plano De Trabalho Para Substituição Da Comporta | G35: un | H35: 1 | I35: =SUMIFS(CPU!$H:$H,CPU!$B:$B,'Planilha Orçamentária'!$A35,CPU!$I:$I,"ss")+SUMIFS(CPU!$H:$H,CPU!$B:$B,'Planilha Orçamentária'!$A35,CPU!$I:$I,"mdo")+SUMIF('Comp SINAPI AL 03-2023 Onerado'!G:G,'Planilha Orçamentária'!C35,'Comp SINAPI AL 03-2023 Onerado'!K:K) -> 55077.45 | J35: =IF(L35="SERV",I35*(1+$J$5),I35*(1+$J$6)) -> 69348.01729 | K35: =IF(L35="SERV",I35*H35*(1+$J$5),I35*H35*(1+$J$6)) -> 69348.01729 | L35: serv
A36: 4.2 | F36: Método de execução de substituição das comportas | K36: =SUM(K37:K39) -> 334572.7736
A37: 4.2.1 | B37: PROPRIA | C37: CPU.08 | D37: 2267 | E37: Instalação e montagem de equipamentos mecânicos/eletromecânicos | F37: Construção/adequação e instalação de comporta ensecadeira (stop-log) provisória a ser instalada na guia já existente da tomada d’água (alternativa "a") | G37: un | H37: 1 | I37: =SUMIFS(CPU!$H:$H,CPU!$B:$B,'Planilha Orçamentária'!$A37,CPU!$I:$I,"ss")+SUMIFS(CPU!$H:$H,CPU!$B:$B,'Planilha Orçamentária'!$A37,CPU!$I:$I,"mdo")+SUMIF('Comp SINAPI AL 03-2023 Onerado'!G:G,'Planilha Orçamentária'!C37,'Comp SINAPI AL 03-2023 Onerado'!K:K) -> 58532.82 | J37: =IF(L37="SERV",I37*(1+$J$5),I37*(1+$J$6)) -> 73698.67366 | K37: =IF(L37="SERV",I37*H37*(1+$J$5),I37*H37*(1+$J$6)) -> 73698.67366 | L37: serv
A38: 4.2.2 | B38: PROPRIA | C38: CPU.09 | D38: 2267 | E38: Instalação e montagem de equipamentos mecânicos/eletromecânicos | F38: Utilização de bloqueador inflável multidimensional (alternativa "c") | G38: un | H38: 1 | I38: =SUMIFS(CPU!$H:$H,CPU!$B:$B,'Planilha Orçamentária'!$A38,CPU!$I:$I,"ss")+SUMIFS(CPU!$H:$H,CPU!$B:$B,'Planilha Orçamentária'!$A38,CPU!$I:$I,"mdo")+SUMIF('Comp SINAPI AL 03-2023 Onerado'!G:G,'Planilha Orçamentária'!C38,'Comp SINAPI AL 03-2023 Onerado'!K:K) -> 106052.71 | J38: =IF(L38="SERV",I38*(1+$J$5),I38*(1+$J$6)) -> 133530.9672 | K38: =IF(L38="SERV",I38*H38*(1+$J$5),I38*H38*(1+$J$6)) -> 133530.9672 | L38: serv
A39: 4.2.3 | B39: PROPRIA | C39: CPU.10 | D39: 2267 | E39: Instalação e montagem de equipamentos mecânicos/eletromecânicos | F39: Vedação das entradas da tomada d’água com chapas metálicas (alternativa "b") | G39: un | H39: 1 | I39: =SUMIFS(CPU!$H:$H,CPU!$B:$B,'Planilha Orçamentária'!$A39,CPU!$I:$I,"ss")+SUMIFS(CPU!$H:$H,CPU!$B:$B,'Planilha Orçamentária'!$A39,CPU!$I:$I,"mdo")+SUMIF('Comp SINAPI AL 03-2023 Onerado'!G:G,'Planilha Orçamentária'!C39,'Comp SINAPI AL 03-2023 Onerado'!K:K) -> 101138.22 | J39: =IF(L39="SERV",I39*(1+$J$5),I39*(1+$J$6)) -> 127343.1328 | K39: =IF(L39="SERV",I39*H39*(1+$J$5),I39*H39*(1+$J$6)) -> 127343.1328 | L39: serv
A41: 5 | F41: COMPORTA SEGMENTO | K41: =SUM(K42:K48) -> 103784.0372 | M41: ss
A42: 5.1 | B42: PRÓPRIA | C42: CPU.11 | D42: 2267 | E42: Instalação e montagem de equipamentos mecânicos/eletromecânicos | F42: Desmontagem e retirada das comportas segmento existentes, compreendendo cilindro hidraulico, tabuleiro, braços, mancais e instalação eletrica e hidraulica | G42: un | H42: 1 | I42: =SUMIFS(CPU!$H:$H,CPU!$B:$B,'Planilha Orçamentária'!$A42,CPU!$I:$I,"ss")+SUMIFS(CPU!$H:$H,CPU!$B:$B,'Planilha Orçamentária'!$A42,CPU!$I:$I,"mdo")+SUMIF('Comp SINAPI AL 03-2023 Onerado'!G:G,'Planilha Orçamentária'!C42,'Comp SINAPI AL 03-2023 Onerado'!K:K) -> 18502.26 | J42: =IF(L42="SERV",I42*(1+$J$5),I42*(1+$J$6)) -> 23296.19557 | K42: =IF(L42="SERV",I42*H42*(1+$J$5),I42*H42*(1+$J$6)) -> 23296.19557 | L42: serv | M42: i
A43: 5.2 | B43: PRÓPRIA | C43: CPU.12 | D43: 2267 | E43: Instalação e montagem de equipamentos mecânicos/eletromecânicos | F43: Demolição e transporte do concreto das ranhuras das peças fixas existentes e demolição das peças fixas, compreendendo caminho de deslizamento, peças fixas laterais, soleira e peça fixa frontal. | G43: un | H43: 1 | I43: =SUMIFS(CPU!$H:$H,CPU!$B:$B,'Planilha Orçamentária'!$A43,CPU!$I:$I,"ss")+SUMIFS(CPU!$H:$H,CPU!$B:$B,'Planilha Orçamentária'!$A43,CPU!$I:$I,"mdo")+SUMIF('Comp SINAPI AL 03-2023 Onerado'!G:G,'Planilha Orçamentária'!C43,'Comp SINAPI AL 03-2023 Onerado'!K:K) -> 11225.92 | J43: 14134.55587 | K43: 14134.55587 | L43: serv | M43: i
A44: 5.3 | B44: PRÓPRIA | C44: CPU.13 | D44: 2267 | E44: Instalação e montagem de equipamentos mecânicos/eletromecânicos | F44: Preparação das ranhuras para receber as novas peças fixas | G44: un | H44: 1 | I44: =SUMIFS(CPU!$H:$H,CPU!$B:$B,'Planilha Orçamentária'!$A44,CPU!$I:$I,"ss")+SUMIFS(CPU!$H:$H,CPU!$B:$B,'Planilha Orçamentária'!$A44,CPU!$I:$I,"mdo")+SUMIF('Comp SINAPI AL 03-2023 Onerado'!G:G,'Planilha Orçamentária'!C44,'Comp SINAPI AL 03-2023 Onerado'!K:K) -> 5575.38 | J44: 7019.960958 | K44: 7019.960958 | L44: serv | M44: i
A45: 5.4 | B45: PRÓPRIA | C45: CPU.14 | D45: 2267 | E45: Instalação e montagem de equipamentos mecânicos/eletromecânicos | F45: Montagem das novas peças fixas | G45: un | H45: 1 | I45: =SUMIFS(CPU!$H:$H,CPU!$B:$B,'Planilha Orçamentária'!$A45,CPU!$I:$I,"ss")+SUMIFS(CPU!$H:$H,CPU!$B:$B,'Planilha Orçamentária'!$A45,CPU!$I:$I,"mdo")+SUMIF('Comp SINAPI AL 03-2023 Onerado'!G:G,'Planilha Orçamentária'!C45,'Comp SINAPI AL 03-2023 Onerado'!K:K) -> 27825.76 | J45: 35035.41442 | K45: 35035.41442 | L45: serv | M45: i
A46: 5.5 | B46: PRÓPRIA | C46: CPU.15 | D46: 17140 | E46: Obras civis - concretagem | F46: Concretagem das novas peças fixas | G46: un | H46: 1 | I46: =SUMIFS(CPU!$H:$H,CPU!$B:$B,'Planilha Orçamentária'!$A46,CPU!$I:$I,"ss")+SUMIFS(CPU!$H:$H,CPU!$B:$B,'Planilha Orçamentária'!$A46,CPU!$I:$I,"mdo")+SUMIF('Comp SINAPI AL 03-2023 Onerado'!G:G,'Planilha Orçamentária'!C46,'Comp SINAPI AL 03-2023 Onerado'!K:K) -> 7004.23 | J46: 8819.025993 | K46: 8819.025993 | L46: serv | M46: i
A47: 5.6 | B47: PRÓPRIA | C47: CPU.16 | D47: 17140 | E47: Obras civis - concretagem | F47: Retirada de formas das peças fixas | G47: un | H47: 1 | I47: =SUMIFS(CPU!$H:$H,CPU!$B:$B,'Planilha Orçamentária'!$A47,CPU!$I:$I,"ss")+SUMIFS(CPU!$H:$H,CPU!$B:$B,'Planilha Orçamentária'!$A47,CPU!$I:$I,"mdo")+SUMIF('Comp SINAPI AL 03-2023 Onerado'!G:G,'Planilha Orçamentária'!C47,'Comp SINAPI AL 03-2023 Onerado'!K:K) -> 3538.13 | J47: 4454.859483 | K47: 4454.859483 | L47: serv | M47: i
A48: 5.7 | B48: PRÓPRIA | C48: CPU.17 | D48: 1635 | E48: Obras civis - demolições | F48: Demolição da casa de comando das comportas segmento existente e transporte de entulho | G48: un | H48: 1 | I48: =SUMIFS(CPU!$H:$H,CPU!$B:$B,'Planilha Orçamentária'!$A48,CPU!$I:$I,"ss")+SUMIFS(CPU!$H:$H,CPU!$B:$B,'Planilha Orçamentária'!$A48,CPU!$I:$I,"mdo")+SUMIF('Comp SINAPI AL 03-2023 Onerado'!G:G,'Planilha Orçamentária'!C48,'Comp SINAPI AL 03-2023 Onerado'!K:K) -> 8755.48 | J48: 11024.02487 | K48: 11024.02487 | L48: serv | M48: i
A50: 6 | F50: CASA DE COMANDO | K50: =SUM(K51:K95)/2 -> 101020.8628 | M50: ss
A51: 6.1 | F51: Estrutura | K51: =SUM(K52:K73) -> 93781.09857 | M51: s
A52: 6.1.1 | B52: SINAPI | C52: 94807 | D52: 610632 | E52: Porta Tipo = Alumínio L = 90 cm e A = 210 cm | F52: Porta Em Aço De Abrir Tipo Veneziana Sem Guarnição, 87X210Cm, Fixação Com Parafusos - Fornecimento E Instalação. Af_12/2019 | G52: =LOWER(IF(L52="i",VLOOKUP(C52,'Ins SINAPI AL 03-2023 Onerado'!$A$8:$E$5189,3,0),VLOOKUP(C52,'Comp SINAPI AL 03-2023 Onerado'!$G$7:$K$6879,3,0))) -> un | H52: 1 | I52: =SUMIFS(CPU!$H:$H,CPU!$B:$B,'Planilha Orçamentária'!$A52,CPU!$I:$I,"ss")+SUMIFS(CPU!$H:$H,CPU!$B:$B,'Planilha Orçamentária'!$A52,CPU!$I:$I,"mdo")+SUMIF('Comp SINAPI AL 03-2023 Onerado'!G:G,'Planilha Orçamentária'!C52,'Comp SINAPI AL 03-2023 Onerado'!K:K) -> 713.85 | J52: =IF(L52="SERV",I52*(1+$J$5),I52*(1+$J$6)) -> 898.808535 | K52: =IF(L52="SERV",I52*H52*(1+$J$5),I52*H52*(1+$J$6)) -> 898.808535 | L52: serv | M52: i
A53: 6.1.2 | B53: SINAPI | C53: 94562 | D53: 15814 | E53: Instalação / remoção de divisória / painel / persiana / janela / porta / esquadria em geral | F53: Janela De Aço De Correr Com 4 Folhas Para Vidro, Com Batente, Ferragens E Pintura Anticorrosiva. Exclusive Vidros, Alizar E Contramarco. Fornecimento E Instalação. Af_12/2019 | G53: =LOWER(IF(L53="i",VLOOKUP(C53,'Ins SINAPI AL 03-2023 Onerado'!$A$8:$E$5189,3,0),VLOOKUP(C53,'Comp SINAPI AL 03-2023 Onerado'!$G$7:$K$6879,3,0))) -> m2 | H53: 4 | I53: =SUMIFS(CPU!$H:$H,CPU!$B:$B,'Planilha Orçamentária'!$A53,CPU!$I:$I,"ss")+SUMIFS(CPU!$H:$H,CPU!$B:$B,'Planilha Orçamentária'!$A53,CPU!$I:$I,"mdo")+SUMIF('Comp SINAPI AL 03-2023 Onerado'!G:G,'Planilha Orçamentária'!C53,'Comp SINAPI AL 03-2023 Onerado'!K:K) -> 619.62 | J53: 780.163542 | K53: 3120.654168 | L53: serv | M53: i
A54: 6.1.3 | B54: SINAPI | C54: 96526 | D54: 17140 | E54: Obras civis - concretagem | F54: Escavação Manual De Vala Para Viga Baldrame (Sem Escavação Para Colocação De Fôrmas). Af_06/2017 | G54: m3 | H54: 5.5 | I54: =SUMIFS(CPU!$H:$H,CPU!$B:$B,'Planilha Orçamentária'!$A54,CPU!$I:$I,"ss")+SUMIFS(CPU!$H:$H,CPU!$B:$B,'Planilha Orçamentária'!$A54,CPU!$I:$I,"mdo")+SUMIF('Comp SINAPI AL 03-2023 Onerado'!G:G,'Planilha Orçamentária'!C54,'Comp SINAPI AL 03-2023 Onerado'!K:K) -> 263.88 | J54: 332.251308 | K54: 1827.382194 | L54: serv | M54: i
A55: 6.1.4 | B55: SINAPI | C55: 100324 | D55: 17140 | E55: Obras civis - concretagem | F55: Lastro Com Material Granular (Pedra Britada N.1 E Pedra Britada N.2), Aplicado Em Pisos Ou Lajes Sobre Solo, Espessura De *10 Cm*. Af_07/2019 | G55: =LOWER(IF(L55="i",VLOOKUP(C55,'Ins SINAPI AL 03-2023 Onerado'!$A$8:$E$5189,3,0),VLOOKUP(C55,'Comp SINAPI AL 03-2023 Onerado'!$G$7:$K$6879,3,0))) -> m3 | H55: 1.3 | I55: =SUMIFS(CPU!$H:$H,CPU!$B:$B,'Planilha Orçamentária'!$A55,CPU!$I:$I,"ss")+SUMIFS(CPU!$H:$H,CPU!$B:$B,'Planilha Orçamentária'!$A55,CPU!$I:$I,"mdo")+SUMIF('Comp SINAPI AL 03-2023 Onerado'!G:G,'Planilha Orçamentária'!C55,'Comp SINAPI AL 03-2023 Onerado'!K:K) -> 118.34 | J55: 149.001894 | K55: 193.7024622 | L55: serv | M55: i
A56: 6.1.5 | B56: SINAPI | C56: 94990 | D56: 17140 | E56: Obras civis - concretagem | F56: Execução De Passeio (Calçada) Ou Piso De Concreto Com Concreto Moldado In Loco, Feito Em Obra, Acabamento Convencional, Não Armado. Af_08/2022 | G56: =LOWER(IF(L56="i",VLOOKUP(C56,'Ins SINAPI AL 03-2023 Onerado'!$A$8:$E$5189,3,0),VLOOKUP(C56,'Comp SINAPI AL 03-2023 Onerado'!$G$7:$K$6879,3,0))) -> m3 | H56: 5.48 | I56: =SUMIFS(CPU!$H:$H,CPU!$B:$B,'Planilha Orçamentária'!$A56,CPU!$I:$I,"ss")+SUMIFS(CPU!$H:$H,CPU!$B:$B,'Planilha Orçamentária'!$A56,CPU!$I:$I,"mdo")+SUMIF('Comp SINAPI AL 03-2023 Onerado'!G:G,'Planilha Orçamentária'!C56,'Comp SINAPI AL 03-2023 Onerado'!K:K) -> 702.92 | J56: 885.046572 | K56: 4850.055215 | L56: serv | M56: i
A57: 6.1.6 | B57: SINAPI | C57: 103319 | D57: 24813 | E57: Serviços de alvenaria | F57: Alvenaria De Vedação De Blocos Vazados De Concreto De 14X19X39 Cm (Espessura 14 Cm) E Argamassa De Assentamento Com Preparo Manual. Af_12/2021 | G57: =LOWER(IF(L57="i",VLOOKUP(C57,'Ins SINAPI AL 03-2023 Onerado'!$A$8:$E$5189,3,0),VLOOKUP(C57,'Comp SINAPI AL 03-2023 Onerado'!$G$7:$K$6879,3,0))) -> m2 | H57: 44.7 | I57: =SUMIFS(CPU!$H:$H,CPU!$B:$B,'Planilha Orçamentária'!$A57,CPU!$I:$I,"ss")+SUMIFS(CPU!$H:$H,CPU!$B:$B,'Planilha Orçamentária'!$A57,CPU!$I:$I,"mdo")+SUMIF('Comp SINAPI AL 03-2023 Onerado'!G:G,'Planilha Orçamentária'!C57,'Comp SINAPI AL 03-2023 Onerado'!K:K) -> 85.74 | J57: 107.955234 | K57: 4825.59896 | L57: serv | M57: i
A58: 6.1.7 | B58: SINAPI | C58: 103675 | D58: 17140 | E58: Obras civis - concretagem | F58: Concretagem De Vigas E Lajes, Fck=25 Mpa, Para Lajes Maciças Ou Nervuradas Com Uso De Bomba - Lançamento, Adensamento E Acabamento. Af_02/2022 | G58: =LOWER(IF(L58="i",VLOOKUP(C58,'Ins SINAPI AL 03-2023 Onerado'!$A$8:$E$5189,3,0),VLOOKUP(C58,'Comp SINAPI AL 03-2023 Onerado'!$G$7:$K$6879,3,0))) -> m3 | H58: 2.37 | I58: =SUMIFS(CPU!$H:$H,CPU!$B:$B,'Planilha Orçamentária'!$A58,CPU!$I:$I,"ss")+SUMIFS(CPU!$H:$H,CPU!$B:$B,'Planilha Orçamentária'!$A58,CPU!$I:$I,"mdo")+SUMIF('Comp SINAPI AL 03-2023 Onerado'!G:G,'Planilha Orçamentária'!C58,'Comp SINAPI AL 03-2023 Onerado'!K:K) -> 613.08 | J58: 771.929028 | K58: 1829.471796 | L58: serv | M58: i
A59: 6.1.8 | B59: SINAPI | C59: 92544 | D59: 19224 | E59: Construção / manutenção / reforma - telhado | F59: Trama De Madeira Composta Por Terças Para Telhados De Até 2 Águas Para Telha Estrutural De Fibrocimento, Incluso Transporte Vertical. Af_07/2019 | G59: =LOWER(IF(L59="i",VLOOKUP(C59,'Ins SINAPI AL 03-2023 Onerado'!$A$8:$E$5189,3,0),VLOOKUP(C59,'Comp SINAPI AL 03-2023 Onerado'!$G$7:$K$6879,3,0))) -> m2 | H59: 23.4 | I59: =SUMIFS(CPU!$H:$H,CPU!$B:$B,'Planilha Orçamentária'!$A59,CPU!$I:$I,"ss")+SUMIFS(CPU!$H:$H,CPU!$B:$B,'Planilha Orçamentária'!$A59,CPU!$I:$I,"mdo")+SUMIF('Comp SINAPI AL 03-2023 Onerado'!G:G,'Planilha Orçamentária'!C59,'Comp SINAPI AL 03-2023 Onerado'!K:K) -> 14.35 | J59: 18.068085 | K59: 422.793189 | L59: serv | M59: i
A60: 6.1.9 | B60: SINAPI | C60: 87904 | D60: 13455 | E60: Obras civis - pequenas obras / pintura em geral | F60: Chapisco Aplicado Em Alvenaria (Com Presença De Vãos) E Estruturas De Concreto De Fachada, Com Colher De Pedreiro. Argamassa Traço 1:3 Com Preparo Manual. Af_10/2022 | G60: =LOWER(IF(L60="i",VLOOKUP(C60,'Ins SINAPI AL 03-2023 Onerado'!$A$8:$E$5189,3,0),VLOOKUP(C60,'Comp SINAPI AL 03-2023 Onerado'!$G$7:$K$6879,3,0))) -> m2 | H60: 89.4 | I60: =SUMIFS(CPU!$H:$H,CPU!$B:$B,'Planilha Orçamentária'!$A60,CPU!$I:$I,"ss")+SUMIFS(CPU!$H:$H,CPU!$B:$B,'Planilha Orçamentária'!$A60,CPU!$I:$I,"mdo")+SUMIF('Comp SINAPI AL 03-2023 Onerado'!G:G,'Planilha Orçamentária'!C60,'Comp SINAPI AL 03-2023 Onerado'!K:K) -> 7.3 | J60: 9.19143 | K60: 821.713842 | L60: serv | M60: i
A61: 6.1.10 | B61: SINAPI | C61: 94207 | D61: 19224 | E61: Construção / manutenção / reforma - telhado | F61: Telhamento Com Telha Ondulada De Fibrocimento E = 6 Mm, Com Recobrimento Lateral De 1/4 De Onda Para Telhado Com Inclinação Maior Que 10°, Com Até 2 Águas, Incluso Içamento. Af_07/2019 | G61: =LOWER(IF(L61="i",VLOOKUP(C61,'Ins SINAPI AL 03-2023 Onerado'!$A$8:$E$5189,3,0),VLOOKUP(C61,'Comp SINAPI AL 03-2023 Onerado'!$G$7:$K$6879,3,0))) -> m2 | H61: 25 | I61: =SUMIFS(CPU!$H:$H,CPU!$B:$B,'Planilha Orçamentária'!$A61,CPU!$I:$I,"ss")+SUMIFS(CPU!$H:$H,CPU!$B:$B,'Planilha Orçamentária'!$A61,CPU!$I:$I,"mdo")+SUMIF('Comp SINAPI AL 03-2023 Onerado'!G:G,'Planilha Orçamentária'!C61,'Comp SINAPI AL 03-2023 Onerado'!K:K) -> 67.68 | J61: 85.215888 | K61: 2130.3972 | L61: serv | M61: i
A62: 6.1.11 | B62: SINAPI | C62: 87530 | D62: 13455 | E62: Obras civis - pequenas obras / pintura em geral | F62: Massa Única, Para Recebimento De Pintura, Em Argamassa Traço 1:2:8, Preparo Manual, Aplicada Manualmente Em Faces Internas De Paredes, Espessura De 20Mm, Com Execução De Taliscas. Af_06/2014 | G62: =LOWER(IF(L62="i",VLOOKUP(C62,'Ins SINAPI AL 03-2023 Onerado'!$A$8:$E$5189,3,0),VLOOKUP(C62,'Comp SINAPI AL 03-2023 Onerado'!$G$7:$K$6879,3,0))) -> m2 | H62: 89.4 | I62: =SUMIFS(CPU!$H:$H,CPU!$B:$B,'Planilha Orçamentária'!$A62,CPU!$I:$I,"ss")+SUMIFS(CPU!$H:$H,CPU!$B:$B,'Planilha Orçamentária'!$A62,CPU!$I:$I,"mdo")+SUMIF('Comp SINAPI AL 03-2023 Onerado'!G:G,'Planilha Orçamentária'!C62,'Comp SINAPI AL 03-2023 Onerado'!K:K) -> 38.36 | J62: 48.299076 | K62: 4317.937394 | L62: serv | M62: i
A63: 6.1.12 | B63: SINAPI | C63: 88489 | D63: 13455 | E63: Obras civis - pequenas obras / pintura em geral | F63: Aplicação Manual De Pintura Com Tinta Látex Acrílica Em Paredes, Duas Demãos. Af_06/2014 | G63: =LOWER(IF(L63="i",VLOOKUP(C63,'Ins SINAPI AL 03-2023 Onerado'!$A$8:$E$5189,3,0),VLOOKUP(C63,'Comp SINAPI AL 03-2023 Onerado'!$G$7:$K$6879,3,0))) -> m2 | H63: 89.4 | I63: =SUMIFS(CPU!$H:$H,CPU!$B:$B,'Planilha Orçamentária'!$A63,CPU!$I:$I,"ss")+SUMIFS(CPU!$H:$H,CPU!$B:$B,'Planilha Orçamentária'!$A63,CPU!$I:$I,"mdo")+SUMIF('Comp SINAPI AL 03-2023 Onerado'!G:G,'Planilha Orçamentária'!C63,'Comp SINAPI AL 03-2023 Onerado'!K:K) -> 11.63 | J63: 14.643333 | K63: 1309.11397 | L63: serv | M63: i
A64: 6.1.13 | B64: SINAPI | C64: 97914 | D64: 23248 | E64: Prestação de serviço de transporte para serviço - mensal de 2ª a 6ª-feira | F64: Transporte Com Caminhão Basculante De 6 M³, Em Via Urbana Pavimentada, Dmt Até 30 Km (Unidade: M3Xkm). Af_07/2020 | G64: m3xkm | H64: 300 | I64: =SUMIFS(CPU!$H:$H,CPU!$B:$B,'Planilha Orçamentária'!$A64,CPU!$I:$I,"ss")+SUMIFS(CPU!$H:$H,CPU!$B:$B,'Planilha Orçamentária'!$A64,CPU!$I:$I,"mdo")+SUMIF('Comp SINAPI AL 03-2023 Onerado'!G:G,'Planilha Orçamentária'!C64,'Comp SINAPI AL 03-2023 Onerado'!K:K) -> 2.71 | J64: 3.412161 | K64: 1023.6483 | L64: serv | M64: i
A65: 6.1.14 | B65: PRÓPRIA | C65: CPU.18 | D65: 2267 | E65: Instalação e montagem de equipamentos mecânicos/eletromecânicos | F65: Montagem das comportas segmento - Montagem dos mancais das comportas | G65: un | H65: 1 | I65: =SUMIFS(CPU!$H:$H,CPU!$B:$B,'Planilha Orçamentária'!$A65,CPU!$I:$I,"ss")+SUMIFS(CPU!$H:$H,CPU!$B:$B,'Planilha Orçamentária'!$A65,CPU!$I:$I,"mdo")+SUMIF('Comp SINAPI AL 03-2023 Onerado'!G:G,'Planilha Orçamentária'!C65,'Comp SINAPI AL 03-2023 Onerado'!K:K) -> 3520.68 | J65: 4432.888188 | K65: 4432.888188 | L65: serv | M65: i
A66: 6.1.15 | B66: PRÓPRIA | C66: CPU.19 | D66: 2267 | E66: Instalação e montagem de equipamentos mecânicos/eletromecânicos | F66: Montagem das comportas segmento - Montagem dos tabuleiros completos com vedações e braços | G66: un | H66: 1 | I66: =SUMIFS(CPU!$H:$H,CPU!$B:$B,'Planilha Orçamentária'!$A66,CPU!$I:$I,"ss")+SUMIFS(CPU!$H:$H,CPU!$B:$B,'Planilha Orçamentária'!$A66,CPU!$I:$I,"mdo")+SUMIF('Comp SINAPI AL 03-2023 Onerado'!G:G,'Planilha Orçamentária'!C66,'Comp SINAPI AL 03-2023 Onerado'!K:K) -> 37570.26 | J66: 47304.71437 | K66: 47304.71437 | L66: serv | M66: i
A67: 6.1.16 | B67: PRÓPRIA | C67: CPU.20 | D67: 2267 | E67: Instalação e montagem de equipamentos mecânicos/eletromecânicos | F67: Montagem das comportas segmento - Montagem dos cilindros e seus mancais | G67: un | H67: 1 | I67: =SUMIFS(CPU!$H:$H,CPU!$B:$B,'Planilha Orçamentária'!$A67,CPU!$I:$I,"ss")+SUMIFS(CPU!$H:$H,CPU!$B:$B,'Planilha Orçamentária'!$A67,CPU!$I:$I,"mdo")+SUMIF('Comp SINAPI AL 03-2023 Onerado'!G:G,'Planilha Orçamentária'!C67,'Comp SINAPI AL 03-2023 Onerado'!K:K) -> 3520.68 | J67: 4432.888188 | K67: 4432.888188 | L67: serv | M67: i
A68: 6.1.17 | B68: PRÓPRIA | C68: CPU.21 | D68: 21687 | E68: Instalação/manutenção/operação - elétrica | F68: Montagem do sistema de acionamento da comporta - unidade hidraulica e painel eletrico | G68: un | H68: 1 | I68: =SUMIFS(CPU!$H:$H,CPU!$B:$B,'Planilha Orçamentária'!$A68,CPU!$I:$I,"ss")+SUMIFS(CPU!$H:$H,CPU!$B:$B,'Planilha Orçamentária'!$A68,CPU!$I:$I,"mdo")+SUMIF('Comp SINAPI AL 03-2023 Onerado'!G:G,'Planilha Orçamentária'!C68,'Comp SINAPI AL 03-2023 Onerado'!K:K) -> 2160.64 | J68: 2720.461824 | K68: 2720.461824 | L68: serv | M68: i
A69: 6.1.18 | B69: PRÓPRIA | C69: CPU.22 | D69: 2267 | E69: Instalação e montagem de equipamentos mecânicos/eletromecânicos | F69: Montagem do sistema de acionamento da comporta - interligação entre comportas e casa de comando | G69: un | H69: 1 | I69: =SUMIFS(CPU!$H:$H,CPU!$B:$B,'Planilha Orçamentária'!$A69,CPU!$I:$I,"ss")+SUMIFS(CPU!$H:$H,CPU!$B:$B,'Planilha Orçamentária'!$A69,CPU!$I:$I,"mdo")+SUMIF('Comp SINAPI AL 03-2023 Onerado'!G:G,'Planilha Orçamentária'!C69,'Comp SINAPI AL 03-2023 Onerado'!K:K) -> 1949.78 | J69: 2454.967998 | K69: 2454.967998 | L69: serv | M69: i
A70: 6.1.19 | B70: PRÓPRIA | C70: CPU.23 | D70: 21687 | E70: Instalação/manutenção/operação - elétrica | F70: Montagem do sistema de acionamento da comporta - interligação eletrica entre casa de comando e rede eletrica | G70: un | H70: 1 | I70: =SUMIFS(CPU!$H:$H,CPU!$B:$B,'Planilha Orçamentária'!$A70,CPU!$I:$I,"ss")+SUMIFS(CPU!$H:$H,CPU!$B:$B,'Planilha Orçamentária'!$A70,CPU!$I:$I,"mdo")+SUMIF('Comp SINAPI AL 03-2023 Onerado'!G:G,'Planilha Orçamentária'!C70,'Comp SINAPI AL 03-2023 Onerado'!K:K) -> 3315.33 | J70: 4174.332003 | K70: 4174.332003 | L70: serv | M70: i
A71: 6.1.20 | B71: SINAPI | C71: 91601 | D71: 255612 | E71: Ferro Construção Civil; Tipo: Ca-50; Diâmetro: 1/4 POL | F71: =PROPER(IF(L71="i",VLOOKUP(C71,'Ins SINAPI AL 03-2023 Onerado'!$A$8:$E$5189,2,0),VLOOKUP(C71,'Comp SINAPI AL 03-2023 Onerado'!$G$7:$K$6879,2,0))) -> Armação Do Sistema De Paredes De Concreto, Executada Como Reforço, Vergalhão De 6,3 Mm De Diâmetro. Af_06/2019 | G71: =LOWER(IF(L71="i",VLOOKUP(C71,'Ins SINAPI AL 03-2023 Onerado'!$A$8:$E$5189,3,0),VLOOKUP(C71,'Comp SINAPI AL 03-2023 Onerado'!$G$7:$K$7500,3,0))) -> kg | H71: 14.6 | I71: =SUMIFS(CPU!$H:$H,CPU!$B:$B,'Planilha Orçamentária'!$A71,CPU!$I:$I,"ss")+SUMIFS(CPU!$H:$H,CPU!$B:$B,'Planilha Orçamentária'!$A71,CPU!$I:$I,"mdo")+SUMIF('Comp SINAPI AL 03-2023 Onerado'!G:G,'Planilha Orçamentária'!C71,'Comp SINAPI AL 03-2023 Onerado'!K:K) -> 14.76 | J71: 18.584316 | K71: 271.3310136 | L71: serv | M71: s
A72: 6.1.21 | B72: SINAPI | C72: 101792 | D72: 17140 | E72: Obras civis - concretagem | F72: =PROPER(IF(L72="i",VLOOKUP(C72,'Ins SINAPI AL 03-2023 Onerado'!$A$8:$E$5189,2,0),VLOOKUP(C72,'Comp SINAPI AL 03-2023 Onerado'!$G$7:$K$6879,2,0))) -> Escoramento De Fôrmas De Laje Em Madeira Não Aparelhada, Pé-Direito Simples, Incluso Travamento, 4 Utilizações. Af_09/2020 | G72: m3 | H72: 15.6 | I72: =SUMIFS(CPU!$H:$H,CPU!$B:$B,'Planilha Orçamentária'!$A72,CPU!$I:$I,"ss")+SUMIFS(CPU!$H:$H,CPU!$B:$B,'Planilha Orçamentária'!$A72,CPU!$I:$I,"mdo")+SUMIF('Comp SINAPI AL 03-2023 Onerado'!G:G,'Planilha Orçamentária'!C72,'Comp SINAPI AL 03-2023 Onerado'!K:K) -> 17.97 | J72: 22.626027 | K72: 352.9660212 | L72: serv
A73: 6.1.22 | B73: SINAPI | C73: 97087 | D73: 447902 | E73: Lona Plástica | F73: =PROPER(IF(L73="i",VLOOKUP(C73,'Ins SINAPI AL 03-2023 Onerado'!$A$8:$E$5189,2,0),VLOOKUP(C73,'Comp SINAPI AL 03-2023 Onerado'!$G$7:$K$6879,2,0))) -> Camada Separadora Para Execução De Radier, Piso De Concreto Ou Laje Sobre Solo, Em Lona Plástica. Af_09/2021 | G73: =LOWER(IF(L73="i",VLOOKUP(C73,'Ins SINAPI AL 03-2023 Onerado'!$A$8:$E$5189,3,0),VLOOKUP(C73,'Comp SINAPI AL 03-2023 Onerado'!$G$7:$K$7500,3,0))) -> m2 | H73: 16 | I73: =SUMIFS(CPU!$H:$H,CPU!$B:$B,'Planilha Orçamentária'!$A73,CPU!$I:$I,"ss")+SUMIFS(CPU!$H:$H,CPU!$B:$B,'Planilha Orçamentária'!$A73,CPU!$I:$I,"mdo")+SUMIF('Comp SINAPI AL 03-2023 Onerado'!G:G,'Planilha Orçamentária'!C73,'Comp SINAPI AL 03-2023 Onerado'!K:K) -> 3.24 | J73: 4.079484 | K73: 65.271744 | L73: serv
A74: 6.2 | F74: Instalações elétricas | K74: =SUM(K75:K95) -> 7239.764227 | M74: s
A75: 6.2.1 | B75: SINAPI | C75: 101875 | D75: 602032 | E75: Quadro Distribuição Quantidade Fases: 3 Barramento: Cobre 3 Fases/Neutro/Terra Material: Chapa De Aço Corrente Nominal: 630 A Quantidade De Disjuntores: 15 Tensão Nominal: 220 V Capacidade Nominal: 415 KVA | F75: =PROPER(IF(L75="i",VLOOKUP(C75,'Ins SINAPI AL 03-2023 Onerado'!$A$8:$E$5189,2,0),VLOOKUP(C75,'Comp SINAPI AL 03-2023 Onerado'!$G$7:$K$6879,2,0))) -> Quadro De Distribuição De Energia Em Chapa De Aço Galvanizado, De Embutir, Com Barramento Trifásico, Para 12 Disjuntores Din 100A - Fornecimento E Instalação. Af_10/2020 | G75: =LOWER(IF(L75="i",VLOOKUP(C75,'Ins SINAPI AL 03-2023 Onerado'!$A$8:$E$5189,3,0),VLOOKUP(C75,'Comp SINAPI AL 03-2023 Onerado'!$G$7:$K$6879,3,0))) -> un | H75: 1 | I75: =SUMIFS(CPU!$H:$H,CPU!$B:$B,'Planilha Orçamentária'!$A75,CPU!$I:$I,"ss")+SUMIFS(CPU!$H:$H,CPU!$B:$B,'Planilha Orçamentária'!$A75,CPU!$I:$I,"mdo")+SUMIF('Comp SINAPI AL 03-2023 Onerado'!G:G,'Planilha Orçamentária'!C75,'Comp SINAPI AL 03-2023 Onerado'!K:K) -> 544.84 | J75: =IF(L75="SERV",I75*(1+$J$5),I75*(1+$J$6)) -> 686.008044 | K75: =IF(L75="SERV",I75*H75*(1+$J$5),I75*H75*(1+$J$6)) -> 686.008044 | L75: serv | M75: i
A76: 6.2.2 | B76: SINAPI | C76: 95802 | D76: 256529 | E76: Condulete | F76: =PROPER(IF(L76="i",VLOOKUP(C76,'Ins SINAPI AL 03-2023 Onerado'!$A$8:$E$5189,2,0),VLOOKUP(C76,'Comp SINAPI AL 03-2023 Onerado'!$G$7:$K$6879,2,0))) -> Condulete De Alumínio, Tipo X, Para Eletroduto De Aço Galvanizado Dn 25 Mm (1''), Aparente - Fornecimento E Instalação. Af_10/2022 | G76: =LOWER(IF(L76="i",VLOOKUP(C76,'Ins SINAPI AL 03-2023 Onerado'!$A$8:$E$5189,3,0),VLOOKUP(C76,'Comp SINAPI AL 03-2023 Onerado'!$G$7:$K$6879,3,0))) -> un | H76: 1 | I76: =SUMIFS(CPU!$H:$H,CPU!$B:$B,'Planilha Orçamentária'!$A76,CPU!$I:$I,"ss")+SUMIFS(CPU!$H:$H,CPU!$B:$B,'Planilha Orçamentária'!$A76,CPU!$I:$I,"mdo")+SUMIF('Comp SINAPI AL 03-2023 Onerado'!G:G,'Planilha Orçamentária'!C76,'Comp SINAPI AL 03-2023 Onerado'!K:K) -> 47.33 | J76: 59.593203 | K76: 59.593203 | L76: serv | M76: i
A77: 6.2.3 | B77: SINAPI | C77: 91924 | D77: 471955 | E77: Cabo Elétrico Flexível - Vermelho | F77: =PROPER(IF(L77="i",VLOOKUP(C77,'Ins SINAPI AL 03-2023 Onerado'!$A$8:$E$5189,2,0),VLOOKUP(C77,'Comp SINAPI AL 03-2023 Onerado'!$G$7:$K$6879,2,0))) -> Cabo De Cobre Flexível Isolado, 1,5 Mm², Anti-Chama 450/750 V, Para Circuitos Terminais - Fornecimento E Instalação. Af_03/2023 | G77: =LOWER(IF(L77="i",VLOOKUP(C77,'Ins SINAPI AL 03-2023 Onerado'!$A$8:$E$5189,3,0),VLOOKUP(C77,'Comp SINAPI AL 03-2023 Onerado'!$G$7:$K$6879,3,0))) -> m | H77: 110 | I77: =SUMIFS(CPU!$H:$H,CPU!$B:$B,'Planilha Orçamentária'!$A77,CPU!$I:$I,"ss")+SUMIFS(CPU!$H:$H,CPU!$B:$B,'Planilha Orçamentária'!$A77,CPU!$I:$I,"mdo")+SUMIF('Comp SINAPI AL 03-2023 Onerado'!G:G,'Planilha Orçamentária'!C77,'Comp SINAPI AL 03-2023 Onerado'!K:K) -> 2.93 | J77: 3.689163 | K77: 405.80793 | L77: serv | M77: i
A78: 6.2.4 | B78: SINAPI | C78: 91926 | D78: 471954 | E78: Cabo Elétrico Flexível - Preto | F78: =PROPER(IF(L78="i",VLOOKUP(C78,'Ins SINAPI AL 03-2023 Onerado'!$A$8:$E$5189,2,0),VLOOKUP(C78,'Comp SINAPI AL 03-2023 Onerado'!$G$7:$K$6879,2,0))) -> Cabo De Cobre Flexível Isolado, 2,5 Mm², Anti-Chama 450/750 V, Para Circuitos Terminais - Fornecimento E Instalação. Af_03/2023 | G78: =LOWER(IF(L78="i",VLOOKUP(C78,'Ins SINAPI AL 03-2023 Onerado'!$A$8:$E$5189,3,0),VLOOKUP(C78,'Comp SINAPI AL 03-2023 Onerado'!$G$7:$K$6879,3,0))) -> m | H78: 150 | I78: =SUMIFS(CPU!$H:$H,CPU!$B:$B,'Planilha Orçamentária'!$A78,CPU!$I:$I,"ss")+SUMIFS(CPU!$H:$H,CPU!$B:$B,'Planilha Orçamentária'!$A78,CPU!$I:$I,"mdo")+SUMIF('Comp SINAPI AL 03-2023 Onerado'!G:G,'Planilha Orçamentária'!C78,'Comp SINAPI AL 03-2023 Onerado'!K:K) -> 4.27 | J78: 5.376357 | K78: 806.45355 | L78: serv | M78: i
A79: 6.2.5 | B79: SINAPI | C79: 91928 | D79: 363602 | E79: Cabo Elétrico Flexível - Preto | F79: =PROPER(IF(L79="i",VLOOKUP(C79,'Ins SINAPI AL 03-2023 Onerado'!$A$8:$E$5189,2,0),VLOOKUP(C79,'Comp SINAPI AL 03-2023 Onerado'!$G$7:$K$6879,2,0))) -> Cabo De Cobre Flexível Isolado, 4 Mm², Anti-Chama 450/750 V, Para Circuitos Terminais - Fornecimento E Instalação. Af_03/2023 | G79: =LOWER(IF(L79="i",VLOOKUP(C79,'Ins SINAPI AL 03-2023 Onerado'!$A$8:$E$5189,3,0),VLOOKUP(C79,'Comp SINAPI AL 03-2023 Onerado'!$G$7:$K$6879,3,0))) -> m | H79: 60 | I79: =SUMIFS(CPU!$H:$H,CPU!$B:$B,'Planilha Orçamentária'!$A79,CPU!$I:$I,"ss")+SUMIFS(CPU!$H:$H,CPU!$B:$B,'Planilha Orçamentária'!$A79,CPU!$I:$I,"mdo")+SUMIF('Comp SINAPI AL 03-2023 Onerado'!G:G,'Planilha Orçamentária'!C79,'Comp SINAPI AL 03-2023 Onerado'!K:K) -> 6.64 | J79: 8.360424 | K79: 501.62544 | L79: serv | M79: i
A80: 6.2.6 | B80: SINAPI | C80: 91932 | D80: 333637 | E80: Cabo Elétrico Flexível - Preto | F80: =PROPER(IF(L80="i",VLOOKUP(C80,'Ins SINAPI AL 03-2023 Onerado'!$A$8:$E$5189,2,0),VLOOKUP(C80,'Comp SINAPI AL 03-2023 Onerado'!$G$7:$K$6879,2,0))) -> Cabo De Cobre Flexível Isolado, 10 Mm², Anti-Chama 450/750 V, Para Circuitos Terminais - Fornecimento E Instalação. Af_03/2023 | G80: =LOWER(IF(L80="i",VLOOKUP(C80,'Ins SINAPI AL 03-2023 Onerado'!$A$8:$E$5189,3,0),VLOOKUP(C80,'Comp SINAPI AL 03-2023 Onerado'!$G$7:$K$6879,3,0))) -> m | H80: 15 | I80: =SUMIFS(CPU!$H:$H,CPU!$B:$B,'Planilha Orçamentária'!$A80,CPU!$I:$I,"ss")+SUMIFS(CPU!$H:$H,CPU!$B:$B,'Planilha Orçamentária'!$A80,CPU!$I:$I,"mdo")+SUMIF('Comp SINAPI AL 03-2023 Onerado'!G:G,'Planilha Orçamentária'!C80,'Comp SINAPI AL 03-2023 Onerado'!K:K) -> 16.71 | J80: 21.039561 | K80: 315.593415 | L80: serv | M80: i
A81: 6.2.7 | B81: SINAPI | C81: 91870 | D81: 365155 | E81: Eletroduto | F81: =PROPER(IF(L81="i",VLOOKUP(C81,'Ins SINAPI AL 03-2023 Onerado'!$A$8:$E$5189,2,0),VLOOKUP(C81,'Comp SINAPI AL 03-2023 Onerado'!$G$7:$K$6879,2,0))) -> Eletroduto Rígido Roscável, Pvc, Dn 20 Mm (1/2"), Para Circuitos Terminais, Instalado Em Parede - Fornecimento E Instalação. Af_03/2023 | G81: =LOWER(IF(L81="i",VLOOKUP(C81,'Ins SINAPI AL 03-2023 Onerado'!$A$8:$E$5189,3,0),VLOOKUP(C81,'Comp SINAPI AL 03-2023 Onerado'!$G$7:$K$6879,3,0))) -> m | H81: 50 | I81: =SUMIFS(CPU!$H:$H,CPU!$B:$B,'Planilha Orçamentária'!$A81,CPU!$I:$I,"ss")+SUMIFS(CPU!$H:$H,CPU!$B:$B,'Planilha Orçamentária'!$A81,CPU!$I:$I,"mdo")+SUMIF('Comp SINAPI AL 03-2023 Onerado'!G:G,'Planilha Orçamentária'!C81,'Comp SINAPI AL 03-2023 Onerado'!K:K) -> 11.94 | J81: 15.033654 | K81: 751.6827 | L81: serv | M81: i
A82: 6.2.8 | B82: PRÓPRIA | C82: CPU.24 | D82: 408859 | E82: Disjuntor Baixa Tensão | F82: Disjuntor Termomagnético Monopolar, Corrente Nominal De 63A - Fornecimento E Instalação. (Adaptado SINAPI 101895) | G82: un | H82: 1 | I82: =SUMIFS(CPU!$H:$H,CPU!$B:$B,'Planilha Orçamentária'!$A82,CPU!$I:$I,"ss")+SUMIFS(CPU!$H:$H,CPU!$B:$B,'Planilha Orçamentária'!$A82,CPU!$I:$I,"mdo")+SUMIF('Comp SINAPI AL 03-2023 Onerado'!G:G,'Planilha Orçamentária'!C82,'Comp SINAPI AL 03-2023 Onerado'!K:K) -> 79.37 | J82: 99.934767 | K82: 99.934767 | L82: serv | M82: i
A83: 6.2.9 | B83: PRÓPRIA | C83: CPU.25 | D83: 482698 | E83: Disjuntor Baixa Tensão | F83: Disjuntor Termomagnético Monopolar, Corrente Nominal De 32A - Fornecimento E Instalação. (Adaptado SINAPI 101895) | G83: un | H83: 1 | I83: =SUMIFS(CPU!$H:$H,CPU!$B:$B,'Planilha Orçamentária'!$A83,CPU!$I:$I,"ss")+SUMIFS(CPU!$H:$H,CPU!$B:$B,'Planilha Orçamentária'!$A83,CPU!$I:$I,"mdo")+SUMIF('Comp SINAPI AL 03-2023 Onerado'!G:G,'Planilha Orçamentária'!C83,'Comp SINAPI AL 03-2023 Onerado'!K:K) -> 68.72 | J83: 86.525352 | K83: 86.525352 | L83: serv | M83: i
A84: 6.2.10 | B84: PRÓPRIA | C84: CPU.26 | D84: 408855 | E84: Disjuntor Baixa Tensão | F84: Disjuntor Termomagnético Monopolar, Corrente Nominal De 16A - Fornecimento E Instalação. (Adaptado SINAPI 101895) | G84: un | H84: 6 | I84: =SUMIFS(CPU!$H:$H,CPU!$B:$B,'Planilha Orçamentária'!$A84,CPU!$I:$I,"ss")+SUMIFS(CPU!$H:$H,CPU!$B:$B,'Planilha Orçamentária'!$A84,CPU!$I:$I,"mdo")+SUMIF('Comp SINAPI AL 03-2023 Onerado'!G:G,'Planilha Orçamentária'!C84,'Comp SINAPI AL 03-2023 Onerado'!K:K) -> 68.72 | J84: 86.525352 | K84: 519.152112 | L84: serv | M84: i
A85: 6.2.11 | B85: PRÓPRIA | C85: CPU.27 | D85: 484192 | E85: Disjuntor Baixa Tensão | F85: Disjuntor Termomagnético Monopolar, Corrente Nominal De 4A - Fornecimento E Instalação. (Adaptado SINAPI 101895) | G85: un | H85: 1 | I85: =SUMIFS(CPU!$H:$H,CPU!$B:$B,'Planilha Orçamentária'!$A85,CPU!$I:$I,"ss")+SUMIFS(CPU!$H:$H,CPU!$B:$B,'Planilha Orçamentária'!$A85,CPU!$I:$I,"mdo")+SUMIF('Comp SINAPI AL 03-2023 Onerado'!G:G,'Planilha Orçamentária'!C85,'Comp SINAPI AL 03-2023 Onerado'!K:K) -> 89.91 | J85: 113.205681 | K85: 113.205681 | L85: serv | M85: i
A86: 6.2.12 | B86: PRÓPRIA | C86: CPU.28 | D86: 373035 | E86: Protetor Contra Surto Transitorio Eletrico - Raios / Descarga Atmosferica | F86: DPS - Dispositivo de Proteção Contra Surto Elétrico - 45KA / 1P (Adaptado FDE 09.02.043) | G86: un | H86: 1 | I86: =SUMIFS(CPU!$H:$H,CPU!$B:$B,'Planilha Orçamentária'!$A86,CPU!$I:$I,"ss")+SUMIFS(CPU!$H:$H,CPU!$B:$B,'Planilha Orçamentária'!$A86,CPU!$I:$I,"mdo")+SUMIF('Comp SINAPI AL 03-2023 Onerado'!G:G,'Planilha Orçamentária'!C86,'Comp SINAPI AL 03-2023 Onerado'!K:K) -> 231.94 | J86: 292.035654 | K86: 292.035654 | L86: serv | M86: i
A87: 6.2.13 | B87: PRÓPRIA | C87: CPU.29 | D87: 359531 | E87: Protetor Contra Surto Transitorio Eletrico - Raios / Descarga Atmosferica | F87: Disjuntor De Proteção Diferencial Residual (Dr), Bipolar, Tipo Din, Corrente Nominal De 63A, Alta Sensibilidade, Corrente Diferencial Residual Nominal Com Atuação De 30Ma (Adaptado SETOP ED-15116) | G87: un | H87: 2 | I87: =SUMIFS(CPU!$H:$H,CPU!$B:$B,'Planilha Orçamentária'!$A87,CPU!$I:$I,"ss")+SUMIFS(CPU!$H:$H,CPU!$B:$B,'Planilha Orçamentária'!$A87,CPU!$I:$I,"mdo")+SUMIF('Comp SINAPI AL 03-2023 Onerado'!G:G,'Planilha Orçamentária'!C87,'Comp SINAPI AL 03-2023 Onerado'!K:K) -> 200.8 | J87: 252.82728 | K87: 505.65456 | L87: serv | M87: i
A88: 6.2.14 | B88: PRÓPRIA | C88: CPU.30 | D88: 264486 | E88: Caixa Tomada | F88: Tomada 2p + t, ABNT, de sobrepor, 20A, sistema X Tomada 2p + t, ABNT, de sobrepor, 20 A, sistema X (Adaptado ORSE 12156) | G88: un | H88: 3 | I88: =SUMIFS(CPU!$H:$H,CPU!$B:$B,'Planilha Orçamentária'!$A88,CPU!$I:$I,"ss")+SUMIFS(CPU!$H:$H,CPU!$B:$B,'Planilha Orçamentária'!$A88,CPU!$I:$I,"mdo")+SUMIF('Comp SINAPI AL 03-2023 Onerado'!G:G,'Planilha Orçamentária'!C88,'Comp SINAPI AL 03-2023 Onerado'!K:K) -> 44.18 | J88: 55.627038 | K88: 166.881114 | L88: serv | M88: i
A89: 6.2.15 | B89: SINAPI | C89: 91961 | D89: 468944 | E89: Interruptor de Sobrepor | F89: =PROPER(IF(L89="i",VLOOKUP(C89,'Ins SINAPI AL 03-2023 Onerado'!$A$8:$E$5189,2,0),VLOOKUP(C89,'Comp SINAPI AL 03-2023 Onerado'!$G$7:$K$6879,2,0))) -> Interruptor Paralelo (2 Módulos), 10A/250V, Incluindo Suporte E Placa - Fornecimento E Instalação. Af_03/2023 | G89: =LOWER(IF(L89="i",VLOOKUP(C89,'Ins SINAPI AL 03-2023 Onerado'!$A$8:$E$5189,3,0),VLOOKUP(C89,'Comp SINAPI AL 03-2023 Onerado'!$G$7:$K$6879,3,0))) -> un | H89: 1 | I89: =SUMIFS(CPU!$H:$H,CPU!$B:$B,'Planilha Orçamentária'!$A89,CPU!$I:$I,"ss")+SUMIFS(CPU!$H:$H,CPU!$B:$B,'Planilha Orçamentária'!$A89,CPU!$I:$I,"mdo")+SUMIF('Comp SINAPI AL 03-2023 Onerado'!G:G,'Planilha Orçamentária'!C89,'Comp SINAPI AL 03-2023 Onerado'!K:K) -> 55.01 | J89: 69.263091 | K89: 69.263091 | L89: serv | M89: i
A90: 6.2.16 | B90: SINAPI | C90: 97585 | D90: 428681 | E90: Luminária Potência Nominal Lâmpada: 20 W | F90: =PROPER(IF(L90="i",VLOOKUP(C90,'Ins SINAPI AL 03-2023 Onerado'!$A$8:$E$5189,2,0),VLOOKUP(C90,'Comp SINAPI AL 03-2023 Onerado'!$G$7:$K$6879,2,0))) -> Luminária Tipo Calha, De Sobrepor, Com 2 Lâmpadas Tubulares Fluorescentes De 18 W, Com Reator De Partida Rápida - Fornecimento E Instalação. Af_02/2020 | G90: =LOWER(IF(L90="i",VLOOKUP(C90,'Ins SINAPI AL 03-2023 Onerado'!$A$8:$E$5189,3,0),VLOOKUP(C90,'Comp SINAPI AL 03-2023 Onerado'!$G$7:$K$6879,3,0))) -> un | H90: 2 | I90: =SUMIFS(CPU!$H:$H,CPU!$B:$B,'Planilha Orçamentária'!$A90,CPU!$I:$I,"ss")+SUMIFS(CPU!$H:$H,CPU!$B:$B,'Planilha Orçamentária'!$A90,CPU!$I:$I,"mdo")+SUMIF('Comp SINAPI AL 03-2023 Onerado'!G:G,'Planilha Orçamentária'!C90,'Comp SINAPI AL 03-2023 Onerado'!K:K) -> 108.46 | J90: 136.561986 | K90: 273.123972 | L90: serv | M90: i
A91: 6.2.17 | B91: SINAPI | C91: 98111 | D91: 471939 | E91: Caixa Inspeção; Material: Concreto; Dimensões: 20 X 20 X 20 CM | F91: =PROPER(IF(L91="i",VLOOKUP(C91,'Ins SINAPI AL 03-2023 Onerado'!$A$8:$E$5189,2,0),VLOOKUP(C91,'Comp SINAPI AL 03-2023 Onerado'!$G$7:$K$6879,2,0))) -> Caixa De Inspeção Para Aterramento, Circular, Em Polietileno, Diâmetro Interno = 0,3 M. Af_12/2020 | G91: =LOWER(IF(L91="i",VLOOKUP(C91,'Ins SINAPI AL 03-2023 Onerado'!$A$8:$E$5189,3,0),VLOOKUP(C91,'Comp SINAPI AL 03-2023 Onerado'!$G$7:$K$6879,3,0))) -> un | H91: 5 | I91: =SUMIFS(CPU!$H:$H,CPU!$B:$B,'Planilha Orçamentária'!$A91,CPU!$I:$I,"ss")+SUMIFS(CPU!$H:$H,CPU!$B:$B,'Planilha Orçamentária'!$A91,CPU!$I:$I,"mdo")+SUMIF('Comp SINAPI AL 03-2023 Onerado'!G:G,'Planilha Orçamentária'!C91,'Comp SINAPI AL 03-2023 Onerado'!K:K) -> 47.6 | J91: 59.93316 | K91: 299.6658 | L91: serv | M91: i
A92: 6.2.18 | B92: SINAPI | C92: 96985 | D92: 375540 | E92: Haste Aterramento; Material: Aço Carbono; Tipo: Cilíndrica; Revestimento: Cobre; Comprimento: 2.400 MM; Diâmetro: 5/8 POL; Características Adicionais: Com Conector De Cobre | F92: =PROPER(IF(L92="i",VLOOKUP(C92,'Ins SINAPI AL 03-2023 Onerado'!$A$8:$E$5189,2,0),VLOOKUP(C92,'Comp SINAPI AL 03-2023 Onerado'!$G$7:$K$6879,2,0))) -> Haste De Aterramento 5/8 Para Spda - Fornecimento E Instalação. Af_12/2017 | G92: =LOWER(IF(L92="i",VLOOKUP(C92,'Ins SINAPI AL 03-2023 Onerado'!$A$8:$E$5189,3,0),VLOOKUP(C92,'Comp SINAPI AL 03-2023 Onerado'!$G$7:$K$6879,3,0))) -> un | H92: 5 | I92: =SUMIFS(CPU!$H:$H,CPU!$B:$B,'Planilha Orçamentária'!$A92,CPU!$I:$I,"ss")+SUMIFS(CPU!$H:$H,CPU!$B:$B,'Planilha Orçamentária'!$A92,CPU!$I:$I,"mdo")+SUMIF('Comp SINAPI AL 03-2023 Onerado'!G:G,'Planilha Orçamentária'!C92,'Comp SINAPI AL 03-2023 Onerado'!K:K) -> 72.8 | J92: 91.66248 | K92: 458.3124 | L92: serv | M92: i
A93: 6.2.19 | B93: SINAPI | C93: 93358 | D93: 17140 | E93: Obras civis - concretagem | F93: =PROPER(IF(L93="i",VLOOKUP(C93,'Ins SINAPI AL 03-2023 Onerado'!$A$8:$E$5189,2,0),VLOOKUP(C93,'Comp SINAPI AL 03-2023 Onerado'!$G$7:$K$6879,2,0))) -> Escavação Manual De Vala Com Profundidade Menor Ou Igual A 1,30 M. Af_02/2021 | G93: m3 | H93: 5.18 | I93: =SUMIFS(CPU!$H:$H,CPU!$B:$B,'Planilha Orçamentária'!$A93,CPU!$I:$I,"ss")+SUMIFS(CPU!$H:$H,CPU!$B:$B,'Planilha Orçamentária'!$A93,CPU!$I:$I,"mdo")+SUMIF('Comp SINAPI AL 03-2023 Onerado'!G:G,'Planilha Orçamentária'!C93,'Comp SINAPI AL 03-2023 Onerado'!K:K) -> 72.55 | J93: 91.347705 | K93: 473.1811119 | L93: serv | M93: i
A94: 6.2.20 | B94: SINAPI | C94: 96995 | D94: 17140 | E94: Obras civis - concretagem | F94: =PROPER(IF(L94="i",VLOOKUP(C94,'Ins SINAPI AL 03-2023 Onerado'!$A$8:$E$5189,2,0),VLOOKUP(C94,'Comp SINAPI AL 03-2023 Onerado'!$G$7:$K$6879,2,0))) -> Reaterro Manual Apiloado Com Soquete. Af_10/2017 | G94: m3 | H94: 5.56 | I94: =SUMIFS(CPU!$H:$H,CPU!$B:$B,'Planilha Orçamentária'!$A94,CPU!$I:$I,"ss")+SUMIFS(CPU!$H:$H,CPU!$B:$B,'Planilha Orçamentária'!$A94,CPU!$I:$I,"mdo")+SUMIF('Comp SINAPI AL 03-2023 Onerado'!G:G,'Planilha Orçamentária'!C94,'Comp SINAPI AL 03-2023 Onerado'!K:K) -> 43.99 | J94: 55.387809 | K94: 307.956218 | L94: serv | M94: i
A95: 6.2.21 | B95: PRÓPRIA | C95: CPU.31 | D95: 17140 | E95: Obras civis - concretagem | F95: Aterro manual de áreas, sem aquisição de material, com espalhamento e compactação (Adaptado ORSE 71) | G95: m3 | H95: 0.6944444444 | I95: =SUMIFS(CPU!$H:$H,CPU!$B:$B,'Planilha Orçamentária'!$A95,CPU!$I:$I,"ss")+SUMIFS(CPU!$H:$H,CPU!$B:$B,'Planilha Orçamentária'!$A95,CPU!$I:$I,"mdo")+SUMIF('Comp SINAPI AL 03-2023 Onerado'!G:G,'Planilha Orçamentária'!C95,'Comp SINAPI AL 03-2023 Onerado'!K:K) -> 55.02 | J95: 69.275682 | K95: 48.1081125 | L95: serv | M95: i
A97: 7 | F97: SERVIÇOS COMPLEMENTARES | K97: =SUM(K98:K104) -> 42854.61428 | M97: ss
A98: 7.1 | B98: PRÓPRIA | C98: CPU.38 | D98: 2399 | E98: Manutenção de equipamentos hidromecânicos | F98: Adequação e manutenção de equipamentos hidromecânicos existêntes | G98: un | H98: 1 | I98: =SUMIFS(CPU!$H:$H,CPU!$B:$B,'Planilha Orçamentária'!$A98,CPU!$I:$I,"ss")+SUMIFS(CPU!$H:$H,CPU!$B:$B,'Planilha Orçamentária'!$A98,CPU!$I:$I,"mdo")+SUMIF('Comp SINAPI AL 03-2023 Onerado'!G:G,'Planilha Orçamentária'!C98,'Comp SINAPI AL 03-2023 Onerado'!K:K) -> 1399.44 | J98: =IF(L98="SERV",I98*(1+$J$5),I98*(1+$J$6)) -> 1762.034904 | K98: =IF(L98="SERV",I98*H98*(1+$J$5),I98*H98*(1+$J$6)) -> 1762.034904 | L98: serv
A99: 7.2 | B99: PRÓPRIA | C99: CPU.32 | D99: 4723 | E99: Inspeções e testes em materiais e equipamentos mecânicos | F99: Realização de teste de comissionamento da comporta segmento - verificação das peças fixas. | G99: un | H99: 1 | I99: =SUMIFS(CPU!$H:$H,CPU!$B:$B,'Planilha Orçamentária'!$A99,CPU!$I:$I,"ss")+SUMIFS(CPU!$H:$H,CPU!$B:$B,'Planilha Orçamentária'!$A99,CPU!$I:$I,"mdo")+SUMIF('Comp SINAPI AL 03-2023 Onerado'!G:G,'Planilha Orçamentária'!C99,'Comp SINAPI AL 03-2023 Onerado'!K:K) -> 544.04 | J99: 685.000764 | K99: 685.000764 | L99: serv | M99: i
A100: 7.3 | B100: PRÓPRIA | C100: CPU.33 | D100: 1210 | E100: Inspeções e testes em materiais e equipamentos elétricos | F100: Realização de teste de comissionamento da comporta segmento - operação em seco. Verificação dos cilindros, parte hidraulica e eletrica, funcionalidade dos comandos com atuação eletrica e manual. | G100: un | H100: 1 | I100: =SUMIFS(CPU!$H:$H,CPU!$B:$B,'Planilha Orçamentária'!$A100,CPU!$I:$I,"ss")+SUMIFS(CPU!$H:$H,CPU!$B:$B,'Planilha Orçamentária'!$A100,CPU!$I:$I,"mdo")+SUMIF('Comp SINAPI AL 03-2023 Onerado'!G:G,'Planilha Orçamentária'!C100,'Comp SINAPI AL 03-2023 Onerado'!K:K) -> 769.72 | J100: 969.154452 | K100: 969.154452 | L100: serv | M100: i
A101: 7.4 | B101: PRÓPRIA | C101: CPU.34 | D101: 1210 | E101: Inspeções e testes em materiais e equipamentos elétricos | F101: Realização de teste de comissionamento da comporta segmento - operação em carga. Verificação dos cilindros, parte hidraulica e eletrica, funcionalidade dos comandos com atuação eletrica e manual. Teste hidrostatico da comporta. | G101: un | H101: 1 | I101: =SUMIFS(CPU!$H:$H,CPU!$B:$B,'Planilha Orçamentária'!$A101,CPU!$I:$I,"ss")+SUMIFS(CPU!$H:$H,CPU!$B:$B,'Planilha Orçamentária'!$A101,CPU!$I:$I,"mdo")+SUMIF('Comp SINAPI AL 03-2023 Onerado'!G:G,'Planilha Orçamentária'!C101,'Comp SINAPI AL 03-2023 Onerado'!K:K) -> 1282.28 | J101: 1614.518748 | K101: 1614.518748 | L101: serv | M101: i
A102: 7.5 | B102: PRÓPRIA | C102: CPU.35 | D102: 14044 | E102: Roçada / limpeza de área - mecanizada / manual | F102: Limpeza final da obra (Adaptado SINAPI 9537) | G102: m² | H102: 57 | I102: =SUMIFS(CPU!$H:$H,CPU!$B:$B,'Planilha Orçamentária'!$A102,CPU!$I:$I,"ss")+SUMIFS(CPU!$H:$H,CPU!$B:$B,'Planilha Orçamentária'!$A102,CPU!$I:$I,"mdo")+SUMIF('Comp SINAPI AL 03-2023 Onerado'!G:G,'Planilha Orçamentária'!C102,'Comp SINAPI AL 03-2023 Onerado'!K:K) -> 2.57 | J102: 3.235887 | K102: 184.445559 | L102: serv | M102: i
A103: 7.6 | B103: PRÓPRIA | C103: CPU.36 | D103: 20060 | E103: Elaboração / análise projeto - engenharia | F103: Elaboração de projeto as built | G103: un | H103: 1 | I103: =SUMIFS(CPU!$H:$H,CPU!$B:$B,'Planilha Orçamentária'!$A103,CPU!$I:$I,"ss")+SUMIFS(CPU!$H:$H,CPU!$B:$B,'Planilha Orçamentária'!$A103,CPU!$I:$I,"mdo")+SUMIF('Comp SINAPI AL 03-2023 Onerado'!G:G,'Planilha Orçamentária'!C103,'Comp SINAPI AL 03-2023 Onerado'!K:K) -> 395.4 | J103: 497.84814 | K103: 497.84814 | L103: serv | M103: i
A104: 7.7 | B104: PRÓPRIA | C104: CPU.37 | D104: 22730 | E104: Transporte Rodoviário-Mobiliário/Materiais/Equipamentos/BensPessoais | F104: Desmobilização | G104: un | H104: 1 | I104: =SUMIFS(CPU!$H:$H,CPU!$B:$B,"2.1.9",CPU!$I:$I,"ss")+SUMIFS(CPU!$H:$H,CPU!$B:$B,"2.1.9",CPU!$I:$I,"mdo")+SUMIF('Comp SINAPI AL 03-2023 Onerado'!G:G,'Planilha Orçamentária'!C104,'Comp SINAPI AL 03-2023 Onerado'!K:K) -> 29498.54 | J104: 37141.61171 | K104: 37141.61171 | L104: serv | M104: i
F105: TOTAL Sem BDI: | K105: =SUMPRODUCT(H11:H104,I11:I104) -> 717965.4752
F106: BDI: | K106: =K105*J5 -> 186024.8546
F107: TOTAL COM BDI: | K107: =SUM(K105:K106) -> 903990.3299 | L107: =SUMIF(M11:M104,"SS",K11:K104) -> 433246.5837
K109: =K11+K14+K28+K33+K41+K50+K97 -> 903990.3299
J173: =SUM(J174:J177) -> 0
F177: mec | H177: 2 | I177: 128

Sheet Planilha Orçamentária Desoner
A1: Ministério do desenvolvimento Regional
A2: Companhia de desenvolvimento dos Vales do São Francisco e do Parnaíba
A4: PLANILHA ORÇAMENTÁRIA - ORÇAMENTO DESONERADO
A5: OBRA: | B5: =UPPER("Substituição das comportas na barragem de Boacica") -> SUBSTITUIÇÃO DAS COMPORTAS NA BARRAGEM DE BOACICA | G5: BDI (serv.): | H5: ='BDI serv Desonerado'!D23 -> 0.3243
A6: LOCAL: | B6: BARRAGEM BOACICA (IGREJA NOVA - AL) | G6: BDI (forn.): | H6: ='BDI forn Desonerado'!D23 -> 0.2032
A7: DATA BASE: | B7: 2023-07-01
A8: PRAZO: | B8: 240 DIAS
A9: ITEM | B9: REFERÊNCIA | D9: DESCRIÇÃO | E9: UNID. | F9: QUANT. | G9: CUSTO UNITÁRIO | H9: PREÇO UNITÁRIO | I9: PREÇO TOTAL | J9: TIPO de BDI | K9: CLASSIF
B10: FONTE | C10: CÓDIGO
A11: 1 | D11: ADMINISTRAÇÃO LOCAL | I11: =SUM(I12:I13) -> 236643.0207 | K11: ss
A12: 1.1 | B12: PRÓPRIA | C12: CPU.01 | D12: Administração local | E12: mês | F12: 8 | G12: =SUMIFS('CPU DESONERADO'!$H:$H,'CPU DESONERADO'!$B:$B,'Planilha Orçamentária Desoner'!$A12,'CPU DESONERADO'!$I:$I,"ss")+SUMIFS('CPU DESONERADO'!$H:$H,'CPU DESONERADO'!$B:$B,'Planilha Orçamentária Desoner'!$A12,'CPU DESONERADO'!$I:$I,"mdo")+SUMIF('Comp SINAPI AL 03-2023 Desoner'!G:G,'Planilha Orçamentária Desoner'!C12,'Comp SINAPI AL 03-2023 Desoner'!K:K) -> 22304.79 | H12: =IF(J12="SERV",G12*(1+$H$5),G12*(1+$H$6)) -> 29538.2334 | I12: =IF(J12="SERV",G12*F12*(1+$H$5),G12*F12*(1+$H$6)) -> 236305.8672 | J12: serv | K12: i
A13: 1.2 | B13: PRÓPRIA | C13: CPU.02 | D13: Anotação de Responsabilidade Técnica (PRINCIPAL) | E13: un | F13: 1 | G13: =SUMIFS('CPU DESONERADO'!$H:$H,'CPU DESONERADO'!$B:$B,'Planilha Orçamentária Desoner'!$A13,'CPU DESONERADO'!$I:$I,"ss")+SUMIFS('CPU DESONERADO'!$H:$H,'CPU DESONERADO'!$B:$B,'Planilha Orçamentária Desoner'!$A13,'CPU DESONERADO'!$I:$I,"mdo")+SUMIF('Comp SINAPI AL 03-2023 Desoner'!G:G,'Planilha Orçamentária Desoner'!C13,'Comp SINAPI AL 03-2023 Desoner'!K:K) -> 254.59 | H13: =IF(J13="SERV",G13*(1+$H$5),G13*(1+$H$6)) -> 337.153537 | I13: =IF(J13="SERV",G13*F13*(1+$H$5),G13*F13*(1+$H$6)) -> 337.153537 | J13: serv | K13: i
A15: 2 | D15: SERVIÇOS PRELIMINARES | I15: =SUM(I16:I27)/2 -> 160622.7271 | K15: ss
A16: 2.1 | D16: Canteiro de obras | I16: =SUM(I17:I25) -> 159621.212 | K16: s
A17: 2.1.1 | B17: SINAPI | C17: 98524 | D17: =PROPER(IF(J17="i",VLOOKUP(C17,'Ins SINAPI AL 03-2023 Onerado'!$A$8:$E$7500,2,0),VLOOKUP(C17,'Comp SINAPI AL 03-2023 Onerado'!$G$7:$K$7500,2,0))) -> Limpeza Manual De Vegetação Em Terreno Com Enxada.Af_05/2018 | E17: =LOWER(IF(J17="i",VLOOKUP(C17,'Ins SINAPI AL 03-2023 Onerado'!$A$8:$E$5189,3,0),VLOOKUP(C17,'Comp SINAPI AL 03-2023 Onerado'!$G$7:$K$7500,3,0))) -> m2 | F17: 57 | G17: =SUMIFS('CPU DESONERADO'!$H:$H,'CPU DESONERADO'!$B:$B,'Planilha Orçamentária Desoner'!$A17,'CPU DESONERADO'!$I:$I,"ss")+SUMIFS('CPU DESONERADO'!$H:$H,'CPU DESONERADO'!$B:$B,'Planilha Orçamentária Desoner'!$A17,'CPU DESONERADO'!$I:$I,"mdo")+SUMIF('Comp SINAPI AL 03-2023 Desoner'!G:G,'Planilha Orçamentária Desoner'!C17,'Comp SINAPI AL 03-2023 Desoner'!K:K) -> 2.33 | H17: =IF(J17="SERV",G17*(1+$H$5),G17*(1+$H$6)) -> 3.085619 | I17: =IF(J17="SERV",G17*F17*(1+$H$5),G17*F17*(1+$H$6)) -> 175.880283 | J17: serv | K17: i
A18: 2.1.2 | B18: SINAPI | C18: 93207 | D18: =PROPER(IF(J18="i",VLOOKUP(C18,'Ins SINAPI AL 03-2023 Onerado'!$A$8:$E$5189,2,0),VLOOKUP(C18,'Comp SINAPI AL 03-2023 Onerado'!$G$7:$K$6879,2,0))) -> Execução De Escritório Em Canteiro De Obra Em Chapa De Madeira Compensada, Não Incluso Mobiliário E Equipamentos. Af_02/2016 | E18: =LOWER(IF(J18="i",VLOOKUP(C18,'Ins SINAPI AL 03-2023 Onerado'!$A$8:$E$5189,3,0),VLOOKUP(C18,'Comp SINAPI AL 03-2023 Onerado'!$G$7:$K$6879,3,0))) -> m2 | F18: 12 | G18: =SUMIFS('CPU DESONERADO'!$H:$H,'CPU DESONERADO'!$B:$B,'Planilha Orçamentária Desoner'!$A18,'CPU DESONERADO'!$I:$I,"ss")+SUMIFS('CPU DESONERADO'!$H:$H,'CPU DESONERADO'!$B:$B,'Planilha Orçamentária Desoner'!$A18,'CPU DESONERADO'!$I:$I,"mdo")+SUMIF('Comp SINAPI AL 03-2023 Desoner'!G:G,'Planilha Orçamentária Desoner'!C18,'Comp SINAPI AL 03-2023 Desoner'!K:K) -> 1075.37 | H18: 1424.112491 | I18: 17089.34989 | J18: serv | K18: i
A19: 2.1.3 | B19: SINAPI | C19: 93208 | D19: =PROPER(IF(J19="i",VLOOKUP(C19,'Ins SINAPI AL 03-2023 Onerado'!$A$8:$E$5189,2,0),VLOOKUP(C19,'Comp SINAPI AL 03-2023 Onerado'!$G$7:$K$6879,2,0))) -> Execução De Almoxarifado Em Canteiro De Obra Em Chapa De Madeira Compensada, Incluso Prateleiras. Af_02/2016 | E19: =LOWER(IF(J19="i",VLOOKUP(C19,'Ins SINAPI AL 03-2023 Onerado'!$A$8:$E$5189,3,0),VLOOKUP(C19,'Comp SINAPI AL 03-2023 Onerado'!$G$7:$K$6879,3,0))) -> m2 | F19: 7.5 | G19: =SUMIFS('CPU DESONERADO'!$H:$H,'CPU DESONERADO'!$B:$B,'Planilha Orçamentária Desoner'!$A19,'CPU DESONERADO'!$I:$I,"ss")+SUMIFS('CPU DESONERADO'!$H:$H,'CPU DESONERADO'!$B:$B,'Planilha Orçamentária Desoner'!$A19,'CPU DESONERADO'!$I:$I,"mdo")+SUMIF('Comp SINAPI AL 03-2023 Desoner'!G:G,'Planilha Orçamentária Desoner'!C19,'Comp SINAPI AL 03-2023 Desoner'!K:K) -> 891.01 | H19: 1179.964543 | I19: 8849.734072 | J19: serv | K19: i
A20: 2.1.4 | B20: PRÓPRIA | C20: CPU.04 | D20: Baia de resíduos para entulho, construção descoberta - Medindo (3,00x2,00)m, paredes em chapa de madeira compensada plastificada 20mm h=1,10m, piso em terreno natural fortemente apiloado, pilarete em eucalipto tratado 15cm (Adaptado AGESUL 0101000230) | E20: un | F20: 1 | G20: =SUMIFS('CPU DESONERADO'!$H:$H,'CPU DESONERADO'!$B:$B,'Planilha Orçamentária Desoner'!$A20,'CPU DESONERADO'!$I:$I,"ss")+SUMIFS('CPU DESONERADO'!$H:$H,'CPU DESONERADO'!$B:$B,'Planilha Orçamentária Desoner'!$A20,'CPU DESONERADO'!$I:$I,"mdo")+SUMIF('Comp SINAPI AL 03-2023 Desoner'!G:G,'Planilha Orçamentária Desoner'!C20,'Comp SINAPI AL 03-2023 Desoner'!K:K) -> 2590.38 | H20: 3430.440234 | I20: 3430.440234 | J20: serv | K20: i
A21: 2.1.5 | B21: SINAPI | C21: 93583 | D21: =PROPER(IF(J21="i",VLOOKUP(C21,'Ins SINAPI AL 03-2023 Onerado'!$A$8:$E$5189,2,0),VLOOKUP(C21,'Comp SINAPI AL 03-2023 Onerado'!$G$7:$K$6879,2,0))) -> Execução De Central De Fôrmas, Produção De Argamassa Ou Concreto Em Canteiro De Obra, Não Incluso Mobiliário E Equipamentos. Af_04/2016 | E21: =LOWER(IF(J21="i",VLOOKUP(C21,'Ins SINAPI AL 03-2023 Onerado'!$A$8:$E$5189,3,0),VLOOKUP(C21,'Comp SINAPI AL 03-2023 Onerado'!$G$7:$K$6879,3,0))) -> m2 | F21: 12 | G21: =SUMIFS('CPU DESONERADO'!$H:$H,'CPU DESONERADO'!$B:$B,'Planilha Orçamentária Desoner'!$A21,'CPU DESONERADO'!$I:$I,"ss")+SUMIFS('CPU DESONERADO'!$H:$H,'CPU DESONERADO'!$B:$B,'Planilha Orçamentária Desoner'!$A21,'CPU DESONERADO'!$I:$I,"mdo")+SUMIF('Comp SINAPI AL 03-2023 Desoner'!G:G,'Planilha Orçamentária Desoner'!C21,'Comp SINAPI AL 03-2023 Desoner'!K:K) -> 463.88 | H21: 614.316284 | I21: 7371.795408 | J21: serv | K21: i
A22: 2.1.6 | B22: SINAPI | C22: 93210 | D22: =PROPER(IF(J22="i",VLOOKUP(C22,'Ins SINAPI AL 03-2023 Onerado'!$A$8:$E$5189,2,0),VLOOKUP(C22,'Comp SINAPI AL 03-2023 Onerado'!$G$7:$K$6879,2,0))) -> Execução De Refeitório Em Canteiro De Obra Em Chapa De Madeira Compensada, Não Incluso Mobiliário E Equipamentos. Af_02/2016 | E22: =LOWER(IF(J22="i",VLOOKUP(C22,'Ins SINAPI AL 03-2023 Onerado'!$A$8:$E$5189,3,0),VLOOKUP(C22,'Comp SINAPI AL 03-2023 Onerado'!$G$7:$K$6879,3,0))) -> m2 | F22: 7.5 | G22: =SUMIFS('CPU DESONERADO'!$H:$H,'CPU DESONERADO'!$B:$B,'Planilha Orçamentária Desoner'!$A22,'CPU DESONERADO'!$I:$I,"ss")+SUMIFS('CPU DESONERADO'!$H:$H,'CPU DESONERADO'!$B:$B,'Planilha Orçamentária Desoner'!$A22,'CPU DESONERADO'!$I:$I,"mdo")+SUMIF('Comp SINAPI AL 03-2023 Desoner'!G:G,'Planilha Orçamentária Desoner'!C22,'Comp SINAPI AL 03-2023 Desoner'!K:K) -> 604.03 | H22: 799.916929 | I22: 5999.376967 | J22: serv | K22: i
A23: 2.1.7 | B23: SINAPI | C23: 93212 | D23: =PROPER(IF(J23="i",VLOOKUP(C23,'Ins SINAPI AL 03-2023 Onerado'!$A$8:$E$5189,2,0),VLOOKUP(C23,'Comp SINAPI AL 03-2023 Onerado'!$G$7:$K$6879,2,0))) -> Execução De Sanitário E Vestiário Em Canteiro De Obra Em Chapa De Madeira Compensada, Não Incluso Mobiliário. Af_02/2016 | E23: =LOWER(IF(J23="i",VLOOKUP(C23,'Ins SINAPI AL 03-2023 Onerado'!$A$8:$E$5189,3,0),VLOOKUP(C23,'Comp SINAPI AL 03-2023 Onerado'!$G$7:$K$6879,3,0))) -> m2 | F23: 9 | G23: =SUMIFS('CPU DESONERADO'!$H:$H,'CPU DESONERADO'!$B:$B,'Planilha Orçamentária Desoner'!$A23,'CPU DESONERADO'!$I:$I,"ss")+SUMIFS('CPU DESONERADO'!$H:$H,'CPU DESONERADO'!$B:$B,'Planilha Orçamentária Desoner'!$A23,'CPU DESONERADO'!$I:$I,"mdo")+SUMIF('Comp SINAPI AL 03-2023 Desoner'!G:G,'Planilha Orçamentária Desoner'!C23,'Comp SINAPI AL 03-2023 Desoner'!K:K) -> 970.24 | H23: 1284.888832 | I23: 11563.99949 | J23: serv | K23: i
A24: 2.1.8 | B24: SINAPI | C24: 94975 | D24: =PROPER(IF(J24="i",VLOOKUP(C24,'Ins SINAPI AL 03-2023 Onerado'!$A$8:$E$5189,2,0),VLOOKUP(C24,'Comp SINAPI AL 03-2023 Onerado'!$G$7:$K$6879,2,0))) -> Concreto Fck = 15Mpa, Traço 1:3,4:3,5 (Em Massa Seca De Cimento/ Areia Média/ Brita 1) - Preparo Manual. Af_05/2021 | E24: =LOWER(IF(J24="i",VLOOKUP(C24,'Ins SINAPI AL 03-2023 Onerado'!$A$8:$E$5189,3,0),VLOOKUP(C24,'Comp SINAPI AL 03-2023 Onerado'!$G$7:$K$6879,3,0))) -> m3 | F24: 3.99 | G24: =SUMIFS('CPU DESONERADO'!$H:$H,'CPU DESONERADO'!$B:$B,'Planilha Orçamentária Desoner'!$A24,'CPU DESONERADO'!$I:$I,"ss")+SUMIFS('CPU DESONERADO'!$H:$H,'CPU DESONERADO'!$B:$B,'Planilha Orçamentária Desoner'!$A24,'CPU DESONERADO'!$I:$I,"mdo")+SUMIF('Comp SINAPI AL 03-2023 Desoner'!G:G,'Planilha Orçamentária Desoner'!C24,'Comp SINAPI AL 03-2023 Desoner'!K:K) -> 432.32 | H24: 572.521376 | I24: 2284.36029 | J24: serv | K24: i
A25: 2.1.9 | B25: PRÓPRIA | C25: CPU.40 | D25: Mobilização | E25: un | F25: 1 | G25: =SUMIFS('CPU DESONERADO'!$H:$H,'CPU DESONERADO'!$B:$B,'Planilha Orçamentária Desoner'!$A25,'CPU DESONERADO'!$I:$I,"ss")+SUMIFS('CPU DESONERADO'!$H:$H,'CPU DESONERADO'!$B:$B,'Planilha Orçamentária Desoner'!$A25,'CPU DESONERADO'!$I:$I,"mdo")+SUMIF('Comp SINAPI AL 03-2023 Desoner'!G:G,'Planilha Orçamentária Desoner'!C25,'Comp SINAPI AL 03-2023 Desoner'!K:K) -> 77668.41 | H25: 102856.2754 | I25: 102856.2754 | J25: serv | K25: i
A26: 2.2 | D26: Sinalização | I26: =SUM(I27:I27) -> 1001.515118 | K26: s
A27: 2.2.1 | B27: PRÓPRIA | C27: CPU.05 | D27: Placa de obra em chapa aço galvanizado, instalada (Adaptado ORSE 51) | E27: m2 | F27: 2 | G27: =SUMIFS('CPU DESONERADO'!$H:$H,'CPU DESONERADO'!$B:$B,'Planilha Orçamentária Desoner'!$A27,'CPU DESONERADO'!$I:$I,"ss")+SUMIFS('CPU DESONERADO'!$H:$H,'CPU DESONERADO'!$B:$B,'Planilha Orçamentária Desoner'!$A27,'CPU DESONERADO'!$I:$I,"mdo")+SUMIF('Comp SINAPI AL 03-2023 Desoner'!G:G,'Planilha Orçamentária Desoner'!C27,'Comp SINAPI AL 03-2023 Desoner'!K:K) -> 378.13 | H27: =IF(J27="SERV",G27*(1+$H$5),G27*(1+$H$6)) -> 500.757559 | I27: =IF(J27="SERV",G27*F27*(1+$H$5),G27*F27*(1+$H$6)) -> 1001.515118 | J27: serv | K27: i
A29: 3 | D29: VISITA TÉCNICA NA REGIÃO DA COMPORTA DA TOMADA D’ÁGUA E COMPORTA SEGMENTO | I29: =I30 -> 69753.5296
A30: 3.1 | D30: Vistoria e Laudo em região submersa | I30: =SUM(I31:I32) -> 69753.5296
A31: 3.1.1 | B31: PRÓPRIA | C31: CPU.06 | D31: Mobilização e desmobilização da Equipe, Camara Hiperbarica e todos os equipamentos de mergulho envolvidos na operação | E31: un | F31: 1 | G31: =SUMIFS('CPU DESONERADO'!$H:$H,'CPU DESONERADO'!$B:$B,'Planilha Orçamentária Desoner'!$A31,'CPU DESONERADO'!$I:$I,"ss")+SUMIFS('CPU DESONERADO'!$H:$H,'CPU DESONERADO'!$B:$B,'Planilha Orçamentária Desoner'!$A31,'CPU DESONERADO'!$I:$I,"mdo")+SUMIF('Comp SINAPI AL 03-2023 Desoner'!G:G,'Planilha Orçamentária Desoner'!C31,'Comp SINAPI AL 03-2023 Desoner'!K:K) -> 41600 | H31: =IF(J31="SERV",G31*(1+$H$5),G31*(1+$H$6)) -> 55090.88 | I31: =IF(J31="SERV",G31*F31*(1+$H$5),G31*F31*(1+$H$6)) -> 55090.88 | J31: serv
A32: 3.1.2 | B32: SICRO | C32: 4816024 | D32: Operação de mergulho dependente em profundidade de até 30 m - inclusive descompressão | E32: h | F32: 40 | G32: 276.8 | H32: =IF(J32="SERV",G32*(1+$H$5),G32*(1+$H$6)) -> 366.56624 | I32: =IF(J32="SERV",G32*F32*(1+$H$5),G32*F32*(1+$H$6)) -> 14662.6496 | J32: serv
A34: 4 | D34: PLANO DE TRABALHO PARA SUBSTITUIÇÃO DA COMPORTA | I34: =SUM(I35,I37) -> 480336.0054
A35: 4.1 | D35: ='Planilha Orçamentária'!F34 -> Elaboração de plano para substituição da comporta | I35: =SUM(I36:I36) -> 87373.56623
A36: 4.1.1 | B36: PRÓPRIA | C36: CPU.07 | D36: =PROPER("PLANO DE TRABALHO PARA SUBSTITUIÇÃO DA COMPORTA") -> Plano De Trabalho Para Substituição Da Comporta | E36: un | F36: 1 | G36: =SUMIFS('CPU DESONERADO'!$H:$H,'CPU DESONERADO'!$B:$B,'Planilha Orçamentária Desoner'!$A36,'CPU DESONERADO'!$I:$I,"ss")+SUMIFS('CPU DESONERADO'!$H:$H,'CPU DESONERADO'!$B:$B,'Planilha Orçamentária Desoner'!$A36,'CPU DESONERADO'!$I:$I,"mdo")+SUMIF('Comp SINAPI AL 03-2023 Desoner'!G:G,'Planilha Orçamentária Desoner'!C36,'Comp SINAPI AL 03-2023 Desoner'!K:K) -> 65977.17 | H36: =IF(J36="SERV",G36*(1+$H$5),G36*(1+$H$6)) -> 87373.56623 | I36: =IF(J36="SERV",G36*F36*(1+$H$5),G36*F36*(1+$H$6)) -> 87373.56623 | J36: serv
A37: 4.2 | D37: Método de execução de substituição das comportas | I37: =SUM(I38:I40) -> 392962.4392
A38: 4.2.1 | B38: PROPRIA | C38: CPU.08 | D38: Construção/adequação e instalação de comporta ensecadeira (stop-log) provisória a ser instalada na guia já existente da tomada d’água (alternativa "a") | E38: un | F38: 1 | G38: =SUMIFS('CPU DESONERADO'!$H:$H,'CPU DESONERADO'!$B:$B,'Planilha Orçamentária Desoner'!$A38,'CPU DESONERADO'!$I:$I,"ss")+SUMIFS('CPU DESONERADO'!$H:$H,'CPU DESONERADO'!$B:$B,'Planilha Orçamentária Desoner'!$A38,'CPU DESONERADO'!$I:$I,"mdo")+SUMIF('Comp SINAPI AL 03-2023 Desoner'!G:G,'Planilha Orçamentária Desoner'!C38,'Comp SINAPI AL 03-2023 Desoner'!K:K) -> 48885.37 | H38: =IF(J38="SERV",G38*(1+$H$5),G38*(1+$H$6)) -> 64738.89549 | I38: =IF(J38="SERV",G38*F38*(1+$H$5),G38*F38*(1+$H$6)) -> 64738.89549 | J38: serv
A39: 4.2.2 | B39: PROPRIA | C39: CPU.09 | D39: Utilização de bloqueador inflável multidimensional (alternativa "c") | E39: un | F39: 1 | G39: =SUMIFS('CPU DESONERADO'!$H:$H,'CPU DESONERADO'!$B:$B,'Planilha Orçamentária Desoner'!$A39,'CPU DESONERADO'!$I:$I,"ss")+SUMIFS('CPU DESONERADO'!$H:$H,'CPU DESONERADO'!$B:$B,'Planilha Orçamentária Desoner'!$A39,'CPU DESONERADO'!$I:$I,"mdo")+SUMIF('Comp SINAPI AL 03-2023 Desoner'!G:G,'Planilha Orçamentária Desoner'!C39,'Comp SINAPI AL 03-2023 Desoner'!K:K) -> 156455.19 | H39: =IF(J39="SERV",G39*(1+$H$5),G39*(1+$H$6)) -> 207193.6081 | I39: =IF(J39="SERV",G39*F39*(1+$H$5),G39*F39*(1+$H$6)) -> 207193.6081 | J39: serv
A40: 4.2.3 | B40: PROPRIA | C40: CPU.10 | D40: Vedação das entradas da tomada d’água com chapas metálicas (alternativa "b") | E40: un | F40: 1 | G40: =SUMIFS('CPU DESONERADO'!$H:$H,'CPU DESONERADO'!$B:$B,'Planilha Orçamentária Desoner'!$A40,'CPU DESONERADO'!$I:$I,"ss")+SUMIFS('CPU DESONERADO'!$H:$H,'CPU DESONERADO'!$B:$B,'Planilha Orçamentária Desoner'!$A40,'CPU DESONERADO'!$I:$I,"mdo")+SUMIF('Comp SINAPI AL 03-2023 Desoner'!G:G,'Planilha Orçamentária Desoner'!C40,'Comp SINAPI AL 03-2023 Desoner'!K:K) -> 91391.63 | H40: =IF(J40="SERV",G40*(1+$H$5),G40*(1+$H$6)) -> 121029.9356 | I40: =IF(J40="SERV",G40*F40*(1+$H$5),G40*F40*(1+$H$6)) -> 121029.9356 | J40: serv
A42: 5 | D42: COMPORTA SEGMENTO | I42: =SUM(I43:I49) -> 104195.4208 | K42: ss
A43: 5.1 | B43: PRÓPRIA | C43: CPU.11 | D43: Desmontagem e retirada das comportas segmento existentes, compreendendo cilindro hidraulico, tabuleiro, braços, mancais e instalação eletrica e hidraulica | E43: un | F43: 1 | G43: =SUMIFS('CPU DESONERADO'!$H:$H,'CPU DESONERADO'!$B:$B,'Planilha Orçamentária Desoner'!$A43,'CPU DESONERADO'!$I:$I,"ss")+SUMIFS('CPU DESONERADO'!$H:$H,'CPU DESONERADO'!$B:$B,'Planilha Orçamentária Desoner'!$A43,'CPU DESONERADO'!$I:$I,"mdo")+SUMIF('Comp SINAPI AL 03-2023 Desoner'!G:G,'Planilha Orçamentária Desoner'!C43,'Comp SINAPI AL 03-2023 Desoner'!K:K) -> 18246.11 | H43: =IF(J43="SERV",G43*(1+$H$5),G43*(1+$H$6)) -> 24163.32347 | I43: =IF(J43="SERV",G43*F43*(1+$H$5),G43*F43*(1+$H$6)) -> 24163.32347 | J43: serv | K43: i
A44: 5.2 | B44: PRÓPRIA | C44: CPU.12 | D44: Demolição e transporte do concreto das ranhuras das peças fixas existentes e demolição das peças fixas, compreendendo caminho de deslizamento, peças fixas laterais, soleira e peça fixa frontal. | E44: un | F44: 1 | G44: =SUMIFS('CPU DESONERADO'!$H:$H,'CPU DESONERADO'!$B:$B,'Planilha Orçamentária Desoner'!$A44,'CPU DESONERADO'!$I:$I,"ss")+SUMIFS('CPU DESONERADO'!$H:$H,'CPU DESONERADO'!$B:$B,'Planilha Orçamentária Desoner'!$A44,'CPU DESONERADO'!$I:$I,"mdo")+SUMIF('Comp SINAPI AL 03-2023 Desoner'!G:G,'Planilha Orçamentária Desoner'!C44,'Comp SINAPI AL 03-2023 Desoner'!K:K) -> 10419.55 | H44: 13798.61006 | I44: 13798.61006 | J44: serv | K44: i
A45: 5.3 | B45: PRÓPRIA | C45: CPU.13 | D45: Preparação das ranhuras para receber as novas peças fixas | E45: un | F45: 1 | G45: =SUMIFS('CPU DESONERADO'!$H:$H,'CPU DESONERADO'!$B:$B,'Planilha Orçamentária Desoner'!$A45,'CPU DESONERADO'!$I:$I,"ss")+SUMIFS('CPU DESONERADO'!$H:$H,'CPU DESONERADO'!$B:$B,'Planilha Orçamentária Desoner'!$A45,'CPU DESONERADO'!$I:$I,"mdo")+SUMIF('Comp SINAPI AL 03-2023 Desoner'!G:G,'Planilha Orçamentária Desoner'!C45,'Comp SINAPI AL 03-2023 Desoner'!K:K) -> 5462.74 | H45: 7234.306582 | I45: 7234.306582 | J45: serv | K45: i
A46: 5.4 | B46: PRÓPRIA | C46: CPU.14 | D46: Montagem das novas peças fixas | E46: un | F46: 1 | G46: =SUMIFS('CPU DESONERADO'!$H:$H,'CPU DESONERADO'!$B:$B,'Planilha Orçamentária Desoner'!$A46,'CPU DESONERADO'!$I:$I,"ss")+SUMIFS('CPU DESONERADO'!$H:$H,'CPU DESONERADO'!$B:$B,'Planilha Orçamentária Desoner'!$A46,'CPU DESONERADO'!$I:$I,"mdo")+SUMIF('Comp SINAPI AL 03-2023 Desoner'!G:G,'Planilha Orçamentária Desoner'!C46,'Comp SINAPI AL 03-2023 Desoner'!K:K) -> 26261.42 | H46: 34777.99851 | I46: 34777.99851 | J46: serv | K46: i
A47: 5.5 | B47: PRÓPRIA | C47: CPU.15 | D47: Concretagem das novas peças fixas | E47: un | F47: 1 | G47: =SUMIFS('CPU DESONERADO'!$H:$H,'CPU DESONERADO'!$B:$B,'Planilha Orçamentária Desoner'!$A47,'CPU DESONERADO'!$I:$I,"ss")+SUMIFS('CPU DESONERADO'!$H:$H,'CPU DESONERADO'!$B:$B,'Planilha Orçamentária Desoner'!$A47,'CPU DESONERADO'!$I:$I,"mdo")+SUMIF('Comp SINAPI AL 03-2023 Desoner'!G:G,'Planilha Orçamentária Desoner'!C47,'Comp SINAPI AL 03-2023 Desoner'!K:K) -> 6652.74 | H47: 8810.223582 | I47: 8810.223582 | J47: serv | K47: i
A48: 5.6 | B48: PRÓPRIA | C48: CPU.16 | D48: Retirada de formas das peças fixas | E48: un | F48: 1 | G48: =SUMIFS('CPU DESONERADO'!$H:$H,'CPU DESONERADO'!$B:$B,'Planilha Orçamentária Desoner'!$A48,'CPU DESONERADO'!$I:$I,"ss")+SUMIFS('CPU DESONERADO'!$H:$H,'CPU DESONERADO'!$B:$B,'Planilha Orçamentária Desoner'!$A48,'CPU DESONERADO'!$I:$I,"mdo")+SUMIF('Comp SINAPI AL 03-2023 Desoner'!G:G,'Planilha Orçamentária Desoner'!C48,'Comp SINAPI AL 03-2023 Desoner'!K:K) -> 3338.36 | H48: 4420.990148 | I48: 4420.990148 | J48: serv | K48: i
A49: 5.7 | B49: PRÓPRIA | C49: CPU.17 | D49: Demolição da casa de comando das comportas segmento existente e transporte de entulho | E49: un | F49: 1 | G49: =SUMIFS('CPU DESONERADO'!$H:$H,'CPU DESONERADO'!$B:$B,'Planilha Orçamentária Desoner'!$A49,'CPU DESONERADO'!$I:$I,"ss")+SUMIFS('CPU DESONERADO'!$H:$H,'CPU DESONERADO'!$B:$B,'Planilha Orçamentária Desoner'!$A49,'CPU DESONERADO'!$I:$I,"mdo")+SUMIF('Comp SINAPI AL 03-2023 Desoner'!G:G,'Planilha Orçamentária Desoner'!C49,'Comp SINAPI AL 03-2023 Desoner'!K:K) -> 8298.7 | H49: 10989.96841 | I49: 10989.96841 | J49: serv | K49: i
A51: 6 | D51: CASA DE COMANDO | I51: =SUM(I52:I96)/2 -> 101733.0636 | K51: ss
A52: 6.1 | D52: Estrutura | I52: =SUM(I53:I74) -> 94416.9318 | K52: s
A53: 6.1.1 | B53: SINAPI | C53: 94807 | D53: Porta Em Aço De Abrir Tipo Veneziana Sem Guarnição, 87X210Cm, Fixação Com Parafusos - Fornecimento E Instalação. Af_12/2019 | E53: =LOWER(IF(J53="i",VLOOKUP(C53,'Ins SINAPI AL 03-2023 Onerado'!$A$8:$E$5189,3,0),VLOOKUP(C53,'Comp SINAPI AL 03-2023 Onerado'!$G$7:$K$6879,3,0))) -> un | F53: 1 | G53: =SUMIFS('CPU DESONERADO'!$H:$H,'CPU DESONERADO'!$B:$B,'Planilha Orçamentária Desoner'!$A53,'CPU DESONERADO'!$I:$I,"ss")+SUMIFS('CPU DESONERADO'!$H:$H,'CPU DESONERADO'!$B:$B,'Planilha Orçamentária Desoner'!$A53,'CPU DESONERADO'!$I:$I,"mdo")+SUMIF('Comp SINAPI AL 03-2023 Desoner'!G:G,'Planilha Orçamentária Desoner'!C53,'Comp SINAPI AL 03-2023 Desoner'!K:K) -> 760.34 | H53: =IF(J53="SERV",G53*(1+$H$5),G53*(1+$H$6)) -> 1006.918262 | I53: =IF(J53="SERV",G53*F53*(1+$H$5),G53*F53*(1+$H$6)) -> 1006.918262 | J53: serv | K53: i
A54: 6.1.2 | B54: SINAPI | C54: 94562 | D54: Janela De Aço De Correr Com 4 Folhas Para Vidro, Com Batente, Ferragens E Pintura Anticorrosiva. Exclusive Vidros, Alizar E Contramarco. Fornecimento E Instalação. Af_12/2019 | E54: =LOWER(IF(J54="i",VLOOKUP(C54,'Ins SINAPI AL 03-2023 Onerado'!$A$8:$E$5189,3,0),VLOOKUP(C54,'Comp SINAPI AL 03-2023 Onerado'!$G$7:$K$6879,3,0))) -> m2 | F54: 4 | G54: =SUMIFS('CPU DESONERADO'!$H:$H,'CPU DESONERADO'!$B:$B,'Planilha Orçamentária Desoner'!$A54,'CPU DESONERADO'!$I:$I,"ss")+SUMIFS('CPU DESONERADO'!$H:$H,'CPU DESONERADO'!$B:$B,'Planilha Orçamentária Desoner'!$A54,'CPU DESONERADO'!$I:$I,"mdo")+SUMIF('Comp SINAPI AL 03-2023 Desoner'!G:G,'Planilha Orçamentária Desoner'!C54,'Comp SINAPI AL 03-2023 Desoner'!K:K) -> 617.92 | H54: 818.311456 | I54: 3273.245824 | J54: serv | K54: i
A55: 6.1.3 | B55: SINAPI | C55: 96526 | D55: Escavação Manual De Vala Para Viga Baldrame (Sem Escavação Para Colocação De Fôrmas). Af_06/2017 | E55: =LOWER(IF(J55="i",VLOOKUP(C55,'Ins SINAPI AL 03-2023 Onerado'!$A$8:$E$5189,3,0),VLOOKUP(C55,'Comp SINAPI AL 03-2023 Onerado'!$G$7:$K$6879,3,0))) -> m3 | F55: 5.5 | G55: =SUMIFS('CPU DESONERADO'!$H:$H,'CPU DESONERADO'!$B:$B,'Planilha Orçamentária Desoner'!$A55,'CPU DESONERADO'!$I:$I,"ss")+SUMIFS('CPU DESONERADO'!$H:$H,'CPU DESONERADO'!$B:$B,'Planilha Orçamentária Desoner'!$A55,'CPU DESONERADO'!$I:$I,"mdo")+SUMIF('Comp SINAPI AL 03-2023 Desoner'!G:G,'Planilha Orçamentária Desoner'!C55,'Comp SINAPI AL 03-2023 Desoner'!K:K) -> 235.67 | H55: 312.097781 | I55: 1716.537795 | J55: serv | K55: i
A56: 6.1.4 | B56: SINAPI | C56: 100324 | D56: Lastro Com Material Granular (Pedra Britada N.1 E Pedra Britada N.2), Aplicado Em Pisos Ou Lajes Sobre Solo, Espessura De *10 Cm*. Af_07/2019 | E56: =LOWER(IF(J56="i",VLOOKUP(C56,'Ins SINAPI AL 03-2023 Onerado'!$A$8:$E$5189,3,0),VLOOKUP(C56,'Comp SINAPI AL 03-2023 Onerado'!$G$7:$K$6879,3,0))) -> m3 | F56: 1.3 | G56: =SUMIFS('CPU DESONERADO'!$H:$H,'CPU DESONERADO'!$B:$B,'Planilha Orçamentária Desoner'!$A56,'CPU DESONERADO'!$I:$I,"ss")+SUMIFS('CPU DESONERADO'!$H:$H,'CPU DESONERADO'!$B:$B,'Planilha Orçamentária Desoner'!$A56,'CPU DESONERADO'!$I:$I,"mdo")+SUMIF('Comp SINAPI AL 03-2023 Desoner'!G:G,'Planilha Orçamentária Desoner'!C56,'Comp SINAPI AL 03-2023 Desoner'!K:K) -> 120.75 | H56: 159.909225 | I56: 207.8819925 | J56: serv | K56: i
A57: 6.1.5 | B57: SINAPI | C57: 94990 | D57: Execução De Passeio (Calçada) Ou Piso De Concreto Com Concreto Moldado In Loco, Feito Em Obra, Acabamento Convencional, Não Armado. Af_08/2022 | E57: =LOWER(IF(J57="i",VLOOKUP(C57,'Ins SINAPI AL 03-2023 Onerado'!$A$8:$E$5189,3,0),VLOOKUP(C57,'Comp SINAPI AL 03-2023 Onerado'!$G$7:$K$6879,3,0))) -> m3 | F57: 5.48 | G57: =SUMIFS('CPU DESONERADO'!$H:$H,'CPU DESONERADO'!$B:$B,'Planilha Orçamentária Desoner'!$A57,'CPU DESONERADO'!$I:$I,"ss")+SUMIFS('CPU DESONERADO'!$H:$H,'CPU DESONERADO'!$B:$B,'Planilha Orçamentária Desoner'!$A57,'CPU DESONERADO'!$I:$I,"mdo")+SUMIF('Comp SINAPI AL 03-2023 Desoner'!G:G,'Planilha Orçamentária Desoner'!C57,'Comp SINAPI AL 03-2023 Desoner'!K:K) -> 676.97 | H57: 896.511371 | I57: 4912.882313 | J57: serv | K57: i
A58: 6.1.6 | B58: SINAPI | C58: 103319 | D58: Alvenaria De Vedação De Blocos Vazados De Concreto De 14X19X39 Cm (Espessura 14 Cm) E Argamassa De Assentamento Com Preparo Manual. Af_12/2021 | E58: =LOWER(IF(J58="i",VLOOKUP(C58,'Ins SINAPI AL 03-2023 Onerado'!$A$8:$E$5189,3,0),VLOOKUP(C58,'Comp SINAPI AL 03-2023 Onerado'!$G$7:$K$6879,3,0))) -> m2 | F58: 44.7 | G58: =SUMIFS('CPU DESONERADO'!$H:$H,'CPU DESONERADO'!$B:$B,'Planilha Orçamentária Desoner'!$A58,'CPU DESONERADO'!$I:$I,"ss")+SUMIFS('CPU DESONERADO'!$H:$H,'CPU DESONERADO'!$B:$B,'Planilha Orçamentária Desoner'!$A58,'CPU DESONERADO'!$I:$I,"mdo")+SUMIF('Comp SINAPI AL 03-2023 Desoner'!G:G,'Planilha Orçamentária Desoner'!C58,'Comp SINAPI AL 03-2023 Desoner'!K:K) -> 82.06 | H58: 108.672058 | I58: 4857.640993 | J58: serv | K58: i
A59: 6.1.7 | B59: SINAPI | C59: 103675 | D59: Concretagem De Vigas E Lajes, Fck=25 Mpa, Para Lajes Maciças Ou Nervuradas Com Uso De Bomba - Lançamento, Adensamento E Acabamento. Af_02/2022 | E59: =LOWER(IF(J59="i",VLOOKUP(C59,'Ins SINAPI AL 03-2023 Onerado'!$A$8:$E$5189,3,0),VLOOKUP(C59,'Comp SINAPI AL 03-2023 Onerado'!$G$7:$K$6879,3,0))) -> m3 | F59: 2.37 | G59: =SUMIFS('CPU DESONERADO'!$H:$H,'CPU DESONERADO'!$B:$B,'Planilha Orçamentária Desoner'!$A59,'CPU DESONERADO'!$I:$I,"ss")+SUMIFS('CPU DESONERADO'!$H:$H,'CPU DESONERADO'!$B:$B,'Planilha Orçamentária Desoner'!$A59,'CPU DESONERADO'!$I:$I,"mdo")+SUMIF('Comp SINAPI AL 03-2023 Desoner'!G:G,'Planilha Orçamentária Desoner'!C59,'Comp SINAPI AL 03-2023 Desoner'!K:K) -> 597 | H59: 790.6071 | I59: 1873.738827 | J59: serv | K59: i
A60: 6.1.8 | B60: SINAPI | C60: 92544 | D60: Trama De Madeira Composta Por Terças Para Telhados De Até 2 Águas Para Telha Estrutural De Fibrocimento, Incluso Transporte Vertical. Af_07/2019 | E60: =LOWER(IF(J60="i",VLOOKUP(C60,'Ins SINAPI AL 03-2023 Onerado'!$A$8:$E$5189,3,0),VLOOKUP(C60,'Comp SINAPI AL 03-2023 Onerado'!$G$7:$K$6879,3,0))) -> m2 | F60: 23.4 | G60: =SUMIFS('CPU DESONERADO'!$H:$H,'CPU DESONERADO'!$B:$B,'Planilha Orçamentária Desoner'!$A60,'CPU DESONERADO'!$I:$I,"ss")+SUMIFS('CPU DESONERADO'!$H:$H,'CPU DESONERADO'!$B:$B,'Planilha Orçamentária Desoner'!$A60,'CPU DESONERADO'!$I:$I,"mdo")+SUMIF('Comp SINAPI AL 03-2023 Desoner'!G:G,'Planilha Orçamentária Desoner'!C60,'Comp SINAPI AL 03-2023 Desoner'!K:K) -> 14.01 | H60: 18.553443 | I60: 434.1505662 | J60: serv | K60: i
A61: 6.1.9 | B61: SINAPI | C61: 87904 | D61: Chapisco Aplicado Em Alvenaria (Com Presença De Vãos) E Estruturas De Concreto De Fachada, Com Colher De Pedreiro. Argamassa Traço 1:3 Com Preparo Manual. Af_10/2022 | E61: =LOWER(IF(J61="i",VLOOKUP(C61,'Ins SINAPI AL 03-2023 Onerado'!$A$8:$E$5189,3,0),VLOOKUP(C61,'Comp SINAPI AL 03-2023 Onerado'!$G$7:$K$6879,3,0))) -> m2 | F61: 89.4 | G61: =SUMIFS('CPU DESONERADO'!$H:$H,'CPU DESONERADO'!$B:$B,'Planilha Orçamentária Desoner'!$A61,'CPU DESONERADO'!$I:$I,"ss")+SUMIFS('CPU DESONERADO'!$H:$H,'CPU DESONERADO'!$B:$B,'Planilha Orçamentária Desoner'!$A61,'CPU DESONERADO'!$I:$I,"mdo")+SUMIF('Comp SINAPI AL 03-2023 Desoner'!G:G,'Planilha Orçamentária Desoner'!C61,'Comp SINAPI AL 03-2023 Desoner'!K:K) -> 6.65 | H61: 8.806595 | I61: 787.309593 | J61: serv | K61: i
A62: 6.1.10 | B62: SINAPI | C62: 94207 | D62: Telhamento Com Telha Ondulada De Fibrocimento E = 6 Mm, Com Recobrimento Lateral De 1/4 De Onda Para Telhado Com Inclinação Maior Que 10°, Com Até 2 Águas, Incluso Içamento. Af_07/2019 | E62: =LOWER(IF(J62="i",VLOOKUP(C62,'Ins SINAPI AL 03-2023 Onerado'!$A$8:$E$5189,3,0),VLOOKUP(C62,'Comp SINAPI AL 03-2023 Onerado'!$G$7:$K$6879,3,0))) -> m2 | F62: 25 | G62: =SUMIFS('CPU DESONERADO'!$H:$H,'CPU DESONERADO'!$B:$B,'Planilha Orçamentária Desoner'!$A62,'CPU DESONERADO'!$I:$I,"ss")+SUMIFS('CPU DESONERADO'!$H:$H,'CPU DESONERADO'!$B:$B,'Planilha Orçamentária Desoner'!$A62,'CPU DESONERADO'!$I:$I,"mdo")+SUMIF('Comp SINAPI AL 03-2023 Desoner'!G:G,'Planilha Orçamentária Desoner'!C62,'Comp SINAPI AL 03-2023 Desoner'!K:K) -> 66.55 | H62: 88.132165 | I62: 2203.304125 | J62: serv | K62: i
A63: 6.1.11 | B63: SINAPI | C63: 87530 | D63: Massa Única, Para Recebimento De Pintura, Em Argamassa Traço 1:2:8, Preparo Manual, Aplicada Manualmente Em Faces Internas De Paredes, Espessura De 20Mm, Com Execução De Taliscas. Af_06/2014 | E63: =LOWER(IF(J63="i",VLOOKUP(C63,'Ins SINAPI AL 03-2023 Onerado'!$A$8:$E$5189,3,0),VLOOKUP(C63,'Comp SINAPI AL 03-2023 Onerado'!$G$7:$K$6879,3,0))) -> m2 | F63: 89.4 | G63: =SUMIFS('CPU DESONERADO'!$H:$H,'CPU DESONERADO'!$B:$B,'Planilha Orçamentária Desoner'!$A63,'CPU DESONERADO'!$I:$I,"ss")+SUMIFS('CPU DESONERADO'!$H:$H,'CPU DESONERADO'!$B:$B,'Planilha Orçamentária Desoner'!$A63,'CPU DESONERADO'!$I:$I,"mdo")+SUMIF('Comp SINAPI AL 03-2023 Desoner'!G:G,'Planilha Orçamentária Desoner'!C63,'Comp SINAPI AL 03-2023 Desoner'!K:K) -> 35.89 | H63: 47.529127 | I63: 4249.103954 | J63: serv | K63: i
A64: 6.1.12 | B64: SINAPI | C64: 88489 | D64: Aplicação Manual De Pintura Com Tinta Látex Acrílica Em Paredes, Duas Demãos. Af_06/2014 | E64: =LOWER(IF(J64="i",VLOOKUP(C64,'Ins SINAPI AL 03-2023 Onerado'!$A$8:$E$5189,3,0),VLOOKUP(C64,'Comp SINAPI AL 03-2023 Onerado'!$G$7:$K$6879,3,0))) -> m2 | F64: 89.4 | G64: =SUMIFS('CPU DESONERADO'!$H:$H,'CPU DESONERADO'!$B:$B,'Planilha Orçamentária Desoner'!$A64,'CPU DESONERADO'!$I:$I,"ss")+SUMIFS('CPU DESONERADO'!$H:$H,'CPU DESONERADO'!$B:$B,'Planilha Orçamentária Desoner'!$A64,'CPU DESONERADO'!$I:$I,"mdo")+SUMIF('Comp SINAPI AL 03-2023 Desoner'!G:G,'Planilha Orçamentária Desoner'!C64,'Comp SINAPI AL 03-2023 Desoner'!K:K) -> 14.31 | H64: 18.950733 | I64: 1694.19553 | J64: serv | K64: i
A65: 6.1.13 | B65: SINAPI | C65: 97914 | D65: Transporte Com Caminhão Basculante De 6 M³, Em Via Urbana Pavimentada, Dmt Até 30 Km (Unidade: M3Xkm). Af_07/2020 | E65: =LOWER(IF(J65="i",VLOOKUP(C65,'Ins SINAPI AL 03-2023 Onerado'!$A$8:$E$5189,3,0),VLOOKUP(C65,'Comp SINAPI AL 03-2023 Onerado'!$G$7:$K$7500,3,0))) -> m3xkm | F65: 300 | G65: =SUMIFS('CPU DESONERADO'!$H:$H,'CPU DESONERADO'!$B:$B,'Planilha Orçamentária Desoner'!$A65,'CPU DESONERADO'!$I:$I,"ss")+SUMIFS('CPU DESONERADO'!$H:$H,'CPU DESONERADO'!$B:$B,'Planilha Orçamentária Desoner'!$A65,'CPU DESONERADO'!$I:$I,"mdo")+SUMIF('Comp SINAPI AL 03-2023 Desoner'!G:G,'Planilha Orçamentária Desoner'!C65,'Comp SINAPI AL 03-2023 Desoner'!K:K) -> 2.7 | H65: 3.57561 | I65: 1072.683 | J65: serv | K65: i
A66: 6.1.14 | B66: PRÓPRIA | C66: CPU.18 | D66: Montagem das comportas segmento - Montagem dos mancais das comportas | E66: un | F66: 1 | G66: =SUMIFS('CPU DESONERADO'!$H:$H,'CPU DESONERADO'!$B:$B,'Planilha Orçamentária Desoner'!$A66,'CPU DESONERADO'!$I:$I,"ss")+SUMIFS('CPU DESONERADO'!$H:$H,'CPU DESONERADO'!$B:$B,'Planilha Orçamentária Desoner'!$A66,'CPU DESONERADO'!$I:$I,"mdo")+SUMIF('Comp SINAPI AL 03-2023 Desoner'!G:G,'Planilha Orçamentária Desoner'!C66,'Comp SINAPI AL 03-2023 Desoner'!K:K) -> 3178.8 | H66: 4209.68484 | I66: 4209.68484 | J66: serv | K66: i
A67: 6.1.15 | B67: PRÓPRIA | C67: CPU.19 | D67: Montagem das comportas segmento - Montagem dos tabuleiros completos com vedações e braços | E67: un | F67: 1 | G67: =SUMIFS('CPU DESONERADO'!$H:$H,'CPU DESONERADO'!$B:$B,'Planilha Orçamentária Desoner'!$A67,'CPU DESONERADO'!$I:$I,"ss")+SUMIFS('CPU DESONERADO'!$H:$H,'CPU DESONERADO'!$B:$B,'Planilha Orçamentária Desoner'!$A67,'CPU DESONERADO'!$I:$I,"mdo")+SUMIF('Comp SINAPI AL 03-2023 Desoner'!G:G,'Planilha Orçamentária Desoner'!C67,'Comp SINAPI AL 03-2023 Desoner'!K:K) -> 34971.09 | H67: 46312.21449 | I67: 46312.21449 | J67: serv | K67: i
A68: 6.1.16 | B68: PRÓPRIA | C68: CPU.20 | D68: Montagem das comportas segmento - Montagem dos cilindros e seus mancais | E68: un | F68: 1 | G68: =SUMIFS('CPU DESONERADO'!$H:$H,'CPU DESONERADO'!$B:$B,'Planilha Orçamentária Desoner'!$A68,'CPU DESONERADO'!$I:$I,"ss")+SUMIFS('CPU DESONERADO'!$H:$H,'CPU DESONERADO'!$B:$B,'Planilha Orçamentária Desoner'!$A68,'CPU DESONERADO'!$I:$I,"mdo")+SUMIF('Comp SINAPI AL 03-2023 Desoner'!G:G,'Planilha Orçamentária Desoner'!C68,'Comp SINAPI AL 03-2023 Desoner'!K:K) -> 3178.8 | H68: 4209.68484 | I68: 4209.68484 | J68: serv | K68: i
A69: 6.1.17 | B69: PRÓPRIA | C69: CPU.21 | D69: Montagem do sistema de acionamento da comporta - unidade hidraulica e painel eletrico | E69: un | F69: 1 | G69: =SUMIFS('CPU DESONERADO'!$H:$H,'CPU DESONERADO'!$B:$B,'Planilha Orçamentária Desoner'!$A69,'CPU DESONERADO'!$I:$I,"ss")+SUMIFS('CPU DESONERADO'!$H:$H,'CPU DESONERADO'!$B:$B,'Planilha Orçamentária Desoner'!$A69,'CPU DESONERADO'!$I:$I,"mdo")+SUMIF('Comp SINAPI AL 03-2023 Desoner'!G:G,'Planilha Orçamentária Desoner'!C69,'Comp SINAPI AL 03-2023 Desoner'!K:K) -> 3634.96 | H69: 4813.777528 | I69: 4813.777528 | J69: serv | K69: i
A70: 6.1.18 | B70: PRÓPRIA | C70: CPU.22 | D70: Montagem do sistema de acionamento da comporta - interligação entre comportas e casa de comando | E70: un | F70: 1 | G70: =SUMIFS('CPU DESONERADO'!$H:$H,'CPU DESONERADO'!$B:$B,'Planilha Orçamentária Desoner'!$A70,'CPU DESONERADO'!$I:$I,"ss")+SUMIFS('CPU DESONERADO'!$H:$H,'CPU DESONERADO'!$B:$B,'Planilha Orçamentária Desoner'!$A70,'CPU DESONERADO'!$I:$I,"mdo")+SUMIF('Comp SINAPI AL 03-2023 Desoner'!G:G,'Planilha Orçamentária Desoner'!C70,'Comp SINAPI AL 03-2023 Desoner'!K:K) -> 1613.49 | H70: 2136.744807 | I70: 2136.744807 | J70: serv | K70: i
A71: 6.1.19 | B71: PRÓPRIA | C71: CPU.23 | D71: Montagem do sistema de acionamento da comporta - interligação eletrica entre casa de comando e rede eletrica | E71: un | F71: 1 | G71: =SUMIFS('CPU DESONERADO'!$H:$H,'CPU DESONERADO'!$B:$B,'Planilha Orçamentária Desoner'!$A71,'CPU DESONERADO'!$I:$I,"ss")+SUMIFS('CPU DESONERADO'!$H:$H,'CPU DESONERADO'!$B:$B,'Planilha Orçamentária Desoner'!$A71,'CPU DESONERADO'!$I:$I,"mdo")+SUMIF('Comp SINAPI AL 03-2023 Desoner'!G:G,'Planilha Orçamentária Desoner'!C71,'Comp SINAPI AL 03-2023 Desoner'!K:K) -> 3050.15 | H71: 4039.313645 | I71: 4039.313645 | J71: serv | K71: i
A72: 6.1.20 | B72: SINAPI | C72: 91601 | D72: =PROPER(IF(J72="i",VLOOKUP(C72,'Ins SINAPI AL 03-2023 Onerado'!$A$8:$E$5189,2,0),VLOOKUP(C72,'Comp SINAPI AL 03-2023 Onerado'!$G$7:$K$6879,2,0))) -> Armação Do Sistema De Paredes De Concreto, Executada Como Reforço, Vergalhão De 6,3 Mm De Diâmetro. Af_06/2019 | E72: =LOWER(IF(J72="i",VLOOKUP(C72,'Ins SINAPI AL 03-2023 Onerado'!$A$8:$E$5189,3,0),VLOOKUP(C72,'Comp SINAPI AL 03-2023 Onerado'!$G$7:$K$7500,3,0))) -> kg | F72: 14.6 | G72: =SUMIFS('CPU DESONERADO'!$H:$H,'CPU DESONERADO'!$B:$B,'Planilha Orçamentária Desoner'!$A72,'CPU DESONERADO'!$I:$I,"ss")+SUMIFS('CPU DESONERADO'!$H:$H,'CPU DESONERADO'!$B:$B,'Planilha Orçamentária Desoner'!$A72,'CPU DESONERADO'!$I:$I,"mdo")+SUMIF('Comp SINAPI AL 03-2023 Desoner'!G:G,'Planilha Orçamentária Desoner'!C72,'Comp SINAPI AL 03-2023 Desoner'!K:K) -> 14.52 | H72: 19.228836 | I72: 280.7410056 | J72: serv | K72: s
A73: 6.1.21 | B73: SINAPI | C73: 101792 | D73: =PROPER(IF(J73="i",VLOOKUP(C73,'Ins SINAPI AL 03-2023 Onerado'!$A$8:$E$5189,2,0),VLOOKUP(C73,'Comp SINAPI AL 03-2023 Onerado'!$G$7:$K$6879,2,0))) -> Escoramento De Fôrmas De Laje Em Madeira Não Aparelhada, Pé-Direito Simples, Incluso Travamento, 4 Utilizações. Af_09/2020 | E73: =LOWER(IF(J73="i",VLOOKUP(C73,'Ins SINAPI AL 03-2023 Onerado'!$A$8:$E$5189,3,0),VLOOKUP(C73,'Comp SINAPI AL 03-2023 Onerado'!$G$7:$K$7500,3,0))) -> m3 | F73: 2.37 | G73: =SUMIFS('CPU DESONERADO'!$H:$H,'CPU DESONERADO'!$B:$B,'Planilha Orçamentária Desoner'!$A73,'CPU DESONERADO'!$I:$I,"ss")+SUMIFS('CPU DESONERADO'!$H:$H,'CPU DESONERADO'!$B:$B,'Planilha Orçamentária Desoner'!$A73,'CPU DESONERADO'!$I:$I,"mdo")+SUMIF('Comp SINAPI AL 03-2023 Desoner'!G:G,'Planilha Orçamentária Desoner'!C73,'Comp SINAPI AL 03-2023 Desoner'!K:K) -> 17.74 | H73: 23.493082 | I73: 55.67860434 | J73: serv
A74: 6.1.22 | B74: SINAPI | C74: 97087 | D74: =PROPER(IF(J74="i",VLOOKUP(C74,'Ins SINAPI AL 03-2023 Onerado'!$A$8:$E$5189,2,0),VLOOKUP(C74,'Comp SINAPI AL 03-2023 Onerado'!$G$7:$K$6879,2,0))) -> Camada Separadora Para Execução De Radier, Piso De Concreto Ou Laje Sobre Solo, Em Lona Plástica. Af_09/2021 | E74: =LOWER(IF(J74="i",VLOOKUP(C74,'Ins SINAPI AL 03-2023 Onerado'!$A$8:$E$5189,3,0),VLOOKUP(C74,'Comp SINAPI AL 03-2023 Onerado'!$G$7:$K$7500,3,0))) -> m2 | F74: 16 | G74: =SUMIFS('CPU DESONERADO'!$H:$H,'CPU DESONERADO'!$B:$B,'Planilha Orçamentária Desoner'!$A74,'CPU DESONERADO'!$I:$I,"ss")+SUMIFS('CPU DESONERADO'!$H:$H,'CPU DESONERADO'!$B:$B,'Planilha Orçamentária Desoner'!$A74,'CPU DESONERADO'!$I:$I,"mdo")+SUMIF('Comp SINAPI AL 03-2023 Desoner'!G:G,'Planilha Orçamentária Desoner'!C74,'Comp SINAPI AL 03-2023 Desoner'!K:K) -> 3.28 | H74: 4.343704 | I74: 69.499264 | J74: serv
A75: 6.2 | D75: Instalações elétricas | I75: =SUM(I76:I96) -> 7316.131831 | K75: s
A76: 6.2.1 | B76: SINAPI | C76: 101875 | D76: =PROPER(IF(J76="i",VLOOKUP(C76,'Ins SINAPI AL 03-2023 Onerado'!$A$8:$E$5189,2,0),VLOOKUP(C76,'Comp SINAPI AL 03-2023 Onerado'!$G$7:$K$6879,2,0))) -> Quadro De Distribuição De Energia Em Chapa De Aço Galvanizado, De Embutir, Com Barramento Trifásico, Para 12 Disjuntores Din 100A - Fornecimento E Instalação. Af_10/2020 | E76: =LOWER(IF(J76="i",VLOOKUP(C76,'Ins SINAPI AL 03-2023 Onerado'!$A$8:$E$5189,3,0),VLOOKUP(C76,'Comp SINAPI AL 03-2023 Onerado'!$G$7:$K$6879,3,0))) -> un | F76: 1 | G76: =SUMIFS('CPU DESONERADO'!$H:$H,'CPU DESONERADO'!$B:$B,'Planilha Orçamentária Desoner'!$A76,'CPU DESONERADO'!$I:$I,"ss")+SUMIFS('CPU DESONERADO'!$H:$H,'CPU DESONERADO'!$B:$B,'Planilha Orçamentária Desoner'!$A76,'CPU DESONERADO'!$I:$I,"mdo")+SUMIF('Comp SINAPI AL 03-2023 Desoner'!G:G,'Planilha Orçamentária Desoner'!C76,'Comp SINAPI AL 03-2023 Desoner'!K:K) -> 555.43 | H76: =IF(J76="SERV",G76*(1+$H$5),G76*(1+$H$6)) -> 735.555949 | I76: =IF(J76="SERV",G76*F76*(1+$H$5),G76*F76*(1+$H$6)) -> 735.555949 | J76: serv | K76: i
A77: 6.2.2 | B77: SINAPI | C77: 95802 | D77: =PROPER(IF(J77="i",VLOOKUP(C77,'Ins SINAPI AL 03-2023 Onerado'!$A$8:$E$5189,2,0),VLOOKUP(C77,'Comp SINAPI AL 03-2023 Onerado'!$G$7:$K$6879,2,0))) -> Condulete De Alumínio, Tipo X, Para Eletroduto De Aço Galvanizado Dn 25 Mm (1''), Aparente - Fornecimento E Instalação. Af_10/2022 | E77: =LOWER(IF(J77="i",VLOOKUP(C77,'Ins SINAPI AL 03-2023 Onerado'!$A$8:$E$5189,3,0),VLOOKUP(C77,'Comp SINAPI AL 03-2023 Onerado'!$G$7:$K$6879,3,0))) -> un | F77: 1 | G77: =SUMIFS('CPU DESONERADO'!$H:$H,'CPU DESONERADO'!$B:$B,'Planilha Orçamentária Desoner'!$A77,'CPU DESONERADO'!$I:$I,"ss")+SUMIFS('CPU DESONERADO'!$H:$H,'CPU DESONERADO'!$B:$B,'Planilha Orçamentária Desoner'!$A77,'CPU DESONERADO'!$I:$I,"mdo")+SUMIF('Comp SINAPI AL 03-2023 Desoner'!G:G,'Planilha Orçamentária Desoner'!C77,'Comp SINAPI AL 03-2023 Desoner'!K:K) -> 44.91 | H77: 59.474313 | I77: 59.474313 | J77: serv | K77: i
A78: 6.2.3 | B78: SINAPI | C78: 91924 | D78: =PROPER(IF(J78="i",VLOOKUP(C78,'Ins SINAPI AL 03-2023 Onerado'!$A$8:$E$5189,2,0),VLOOKUP(C78,'Comp SINAPI AL 03-2023 Onerado'!$G$7:$K$6879,2,0))) -> Cabo De Cobre Flexível Isolado, 1,5 Mm², Anti-Chama 450/750 V, Para Circuitos Terminais - Fornecimento E Instalação. Af_03/2023 | E78: =LOWER(IF(J78="i",VLOOKUP(C78,'Ins SINAPI AL 03-2023 Onerado'!$A$8:$E$5189,3,0),VLOOKUP(C78,'Comp SINAPI AL 03-2023 Onerado'!$G$7:$K$6879,3,0))) -> m | F78: 110 | G78: =SUMIFS('CPU DESONERADO'!$H:$H,'CPU DESONERADO'!$B:$B,'Planilha Orçamentária Desoner'!$A78,'CPU DESONERADO'!$I:$I,"ss")+SUMIFS('CPU DESONERADO'!$H:$H,'CPU DESONERADO'!$B:$B,'Planilha Orçamentária Desoner'!$A78,'CPU DESONERADO'!$I:$I,"mdo")+SUMIF('Comp SINAPI AL 03-2023 Desoner'!G:G,'Planilha Orçamentária Desoner'!C78,'Comp SINAPI AL 03-2023 Desoner'!K:K) -> 2.87 | H78: 3.800741 | I78: 418.08151 | J78: serv | K78: i
A79: 6.2.4 | B79: SINAPI | C79: 91926 | D79: =PROPER(IF(J79="i",VLOOKUP(C79,'Ins SINAPI AL 03-2023 Onerado'!$A$8:$E$5189,2,0),VLOOKUP(C79,'Comp SINAPI AL 03-2023 Onerado'!$G$7:$K$6879,2,0))) -> Cabo De Cobre Flexível Isolado, 2,5 Mm², Anti-Chama 450/750 V, Para Circuitos Terminais - Fornecimento E Instalação. Af_03/2023 | E79: =LOWER(IF(J79="i",VLOOKUP(C79,'Ins SINAPI AL 03-2023 Onerado'!$A$8:$E$5189,3,0),VLOOKUP(C79,'Comp SINAPI AL 03-2023 Onerado'!$G$7:$K$6879,3,0))) -> m | F79: 150 | G79: =SUMIFS('CPU DESONERADO'!$H:$H,'CPU DESONERADO'!$B:$B,'Planilha Orçamentária Desoner'!$A79,'CPU DESONERADO'!$I:$I,"ss")+SUMIFS('CPU DESONERADO'!$H:$H,'CPU DESONERADO'!$B:$B,'Planilha Orçamentária Desoner'!$A79,'CPU DESONERADO'!$I:$I,"mdo")+SUMIF('Comp SINAPI AL 03-2023 Desoner'!G:G,'Planilha Orçamentária Desoner'!C79,'Comp SINAPI AL 03-2023 Desoner'!K:K) -> 4.23 | H79: 5.601789 | I79: 840.26835 | J79: serv | K79: i
A80: 6.2.5 | B80: SINAPI | C80: 91928 | D80: =PROPER(IF(J80="i",VLOOKUP(C80,'Ins SINAPI AL 03-2023 Onerado'!$A$8:$E$5189,2,0),VLOOKUP(C80,'Comp SINAPI AL 03-2023 Onerado'!$G$7:$K$6879,2,0))) -> Cabo De Cobre Flexível Isolado, 4 Mm², Anti-Chama 450/750 V, Para Circuitos Terminais - Fornecimento E Instalação. Af_03/2023 | E80: =LOWER(IF(J80="i",VLOOKUP(C80,'Ins SINAPI AL 03-2023 Onerado'!$A$8:$E$5189,3,0),VLOOKUP(C80,'Comp SINAPI AL 03-2023 Onerado'!$G$7:$K$6879,3,0))) -> m | F80: 60 | G80: =SUMIFS('CPU DESONERADO'!$H:$H,'CPU DESONERADO'!$B:$B,'Planilha Orçamentária Desoner'!$A80,'CPU DESONERADO'!$I:$I,"ss")+SUMIFS('CPU DESONERADO'!$H:$H,'CPU DESONERADO'!$B:$B,'Planilha Orçamentária Desoner'!$A80,'CPU DESONERADO'!$I:$I,"mdo")+SUMIF('Comp SINAPI AL 03-2023 Desoner'!G:G,'Planilha Orçamentária Desoner'!C80,'Comp SINAPI AL 03-2023 Desoner'!K:K) -> 6.61 | H80: 8.753623 | I80: 525.21738 | J80: serv | K80: i
A81: 6.2.6 | B81: SINAPI | C81: 91932 | D81: =PROPER(IF(J81="i",VLOOKUP(C81,'Ins SINAPI AL 03-2023 Onerado'!$A$8:$E$5189,2,0),VLOOKUP(C81,'Comp SINAPI AL 03-2023 Onerado'!$G$7:$K$6879,2,0))) -> Cabo De Cobre Flexível Isolado, 10 Mm², Anti-Chama 450/750 V, Para Circuitos Terminais - Fornecimento E Instalação. Af_03/2023 | E81: =LOWER(IF(J81="i",VLOOKUP(C81,'Ins SINAPI AL 03-2023 Onerado'!$A$8:$E$5189,3,0),VLOOKUP(C81,'Comp SINAPI AL 03-2023 Onerado'!$G$7:$K$6879,3,0))) -> m | F81: 15 | G81: =SUMIFS('CPU DESONERADO'!$H:$H,'CPU DESONERADO'!$B:$B,'Planilha Orçamentária Desoner'!$A81,'CPU DESONERADO'!$I:$I,"ss")+SUMIFS('CPU DESONERADO'!$H:$H,'CPU DESONERADO'!$B:$B,'Planilha Orçamentária Desoner'!$A81,'CPU DESONERADO'!$I:$I,"mdo")+SUMIF('Comp SINAPI AL 03-2023 Desoner'!G:G,'Planilha Orçamentária Desoner'!C81,'Comp SINAPI AL 03-2023 Desoner'!K:K) -> 16.81 | H81: 22.261483 | I81: 333.922245 | J81: serv | K81: i
A82: 6.2.7 | B82: SINAPI | C82: 91870 | D82: =PROPER(IF(J82="i",VLOOKUP(C82,'Ins SINAPI AL 03-2023 Onerado'!$A$8:$E$5189,2,0),VLOOKUP(C82,'Comp SINAPI AL 03-2023 Onerado'!$G$7:$K$6879,2,0))) -> Eletroduto Rígido Roscável, Pvc, Dn 20 Mm (1/2"), Para Circuitos Terminais, Instalado Em Parede - Fornecimento E Instalação. Af_03/2023 | E82: =LOWER(IF(J82="i",VLOOKUP(C82,'Ins SINAPI AL 03-2023 Onerado'!$A$8:$E$5189,3,0),VLOOKUP(C82,'Comp SINAPI AL 03-2023 Onerado'!$G$7:$K$6879,3,0))) -> m | F82: 50 | G82: =SUMIFS('CPU DESONERADO'!$H:$H,'CPU DESONERADO'!$B:$B,'Planilha Orçamentária Desoner'!$A82,'CPU DESONERADO'!$I:$I,"ss")+SUMIFS('CPU DESONERADO'!$H:$H,'CPU DESONERADO'!$B:$B,'Planilha Orçamentária Desoner'!$A82,'CPU DESONERADO'!$I:$I,"mdo")+SUMIF('Comp SINAPI AL 03-2023 Desoner'!G:G,'Planilha Orçamentária Desoner'!C82,'Comp SINAPI AL 03-2023 Desoner'!K:K) -> 11.4 | H82: 15.09702 | I82: 754.851 | J82: serv | K82: i
A83: 6.2.8 | B83: PRÓPRIA | C83: CPU.24 | D83: Disjuntor Termomagnético Monopolar, Corrente Nominal De 63A - Fornecimento E Instalação. (Adaptado SINAPI 101895) | E83: un | F83: 1 | G83: =SUMIFS('CPU DESONERADO'!$H:$H,'CPU DESONERADO'!$B:$B,'Planilha Orçamentária Desoner'!$A83,'CPU DESONERADO'!$I:$I,"ss")+SUMIFS('CPU DESONERADO'!$H:$H,'CPU DESONERADO'!$B:$B,'Planilha Orçamentária Desoner'!$A83,'CPU DESONERADO'!$I:$I,"mdo")+SUMIF('Comp SINAPI AL 03-2023 Desoner'!G:G,'Planilha Orçamentária Desoner'!C83,'Comp SINAPI AL 03-2023 Desoner'!K:K) -> 73.36 | H83: 97.150648 | I83: 97.150648 | J83: serv | K83: i
A84: 6.2.9 | B84: PRÓPRIA | C84: CPU.25 | D84: Disjuntor Termomagnético Monopolar, Corrente Nominal De 32A - Fornecimento E Instalação. (Adaptado SINAPI 101895) | E84: un | F84: 1 | G84: =SUMIFS('CPU DESONERADO'!$H:$H,'CPU DESONERADO'!$B:$B,'Planilha Orçamentária Desoner'!$A84,'CPU DESONERADO'!$I:$I,"ss")+SUMIFS('CPU DESONERADO'!$H:$H,'CPU DESONERADO'!$B:$B,'Planilha Orçamentária Desoner'!$A84,'CPU DESONERADO'!$I:$I,"mdo")+SUMIF('Comp SINAPI AL 03-2023 Desoner'!G:G,'Planilha Orçamentária Desoner'!C84,'Comp SINAPI AL 03-2023 Desoner'!K:K) -> 61.97 | H84: 82.066871 | I84: 82.066871 | J84: serv | K84: i
A85: 6.2.10 | B85: PRÓPRIA | C85: CPU.26 | D85: Disjuntor Termomagnético Monopolar, Corrente Nominal De 16A - Fornecimento E Instalação. (Adaptado SINAPI 101895) | E85: un | F85: 6 | G85: =SUMIFS('CPU DESONERADO'!$H:$H,'CPU DESONERADO'!$B:$B,'Planilha Orçamentária Desoner'!$A85,'CPU DESONERADO'!$I:$I,"ss")+SUMIFS('CPU DESONERADO'!$H:$H,'CPU DESONERADO'!$B:$B,'Planilha Orçamentária Desoner'!$A85,'CPU DESONERADO'!$I:$I,"mdo")+SUMIF('Comp SINAPI AL 03-2023 Desoner'!G:G,'Planilha Orçamentária Desoner'!C85,'Comp SINAPI AL 03-2023 Desoner'!K:K) -> 61.97 | H85: 82.066871 | I85: 492.401226 | J85: serv | K85: i
A86: 6.2.11 | B86: PRÓPRIA | C86: CPU.27 | D86: Disjuntor Termomagnético Monopolar, Corrente Nominal De 4A - Fornecimento E Instalação. (Adaptado SINAPI 101895) | E86: un | F86: 1 | G86: =SUMIFS('CPU DESONERADO'!$H:$H,'CPU DESONERADO'!$B:$B,'Planilha Orçamentária Desoner'!$A86,'CPU DESONERADO'!$I:$I,"ss")+SUMIFS('CPU DESONERADO'!$H:$H,'CPU DESONERADO'!$B:$B,'Planilha Orçamentária Desoner'!$A86,'CPU DESONERADO'!$I:$I,"mdo")+SUMIF('Comp SINAPI AL 03-2023 Desoner'!G:G,'Planilha Orçamentária Desoner'!C86,'Comp SINAPI AL 03-2023 Desoner'!K:K) -> 83.08 | H86: 110.022844 | I86: 110.022844 | J86: serv | K86: i
A87: 6.2.12 | B87: PRÓPRIA | C87: CPU.28 | D87: DPS - Dispositivo de Proteção Contra Surto Elétrico - 45KA / 1P (Adaptado FDE 09.02.043) | E87: un | F87: 1 | G87: =SUMIFS('CPU DESONERADO'!$H:$H,'CPU DESONERADO'!$B:$B,'Planilha Orçamentária Desoner'!$A87,'CPU DESONERADO'!$I:$I,"ss")+SUMIFS('CPU DESONERADO'!$H:$H,'CPU DESONERADO'!$B:$B,'Planilha Orçamentária Desoner'!$A87,'CPU DESONERADO'!$I:$I,"mdo")+SUMIF('Comp SINAPI AL 03-2023 Desoner'!G:G,'Planilha Orçamentária Desoner'!C87,'Comp SINAPI AL 03-2023 Desoner'!K:K) -> 220.45 | H87: 291.941935 | I87: 291.941935 | J87: serv | K87: i
A88: 6.2.13 | B88: PRÓPRIA | C88: CPU.29 | D88: Disjuntor De Proteção Diferencial Residual (Dr), Bipolar, Tipo Din, Corrente Nominal De 63A, Alta Sensibilidade, Corrente Diferencial Residual Nominal Com Atuação De 30Ma (Adaptado SETOP ED-15116) | E88: un | F88: 2 | G88: =SUMIFS('CPU DESONERADO'!$H:$H,'CPU DESONERADO'!$B:$B,'Planilha Orçamentária Desoner'!$A88,'CPU DESONERADO'!$I:$I,"ss")+SUMIFS('CPU DESONERADO'!$H:$H,'CPU DESONERADO'!$B:$B,'Planilha Orçamentária Desoner'!$A88,'CPU DESONERADO'!$I:$I,"mdo")+SUMIF('Comp SINAPI AL 03-2023 Desoner'!G:G,'Planilha Orçamentária Desoner'!C88,'Comp SINAPI AL 03-2023 Desoner'!K:K) -> 199.31 | H88: 263.946233 | I88: 527.892466 | J88: serv | K88: i
A89: 6.2.14 | B89: PRÓPRIA | C89: CPU.30 | D89: Tomada 2p + t, ABNT, de sobrepor, 20A, sistema X Tomada 2p + t, ABNT, de sobrepor, 20 A, sistema X (Adaptado ORSE 12156) | E89: un | F89: 3 | G89: =SUMIFS('CPU DESONERADO'!$H:$H,'CPU DESONERADO'!$B:$B,'Planilha Orçamentária Desoner'!$A89,'CPU DESONERADO'!$I:$I,"ss")+SUMIFS('CPU DESONERADO'!$H:$H,'CPU DESONERADO'!$B:$B,'Planilha Orçamentária Desoner'!$A89,'CPU DESONERADO'!$I:$I,"mdo")+SUMIF('Comp SINAPI AL 03-2023 Desoner'!G:G,'Planilha Orçamentária Desoner'!C89,'Comp SINAPI AL 03-2023 Desoner'!K:K) -> 38.83 | H89: 51.422569 | I89: 154.267707 | J89: serv | K89: i
A90: 6.2.15 | B90: SINAPI | C90: 91961 | D90: =PROPER(IF(J90="i",VLOOKUP(C90,'Ins SINAPI AL 03-2023 Onerado'!$A$8:$E$5189,2,0),VLOOKUP(C90,'Comp SINAPI AL 03-2023 Onerado'!$G$7:$K$6879,2,0))) -> Interruptor Paralelo (2 Módulos), 10A/250V, Incluindo Suporte E Placa - Fornecimento E Instalação. Af_03/2023 | E90: =LOWER(IF(J90="i",VLOOKUP(C90,'Ins SINAPI AL 03-2023 Onerado'!$A$8:$E$5189,3,0),VLOOKUP(C90,'Comp SINAPI AL 03-2023 Onerado'!$G$7:$K$6879,3,0))) -> un | F90: 1 | G90: =SUMIFS('CPU DESONERADO'!$H:$H,'CPU DESONERADO'!$B:$B,'Planilha Orçamentária Desoner'!$A90,'CPU DESONERADO'!$I:$I,"ss")+SUMIFS('CPU DESONERADO'!$H:$H,'CPU DESONERADO'!$B:$B,'Planilha Orçamentária Desoner'!$A90,'CPU DESONERADO'!$I:$I,"mdo")+SUMIF('Comp SINAPI AL 03-2023 Desoner'!G:G,'Planilha Orçamentária Desoner'!C90,'Comp SINAPI AL 03-2023 Desoner'!K:K) -> 54.45 | H90: 72.108135 | I90: 72.108135 | J90: serv | K90: i
A91: 6.2.16 | B91: SINAPI | C91: 97585 | D91: =PROPER(IF(J91="i",VLOOKUP(C91,'Ins SINAPI AL 03-2023 Onerado'!$A$8:$E$5189,2,0),VLOOKUP(C91,'Comp SINAPI AL 03-2023 Onerado'!$G$7:$K$6879,2,0))) -> Luminária Tipo Calha, De Sobrepor, Com 2 Lâmpadas Tubulares Fluorescentes De 18 W, Com Reator De Partida Rápida - Fornecimento E Instalação. Af_02/2020 | E91: =LOWER(IF(J91="i",VLOOKUP(C91,'Ins SINAPI AL 03-2023 Onerado'!$A$8:$E$5189,3,0),VLOOKUP(C91,'Comp SINAPI AL 03-2023 Onerado'!$G$7:$K$6879,3,0))) -> un | F91: 2 | G91: =SUMIFS('CPU DESONERADO'!$H:$H,'CPU DESONERADO'!$B:$B,'Planilha Orçamentária Desoner'!$A91,'CPU DESONERADO'!$I:$I,"ss")+SUMIFS('CPU DESONERADO'!$H:$H,'CPU DESONERADO'!$B:$B,'Planilha Orçamentária Desoner'!$A91,'CPU DESONERADO'!$I:$I,"mdo")+SUMIF('Comp SINAPI AL 03-2023 Desoner'!G:G,'Planilha Orçamentária Desoner'!C91,'Comp SINAPI AL 03-2023 Desoner'!K:K) -> 110.27 | H91: 146.030561 | I91: 292.061122 | J91: serv | K91: i
A92: 6.2.17 | B92: SINAPI | C92: 98111 | D92: =PROPER(IF(J92="i",VLOOKUP(C92,'Ins SINAPI AL 03-2023 Onerado'!$A$8:$E$5189,2,0),VLOOKUP(C92,'Comp SINAPI AL 03-2023 Onerado'!$G$7:$K$6879,2,0))) -> Caixa De Inspeção Para Aterramento, Circular, Em Polietileno, Diâmetro Interno = 0,3 M. Af_12/2020 | E92: =LOWER(IF(J92="i",VLOOKUP(C92,'Ins SINAPI AL 03-2023 Onerado'!$A$8:$E$5189,3,0),VLOOKUP(C92,'Comp SINAPI AL 03-2023 Onerado'!$G$7:$K$6879,3,0))) -> un | F92: 5 | G92: =SUMIFS('CPU DESONERADO'!$H:$H,'CPU DESONERADO'!$B:$B,'Planilha Orçamentária Desoner'!$A92,'CPU DESONERADO'!$I:$I,"ss")+SUMIFS('CPU DESONERADO'!$H:$H,'CPU DESONERADO'!$B:$B,'Planilha Orçamentária Desoner'!$A92,'CPU DESONERADO'!$I:$I,"mdo")+SUMIF('Comp SINAPI AL 03-2023 Desoner'!G:G,'Planilha Orçamentária Desoner'!C92,'Comp SINAPI AL 03-2023 Desoner'!K:K) -> 44.79 | H92: 59.315397 | I92: 296.576985 | J92: serv | K92: i
A93: 6.2.18 | B93: SINAPI | C93: 96985 | D93: =PROPER(IF(J93="i",VLOOKUP(C93,'Ins SINAPI AL 03-2023 Onerado'!$A$8:$E$5189,2,0),VLOOKUP(C93,'Comp SINAPI AL 03-2023 Onerado'!$G$7:$K$6879,2,0))) -> Haste De Aterramento 5/8 Para Spda - Fornecimento E Instalação. Af_12/2017 | E93: =LOWER(IF(J93="i",VLOOKUP(C93,'Ins SINAPI AL 03-2023 Onerado'!$A$8:$E$5189,3,0),VLOOKUP(C93,'Comp SINAPI AL 03-2023 Onerado'!$G$7:$K$6879,3,0))) -> un | F93: 5 | G93: =SUMIFS('CPU DESONERADO'!$H:$H,'CPU DESONERADO'!$B:$B,'Planilha Orçamentária Desoner'!$A93,'CPU DESONERADO'!$I:$I,"ss")+SUMIFS('CPU DESONERADO'!$H:$H,'CPU DESONERADO'!$B:$B,'Planilha Orçamentária Desoner'!$A93,'CPU DESONERADO'!$I:$I,"mdo")+SUMIF('Comp SINAPI AL 03-2023 Desoner'!G:G,'Planilha Orçamentária Desoner'!C93,'Comp SINAPI AL 03-2023 Desoner'!K:K) -> 68.62 | H93: 90.873466 | I93: 454.36733 | J93: serv | K93: i
A94: 6.2.19 | B94: SINAPI | C94: 93358 | D94: =PROPER(IF(J94="i",VLOOKUP(C94,'Ins SINAPI AL 03-2023 Onerado'!$A$8:$E$5189,2,0),VLOOKUP(C94,'Comp SINAPI AL 03-2023 Onerado'!$G$7:$K$6879,2,0))) -> Escavação Manual De Vala Com Profundidade Menor Ou Igual A 1,30 M. Af_02/2021 | E94: =LOWER(IF(J94="i",VLOOKUP(C94,'Ins SINAPI AL 03-2023 Onerado'!$A$8:$E$5189,3,0),VLOOKUP(C94,'Comp SINAPI AL 03-2023 Onerado'!$G$7:$K$6879,3,0))) -> m3 | F94: 5.176714587 | G94: =SUMIFS('CPU DESONERADO'!$H:$H,'CPU DESONERADO'!$B:$B,'Planilha Orçamentária Desoner'!$A94,'CPU DESONERADO'!$I:$I,"ss")+SUMIFS('CPU DESONERADO'!$H:$H,'CPU DESONERADO'!$B:$B,'Planilha Orçamentária Desoner'!$A94,'CPU DESONERADO'!$I:$I,"mdo")+SUMIF('Comp SINAPI AL 03-2023 Desoner'!G:G,'Planilha Orçamentária Desoner'!C94,'Comp SINAPI AL 03-2023 Desoner'!K:K) -> 64.75 | H94: 85.748425 | I94: 443.8951225 | J94: serv | K94: i
A95: 6.2.20 | B95: SINAPI | C95: 96995 | D95: =PROPER(IF(J95="i",VLOOKUP(C95,'Ins SINAPI AL 03-2023 Onerado'!$A$8:$E$5189,2,0),VLOOKUP(C95,'Comp SINAPI AL 03-2023 Onerado'!$G$7:$K$6879,2,0))) -> Reaterro Manual Apiloado Com Soquete. Af_10/2017 | E95: =LOWER(IF(J95="i",VLOOKUP(C95,'Ins SINAPI AL 03-2023 Onerado'!$A$8:$E$5189,3,0),VLOOKUP(C95,'Comp SINAPI AL 03-2023 Onerado'!$G$7:$K$6879,3,0))) -> m3 | F95: 5.555555556 | G95: =SUMIFS('CPU DESONERADO'!$H:$H,'CPU DESONERADO'!$B:$B,'Planilha Orçamentária Desoner'!$A95,'CPU DESONERADO'!$I:$I,"ss")+SUMIFS('CPU DESONERADO'!$H:$H,'CPU DESONERADO'!$B:$B,'Planilha Orçamentária Desoner'!$A95,'CPU DESONERADO'!$I:$I,"mdo")+SUMIF('Comp SINAPI AL 03-2023 Desoner'!G:G,'Planilha Orçamentária Desoner'!C95,'Comp SINAPI AL 03-2023 Desoner'!K:K) -> 39.26 | H95: 51.992018 | I95: 288.8445444 | J95: serv | K95: i
A96: 6.2.21 | B96: PRÓPRIA | C96: CPU.31 | D96: Aterro manual de áreas, sem aquisição de material, com espalhamento e compactação (Adaptado ORSE 71) | E96: m³ | F96: 0.6944444444 | G96: =SUMIFS('CPU DESONERADO'!$H:$H,'CPU DESONERADO'!$B:$B,'Planilha Orçamentária Desoner'!$A96,'CPU DESONERADO'!$I:$I,"ss")+SUMIFS('CPU DESONERADO'!$H:$H,'CPU DESONERADO'!$B:$B,'Planilha Orçamentária Desoner'!$A96,'CPU DESONERADO'!$I:$I,"mdo")+SUMIF('Comp SINAPI AL 03-2023 Desoner'!G:G,'Planilha Orçamentária Desoner'!C96,'Comp SINAPI AL 03-2023 Desoner'!K:K) -> 49.11 | H96: 65.036373 | I96: 45.16414792 | J96: serv | K96: i
A98: 7 | D98: SERVIÇOS COMPLEMENTARES | I98: =SUM(I99:I105) -> 107300.4937 | K98: ss
A99: 7.1 | B99: PRÓPRIA | C99: CPU.38 | D99: Adequação e manutenção de equipamentos hidromecânicos existêntes. | E99: un | F99: 1 | G99: =SUMIFS('CPU DESONERADO'!$H:$H,'CPU DESONERADO'!$B:$B,'Planilha Orçamentária Desoner'!$A99,'CPU DESONERADO'!$I:$I,"ss")+SUMIFS('CPU DESONERADO'!$H:$H,'CPU DESONERADO'!$B:$B,'Planilha Orçamentária Desoner'!$A99,'CPU DESONERADO'!$I:$I,"mdo")+SUMIF('Comp SINAPI AL 03-2023 Desoner'!G:G,'Planilha Orçamentária Desoner'!C99,'Comp SINAPI AL 03-2023 Desoner'!K:K) -> 1236.33 | H99: =IF(J99="SERV",G99*(1+$H$5),G99*(1+$H$6)) -> 1637.271819 | I99: =IF(J99="SERV",G99*F99*(1+$H$5),G99*F99*(1+$H$6)) -> 1637.271819 | J99: serv
A100: 7.2 | B100: PRÓPRIA | C100: CPU.32 | D100: Realização de teste de comissionamento da comporta segmento - verificação das peças fixas. | E100: un | F100: 1 | G100: =SUMIFS('CPU DESONERADO'!$H:$H,'CPU DESONERADO'!$B:$B,'Planilha Orçamentária Desoner'!$A100,'CPU DESONERADO'!$I:$I,"ss")+SUMIFS('CPU DESONERADO'!$H:$H,'CPU DESONERADO'!$B:$B,'Planilha Orçamentária Desoner'!$A100,'CPU DESONERADO'!$I:$I,"mdo")+SUMIF('Comp SINAPI AL 03-2023 Desoner'!G:G,'Planilha Orçamentária Desoner'!C100,'Comp SINAPI AL 03-2023 Desoner'!K:K) -> 258.72 | H100: 342.622896 | I100: 342.622896 | J100: serv | K100: i
A101: 7.3 | B101: PRÓPRIA | C101: CPU.33 | D101: Realização de teste de comissionamento da comporta segmento - operação em seco. Verificação dos cilindros, parte hidraulica e eletrica, funcionalidade dos comandos com atuação eletrica e manual. | E101: un | F101: 1 | G101: =SUMIFS('CPU DESONERADO'!$H:$H,'CPU DESONERADO'!$B:$B,'Planilha Orçamentária Desoner'!$A101,'CPU DESONERADO'!$I:$I,"ss")+SUMIFS('CPU DESONERADO'!$H:$H,'CPU DESONERADO'!$B:$B,'Planilha Orçamentária Desoner'!$A101,'CPU DESONERADO'!$I:$I,"mdo")+SUMIF('Comp SINAPI AL 03-2023 Desoner'!G:G,'Planilha Orçamentária Desoner'!C101,'Comp SINAPI AL 03-2023 Desoner'!K:K) -> 459.04 | H101: 607.906672 | I101: 607.906672 | J101: serv | K101: i
A102: 7.4 | B102: PRÓPRIA | C102: CPU.34 | D102: Realização de teste de comissionamento da comporta segmento - operação em carga. Verificação dos cilindros, parte hidraulica e eletrica, funcionalidade dos comandos com atuação eletrica e manual. Teste hidrostatico da comporta. | E102: un | F102: 1 | G102: =SUMIFS('CPU DESONERADO'!$H:$H,'CPU DESONERADO'!$B:$B,'Planilha Orçamentária Desoner'!$A102,'CPU DESONERADO'!$I:$I,"ss")+SUMIFS('CPU DESONERADO'!$H:$H,'CPU DESONERADO'!$B:$B,'Planilha Orçamentária Desoner'!$A102,'CPU DESONERADO'!$I:$I,"mdo")+SUMIF('Comp SINAPI AL 03-2023 Desoner'!G:G,'Planilha Orçamentária Desoner'!C102,'Comp SINAPI AL 03-2023 Desoner'!K:K) -> 918.08 | H102: 1215.813344 | I102: 1215.813344 | J102: serv | K102: i
A103: 7.5 | B103: PRÓPRIA | C103: CPU.35 | D103: Limpeza final da obra (Adaptado SINAPI 9537) | E103: m² | F103: 57 | G103: =SUMIFS('CPU DESONERADO'!$H:$H,'CPU DESONERADO'!$B:$B,'Planilha Orçamentária Desoner'!$A103,'CPU DESONERADO'!$I:$I,"ss")+SUMIFS('CPU DESONERADO'!$H:$H,'CPU DESONERADO'!$B:$B,'Planilha Orçamentária Desoner'!$A103,'CPU DESONERADO'!$I:$I,"mdo")+SUMIF('Comp SINAPI AL 03-2023 Desoner'!G:G,'Planilha Orçamentária Desoner'!C103,'Comp SINAPI AL 03-2023 Desoner'!K:K) -> 2.29 | H103: 3.032647 | I103: 172.860879 | J103: serv | K103: i
A104: 7.6 | B104: PRÓPRIA | C104: CPU.36 | D104: Elaboração de projeto as built | E104: un | F104: 1 | G104: =SUMIFS('CPU DESONERADO'!$H:$H,'CPU DESONERADO'!$B:$B,'Planilha Orçamentária Desoner'!$A104,'CPU DESONERADO'!$I:$I,"ss")+SUMIFS('CPU DESONERADO'!$H:$H,'CPU DESONERADO'!$B:$B,'Planilha Orçamentária Desoner'!$A104,'CPU DESONERADO'!$I:$I,"mdo")+SUMIF('Comp SINAPI AL 03-2023 Desoner'!G:G,'Planilha Orçamentária Desoner'!C104,'Comp SINAPI AL 03-2023 Desoner'!K:K) -> 353.2 | H104: 467.74276 | I104: 467.74276 | J104: serv | K104: i
A105: 7.7 | B105: PRÓPRIA | C105: CPU.37 | D105: Desmobilização | E105: un | F105: 1 | G105: 77668.41 | H105: 102856.2754 | I105: 102856.2754 | J105: serv | K105: i
D106: TOTAL Sem BDI: | I106: =SUMPRODUCT(F11:F105,G11:G105) -> 951887.2317
D107: BDI: | I107: =I106*H5 -> 308697.0293
D108: TOTAL COM BDI: | I108: =SUM(I106:I107) -> 1260584.261 | J108: =SUMIF(K11:K105,"SS",I11:I105) -> 710494.726
H173: =SUM(H174:H177) -> 0
D177: mec | F177: 2 | G177: 128

Sheet MEM SERV (hidden)
A1: Ministério do desenvolvimento Regional
A2: Companhia de desenvolvimento dos Vales do São Francisco e do Parnaíba
A4: MEMÓRIA DE CÁLCULO - SERVIÇOS
A5: ITEM | B5: DESCRIÇÃO | C5: UN | D5: QTDE | E5: COMP (m) | F5: LARG (m) | G5: ALT (m) | H5: TOTAL
A6: 1.1 | B6: Administração local | C6: mês | H6: =SUM(H7) -> 6 | N6: FORMÚLAS DE TOTAL
B7: Duração da obra (Conforme cronograma fisico-financeiro e cronograma detalhado considerando a dependência das atividades) | C7: mês | D7: 6 | H7: =IF(C7="MÊS",D7,IF(C7="UN",D7,IF(C7="M",D7))) -> 6 | N7: UNIDADE | O7: FÓRMULA
N8: un, mês, m | O8: =IF($C7="MÊS",$D7,IF($C7="UN",$D7,IF($C7="M",$D7))) -> 6
A10: ITEM | B10: DESCRIÇÃO | C10: UN | D10: QTDE | E10: COMP (m) | F10: LARG (m) | G10: ALT (m) | H10: TOTAL | N10: m² | O10: =IF($C16="m²",$D16*$E16*$F16) -> FALSE
A11: 1.2 | B11: ART Principal | C11: un | H11: =SUM(H12) -> 1 | N11: m³ | O11: =IF(#REF!="m³",#REF!*#REF!*#REF!*#REF!) -> 
B12: Eng. Civil (residente) | C12: un | D12: 1 | H12: =IF(C12="un",D12,ROUND(D12*E12*F12*G12,2)) -> 1 | N12: m³ x km | O12: =IF(#REF!="m³xkm",#REF!*#REF!*#REF!*#REF!) -> 
A14: ITEM | B14: DESCRIÇÃO | C14: UN | D14: QTDE | E14: COMP (m) | F14: LARG (m) | G14: ALT (m) | H14: TOTAL
A15: 1.3 | B15: ART Corresponsável (Equipe) | C15: un | H15: =SUM(H16:H18) -> 3
B16: Eng. Eletricista | C16: un | D16: 1 | H16: =IF(C16="un",D16,ROUND(D16*E16*F16*G16,2)) -> 1
B17: Eng. Mecânico | C17: un | D17: 1 | H17: =IF(C17="un",D17,ROUND(D17*E17*F17*G17,2)) -> 1
B18: Técnico eng. Mecânica | C18: un | D18: 1 | H18: =IF(C18="un",D18,ROUND(D18*E18*F18*G18,2)) -> 1
A20: ITEM | B20: DESCRIÇÃO | C20: UN | D20: QTDE | E20: COMP (m) | F20: LARG (m) | G20: ALT (m) | H20: TOTAL
A21: 2.1.1 | B21: Limpeza | C21: m² | H21: =SUM(H22:H23) -> 57
B22: Limpeza da camada vegetal (soma da área das instalações do canteiro) | C22: m² | H22: =(SUM(H24:H39)/2)+(SUM(H41:H49)/2) -> 57
A24: ITEM | B24: DESCRIÇÃO | C24: UN | D24: QTDE | E24: COMP (m) | F24: LARG (m) | G24: ALT (m) | H24: TOTAL
A25: 2.1.2 | B25: Escritórios | C25: m² | H25: =SUM(H26:H26) -> 20
B26: Equipe residente / fiscalização | C26: m² | D26: 1 | E26: 4 | F26: 5 | H26: =IF($C26="m²",$D26*$E26*$F26) -> 20
A28: ITEM | B28: DESCRIÇÃO | C28: UN | D28: QTDE | E28: COMP (m) | F28: LARG (m) | G28: ALT (m) | H28: TOTAL
A29: 2.1.3 | B29: Almoxarifado | C29: m² | H29: =SUM(H30:H30) -> 7.5
B30: Ferramentaria / Almoxarifado / Depósito | C30: m² | D30: 1 | E30: 2.5 | F30: 3 | H30: =IF($C30="m²",$D30*$E30*$F30) -> 7.5
A32: ITEM | B32: DESCRIÇÃO | C32: UN | D32: QTDE | E32: COMP (m) | F32: LARG (m) | G32: ALT (m) | H32: TOTAL
A33: 2.1.4 | B33: Baia agregados | C33: un | H33: =SUM(H34:H34) -> 1
B34: Baia | C34: un | D34: 1 | H34: =IF(C34="un",D34,ROUND(D34*E34*F34*G34,2)) -> 1
A36: ITEM | B36: DESCRIÇÃO | C36: UN | D36: QTDE | E36: COMP (m) | F36: LARG (m) | G36: ALT (m) | H36: TOTAL
A37: 2.1.5 | B37: Central de produção | C37: m² | H37: =SUM(H38:H39) -> 12
B38: Forma | C38: m² | D38: 1 | E38: 2 | F38: 3 | H38: =IF($C38="m²",$D38*$E38*$F38) -> 6
B39: Concreto | C39: m² | D39: 1 | E39: 2 | F39: 3 | H39: =IF($C39="m²",$D39*$E39*$F39) -> 6
A41: ITEM | B41: DESCRIÇÃO | C41: UN | D41: QTDE | E41: COMP (m) | F41: LARG (m) | G41: ALT (m) | H41: TOTAL
A42: 2.1.6 | B42: Refeitório | C42: m² | H42: =SUM(H43:H43) -> 7.5
B43: Refeitório | C43: m² | D43: 1 | E43: 3 | F43: 2.5 | H43: =IF($C43="m²",$D43*$E43*$F43) -> 7.5
A45: ITEM | B45: DESCRIÇÃO | C45: UN | D45: QTDE | E45: COMP (m) | F45: LARG (m) | G45: ALT (m) | H45: TOTAL
A46: 2.1.7 | B46: Sanitários e vestiários | C46: m² | H46: =SUM(H47:H48) -> 9
B47: Vestiário | C47: m² | D47: 2 | E47: 1.5 | F47: 1.5 | H47: =IF($C47="m²",$D47*$E47*$F47) -> 4.5
B48: Sanitários (NR 18, área mínima de 1m²) | C48: m² | D48: 2 | E48: 1.5 | F48: 1.5 | H48: =IF($C48="m²",$D48*$E48*$F48) -> 4.5
A50: ITEM | B50: DESCRIÇÃO | C50: UN | D50: QTDE | E50: COMP (m) | F50: LARG (m) | G50: ALT (m) | H50: TOTAL
A51: 2.1.8 | B51: Concreto base | C51: m³ | H51: =SUM(H52:H53) -> 3.99
B52: Concreto magro (7 cm) | C52: m³ | G52: 0.07 | H52: =H21*G52 -> 3.99
A54: ITEM | B54: DESCRIÇÃO | C54: UN | D54: QTDE | E54: COMP (m) | F54: LARG (m) | G54: ALT (m) | H54: TOTAL
A55: 2.2.1 | B55: Placa de obra | C55: m² | H55: =SUM(H56:H56) -> 2
B56: Placa | C56: m² | D56: 1 | E56: 2 | F56: 1 | H56: =IF($C56="m²",$D56*$E56*$F56) -> 2
A59: ITEM | B59: DESCRIÇÃO | C59: UN | D59: QTDE | E59: COMP (m) | F59: LARG (m) | G59: ALT (m) | H59: TOTAL
B60: Projeto ensecadeira | C60: un
A61: 2.3.1 | B61: Levantamento topobatimétrico (próximo às margens) | C61: dia | D61: 3 | H61: =IF(C61="dia",D61,ROUND(D61*E61*F61*G61,2)) -> 3
A62: 2.3.2 | B62: Levantamento topobatimétrico (distante das margens) | C62: dia | D62: 2 | H62: =IF(C62="dia",D62,ROUND(D62*E62*F62*G62,2)) -> 2
A63: 2.3.3 | B63: Projeto executivo | C63: un | D63: 1 | H63: =IF(C63="un",D63,ROUND(D63*E63*F63*G63,2)) -> 1
A66: ITEM | B66: DESCRIÇÃO | C66: UN | D66: QTDE | E66: COMP (m) | F66: LARG (m) | G66: ALT (m) | H66: TOTAL
A67: 3.1.1 | B67: Mobilização e desmobilização da Equipe, Camara Hiperbarica e todos os equipamentos de mergulho envolvidos na operação | C67: un | D67: 1 | H67: 1
A70: 5 | B70: COMPORTA SEGMENTO
A73: ITEM | B73: DESCRIÇÃO | C73: UN | D73: QTDE | H73: QTDE
A74: 5.1 | B74: Desmontagem da comporta | C74: kg | H74: =SUM(H75:H76) -> 31
B75: eletrodo | C75: kg | D75: 15 | H75: =D75 -> 15
B76: acetileno | C76: kg | D76: 16 | H76: =D76 -> 16
A77: ITEM | B77: DESCRIÇÃO | C77: UN | D77: QTDE | E77: DIAS | F77: H/DIA | H77: QTDE
A78: 5.1 | B78: Desmontagem da comporta | C78: h | H78: =SUM(H79:H80) -> 192
B79: solda | C79: h | D79: 2 | E79: 8 | F79: 6 | H79: =D79*E79*F79 -> 96
B80: lixadeira | C80: h | D80: 2 | E80: 8 | F80: 6 | H80: =D80*E80*F80 -> 96
B81: locação andaime | C81: m | D81: 12 | E81: 30 | H81: =D81*E81/30 -> 12
B82: guindaste ou munck | C82: h | E82: 2 | F82: 12 | H82: =E82*F82 -> 24
A83: ITEM | B83: DESCRIÇÃO | C83: UN | D83: QTDE | E83: DIAS | F83: H/DIA | H83: QTDE
A84: 5.1 | B84: Desmontagem da comporta | C84: h | H84: =SUM(H85:H87) -> 272
B85: supervisor mecanico | C85: h | D85: 1 | E85: 2 | F85: 8 | H85: =D85*E85*F85 -> 16
B86: maçariqueiro | C86: h | D86: 2 | E86: 4 | F86: 8 | H86: =D86*E86*F86 -> 64
B87: ajudante | C87: h | D87: 3 | E87: 8 | F87: 8 | H87: =D87*E87*F87 -> 192
A90: ITEM | B90: DESCRIÇÃO | C90: UN | D90: QTDE | E90: COMP (m) | F90: LARG (m) | G90: ALT (m) | H90: QTDE
A91: 5.2 | B91: Demolição ranhuras | C91: m³ | H91: =SUM(H92:H94) -> 2.58 | J91: =ROUNDUP(H91*1000/18*2,0) -> 287 | K91: latas 18 L
B92: medida ranhura lateral | C92: m³ | D92: 4 | E92: 0.3 | F92: 0.6 | G92: 2.3 | H92: =IF($C92="m³",$D92*$E92*$F92*$G92) -> 1.656
B93: medida ranhura frontal | C93: m³ | D93: 2 | E93: 0.25 | F93: 0.4 | G93: 1.65 | H93: =IF($C93="m³",$D93*$E93*$F93*$G93) -> 0.33
B94: medida ranhura soleira | C94: m³ | D94: 2 | E94: 0.3 | F94: 0.6 | G94: 1.65 | H94: =IF($C94="m³",$D94*$E94*$F94*$G94) -> 0.594
A95: ITEM | B95: DESCRIÇÃO | C95: UN | D95: QTDE | E95: MASSA (ton) | H95: QTDE
A96: 5.2 | B96: Demolição ranhuras | C96: ton | H96: =SUM(H97:H97) -> 0.7
B97: peso peça fixa existente | C97: ton | D97: 2 | E97: 0.35 | H97: =D97*E97 -> 0.7 | J97: =H97*0.8 -> 0.56 | K97: m³
A98: ITEM | B98: DESCRIÇÃO | C98: UN | D98: QTDE | E98: DIAS | F98: H/DIA | H98: QTDE
A99: 5.2 | B99: Demolição ranhuras | C99: h | H99: =SUM(H100:H102) -> 606
B100: rompedor | C100: h | D100: 2 | E100: 12 | F100: 8 | H100: =D100*E100*F100 -> 192
B101: auxiliar | C101: h | D101: 4 | E101: 12 | F101: 8 | H101: =D101*E101*F101 -> 384
B102: maçariqueiro | C102: h | D102: 1 | E102: 5 | F102: 6 | H102: =D102*E102*F102 -> 30
A104: ITEM | B104: DESCRIÇÃO | C104: UN | D104: QTDE | E104: espessura | F104: a | G104: b | H104: QTDE
A105: 5.3 | B105: Preparação das ranhuras | C105: L | H105: =SUM(H106:H106) -> 90
B106: aplicação massa | C106: l | D106: 100 | E106: =2/100 -> 0.02 | F106: 0.15 | G106: 0.3 | H106: =D106*E106*F106*G106*1000 -> 90
A107: ITEM | B107: DESCRIÇÃO | C107: UN | D107: QTDE | E107: DIAS | F107: H/DIA | H107: QTDE
A108: 5.3 | B108: Preparação das ranhuras | C108: h | H108: =SUM(H109:H109) -> 64
B109: auxiliar | C109: h | D109: 2 | E109: 4 | F109: 8 | H109: =D109*E109*F109 -> 64
A112: ITEM | B112: DESCRIÇÃO | C112: UN | D112: QTDE | H112: QTDE
A113: 5.4 | B113: Montagem das peças fixas | C113: kg | H113: =SUM(H114:H115) -> 40
B114: eletrodo | C114: kg | D114: 30 | H114: =D114 -> 30
B115: acetileno | C115: kg | D115: 10 | H115: =D115 -> 10
A116: ITEM | B116: DESCRIÇÃO | C116: UN | D116: QTDE | E116: DIAS | F116: H/DIA | H116: QTDE
A117: 5.4 | B117: Montagem das peças fixas | C117: h | H117: =SUM(H118:H119) -> 120
B118: solda | C118: h | D118: 2 | E118: 6 | F118: 6 | H118: =D118*E118*F118 -> 72
B119: lixadeira | C119: h | D119: 2 | E119: 4 | F119: 6 | H119: =D119*E119*F119 -> 48
B120: locação andaime | C120: m | D120: 12 | E120: 30 | H120: =D120*E120/30 -> 12
B121: guindaste ou munck | C121: h | E121: 2 | F121: 12 | H121: =E121*F121 -> 24
A122: ITEM | B122: DESCRIÇÃO | C122: UN | D122: QTDE | E122: DIAS | F122: H/DIA | H122: QTDE
A123: 5.4 | B123: Montagem das peças fixas | C123: h | H123: =SUM(H124:H127) -> 784
B124: supervisor mecanico | C124: h | D124: 1 | E124: 8 | F124: 6 | H124: =D124*E124*F124 -> 48
B125: montador mecanico | C125: h | D125: 4 | E125: 10 | F125: 8 | H125: =D125*E125*F125 -> 320
B126: soldador | C126: h | D126: 2 | E126: 8 | F126: 6 | H126: =D126*E126*F126 -> 96
B127: ajudante | C127: h | D127: 4 | E127: 10 | F127: 8 | H127: =D127*E127*F127 -> 320
A129: ITEM | B129: DESCRIÇÃO | C129: UN | D129: QTDE | E129: COMP (m) | F129: LARG (m) | G129: ALT (m) | H129: QTDE
A130: 5.5 | B130: Concretagem das peças fixas | C130: m² | H130: =SUM(H131:H133) -> 8.82
B131: medida ranhura lateral | C131: m² | D131: 4 | F131: 0.6 | G131: 2.3 | H131: =G131*F131*D131 -> 5.52
B132: medida ranhura frontal | C132: m² | D132: 2 | F132: 0.4 | G132: 1.65 | H132: =G132*F132*D132 -> 1.32
B133: medida ranhura soleira | C133: m² | D133: 2 | F133: 0.6 | G133: 1.65 | H133: =G133*F133*D133 -> 1.98
A134: ITEM | B134: DESCRIÇÃO | C134: UN | D134: QTDE | E134: DIAS | F134: H/DIA | H134: QTDE | J134: bomba | K134: 12 | L134: h
A135: 5.5 | B135: Concretagem das peças fixas | C135: h | H135: =SUM(H136:H137) -> 80 | J135: prego | K135: 2 | L135: kg
B136: operador cam. betoneira | C136: h | D136: 1 | E136: 2 | F136: 8 | H136: =D136*E136*F136 -> 16 | J136: pontalete | K136: 12 | L136: m
B137: ajud. Pedreiro | C137: h | D137: 4 | E137: 2 | F137: 8 | H137: =D137*E137*F137 -> 64 | J137: sarrafo | K137: 7 | L137: m
A140: ITEM | B140: DESCRIÇÃO | C140: UN | D140: QTDE | E140: COMP (m) | F140: LARG (m) | G140: ALT (m) | H140: QTDE
A141: 5.6 | B141: Retirada de formas das peças fixas | C141: m² | H141: =SUM(H142:H144) -> 8.82
B142: medida ranhura lateral | C142: m² | D142: 4 | F142: 0.6 | G142: 2.3 | H142: =G142*F142*D142 -> 5.52
B143: medida ranhura frontal | C143: m² | D143: 2 | F143: 0.4 | G143: 1.65 | H143: =G143*F143*D143 -> 1.32
B144: medida ranhura soleira | C144: m² | D144: 2 | F144: 0.6 | G144: 1.65 | H144: =G144*F144*D144 -> 1.98
A145: ITEM | B145: DESCRIÇÃO | C145: UN | D145: QTDE | E145: DIAS | F145: H/DIA | H145: QTDE
A146: 5.6 | B146: Retirada de formas das peças fixas | L146: ida/volta
B147: peso peça fixa existente | C147: ton | D147: 2 | E147: 1.7 | H147: =D147*E147 -> 3.4 | J147: 0.56 | K147: m³ | L147: 2 | M147: 30 | N147: km
B148: ajud. Pedreiro | C148: h | D148: 4 | E148: 2 | F148: 8 | H148: =D148*E148*F148 -> 64
A151: ITEM | B151: DESCRIÇÃO | C151: UN | D151: QTDE | E151: COMP (m) | F151: LARG (m) | G151: ALT (m) | H151: QTDE
A152: 5.7 | B152: Demolição casa comando | C152: m³ | H152: =SUM(H153:H155) -> 12.12
B153: parede | C153: m³ | D153: 2 | E153: 5.4 | F153: 0.2 | G153: 3 | H153: =IF($C153="m³",$D153*$E153*$F153*$G153) -> 6.48
B154: parede | C154: m³ | D154: 2 | E154: 3 | F154: 0.2 | G154: 3.2 | H154: =IF($C154="m³",$D154*$E154*$F154*$G154) -> 3.84
B155: parede | C155: m³ | D155: 1 | E155: 3 | F155: 0.2 | G155: 3 | H155: =IF($C155="m³",$D155*$E155*$F155*$G155) -> 1.8
A156: ITEM | B156: DESCRIÇÃO | C156: UN | D156: QTDE | E156: DIAS | F156: H/DIA | H156: QTDE
A157: 5.7 | B157: Retirada de formas das peças fixas
B158: peso peça fixa existente | C158: ton | D158: 2 | E158: 1.7 | H158: =D158*E158 -> 3.4 | J158: 0.56 | K158: m³
B159: ajud. Pedreiro | C159: h | D159: 4 | E159: 3 | F159: 8 | H159: =D159*E159*F159 -> 96
A162: ITEM | B162: DESCRIÇÃO | C162: UN | D162: QTDE | E162: COMP (m) | F162: LARG (m) | G162: ALT (m) | H162: QTDE
A163: 5.8 | B163: Construção da casa de comando
B165: Escavação manual de base | C165: m3 | D165: 5.5
B166: Colocação de brita numero 1 | C166: m3 | D166: 1.3
B167: execução de base em concreto desempenado e nivelado | C167: m3 | D167: 5.48
B168: Assentamento de alvenaria em blocos de concreto 14x19x39 | C168: m2 | D168: 44.7
B169: execução de laje de concreto h=15 | C169: m3 | D169: 2.37
B170: formas para laje em concreto | C170: m2 | D170: 16
B171: escoramento em pontaletes 10 cm x 3 m para laje | C171: m2 | D171: 6
B172: Assentamento de porta em chapa de aço100x210 com tranca e cadeado | C172: Un | D172: 1
B173: Assentamento de esquadria em aço 60x100 com vidro | C173: m2 | D173: 1.6
B174: Execução de telhado em madeira e telha de fibrocimento | C174: m2 | D174: 23.4
B175: Emboço e reboco interno e externo alvenaria | C175: m2 | D175: 89.4
B176: Pintura interna e externa em latex | C176: m2 | D176: 89.4
B179: Brita numero 1 | C179: m3 | D179: 1.3
B180: Base em concreto armado fck 20 MPa | C180: m3 | D180: 5.48
B181: Alvenaria em blocos de concreto 14x19x39 | C181: m2 | D181: 44.7
B182: Laje em concreto armado fck 20 MPa h=15 | C182: m3 | D182: 2.37
B183: Porta em chapa de aço 100x210 com tranca e cadeado | C183: Un | D183: 1
B184: Esquadria em aço tipo dobradiça 40x100 | C184: Un | D184: 4
B185: Tela soldada para piso e laje 2,45 x 6 m, malha 15x15 aço CA60 | C185: Un | D185: 50.02
B186: Vigas de madeira 6x12 | C186: m | D186: 18
B187: Telha fibrocimento comp = 2440 mm espessura 6 mm | C187: m2 | D187: 25
B188: Tinta Latex | C188: Lt | D188: 3
B191: M obra | E191: dias | F191: h/dia | H191: total
B192: pedreiro | D192: 2 | E192: 20 | F192: 8 | H192: =D192*E192*F192 -> 320
B193: aj. Pedreiro | D193: 4 | E193: 20 | F193: 8 | H193: =D193*E193*F193 -> 640
A197: ITEM | B197: DESCRIÇÃO | C197: UN | D197: UN | E197: nº. Viagem | H197: QTDE
A198: 5.9 | B198: Transporte | C198: ton | D198: km | H198: =SUM(H199:H199) -> 300
B199: caminhão 6 m3 | C199: 5 | D199: 30 | E199: 2 | H199: =C199*D199*E199 -> 300
A202: ITEM | B202: DESCRIÇÃO | C202: UN | D202: QTDE | H202: QTDE
A203: 5.10 | B203: Montagem dos mancais
B204: locação andaime | C204: m | D204: 12 | E204: 10 | H204: =D204*E204/30 -> 4
B205: guindaste ou munck | C205: h | E205: 1 | F205: 12 | H205: =E205*F205 -> 12
A206: ITEM | B206: DESCRIÇÃO | C206: UN | D206: QTDE | E206: DIAS | F206: H/DIA | H206: QTDE
A207: 5.10 | B207: Montagem dos mancais | C207: h | H207: =SUM(H208:H210) -> 54
B208: supervisor mecanico | C208: h | D208: 1 | E208: 1 | F208: 6 | H208: =D208*E208*F208 -> 6
B209: montador mecanico | C209: h | D209: 1 | E209: 2 | F209: 8 | H209: =D209*E209*F209 -> 16
B210: ajudante | C210: h | D210: 2 | E210: 2 | F210: 8 | H210: =D210*E210*F210 -> 32
A213: ITEM | B213: DESCRIÇÃO | C213: UN | D213: QTDE | H213: QTDE
A214: 5.11 | B214: Montagem tabuleiro e braço
B215: eletrodo | C215: kg | D215: 25 | H215: =D215 -> 25
B216: acetileno | C216: kg | D216: 8 | H216: =D216 -> 8
A217: ITEM | B217: DESCRIÇÃO | C217: UN | D217: QTDE | E217: DIAS | F217: H/DIA | H217: QTDE
A218: 5.11 | B218: Montagem tabuleiro e braço | C218: h | H218: =SUM(H219:H220) -> 84
B219: solda | C219: h | D219: 1 | E219: 6 | F219: 6 | H219: =D219*E219*F219 -> 36
B220: lixadeira | C220: h | D220: 2 | E220: 4 | F220: 6 | H220: =D220*E220*F220 -> 48
B221: locação andaime | C221: m | D221: 12 | E221: 30 | H221: =D221*E221/30 -> 12
B222: guindaste ou munck | C222: h | E222: 3 | F222: 12 | H222: =E222*F222 -> 36
A223: ITEM | B223: DESCRIÇÃO | C223: UN | D223: QTDE | E223: DIAS | F223: H/DIA | H223: QTDE
A224: 5.11 | B224: Montagem tabuleiro e braço | C224: h | H224: =SUM(H225:H228) -> 1344
B225: supervisor mecanico | C225: h | D225: 1 | E225: 8 | F225: 8 | H225: =D225*E225*F225 -> 64
B226: montador mecanico | C226: h | D226: 2 | E226: 25 | F226: 8 | H226: =D226*E226*F226 -> 400
B227: soldador | C227: h | D227: 1 | E227: 10 | F227: 8 | H227: =D227*E227*F227 -> 80
B228: ajudante | C228: h | D228: 4 | E228: 25 | F228: 8 | H228: =D228*E228*F228 -> 800
A231: ITEM | B231: DESCRIÇÃO | C231: UN | D231: QTDE | H231: QTDE
A232: 5.12 | B232: Montagem dos cilindros
B233: locação andaime | C233: m | D233: 12 | E233: 10 | H233: =D233*E233/30 -> 4
B234: guindaste ou munck | C234: h | E234: 1 | F234: 12 | H234: =E234*F234 -> 12
A235: ITEM | B235: DESCRIÇÃO | C235: UN | D235: QTDE | E235: DIAS | F235: H/DIA | H235: QTDE
A236: 5.12 | B236: Montagem dos cilindros | C236: h | H236: =SUM(H237:H239) -> 128
B237: supervisor mecanico | C237: h | D237: 1 | E237: 1 | F237: 8 | H237: =D237*E237*F237 -> 8
B238: montador mecanico | C238: h | D238: 1 | E238: 5 | F238: 8 | H238: =D238*E238*F238 -> 40
B239: ajudante | C239: h | D239: 2 | E239: 5 | F239: 8 | H239: =D239*E239*F239 -> 80
A242: ITEM | B242: DESCRIÇÃO | C242: UN | D242: QTDE | H242: QTDE
A243: 5.13 | B243: Montagem UH + PE
B244: guindaste ou munck | C244: h | E244: 1 | F244: 8 | H244: =E244*F244 -> 8
A245: ITEM | B245: DESCRIÇÃO | C245: UN | D245: QTDE | E245: DIAS | F245: H/DIA | H245: QTDE
A246: 5.13 | B246: Montagem UH + PE | C246: h | H246: =SUM(H247:H250) -> 32
B247: supervisor mecanico
B248: montador mecanico | C248: h | D248: 1 | E248: 1 | F248: 8 | H248: =D248*E248*F248 -> 8
... 95 more rows

Sheet CPU
B1: Ministério do Desenvolvimento Regional
B2: Companhia de Desenvolvimento dos Vales do São Francisco e do Parnaíba
B4: COMPOSIÇÕES DE PREÇOS UNITÁRIOS - ORÇAMENTO ONERADO
B5: OBRA: | C5: ='Planilha Orçamentária'!B5 -> SUBSTITUIÇÃO DAS COMPORTAS NA BARRAGEM DE BOACICA | E5: BDI (serv.): | F5: ='BDI serv'!D23 -> 0.2591
B6: LOCAL: | C6: ='Planilha Orçamentária'!B6 -> BARRAGEM BOACICA (IGREJA NOVA - AL) | E6: BDI (forn.): | F6: ='BDI forn'!E6 -> 0.147
B7: 2023-07-01 | C7: ='Planilha Orçamentária'!B7 -> 2023-05-01
B8: PRAZO: | C8: ='Planilha Orçamentária'!B8 -> 240 DIAS
B10: REFERÊNCIA | C10: CÓDIGO | D10: DESCRIÇÃO | E10: UNIDADE | F10: ÍNDICE | G10: CUSTO UNITÁRIO | H10: CUSTO TOTAL
A11: =B11 -> 1.1 | B11: ='Planilha Orçamentária'!A12 -> 1.1 | C11: =VLOOKUP($B11,'Planilha Orçamentária'!$A$11:$K$104,3,) -> CPU.01 | D11: =VLOOKUP($B11,'Planilha Orçamentária'!$A$11:$K$104,4+2,) -> Administração local | E11: mes | H11: =SUM(H12,H16,H13,H15) -> 9236.44 | I11: S
A12: =B11 -> 1.1 | B12: =B11 -> 1.1 | D12: MATERIAL | H12: 0 | I12: SS
A13: =B11 -> 1.1 | B13: =B11 -> 1.1 | D13: EQUIPAMENTOS | H13: =SUM(H14:H14) -> 4708.26 | I13: SS
A14: =A13 -> 1.1 | B14: CODEVASF | D14: CAMINHONETE | E14: mes | F14: 0.8 | G14: 5885.33 | H14: =ROUND(F14*G14,2) -> 4708.26 | I14: I
A15: =B11 -> 1.1 | B15: =B11 -> 1.1 | D15: SERVIÇOS | H15: 0 | I15: SS
A16: =B11 -> 1.1 | B16: =B11 -> 1.1 | D16: MÃO DE OBRA | H16: =SUM(H17:H18) -> 4528.18 | I16: MDO
A17: =B11 -> 1.1 | B17: SINAPI | C17: 90778 | D17: =IF(I17="i",VLOOKUP(C17,'Ins SINAPI AL 03-2023 Onerado'!$A$8:$E$5189,2,0),VLOOKUP(C17,'Comp SINAPI AL 03-2023 Onerado'!$G$7:$K$7500,2,0)) -> ENGENHEIRO CIVIL DE OBRA PLENO COM ENCARGOS COMPLEMENTARES | E17: =LOWER(IF(I17="i",VLOOKUP(C17,'Ins SINAPI AL 03-2023 Onerado'!$A$8:$E$7500,3,0),VLOOKUP(C17,'Comp SINAPI AL 03-2023 Onerado'!$G$7:$K$7500,3,0))) -> h | F17: 8 | G17: =IF(I17="i",VLOOKUP(C17,'Ins SINAPI AL 03-2023 Onerado'!$A$8:$E$5189,5,0),VLOOKUP(C17,'Comp SINAPI AL 03-2023 Onerado'!$G$7:$K$7500,5,0)) -> 128.58 | H17: =ROUND(F17*G17,2) -> 1028.64 | I17: ca
A18: =B11 -> 1.1 | B18: SINAPI | C18: 93572 | D18: =IF(I18="i",VLOOKUP(C18,'Ins SINAPI AL 03-2023 Onerado'!$A$8:$E$5189,2,0),VLOOKUP(C18,'Comp SINAPI AL 03-2023 Onerado'!$G$7:$K$7500,2,0)) -> ENCARREGADO GERAL DE OBRAS COM ENCARGOS COMPLEMENTARES | E18: =LOWER(IF(I18="i",VLOOKUP(C18,'Ins SINAPI AL 03-2023 Onerado'!$A$8:$E$7500,3,0),VLOOKUP(C18,'Comp SINAPI AL 03-2023 Onerado'!$G$7:$K$7500,3,0))) -> mes | F18: 0.8 | G18: =IF(I18="i",VLOOKUP(C18,'Ins SINAPI AL 03-2023 Onerado'!$A$8:$E$5189,5,0),VLOOKUP(C18,'Comp SINAPI AL 03-2023 Onerado'!$G$7:$K$7500,5,0)) -> 4374.42 | H18: 3499.54 | I18: ca
I19: x
A20: =B20 -> 2.1.4 | B20: ='Planilha Orçamentária'!A19 -> 2.1.4 | C20: =VLOOKUP($B20,'Planilha Orçamentária'!$A$11:$K$104,3,) -> CPU.04 | D20: =VLOOKUP($B20,'Planilha Orçamentária'!$A$11:$K$104,4+2,) -> Baia de resíduos para entulho, construção descoberta - Medindo (3,00x2,00)m, paredes em chapa de madeira compensada plastificada 20mm h=1,10m, piso em terreno natural fortemente apiloado, pilarete em eucalipto tratado 15cm (Adaptado AGESUL 0101000230) | E20: un | H20: =SUM(H21,H32,H27,H28) -> 2700.13 | I20: S
A21: =B20 -> 2.1.4 | B21: =B20 -> 2.1.4 | D21: MATERIAL | H21: =SUM(H22:H26) -> 2129.06 | I21: SS
A22: =B20 -> 2.1.4 | B22: SINAPI | C22: 43680 | D22: =IF(I22="i",VLOOKUP(C22,'Ins SINAPI AL 03-2023 Onerado'!$A$8:$E$5189,2,0),VLOOKUP(C22,'Comp SINAPI AL 03-2023 Onerado'!$G$7:$K$7500,2,0)) -> CHAPA/PAINEL DE MADEIRA COMPENSADA PLASTIFICADA (MADEIRITE PLASTIFICADO) PARA FORMA DE CONCRETO, DE 2200 X 1100 MM, E = 20 MM | E22: =LOWER(IF(I22="i",VLOOKUP(C22,'Ins SINAPI AL 03-2023 Onerado'!$A$8:$E$7500,3,0),VLOOKUP(C22,'Comp SINAPI AL 03-2023 Onerado'!$G$7:$K$7500,3,0))) -> m2 | F22: 6 | G22: =IF(I22="i",VLOOKUP(C22,'Ins SINAPI AL 03-2023 Onerado'!$A$8:$E$5189,5,0),VLOOKUP(C22,'Comp SINAPI AL 03-2023 Onerado'!$G$7:$K$7500,5,0)) -> 149.79 | H22: =ROUND(F22*G22,2) -> 898.74 | I22: i
A23: =B20 -> 2.1.4 | B23: SINAPI | C23: 5075 | D23: =IF(I23="i",VLOOKUP(C23,'Ins SINAPI AL 03-2023 Onerado'!$A$8:$E$5189,2,0),VLOOKUP(C23,'Comp SINAPI AL 03-2023 Onerado'!$G$7:$K$6879,2,0)) -> PREGO DE ACO POLIDO COM CABECA 18 X 30 (2 3/4 X 10) | E23: =LOWER(IF(I23="i",VLOOKUP(C23,'Ins SINAPI AL 03-2023 Onerado'!$A$8:$E$7500,3,0),VLOOKUP(C23,'Comp SINAPI AL 03-2023 Onerado'!$G$7:$K$7500,3,0))) -> kg | F23: 0.9657 | G23: =IF(I23="i",VLOOKUP(C23,'Ins SINAPI AL 03-2023 Onerado'!$A$8:$E$5189,5,0),VLOOKUP(C23,'Comp SINAPI AL 03-2023 Onerado'!$G$7:$K$6879,5,0)) -> 24.21 | H23: =ROUND(F23*G23,2) -> 23.38 | I23: i
A24: =B20 -> 2.1.4 | B24: SINAPI | C24: 2747 | D24: =IF(I24="i",VLOOKUP(C24,'Ins SINAPI AL 03-2023 Onerado'!$A$8:$E$5189,2,0),VLOOKUP(C24,'Comp SINAPI AL 03-2023 Onerado'!$G$7:$K$6879,2,0)) -> MOURAO ROLICO DE MADEIRA TRATADA, D = 16 A 20 CM, H = 2,20 M, EM EUCALIPTO OU EQUIVALENTE DA REGIAO (PARA CERCA) | E24: =LOWER(IF(I24="i",VLOOKUP(C24,'Ins SINAPI AL 03-2023 Onerado'!$A$8:$E$7500,3,0),VLOOKUP(C24,'Comp SINAPI AL 03-2023 Onerado'!$G$7:$K$7500,3,0))) -> m | F24: 17.6 | G24: =IF(I24="i",VLOOKUP(C24,'Ins SINAPI AL 03-2023 Onerado'!$A$8:$E$5189,5,0),VLOOKUP(C24,'Comp SINAPI AL 03-2023 Onerado'!$G$7:$K$6879,5,0)) -> 27.41 | H24: =ROUND(F24*G24,2) -> 482.42 | I24: I
A25: =B20 -> 2.1.4 | B25: SINAPI | C25: 94963 | D25: =IF(I25="i",VLOOKUP(C25,'Ins SINAPI AL 03-2023 Onerado'!$A$8:$E$5189,2,0),VLOOKUP(C25,'Comp SINAPI AL 03-2023 Onerado'!$G$7:$K$6879,2,0)) -> CONCRETO FCK = 15MPA, TRAÇO 1:3,4:3,5 (EM MASSA SECA DE CIMENTO/ AREIA MÉDIA/ BRITA 1) - PREPARO MECÂNICO COM BETONEIRA 400 L. AF_05/2021 | E25: =LOWER(IF(I25="i",VLOOKUP(C25,'Ins SINAPI AL 03-2023 Onerado'!$A$8:$E$7500,3,0),VLOOKUP(C25,'Comp SINAPI AL 03-2023 Onerado'!$G$7:$K$7500,3,0))) -> m3 | F25: 0.701 | G25: =IF(I25="i",VLOOKUP(C25,'Ins SINAPI AL 03-2023 Onerado'!$A$8:$E$5189,5,0),VLOOKUP(C25,'Comp SINAPI AL 03-2023 Onerado'!$G$7:$K$6879,5,0)) -> 396.57 | H25: =ROUND(F25*G25,2) -> 278 | I25: ca
A26: =B20 -> 2.1.4 | B26: SINAPI | C26: 99059 | D26: =IF(I26="i",VLOOKUP(C26,'Ins SINAPI AL 03-2023 Onerado'!$A$8:$E$5189,2,0),VLOOKUP(C26,'Comp SINAPI AL 03-2023 Onerado'!$G$7:$K$6879,2,0)) -> LOCACAO CONVENCIONAL DE OBRA, UTILIZANDO GABARITO DE TÁBUAS CORRIDAS PONTALETADAS A CADA 2,00M - 2 UTILIZAÇÕES. AF_10/2018 | E26: =LOWER(IF(I26="i",VLOOKUP(C26,'Ins SINAPI AL 03-2023 Onerado'!$A$8:$E$7500,3,0),VLOOKUP(C26,'Comp SINAPI AL 03-2023 Onerado'!$G$7:$K$7500,3,0))) -> m | F26: 8.64 | G26: =IF(I26="i",VLOOKUP(C26,'Ins SINAPI AL 03-2023 Onerado'!$A$8:$E$5189,5,0),VLOOKUP(C26,'Comp SINAPI AL 03-2023 Onerado'!$G$7:$K$6879,5,0)) -> 51.68 | H26: =ROUND(F26*G26,2) -> 446.52 | I26: ca
A27: =B20 -> 2.1.4 | B27: =B20 -> 2.1.4 | D27: EQUIPAMENTOS | H27: 0 | I27: SS
A28: =B20 -> 2.1.4 | B28: =B20 -> 2.1.4 | D28: SERVIÇOS | H28: =SUM(H29:H31) -> 292.24 | I28: SS
A29: =B20 -> 2.1.4 | B29: SINAPI | C29: 93358 | D29: =IF(I29="i",VLOOKUP(C29,'Ins SINAPI AL 03-2023 Onerado'!$A$8:$E$5189,2,0),VLOOKUP(C29,'Comp SINAPI AL 03-2023 Onerado'!$G$7:$K$7500,2,0)) -> ESCAVAÇÃO MANUAL DE VALA COM PROFUNDIDADE MENOR OU IGUAL A 1,30 M. AF_02/2021 | E29: =LOWER(IF(I29="i",VLOOKUP(C29,'Ins SINAPI AL 03-2023 Onerado'!$A$8:$E$7500,3,0),VLOOKUP(C29,'Comp SINAPI AL 03-2023 Onerado'!$G$7:$K$7500,3,0))) -> m3 | F29: 1.0014 | G29: =IF(I29="i",VLOOKUP(C29,'Ins SINAPI AL 03-2023 Onerado'!$A$8:$E$5189,5,0),VLOOKUP(C29,'Comp SINAPI AL 03-2023 Onerado'!$G$7:$K$6879,5,0)) -> 72.55 | H29: =ROUND(F29*G29,2) -> 72.65 | I29: ca
A30: =B20 -> 2.1.4 | B30: SINAPI | C30: 96995 | D30: =IF(I30="i",VLOOKUP(C30,'Ins SINAPI AL 03-2023 Onerado'!$A$8:$E$5189,2,0),VLOOKUP(C30,'Comp SINAPI AL 03-2023 Onerado'!$G$7:$K$7500,2,0)) -> REATERRO MANUAL APILOADO COM SOQUETE. AF_10/2017 | E30: =LOWER(IF(I30="i",VLOOKUP(C30,'Ins SINAPI AL 03-2023 Onerado'!$A$8:$E$7500,3,0),VLOOKUP(C30,'Comp SINAPI AL 03-2023 Onerado'!$G$7:$K$7500,3,0))) -> m3 | F30: =F29 -> 1.0014 | G30: =IF(I30="i",VLOOKUP(C30,'Ins SINAPI AL 03-2023 Onerado'!$A$8:$E$5189,5,0),VLOOKUP(C30,'Comp SINAPI AL 03-2023 Onerado'!$G$7:$K$6879,5,0)) -> 43.99 | H30: =ROUND(F30*G30,2) -> 44.05 | I30: ca
A31: =B20 -> 2.1.4 | B31: SINAPI | C31: 103670 | D31: =IF(I31="i",VLOOKUP(C31,'Ins SINAPI AL 03-2023 Onerado'!$A$8:$E$5189,2,0),VLOOKUP(C31,'Comp SINAPI AL 03-2023 Onerado'!$G$7:$K$7500,2,0)) -> LANÇAMENTO COM USO DE BALDES, ADENSAMENTO E ACABAMENTO DE CONCRETO EM ESTRUTURAS. AF_02/2022 | E31: =LOWER(IF(I31="i",VLOOKUP(C31,'Ins SINAPI AL 03-2023 Onerado'!$A$8:$E$7500,3,0),VLOOKUP(C31,'Comp SINAPI AL 03-2023 Onerado'!$G$7:$K$7500,3,0))) -> m3 | F31: =F25 -> 0.701 | G31: =IF(I31="i",VLOOKUP(C31,'Ins SINAPI AL 03-2023 Onerado'!$A$8:$E$5189,5,0),VLOOKUP(C31,'Comp SINAPI AL 03-2023 Onerado'!$G$7:$K$7500,5,0)) -> 250.42 | H31: =ROUND(F31*G31,2) -> 175.54 | I31: ca
A32: =B20 -> 2.1.4 | B32: =B20 -> 2.1.4 | D32: MÃO DE OBRA | H32: =SUM(H33:H34) -> 278.83 | I32: MDO
A33: =B20 -> 2.1.4 | B33: SINAPI | C33: 88262 | D33: =IF(I33="i",VLOOKUP(C33,'Ins SINAPI AL 03-2023 Onerado'!$A$8:$E$5189,2,0),VLOOKUP(C33,'Comp SINAPI AL 03-2023 Onerado'!$G$7:$K$7500,2,0)) -> CARPINTEIRO DE FORMAS COM ENCARGOS COMPLEMENTARES | E33: =LOWER(IF(I33="i",VLOOKUP(C33,'Ins SINAPI AL 03-2023 Onerado'!$A$8:$E$7500,3,0),VLOOKUP(C33,'Comp SINAPI AL 03-2023 Onerado'!$G$7:$K$7500,3,0))) -> h | F33: 6.776 | G33: =IF(I33="i",VLOOKUP(C33,'Ins SINAPI AL 03-2023 Onerado'!$A$8:$E$5189,5,0),VLOOKUP(C33,'Comp SINAPI AL 03-2023 Onerado'!$G$7:$K$7500,5,0)) -> 22.81 | H33: =ROUND(F33*G33,2) -> 154.56 | I33: ca
A34: =B20 -> 2.1.4 | B34: SINAPI | C34: 88316 | D34: =IF(I34="i",VLOOKUP(C34,'Ins SINAPI AL 03-2023 Onerado'!$A$8:$E$5189,2,0),VLOOKUP(C34,'Comp SINAPI AL 03-2023 Onerado'!$G$7:$K$7500,2,0)) -> SERVENTE COM ENCARGOS COMPLEMENTARES | E34: =LOWER(IF(I34="i",VLOOKUP(C34,'Ins SINAPI AL 03-2023 Onerado'!$A$8:$E$7500,3,0),VLOOKUP(C34,'Comp SINAPI AL 03-2023 Onerado'!$G$7:$K$7500,3,0))) -> h | F34: 6.776 | G34: =IF(I34="i",VLOOKUP(C34,'Ins SINAPI AL 03-2023 Onerado'!$A$8:$E$5189,5,0),VLOOKUP(C34,'Comp SINAPI AL 03-2023 Onerado'!$G$7:$K$7500,5,0)) -> 18.34 | H34: =ROUND(F34*G34,2) -> 124.27 | I34: ca
I35: x
A36: =B36 -> 2.2.1 | B36: ='Planilha Orçamentária'!A26 -> 2.2.1 | C36: =VLOOKUP($B36,'Planilha Orçamentária'!$A$11:$K$104,3,) -> CPU.05 | D36: =VLOOKUP($B36,'Planilha Orçamentária'!$A$11:$K$104,4+2,) -> Placa de obra em chapa aço galvanizado, instalada (Adaptado ORSE 51) | E36: m² | H36: =SUM(H37,H44,H42,H43) -> 359.52 | I36: S
A37: =B36 -> 2.2.1 | B37: =B36 -> 2.2.1 | D37: MATERIAL | H37: =SUM(H38:H41) -> 300.03 | I37: SS
A38: =B36 -> 2.2.1 | B38: SINAPI | C38: 4430 | D38: =IF(I38="i",VLOOKUP(C38,'Ins SINAPI AL 03-2023 Onerado'!$A$8:$E$7500,2,0),VLOOKUP(C38,'Comp SINAPI AL 03-2023 Onerado'!$G$7:$K$7500,2,0)) -> CAIBRO NAO APARELHADO *5 X 6* CM, EM MACARANDUBA, ANGELIM OU EQUIVALENTE DA REGIAO - BRUTA | E38: =LOWER(IF(I38="i",VLOOKUP(C38,'Ins SINAPI AL 03-2023 Onerado'!$A$8:$E$7500,3,0),VLOOKUP(C38,'Comp SINAPI AL 03-2023 Onerado'!$G$7:$K$7500,3,0))) -> m | F38: 4 | G38: =IF(I38="i",VLOOKUP(C38,'Ins SINAPI AL 03-2023 Onerado'!$A$8:$E$5189,5,0),VLOOKUP(C38,'Comp SINAPI AL 03-2023 Onerado'!$G$7:$K$6879,5,0)) -> 9.9 | H38: =ROUND(F38*G38,2) -> 39.6 | I38: I
A39: =B36 -> 2.2.1 | B39: SINAPI | C39: 4813 | D39: =IF(I39="i",VLOOKUP(C39,'Ins SINAPI AL 03-2023 Onerado'!$A$8:$E$7500,2,0),VLOOKUP(C39,'Comp SINAPI AL 03-2023 Onerado'!$G$7:$K$7500,2,0)) -> PLACA DE OBRA (PARA CONSTRUCAO CIVIL) EM CHAPA GALVANIZADA *N. 22*, ADESIVADA, DE *2,4 X 1,2* M (SEM POSTES PARA FIXACAO) | E39: =LOWER(IF(I39="i",VLOOKUP(C39,'Ins SINAPI AL 03-2023 Onerado'!$A$8:$E$7500,3,0),VLOOKUP(C39,'Comp SINAPI AL 03-2023 Onerado'!$G$7:$K$7500,3,0))) -> m2 | F39: 1 | G39: =IF(I39="i",VLOOKUP(C39,'Ins SINAPI AL 03-2023 Onerado'!$A$8:$E$5189,5,0),VLOOKUP(C39,'Comp SINAPI AL 03-2023 Onerado'!$G$7:$K$6879,5,0)) -> 250 | H39: =ROUND(F39*G39,2) -> 250 | I39: I
A40: =B36 -> 2.2.1 | B40: SINAPI | C40: 20206 | D40: =IF(I40="i",VLOOKUP(C40,'Ins SINAPI AL 03-2023 Onerado'!$A$8:$E$7500,2,0),VLOOKUP(C40,'Comp SINAPI AL 03-2023 Onerado'!$G$7:$K$7500,2,0)) -> SARRAFO APARELHADO *2 X 10* CM, EM MACARANDUBA, ANGELIM OU EQUIVALENTE DA REGIAO | E40: =LOWER(IF(I40="i",VLOOKUP(C40,'Ins SINAPI AL 03-2023 Onerado'!$A$8:$E$7500,3,0),VLOOKUP(C40,'Comp SINAPI AL 03-2023 Onerado'!$G$7:$K$7500,3,0))) -> m | F40: 1 | G40: =IF(I40="i",VLOOKUP(C40,'Ins SINAPI AL 03-2023 Onerado'!$A$8:$E$5189,5,0),VLOOKUP(C40,'Comp SINAPI AL 03-2023 Onerado'!$G$7:$K$6879,5,0)) -> 6.8 | H40: =ROUND(F40*G40,2) -> 6.8 | I40: I
A41: =B36 -> 2.2.1 | B41: SINAPI | C41: 5075 | D41: =IF(I41="i",VLOOKUP(C41,'Ins SINAPI AL 03-2023 Onerado'!$A$8:$E$7500,2,0),VLOOKUP(C41,'Comp SINAPI AL 03-2023 Onerado'!$G$7:$K$7500,2,0)) -> PREGO DE ACO POLIDO COM CABECA 18 X 30 (2 3/4 X 10) | E41: =LOWER(IF(I41="i",VLOOKUP(C41,'Ins SINAPI AL 03-2023 Onerado'!$A$8:$E$7500,3,0),VLOOKUP(C41,'Comp SINAPI AL 03-2023 Onerado'!$G$7:$K$7500,3,0))) -> kg | F41: 0.15 | G41: =IF(I41="i",VLOOKUP(C41,'Ins SINAPI AL 03-2023 Onerado'!$A$8:$E$5189,5,0),VLOOKUP(C41,'Comp SINAPI AL 03-2023 Onerado'!$G$7:$K$6879,5,0)) -> 24.21 | H41: =ROUND(F41*G41,2) -> 3.63 | I41: I
A42: =B36 -> 2.2.1 | B42: =B36 -> 2.2.1 | D42: EQUIPAMENTOS | H42: 0 | I42: SS
A43: =B36 -> 2.2.1 | B43: =B36 -> 2.2.1 | D43: SERVIÇOS | H43: 0 | I43: SS
A44: =B36 -> 2.2.1 | B44: =B36 -> 2.2.1 | D44: MÃO DE OBRA | H44: =SUM(H45:H46) -> 59.49 | I44: MDO
A45: =B36 -> 2.2.1 | B45: SINAPI | C45: 88262 | D45: =IF(I45="i",VLOOKUP(C45,'Ins SINAPI AL 03-2023 Onerado'!$A$8:$E$7500,2,0),VLOOKUP(C45,'Comp SINAPI AL 03-2023 Onerado'!$G$7:$K$7500,2,0)) -> CARPINTEIRO DE FORMAS COM ENCARGOS COMPLEMENTARES | E45: =LOWER(IF(I45="i",VLOOKUP(C45,'Ins SINAPI AL 03-2023 Onerado'!$A$8:$E$7500,3,0),VLOOKUP(C45,'Comp SINAPI AL 03-2023 Onerado'!$G$7:$K$7500,3,0))) -> h | F45: 1 | G45: =IF(I45="i",VLOOKUP(C45,'Ins SINAPI AL 03-2023 Onerado'!$A$8:$E$5189,5,0),VLOOKUP(C45,'Comp SINAPI AL 03-2023 Onerado'!$G$7:$K$7500,5,0)) -> 22.81 | H45: =ROUND(F45*G45,2) -> 22.81 | I45: ca
A46: =B36 -> 2.2.1 | B46: SINAPI | C46: 88316 | D46: =IF(I46="i",VLOOKUP(C46,'Ins SINAPI AL 03-2023 Onerado'!$A$8:$E$7500,2,0),VLOOKUP(C46,'Comp SINAPI AL 03-2023 Onerado'!$G$7:$K$7500,2,0)) -> SERVENTE COM ENCARGOS COMPLEMENTARES | E46: =LOWER(IF(I46="i",VLOOKUP(C46,'Ins SINAPI AL 03-2023 Onerado'!$A$8:$E$7500,3,0),VLOOKUP(C46,'Comp SINAPI AL 03-2023 Onerado'!$G$7:$K$7500,3,0))) -> h | F46: 2 | G46: =IF(I46="i",VLOOKUP(C46,'Ins SINAPI AL 03-2023 Onerado'!$A$8:$E$5189,5,0),VLOOKUP(C46,'Comp SINAPI AL 03-2023 Onerado'!$G$7:$K$7500,5,0)) -> 18.34 | H46: =ROUND(F46*G46,2) -> 36.68 | I46: ca
I47: x
A48: =B48 -> 3.1.1 | B48: ='Planilha Orçamentária'!A30 -> 3.1.1 | C48: =VLOOKUP($B48,'Planilha Orçamentária'!$A$11:$K$104,3,) -> CPU.06 | D48: =VLOOKUP($B48,'Planilha Orçamentária'!$A$11:$K$104,4+2,) -> Mobilização e desmobilização da Equipe, Camara Hiperbarica e todos os equipamentos de mergulho envolvidos na operação | E48: un | H48: =SUM(H49,H53,H50,H51) -> 42000 | I48: S
A49: =B48 -> 3.1.1 | B49: =B48 -> 3.1.1 | D49: MATERIAL | H49: 0 | I49: ss
A50: =B48 -> 3.1.1 | B50: =B48 -> 3.1.1 | D50: EQUIPAMENTOS | H50: 0 | I50: ss
A51: =B48 -> 3.1.1 | B51: =B48 -> 3.1.1 | D51: SERVIÇOS | H51: =H52 -> 42000 | I51: ss
A52: =B48 -> 3.1.1 | B52: 2023-05-01 | C52: COTAÇÃO | D52: Mobilização e desmobilização da Equipe, Camara Hiperbarica e todos os equipamentos de mergulho envolvidos na operação | E52: un | F52: 1 | G52: 42000 | H52: =ROUND(F52*G52,2) -> 42000 | I52: ca
A53: =B48 -> 3.1.1 | B53: =B48 -> 3.1.1 | D53: MÃO DE OBRA | H53: 0 | I53: ss
I54: x
A55: =B55 -> 4.1.1 | B55: ='Planilha Orçamentária'!A35 -> 4.1.1 | C55: =VLOOKUP($B55,'Planilha Orçamentária'!$A$11:$K$104,3,) -> CPU.07 | D55: =VLOOKUP($B55,'Planilha Orçamentária'!$A$11:$K$104,4+2,) -> Plano De Trabalho Para Substituição Da Comporta | E55: =VLOOKUP($B55,'Planilha Orçamentária'!$A$11:$K$104,5+2,) -> un | H55: =SUM(H56,H61,H58,H60) -> 55077.45 | I55: S
A56: =B55 -> 4.1.1 | B56: =B55 -> 4.1.1 | D56: MATERIAL | H56: =H57 -> 3661.2 | I56: ss
A57: =B55 -> 4.1.1 | B57: CODE | C57: DP | D57: DIÁRIA | E57: dia | F57: =3*4 -> 12 | G57: 305.1 | H57: =ROUND(F57*G57,2) -> 3661.2 | I57: ca
A58: =B55 -> 4.1.1 | B58: =B55 -> 4.1.1 | D58: EQUIPAMENTOS | H58: =H59 -> 1471.33 | I58: ss
A59: 4.1.1 | B59: CODEVASF | D59: CAMINHONETE | E59: mes | F59: =1/4 -> 0.25 | G59: 5885.33 | H59: =ROUND(F59*G59,2) -> 1471.33 | I59: ca
A60: =B55 -> 4.1.1 | B60: =B55 -> 4.1.1 | D60: SERVIÇOS | I60: ss
A61: =B55 -> 4.1.1 | B61: =B55 -> 4.1.1 | D61: MÃO DE OBRA | H61: =SUM(H62:H64) -> 49944.92 | I61: ss
A62: 4.1.1 | B62: SINAPI | C62: 100320 | D62: =IF(I62="i",VLOOKUP(C62,'Ins SINAPI AL 03-2023 Onerado'!$A$8:$E$7500,2,0),VLOOKUP(C62,'Comp SINAPI AL 03-2023 Onerado'!$G$7:$K$7500,2,0)) -> ENGENHEIRO CIVIL PLENO COM ENCARGOS COMPLEMENTARES | E62: =LOWER(IF(I62="i",VLOOKUP(C62,'Ins SINAPI AL 03-2023 Onerado'!$A$8:$E$7500,3,0),VLOOKUP(C62,'Comp SINAPI AL 03-2023 Onerado'!$G$7:$K$7500,3,0))) -> mes | F62: 1 | G62: =IF(I62="i",VLOOKUP(C62,'Ins SINAPI AL 03-2023 Onerado'!$A$8:$E$5189,5,0),VLOOKUP(C62,'Comp SINAPI AL 03-2023 Onerado'!$G$7:$K$7500,5,0)) -> 22426.3 | H62: =ROUND(F62*G62,2) -> 22426.3 | I62: ca
A63: 4.1.1 | B63: SINAPI | C63: 100320 | D63: ENGENHEIRO MECANICO DE OBRA PLENO COM ENCARGOS COMPLEMENTARES (BASEADO SINAPI 90778) | E63: =LOWER(IF(I63="i",VLOOKUP(C63,'Ins SINAPI AL 03-2023 Onerado'!$A$8:$E$7500,3,0),VLOOKUP(C63,'Comp SINAPI AL 03-2023 Onerado'!$G$7:$K$7500,3,0))) -> mes | F63: 1 | G63: =IF(I63="i",VLOOKUP(C63,'Ins SINAPI AL 03-2023 Onerado'!$A$8:$E$5189,5,0),VLOOKUP(C63,'Comp SINAPI AL 03-2023 Onerado'!$G$7:$K$7500,5,0)) -> 22426.3 | H63: =ROUND(F63*G63,2) -> 22426.3 | I63: ca
B64: SICRO | C64: P9864 | D64: Engenheiro de segurança do trabalho | E64: mês | F64: =1/4 -> 0.25 | G64: 20369.28 | H64: =ROUND(F64*G64,2) -> 5092.32 | I64: ca
I65: x
A66: =B66 -> 4.2.1 | B66: ='Planilha Orçamentária'!A37 -> 4.2.1 | C66: =VLOOKUP($B66,'Planilha Orçamentária'!$A$11:$K$104,3,) -> CPU.08 | D66: =VLOOKUP($B66,'Planilha Orçamentária'!$A$11:$K$104,4+2) -> Construção/adequação e instalação de comporta ensecadeira (stop-log) provisória a ser instalada na guia já existente da tomada d’água (alternativa "a") | E66: =VLOOKUP($B66,'Planilha Orçamentária'!$A$11:$K$104,5+2) -> un | H66: =SUM(H67,H82,H76,H78,) -> 58532.82 | I66: S
A67: =B66 -> 4.2.1 | B67: =B66 -> 4.2.1 | D67: MATERIAL | H67: =SUM(H68:H75) -> 27323.16 | I67: ss
A68: =B66 -> 4.2.1 | B68: CODE | C68: DP | D68: DIÁRIA | E68: dia | F68: =15*3 -> 45 | G68: 305.1 | H68: =ROUND(F68*G68,2) -> 13729.5 | I68: i
A69: =B66 -> 4.2.1 | B69: SICRO | C69: E9043 | D69: Embarcação de alumínio com comprimento de 6 m e motor de popa - 18,60 kW | E69: h | F69: 80 | G69: =68.3007 -> 68.3007 | H69: =ROUND(F69*G69,2) -> 5464.06 | I69: i
A70: =B66 -> 4.2.1 | B70: SICRO | C70: E9243 | D70: Câmara hiperbárica com filtro, serpentina e reservatório de ar para mergulho raso - D= 1,80 m e H = 2,22 m. | E70: h | F70: 80 | G70: 63.49 | H70: =ROUND(F70*G70,2) -> 5079.2
A71: =B66 -> 4.2.1 | B71: SICRO | C71: E9245 | D71: Estação transmissora de superfície para comunicação com fio | E71: h | F71: 80 | G71: 0.74 | H71: 59.2
A72: =B66 -> 4.2.1 | B72: SICRO | C72: E9242 | D72: Estação transmissora de superfície para televisionamento | E72: h | F72: 80 | G72: 1.33 | H72: 106.4
A73: =B66 -> 4.2.1 | B73: SICRO | C73: E9066 | D73: Grupo gerador - 14 kVA | E73: h | F73: 80 | G73: 19.5 | H73: 1560
A74: =B66 -> 4.2.1 | B74: SICRO | C74: E9246 | D74: Painel de controle de ar com manômetros e pneufatômetros | E74: h | F74: 80 | G74: 1.43 | H74: 114.4
A75: =B66 -> 4.2.1 | B75: SICRO | C75: E9248 | D75: Sistema de ar comprimido para mergulho até 30 m com pressão de trabalho de 1,4 MPa - 7,46 kW | E75: h | F75: 80 | G75: 15.13 | H75: 1210.4
A76: =B66 -> 4.2.1 | B76: =B66 -> 4.2.1 | D76: EQUIPAMENTOS | H76: =SUM(H77) -> 5885.33 | I76: ss
A77: =B66 -> 4.2.1 | B77: CODEVASF | D77: CAMINHONETE | E77: mes | F77: 1 | G77: 5885.33 | H77: =ROUND(F77*G77,2) -> 5885.33 | I77: I
A78: =B66 -> 4.2.1 | B78: =B66 -> 4.2.1 | D78: SERVIÇOS | H78: =SUM(H79:H81) -> 3480.11 | I78: ss
A79: =B66 -> 4.2.1 | B79: SICRO | C79: 4915639 | D79: Limpeza em superfície de concreto com escova de aço | E79: m² | F79: =1.2*1.2*2 -> 2.88 | G79: 3.67 | H79: =ROUND(F79*G79,2) -> 10.57 | I79: ca
A80: =B66 -> 4.2.1 | B80: SICRO | C80: 2408068 | D80: Jateamento de chapa de aço com o uso de granalhas de aço Grau SA3 | E80: m² | F80: =1.2*1.2*2 -> 2.88 | G80: 15.53 | H80: =ROUND(F80*G80,2) -> 44.73 | I80: ca
A81: =B66 -> 4.2.1 | B81: SICRO | C81: E9058 | D81: Plataforma flutuante de 12 x 24 x 1,8 m com capacidade de 150 t | E81: h | F81: 80 | G81: 42.8101 | H81: =ROUND(F81*G81,2) -> 3424.81 | I81: i
A82: =B66 -> 4.2.1 | B82: =B66 -> 4.2.1 | D82: MÃO DE OBRA | H82: =SUM(H83:H85) -> 21844.22 | I82: ss
A83: =B66 -> 4.2.1 | B83: SICRO | C83: P9926 | D83: Mergulhador raso auxiliar de superfície | E83: h | F83: 80 | G83: 31.43 | H83: =ROUND(F83*G83,2) -> 2514.4
A84: =B66 -> 4.2.1 | B84: EMBASA | C84: B010000113 | D84: MERGULHADOR PROFISSIONAL | E84: h | F84: 80 | G84: 206.75 | H84: 16540
A85: =B66 -> 4.2.1 | B85: SICRO | C85: P9922 | D85: Mergulhador raso dependente de emergência | E85: h | F85: 80 | G85: 34.8727 | H85: 2789.82
A87: =B87 -> 4.2.2 | B87: ='Planilha Orçamentária'!A38 -> 4.2.2 | C87: =VLOOKUP($B87,'Planilha Orçamentária'!$A$11:$K$104,3,) -> CPU.09 | D87: =VLOOKUP($B87,'Planilha Orçamentária'!$A$11:$K$104,4+2,) -> Utilização de bloqueador inflável multidimensional (alternativa "c") | E87: =VLOOKUP($B87,'Planilha Orçamentária'!$A$11:$K$104,5+2) -> un | H87: =SUM(H88,H101,H98,H100) -> 106052.71 | I87: S
A88: =B87 -> 4.2.2 | B88: =B87 -> 4.2.2 | D88: MATERIAL | H88: =SUM(H89:H97) -> 78323.16 | I88: ss
A89: =B87 -> 4.2.2 | B89: CODE | C89: DP | D89: DIÁRIA | E89: dia | F89: =15*3 -> 45 | G89: 305.1 | H89: =ROUND(F89*G89,2) -> 13729.5 | I89: i
A90: =B87 -> 4.2.2 | B90: SICRO | C90: E9043 | D90: Embarcação de alumínio com comprimento de 6 m e motor de popa - 18,60 kW | E90: h | F90: 80 | G90: =68.3007 -> 68.3007 | H90: =ROUND(F90*G90,2) -> 5464.06 | I90: i
A91: =B87 -> 4.2.2 | B91: 2023-05-01 | C91: COTAÇÂO | D91: Bloqueador inflável completo DN>1200 mm com todos os acessórios necessários para a sua utilização e PN>20 mca | E91: un | F91: 1 | G91: 51000 | H91: =ROUND(F91*G91,2) -> 51000 | I91: i
A92: =B88 -> 4.2.2 | B92: SICRO | C92: E9243 | D92: Câmara hiperbárica com filtro, serpentina e reservatório de ar para mergulho raso - D= 1,80 m e H = 2,22 m. | E92: h | F92: 80 | G92: 63.49 | H92: =ROUND(F92*G92,2) -> 5079.2
A93: =B88 -> 4.2.2 | B93: SICRO | C93: E9245 | D93: Estação transmissora de superfície para comunicação com fio | E93: h | F93: 80 | G93: 0.74 | H93: 59.2
A94: =B88 -> 4.2.2 | B94: SICRO | C94: E9242 | D94: Estação transmissora de superfície para televisionamento | E94: h | F94: 80 | G94: 1.33 | H94: 106.4
A95: =B88 -> 4.2.2 | B95: SICRO | C95: E9066 | D95: Grupo gerador - 14 kVA | E95: h | F95: 80 | G95: 19.5 | H95: 1560
A96: =B88 -> 4.2.2 | B96: SICRO | C96: E9246 | D96: Painel de controle de ar com manômetros e pneufatômetros | E96: h | F96: 80 | G96: 1.43 | H96: 114.4
A97: =B88 -> 4.2.2 | B97: SICRO | C97: E9248 | D97: Sistema de ar comprimido para mergulho até 30 m com pressão de trabalho de 1,4 MPa - 7,46 kW | E97: h | F97: 80 | G97: 15.13 | H97: 1210.4
A98: =B87 -> 4.2.2 | B98: =B87 -> 4.2.2 | D98: EQUIPAMENTOS | H98: =SUM(H99) -> 5885.33 | I98: ss
A99: =B87 -> 4.2.2 | B99: CODEVASF | D99: CAMINHONETE | E99: mes | F99: 1 | G99: 5885.33 | H99: =ROUND(F99*G99,2) -> 5885.33 | I99: I
A100: =B87 -> 4.2.2 | B100: =B87 -> 4.2.2 | D100: SERVIÇOS | H100: 0 | I100: ss
A101: =B87 -> 4.2.2 | B101: =B87 -> 4.2.2 | D101: MÃO DE OBRA | H101: =SUM(H102:H104) -> 21844.22 | I101: ss
A102: =B87 -> 4.2.2 | B102: SICRO | C102: P9926 | D102: Mergulhador raso auxiliar de superfície | E102: h | F102: 80 | G102: 31.43 | H102: =ROUND(F102*G102,2) -> 2514.4
A103: =B87 -> 4.2.2 | B103: EMBASA | C103: B010000113 | D103: MERGULHADOR PROFISSIONAL | E103: h | F103: 80 | G103: 206.75 | H103: 16540
A104: =B87 -> 4.2.2 | B104: SICRO | C104: P9922 | D104: Mergulhador raso dependente de emergência | E104: h | F104: 80 | G104: 34.8727 | H104: 2789.82
A106: =B106 -> 4.2.3 | B106: ='Planilha Orçamentária'!A39 -> 4.2.3 | C106: =VLOOKUP($B106,'Planilha Orçamentária'!$A$11:$K$104,3,) -> CPU.10 | D106: =VLOOKUP($B106,'Planilha Orçamentária'!$A$11:$K$104,4+2,) -> Vedação das entradas da tomada d’água com chapas metálicas (alternativa "b") | E106: =VLOOKUP($B106,'Planilha Orçamentária'!$A$11:$K$104,5+2) -> un | H106: =SUM(H107,H123,H117,H119) -> 101138.22 | I106: S
A107: =B106 -> 4.2.3 | B107: =B106 -> 4.2.3 | D107: MATERIAL | H107: =SUM(H108:H116) -> 67205.18 | I107: ss
A108: =B106 -> 4.2.3 | B108: CODE | C108: DP | D108: DIÁRIA | E108: dia | F108: =15*3 -> 45 | G108: 305.1 | H108: =ROUND(F108*G108,2) -> 13729.5 | I108: i
A109: =B106 -> 4.2.3 | B109: SICRO | C109: E9043 | D109: Embarcação de alumínio com comprimento de 6 m e motor de popa - 18,60 kW | E109: h | F109: 120 | G109: =68.3007 -> 68.3007 | H109: =ROUND(F109*G109,2) -> 8196.08 | I109: i
B110: SICRO | C110: 2408149 | D110: Estrutura em chapa de aço ASTM A36 corte, solda e montagem - fornecimento e instalação | E110: kg | F110: 2500 | G110: 14.86 | H110: =ROUND(F110*G110,2) -> 37150 | I110: I
A111: =B107 -> 4.2.3 | B111: SICRO | C111: E9243 | D111: Câmara hiperbárica com filtro, serpentina e reservatório de ar para mergulho raso - D= 1,80 m e H = 2,22 m. | E111: h | F111: 80 | G111: 63.49 | H111: =ROUND(F111*G111,2) -> 5079.2
A112: =B107 -> 4.2.3 | B112: SICRO | C112: E9245 | D112: Estação transmissora de superfície para comunicação com fio | E112: h | F112: 80 | G112: 0.74 | H112: 59.2
A113: =B107 -> 4.2.3 | B113: SICRO | C113: E9242 | D113: Estação transmissora de superfície para televisionamento | E113: h | F113: 80 | G113: 1.33 | H113: 106.4
A114: =B107 -> 4.2.3 | B114: SICRO | C114: E9066 | D114: Grupo gerador - 14 kVA | E114: h | F114: 80 | G114: 19.5 | H114: 1560
A115: =B107 -> 4.2.3 | B115: SICRO | C115: E9246 | D115: Painel de controle de ar com manômetros e pneufatômetros | E115: h | F115: 80 | G115: 1.43 | H115: 114.4
A116: =B107 -> 4.2.3 | B116: SICRO | C116: E9248 | D116: Sistema de ar comprimido para mergulho até 30 m com pressão de trabalho de 1,4 MPa - 7,46 kW | E116: h | F116: 80 | G116: 15.13 | H116: 1210.4
A117: =B106 -> 4.2.3 | B117: =B106 -> 4.2.3 | D117: EQUIPAMENTOS | H117: =SUM(H118) -> 5885.33 | I117: ss
A118: =B106 -> 4.2.3 | B118: CODEVASF | D118: CAMINHONETE | E118: mes | F118: 1 | G118: 5885.33 | H118: =ROUND(F118*G118,2) -> 5885.33 | I118: I
A119: =B106 -> 4.2.3 | B119: =B106 -> 4.2.3 | D119: SERVIÇOS | H119: =SUM(H120:H122) -> 6203.49 | I119: ss
B120: SICRO3 | C120: 3807863 | D120: Chumbador para concreto D = 12,5 mm tipo tecbolt - fornecimento e instalação | E120: un | F120: 72 | G120: 13.79 | H120: =ROUND(F120*G120,2) -> 992.88 | I120: ca
A121: =B106 -> 4.2.3 | B121: SICRO | C121: 4915639 | D121: Limpeza em superfície de concreto com escova de aço | E121: m² | F121: =5*4 -> 20 | G121: 3.67 | H121: =ROUND(F121*G121,2) -> 73.4 | I121: ca
A122: =B106 -> 4.2.3 | B122: SICRO | C122: E9058 | D122: Plataforma flutuante de 12 x 24 x 1,8 m com capacidade de 150 t | E122: h | F122: 120 | G122: 42.8101 | H122: =ROUND(F122*G122,2) -> 5137.21 | I122: i
A123: =B106 -> 4.2.3 | B123: =B106 -> 4.2.3 | D123: MÃO DE OBRA | H123: =SUM(H124:H126) -> 21844.22 | I123: ss
A124: =B106 -> 4.2.3 | B124: SICRO | C124: P9926 | D124: Mergulhador raso auxiliar de superfície | E124: h | F124: 80 | G124: 31.43 | H124: =ROUND(F124*G124,2) -> 2514.4
A125: =B106 -> 4.2.3 | B125: EMBASA | C125: B010000113 | D125: MERGULHADOR PROFISSIONAL | E125: h | F125: 80 | G125: 206.75 | H125: 16540
A126: =B106 -> 4.2.3 | B126: SICRO | C126: P9922 | D126: Mergulhador raso dependente de emergência | E126: h | F126: 80 | G126: 34.8727 | H126: 2789.82
A128: =B128 -> 5.1 | B128: ='Planilha Orçamentária'!A42 -> 5.1 | C128: =VLOOKUP($B128,'Planilha Orçamentária'!$A$11:$K$104,3,) -> CPU.11 | D128: =VLOOKUP($B128,'Planilha Orçamentária'!$A$11:$K$104,4+2) -> Desmontagem e retirada das comportas segmento existentes, compreendendo cilindro hidraulico, tabuleiro, braços, mancais e instalação eletrica e hidraulica | E128: =VLOOKUP($B128,'Planilha Orçamentária'!$A$11:$K$104,5+2) -> un | H128: =SUM(H129,H132,H137,H138) -> 18502.26 | I128: S
A129: =B128 -> 5.1 | B129: =B128 -> 5.1 | D129: MATERIAL | H129: =SUM(H130:H131) -> 1719.3 | I129: SS
A130: =B128 -> 5.1 | B130: SINAPI | C130: 10997 | D130: =IF(I130="i",VLOOKUP(C130,'Ins SINAPI AL 03-2023 Onerado'!$A$8:$E$5189,2,0),VLOOKUP(C130,'Comp SINAPI AL 03-2023 Onerado'!$G$7:$K$6879,2,0)) -> ELETRODO REVESTIDO AWS - E7018, DIAMETRO IGUAL A 4,00 MM | E130: =LOWER(IF(I130="i",VLOOKUP(C130,'Ins SINAPI AL 03-2023 Onerado'!$A$8:$E$7500,3,0),VLOOKUP(C130,'Comp SINAPI AL 03-2023 Onerado'!$G$7:$K$7500,3,0))) -> kg | F130: 15 | G130: =IF(I130="i",VLOOKUP(C130,'Ins SINAPI AL 03-2023 Onerado'!$A$8:$E$5189,5,0),VLOOKUP(C130,'Comp SINAPI AL 03-2023 Onerado'!$G$7:$K$6879,5,0)) -> 47.42 | H130: =ROUND(F130*G130,2) -> 711.3 | I130: i
A131: =B128 -> 5.1 | B131: SINAPI | C131: 1 | D131: =IF(I131="i",VLOOKUP(C131,'Ins SINAPI AL 03-2023 Onerado'!$A$8:$E$5189,2,0),VLOOKUP(C131,'Comp SINAPI AL 03-2023 Onerado'!$G$7:$K$6879,2,0)) -> ACETILENO (RECARGA DE GAS ACETILENO PARA CILINDRO DE CONJUNTO OXICORTE GRANDE) NAO INCLUI TROCA/MANUTENCAO DO CILINDRO | E131: =LOWER(IF(I131="i",VLOOKUP(C131,'Ins SINAPI AL 03-2023 Onerado'!$A$8:$E$7500,3,0),VLOOKUP(C131,'Comp SINAPI AL 03-2023 Onerado'!$G$7:$K$7500,3,0))) -> kg | F131: 16 | G131: =IF(I131="i",VLOOKUP(C131,'Ins SINAPI AL 03-2023 Onerado'!$A$8:$E$5189,5,0),VLOOKUP(C131,'Comp SINAPI AL 03-2023 Onerado'!$G$7:$K$6879,5,0)) -> 63 | H131: =ROUND(F131*G131,2) -> 1008 | I131: i
A132: =B128 -> 5.1 | B132: =B128 -> 5.1 | D132: EQUIPAMENTOS | H132: =SUM(H133:H136) -> 11681.52 | I132: SS
A133: =B128 -> 5.1 | B133: SINAPI | C133: 83763 | D133: =IF(I133="i",VLOOKUP(C133,'Ins SINAPI AL 03-2023 Onerado'!$A$8:$E$5189,2,0),VLOOKUP(C133,'Comp SINAPI AL 03-2023 Onerado'!$G$7:$K$6879,2,0)) -> GRUPO DE SOLDAGEM COM GERADOR A DIESEL 60 CV PARA SOLDA ELÉTRICA, SOBRE 04 RODAS, COM MOTOR 4 CILINDROS 600 A - MATERIAIS NA OPERAÇÃO. AF_02/2016 | E133: =LOWER(IF(I133="i",VLOOKUP(C133,'Ins SINAPI AL 03-2023 Onerado'!$A$8:$E$7500,3,0),VLOOKUP(C133,'Comp SINAPI AL 03-2023 Onerado'!$G$7:$K$7500,3,0))) -> h | F133: 96 | G133: =IF(I133="i",VLOOKUP(C133,'Ins SINAPI AL 03-2023 Onerado'!$A$8:$E$5189,5,0),VLOOKUP(C133,'Comp SINAPI AL 03-2023 Onerado'!$G$7:$K$6879,5,0)) -> 49.58 | H133: =ROUND(F133*G133,2) -> 4759.68 | I133: ca
A134: =B128 -> 5.1 | B134: SINAPI | C134: 92715 | D134: =IF(I134="i",VLOOKUP(C134,'Ins SINAPI AL 03-2023 Onerado'!$A$8:$E$5189,2,0),VLOOKUP(C134,'Comp SINAPI AL 03-2023 Onerado'!$G$7:$K$6879,2,0)) -> APARELHO PARA CORTE E SOLDA OXI-ACETILENO SOBRE RODAS, INCLUSIVE CILINDROS E MAÇARICOS - MATERIAIS NA OPERAÇÃO. AF_05/2023 | E134: =LOWER(IF(I134="i",VLOOKUP(C134,'Ins SINAPI AL 03-2023 Onerado'!$A$8:$E$7500,3,0),VLOOKUP(C134,'Comp SINAPI AL 03-2023 Onerado'!$G$7:$K$7500,3,0))) -> h | F134: 96 | G134: =IF(I134="i",VLOOKUP(C134,'Ins SINAPI AL 03-2023 Onerado'!$A$8:$E$5189,5,0),VLOOKUP(C134,'Comp SINAPI AL 03-2023 Onerado'!$G$7:$K$6879,5,0)) -> 65.7 | H134: =ROUND(F134*G134,2) -> 6307.2 | I134: ca
A135: =B128 -> 5.1 | B135: SINAPI | C135: 10527 | D135: =IF(I135="i",VLOOKUP(C135,'Ins SINAPI AL 03-2023 Onerado'!$A$8:$E$5189,2,0),VLOOKUP(C135,'Comp SINAPI AL 03-2023 Onerado'!$G$7:$K$6879,2,0)) -> LOCACAO DE ANDAIME METALICO TUBULAR DE ENCAIXE, TIPO DE TORRE, CADA PAINEL COM LARGURA DE 1 ATE 1,5 M E ALTURA DE *1,00* M, INCLUINDO DIAGONAL, BARRAS DE LIGACAO, SAPATAS OU RODIZIOS E DEMAIS ITENS NECESSARIOS A MONTAGEM (NAO INCLUI INSTALACAO) | E135: =LOWER(IF(I135="i",VLOOKUP(C135,'Ins SINAPI AL 03-2023 Onerado'!$A$8:$E$7500,3,0),VLOOKUP(C135,'Comp SINAPI AL 03-2023 Onerado'!$G$7:$K$7500,3,0))) -> mxmes | F135: 12 | G135: =IF(I135="i",VLOOKUP(C135,'Ins SINAPI AL 03-2023 Onerado'!$A$8:$E$5189,5,0),VLOOKUP(C135,'Comp SINAPI AL 03-2023 Onerado'!$G$7:$K$6879,5,0)) -> 26 | H135: =ROUND(F135*G135,2) -> 312 | I135: i
A136: =B128 -> 5.1 | B136: SINAPI | C136: 93286 | D136: =IF(I136="i",VLOOKUP(C136,'Ins SINAPI AL 03-2023 Onerado'!$A$8:$E$5189,2,0),VLOOKUP(C136,'Comp SINAPI AL 03-2023 Onerado'!$G$7:$K$6879,2,0)) -> GUINDASTE HIDRÁULICO AUTOPROPELIDO, COM LANÇA TELESCÓPICA 40 M, CAPACIDADE MÁXIMA 60 T, POTÊNCIA 260 KW - MATERIAIS NA OPERAÇÃO. AF_03/2016 | E136: =LOWER(IF(I136="i",VLOOKUP(C136,'Ins SINAPI AL 03-2023 Onerado'!$A$8:$E$7500,3,0),VLOOKUP(C136,'Comp SINAPI AL 03-2023 Onerado'!$G$7:$K$7500,3,0))) -> h | F136: 24 | G136: =IF(I136="i",VLOOKUP(C136,'Ins SINAPI AL 03-2023 Onerado'!$A$8:$E$5189,5,0),VLOOKUP(C136,'Comp SINAPI AL 03-2023 Onerado'!$G$7:$K$6879,5,0)) -> 12.61 | H136: =ROUND(F136*G136,2) -> 302.64 | I136: ca
A137: =B128 -> 5.1 | B137: =B128 -> 5.1 | D137: SERVIÇOS | H137: 0 | I137: SS
A138: =B128 -> 5.1 | B138: =B128 -> 5.1 | D138: MÃO DE OBRA | H138: =SUM(H139:H140) -> 5101.44 | I138: MDO
A139: =B128 -> 5.1 | B139: SINAPI | C139: 88272 | D139: =IF(I139="i",VLOOKUP(C139,'Ins SINAPI AL 03-2023 Onerado'!$A$8:$E$5189,2,0),VLOOKUP(C139,'Comp SINAPI AL 03-2023 Onerado'!$G$7:$K$7500,2,0)) -> MACARIQUEIRO COM ENCARGOS COMPLEMENTARES | E139: =LOWER(IF(I139="i",VLOOKUP(C139,'Ins SINAPI AL 03-2023 Onerado'!$A$8:$E$7500,3,0),VLOOKUP(C139,'Comp SINAPI AL 03-2023 Onerado'!$G$7:$K$7500,3,0))) -> h | F139: ='MEM SERV'!H86 -> 64 | G139: =IF(I139="i",VLOOKUP(C139,'Ins SINAPI AL 03-2023 Onerado'!$A$8:$E$7500,5,0),VLOOKUP(C139,'Comp SINAPI AL 03-2023 Onerado'!$G$7:$K$7500,5,0)) -> 25.92 | H139: =ROUND(F139*G139,2) -> 1658.88 | I139: ca
A140: =B128 -> 5.1 | B140: SINAPI | C140: 88241 | D140: =IF(I140="i",VLOOKUP(C140,'Ins SINAPI AL 03-2023 Onerado'!$A$8:$E$5189,2,0),VLOOKUP(C140,'Comp SINAPI AL 03-2023 Onerado'!$G$7:$K$7500,2,0)) -> AJUDANTE DE OPERAÇÃO EM GERAL COM ENCARGOS COMPLEMENTARES | E140: =LOWER(IF(I140="i",VLOOKUP(C140,'Ins SINAPI AL 03-2023 Onerado'!$A$8:$E$7500,3,0),VLOOKUP(C140,'Comp SINAPI AL 03-2023 Onerado'!$G$7:$K$7500,3,0))) -> h | F140: ='MEM SERV'!H87 -> 192 | G140: =IF(I140="i",VLOOKUP(C140,'Ins SINAPI AL 03-2023 Onerado'!$A$8:$E$7500,5,0),VLOOKUP(C140,'Comp SINAPI AL 03-2023 Onerado'!$G$7:$K$7500,5,0)) -> 17.93 | H140: =ROUND(F140*G140,2) -> 3442.56 | I140: ca
A143: =B143 -> 5.2 | B143: ='Planilha Orçamentária'!A43 -> 5.2 | C143: =VLOOKUP($B143,'Planilha Orçamentária'!$A$11:$K$104,3,) -> CPU.12 | D143: =VLOOKUP($B143,'Planilha Orçamentária'!$A$11:$K$104,4+2) -> Demolição e transporte do concreto das ranhuras das peças fixas existentes e demolição das peças fixas, compreendendo caminho de deslizamento, peças fixas laterais, soleira e peça fixa frontal. | E143: =VLOOKUP($B143,'Planilha Orçamentária'!$A$11:$K$104,5+2) -> un | H143: =SUM(H144,H145,H147,H151) -> 11225.92 | I143: S
A144: =B143 -> 5.2 | B144: =B143 -> 5.2 | D144: MATERIAL | H144: 0 | I144: SS
A145: =B143 -> 5.2 | B145: =B143 -> 5.2 | D145: EQUIPAMENTOS | H145: =SUM(H146:H146) -> 1971 | I145: SS
A146: =B143 -> 5.2 | B146: SINAPI | C146: 92715 | D146: =IF(I146="i",VLOOKUP(C146,'Ins SINAPI AL 03-2023 Onerado'!$A$8:$E$7500,2,0),VLOOKUP(C146,'Comp SINAPI AL 03-2023 Onerado'!$G$7:$K$7500,2,0)) -> APARELHO PARA CORTE E SOLDA OXI-ACETILENO SOBRE RODAS, INCLUSIVE CILINDROS E MAÇARICOS - MATERIAIS NA OPERAÇÃO. AF_05/2023 | E146: =LOWER(IF(I146="i",VLOOKUP(C146,'Ins SINAPI AL 03-2023 Onerado'!$A$8:$E$7500,3,0),VLOOKUP(C146,'Comp SINAPI AL 03-2023 Onerado'!$G$7:$K$7500,3,0))) -> h | F146: 30 | G146: =IF(I146="i",VLOOKUP(C146,'Ins SINAPI AL 03-2023 Onerado'!$A$8:$E$5189,5,0),VLOOKUP(C146,'Comp SINAPI AL 03-2023 Onerado'!$G$7:$K$6879,5,0)) -> 65.7 | H146: =ROUND(F146*G146,2) -> 1971 | I146: ca
A147: =B143 -> 5.2 | B147: =B143 -> 5.2 | D147: SERVIÇOS | H147: =SUM(H148:H150) -> 1576.84 | I147: SS
A148: =B143 -> 5.2 | B148: SINAPI | C148: 97627 | D148: =IF(I148="i",VLOOKUP(C148,'Ins SINAPI AL 03-2023 Onerado'!$A$8:$E$7500,2,0),VLOOKUP(C148,'Comp SINAPI AL 03-2023 Onerado'!$G$7:$K$7500,2,0)) -> DEMOLIÇÃO DE PILARES E VIGAS EM CONCRETO ARMADO, DE FORMA MECANIZADA COM MARTELETE, SEM REAPROVEITAMENTO. AF_12/2017 | E148: =LOWER(IF(I148="i",VLOOKUP(C148,'Ins SINAPI AL 03-2023 Onerado'!$A$8:$E$7500,3,0),VLOOKUP(C148,'Comp SINAPI AL 03-2023 Onerado'!$G$7:$K$7500,3,0))) -> m3 | F148: 2.58 | G148: =IF(I148="i",VLOOKUP(C148,'Ins SINAPI AL 03-2023 Onerado'!$A$8:$E$5189,5,0),VLOOKUP(C148,'Comp SINAPI AL 03-2023 Onerado'!$G$7:$K$6879,5,0)) -> 247.35 | H148: =ROUND(F148*G148,2) -> 638.16 | I148: ca
A149: =B143 -> 5.2 | B149: SINAPI | C149: 100235 | D149: =IF(I149="i",VLOOKUP(C149,'Ins SINAPI AL 03-2023 Onerado'!$A$8:$E$7500,2,0),VLOOKUP(C149,'Comp SINAPI AL 03-2023 Onerado'!$G$7:$K$7500,2,0)) -> TRANSPORTE VERTICAL MANUAL, 1 PAVIMENTO, DE LATA DE 18 LITROS (UNIDADE: L). AF_07/2019 | E149: =(IF(I149="i",VLOOKUP(C149,'Ins SINAPI AL 03-2023 Onerado'!$A$8:$E$7500,3,0),VLOOKUP(C149,'Comp SINAPI AL 03-2023 Onerado'!$G$7:$K$7500,3,0))) -> L | F149: 287 | G149: =IF(I149="i",VLOOKUP(C149,'Ins SINAPI AL 03-2023 Onerado'!$A$8:$E$7500,5,0),VLOOKUP(C149,'Comp SINAPI AL 03-2023 Onerado'!$G$7:$K$7500,5,0)) -> 0.03 | H149: =ROUND(F149*G149,2) -> 8.61 | I149: ca
A150: =B143 -> 5.2 | B150: SINAPI | C150: 97914 | D150: =IF(I150="i",VLOOKUP(C150,'Ins SINAPI AL 03-2023 Onerado'!$A$8:$E$7500,2,0),VLOOKUP(C150,'Comp SINAPI AL 03-2023 Onerado'!$G$7:$K$7500,2,0)) -> TRANSPORTE COM CAMINHÃO BASCULANTE DE 6 M³, EM VIA URBANA PAVIMENTADA, DMT ATÉ 30 KM (UNIDADE: M3XKM). AF_07/2020 | E150: =LOWER(IF(I150="i",VLOOKUP(C150,'Ins SINAPI AL 03-2023 Onerado'!$A$8:$E$7500,3,0),VLOOKUP(C150,'Comp SINAPI AL 03-2023 Onerado'!$G$7:$K$7500,3,0))) -> m3xkm | F150: 343.2 | G150: =IF(I150="i",VLOOKUP(C150,'Ins SINAPI AL 03-2023 Onerado'!$A$8:$E$7500,5,0),VLOOKUP(C150,'Comp SINAPI AL 03-2023 Onerado'!$G$7:$K$7500,5,0)) -> 2.71 | H150: =ROUND(F150*G150,2) -> 930.07 | I150: ca
A151: =B143 -> 5.2 | B151: =B143 -> 5.2 | D151: MÃO DE OBRA | H151: =SUM(H152:H153) -> 7678.08 | I151: MDO
A152: =B143 -> 5.2 | B152: SINAPI | C152: 88242 | D152: =IF(I152="i",VLOOKUP(C152,'Ins SINAPI AL 03-2023 Onerado'!$A$8:$E$7500,2,0),VLOOKUP(C152,'Comp SINAPI AL 03-2023 Onerado'!$G$7:$K$7500,2,0)) -> AJUDANTE DE PEDREIRO COM ENCARGOS COMPLEMENTARES | E152: =LOWER(IF(I152="i",VLOOKUP(C152,'Ins SINAPI AL 03-2023 Onerado'!$A$8:$E$7500,3,0),VLOOKUP(C152,'Comp SINAPI AL 03-2023 Onerado'!$G$7:$K$7500,3,0))) -> h | F152: 384 | G152: =IF(I152="i",VLOOKUP(C152,'Ins SINAPI AL 03-2023 Onerado'!$A$8:$E$7500,5,0),VLOOKUP(C152,'Comp SINAPI AL 03-2023 Onerado'!$G$7:$K$7500,5,0)) -> 17.97 | H152: =ROUND(F152*G152,2) -> 6900.48 | I152: ca
A153: =B143 -> 5.2 | B153: SINAPI | C153: 88272 | D153: =IF(I153="i",VLOOKUP(C153,'Ins SINAPI AL 03-2023 Onerado'!$A$8:$E$7500,2,0),VLOOKUP(C153,'Comp SINAPI AL 03-2023 Onerado'!$G$7:$K$7500,2,0)) -> MACARIQUEIRO COM ENCARGOS COMPLEMENTARES | E153: =LOWER(IF(I153="i",VLOOKUP(C153,'Ins SINAPI AL 03-2023 Onerado'!$A$8:$E$7500,3,0),VLOOKUP(C153,'Comp SINAPI AL 03-2023 Onerado'!$G$7:$K$7500,3,0))) -> h | F153: 30 | G153: =IF(I153="i",VLOOKUP(C153,'Ins SINAPI AL 03-2023 Onerado'!$A$8:$E$7500,5,0),VLOOKUP(C153,'Comp SINAPI AL 03-2023 Onerado'!$G$7:$K$7500,5,0)) -> 25.92 | H153: =ROUND(F153*G153,2) -> 777.6 | I153: ca
I154: x
A155: =B155 -> 5.3 | B155: ='Planilha Orçamentária'!A44 -> 5.3 | C155: =VLOOKUP($B155,'Planilha Orçamentária'!$A$11:$K$104,3,) -> CPU.13 | D155: =VLOOKUP($B155,'Planilha Orçamentária'!$A$11:$K$104,4+2) -> Preparação das ranhuras para receber as novas peças fixas | E155: =VLOOKUP($B155,'Planilha Orçamentária'!$A$11:$K$104,5+2) -> un | H155: =SUM(H156,H158,H159,H160) -> 5575.38 | I155: S
A156: =B155 -> 5.3 | B156: =B155 -> 5.3 | D156: MATERIAL | H156: =H157 -> 4425.3 | I156: SS
A157: =B155 -> 5.3 | B157: SINAPI | C157: 4049 | D157: =IF(I157="i",VLOOKUP(C157,'Ins SINAPI AL 03-2023 Onerado'!$A$8:$E$5189,2,0),VLOOKUP(C157,'Comp SINAPI AL 03-2023 Onerado'!$G$7:$K$6879,2,0)) -> MASSA EPOXI BICOMPONENTE (MASSA + CATALIZADOR) | E157: =LOWER(IF(I157="i",VLOOKUP(C157,'Ins SINAPI AL 03-2023 Onerado'!$A$8:$E$7500,3,0),VLOOKUP(C157,'Comp SINAPI AL 03-2023 Onerado'!$G$7:$K$7500,3,0))) -> l | F157: 90 | G157: =IF(I157="i",VLOOKUP(C157,'Ins SINAPI AL 03-2023 Onerado'!$A$8:$E$7500,5,0),VLOOKUP(C157,'Comp SINAPI AL 03-2023 Onerado'!$G$7:$K$7500,5,0)) -> 49.17 | H157: =ROUND(F157*G157,2) -> 4425.3 | I157: i
A158: =B155 -> 5.3 | B158: =B155 -> 5.3 | D158: EQUIPAMENTOS | H158: 0 | I158: SS
A159: =B155 -> 5.3 | B159: =B155 -> 5.3 | D159: SERVIÇOS | H159: 0 | I159: SS
A160: =B155 -> 5.3 | B160: =B155 -> 5.3 | D160: MÃO DE OBRA | H160: =SUM(H161:H161) -> 1150.08 | I160: MDO
A161: =B155 -> 5.3 | B161: SINAPI | C161: 88242 | D161: =IF(I161="i",VLOOKUP(C161,'Ins SINAPI AL 03-2023 Onerado'!$A$8:$E$7500,2,0),VLOOKUP(C161,'Comp SINAPI AL 03-2023 Onerado'!$G$7:$K$7500,2,0)) -> AJUDANTE DE PEDREIRO COM ENCARGOS COMPLEMENTARES | E161: =LOWER(IF(I161="i",VLOOKUP(C161,'Ins SINAPI AL 03-2023 Onerado'!$A$8:$E$7500,3,0),VLOOKUP(C161,'Comp SINAPI AL 03-2023 Onerado'!$G$7:$K$7500,3,0))) -> h | F161: 64 | G161: =IF(I161="i",VLOOKUP(C161,'Ins SINAPI AL 03-2023 Onerado'!$A$8:$E$7500,5,0),VLOOKUP(C161,'Comp SINAPI AL 03-2023 Onerado'!$G$7:$K$7500,5,0)) -> 17.97 | H161: =ROUND(F161*G161,2) -> 1150.08 | I161: ca
I162: x
A163: =B163 -> 5.4 | B163: ='Planilha Orçamentária'!A45 -> 5.4 | C163: =VLOOKUP($B163,'Planilha Orçamentária'!$A$11:$K$104,3,) -> CPU.14 | D163: =VLOOKUP($B163,'Planilha Orçamentária'!$A$11:$K$104,4+2,) -> Montagem das novas peças fixas | E163: =VLOOKUP($B163,'Planilha Orçamentária'!$A$11:$K$104,5+2) -> un | H163: =SUM(H164,H167,H172,H173) -> 27825.76 | I163: S
A164: =B163 -> 5.4 | B164: =B163 -> 5.4 | D164: MATERIAL | H164: =SUM(H165:H166) -> 2052.6 | I164: SS
A165: =B163 -> 5.4 | B165: SINAPI | C165: 10997 | D165: =IF(I165="i",VLOOKUP(C165,'Ins SINAPI AL 03-2023 Onerado'!$A$8:$E$5189,2,0),VLOOKUP(C165,'Comp SINAPI AL 03-2023 Onerado'!$G$7:$K$6879,2,0)) -> ELETRODO REVESTIDO AWS - E7018, DIAMETRO IGUAL A 4,00 MM | E165: =LOWER(IF(I165="i",VLOOKUP(C165,'Ins SINAPI AL 03-2023 Onerado'!$A$8:$E$7500,3,0),VLOOKUP(C165,'Comp SINAPI AL 03-2023 Onerado'!$G$7:$K$7500,3,0))) -> kg | F165: 30 | G165: =IF(I165="i",VLOOKUP(C165,'Ins SINAPI AL 03-2023 Onerado'!$A$8:$E$5189,5,0),VLOOKUP(C165,'Comp SINAPI AL 03-2023 Onerado'!$G$7:$K$6879,5,0)) -> 47.42 | H165: =ROUND(F165*G165,2) -> 1422.6 | I165: i
A166: =B163 -> 5.4 | B166: SINAPI | C166: 1 | D166: =IF(I166="i",VLOOKUP(C166,'Ins SINAPI AL 03-2023 Onerado'!$A$8:$E$5189,2,0),VLOOKUP(C166,'Comp SINAPI AL 03-2023 Onerado'!$G$7:$K$6879,2,0)) -> ACETILENO (RECARGA DE GAS ACETILENO PARA CILINDRO DE CONJUNTO OXICORTE GRANDE) NAO INCLUI TROCA/MANUTENCAO DO CILINDRO | E166: =LOWER(IF(I166="i",VLOOKUP(C166,'Ins SINAPI AL 03-2023 Onerado'!$A$8:$E$7500,3,0),VLOOKUP(C166,'Comp SINAPI AL 03-2023 Onerado'!$G$7:$K$7500,3,0))) -> kg | F166: 10 | G166: =IF(I166="i",VLOOKUP(C166,'Ins SINAPI AL 03-2023 Onerado'!$A$8:$E$5189,5,0),VLOOKUP(C166,'Comp SINAPI AL 03-2023 Onerado'!$G$7:$K$6879,5,0)) -> 63 | H166: =ROUND(F166*G166,2) -> 630 | I166: i
A167: =B163 -> 5.4 | B167: =B163 -> 5.4 | D167: EQUIPAMENTOS | H167: =SUM(H168:H171) -> 11646.24 | I167: SS
A168: =B163 -> 5.4 | B168: SINAPI | C168: 83763 | D168: =IF(I168="i",VLOOKUP(C168,'Ins SINAPI AL 03-2023 Onerado'!$A$8:$E$7500,2,0),VLOOKUP(C168,'Comp SINAPI AL 03-2023 Onerado'!$G$7:$K$7500,2,0)) -> GRUPO DE SOLDAGEM COM GERADOR A DIESEL 60 CV PARA SOLDA ELÉTRICA, SOBRE 04 RODAS, COM MOTOR 4 CILINDROS 600 A - MATERIAIS NA OPERAÇÃO. AF_02/2016 | E168: =LOWER(IF(I168="i",VLOOKUP(C168,'Ins SINAPI AL 03-2023 Onerado'!$A$8:$E$7500,3,0),VLOOKUP(C168,'Comp SINAPI AL 03-2023 Onerado'!$G$7:$K$7500,3,0))) -> h | F168: 72 | G168: =IF(I168="i",VLOOKUP(C168,'Ins SINAPI AL 03-2023 Onerado'!$A$8:$E$5189,5,0),VLOOKUP(C168,'Comp SINAPI AL 03-2023 Onerado'!$G$7:$K$6879,5,0)) -> 49.58 | H168: =ROUND(F168*G168,2) -> 3569.76 | I168: ca
A169: =B163 -> 5.4 | B169: SINAPI | C169: 92715 | D169: =IF(I169="i",VLOOKUP(C169,'Ins SINAPI AL 03-2023 Onerado'!$A$8:$E$7500,2,0),VLOOKUP(C169,'Comp SINAPI AL 03-2023 Onerado'!$G$7:$K$7500,2,0)) -> APARELHO PARA CORTE E SOLDA OXI-ACETILENO SOBRE RODAS, INCLUSIVE CILINDROS E MAÇARICOS - MATERIAIS NA OPERAÇÃO. AF_05/2023 | E169: =LOWER(IF(I169="i",VLOOKUP(C169,'Ins SINAPI AL 03-2023 Onerado'!$A$8:$E$7500,3,0),VLOOKUP(C169,'Comp SINAPI AL 03-2023 Onerado'!$G$7:$K$7500,3,0))) -> h | F169: 48 | G169: =IF(I169="i",VLOOKUP(C169,'Ins SINAPI AL 03-2023 Onerado'!$A$8:$E$5189,5,0),VLOOKUP(C169,'Comp SINAPI AL 03-2023 Onerado'!$G$7:$K$6879,5,0)) -> 65.7 | H169: =ROUND(F169*G169,2) -> 3153.6 | I169: ca
A170: =B163 -> 5.4 | B170: SINAPI | C170: 10527 | D170: =IF(I170="i",VLOOKUP(C170,'Ins SINAPI AL 03-2023 Onerado'!$A$8:$E$7500,2,0),VLOOKUP(C170,'Comp SINAPI AL 03-2023 Onerado'!$G$7:$K$7500,2,0)) -> LOCACAO DE ANDAIME METALICO TUBULAR DE ENCAIXE, TIPO DE TORRE, CADA PAINEL COM LARGURA DE 1 ATE 1,5 M E ALTURA DE *1,00* M, INCLUINDO DIAGONAL, BARRAS DE LIGACAO, SAPATAS OU RODIZIOS E DEMAIS ITENS NECESSARIOS A MONTAGEM (NAO INCLUI INSTALACAO) | E170: =LOWER(IF(I170="i",VLOOKUP(C170,'Ins SINAPI AL 03-2023 Onerado'!$A$8:$E$7500,3,0),VLOOKUP(C170,'Comp SINAPI AL 03-2023 Onerado'!$G$7:$K$7500,3,0))) -> mxmes | F170: 12 | G170: =IF(I170="i",VLOOKUP(C170,'Ins SINAPI AL 03-2023 Onerado'!$A$8:$E$5189,5,0),VLOOKUP(C170,'Comp SINAPI AL 03-2023 Onerado'!$G$7:$K$6879,5,0)) -> 26 | H170: =ROUND(F170*G170,2) -> 312 | I170: i
A171: =B163 -> 5.4 | B171: SINAPI | C171: 89272 | D171: =IF(I171="i",VLOOKUP(C171,'Ins SINAPI AL 03-2023 Onerado'!$A$8:$E$7500,2,0),VLOOKUP(C171,'Comp SINAPI AL 03-2023 Onerado'!$G$7:$K$7500,2,0)) -> GUINDASTE HIDRÁULICO AUTOPROPELIDO, COM LANÇA TELESCÓPICA 28,80 M, CAPACIDADE MÁXIMA 30 T, POTÊNCIA 97 KW, TRAÇÃO 4 X 4 - CHP DIURNO. AF_11/2014 | E171: =LOWER(IF(I171="i",VLOOKUP(C171,'Ins SINAPI AL 03-2023 Onerado'!$A$8:$E$7500,3,0),VLOOKUP(C171,'Comp SINAPI AL 03-2023 Onerado'!$G$7:$K$7500,3,0))) -> chp | F171: 24 | G171: =IF(I171="i",VLOOKUP(C171,'Ins SINAPI AL 03-2023 Onerado'!$A$8:$E$5189,5,0),VLOOKUP(C171,'Comp SINAPI AL 03-2023 Onerado'!$G$7:$K$6879,5,0)) -> 192.12 | H171: =ROUND(F171*G171,2) -> 4610.88 | I171: ca
A172: =B163 -> 5.4 | B172: =B163 -> 5.4 | D172: SERVIÇOS | H172: 0 | I172: SS
A173: =B163 -> 5.4 | B173: =B163 -> 5.4 | D173: MÃO DE OBRA | H173: =SUM(H174:H177) -> 14126.92 | I173: MDO
A174: =B163 -> 5.4 | B174: SINAPI | C174: 88278 | D174: =IF(I174="i",VLOOKUP(C174,'Ins SINAPI AL 03-2023 Onerado'!$A$8:$E$7500,2,0),VLOOKUP(C174,'Comp SINAPI AL 03-2023 Onerado'!$G$7:$K$7500,2,0)) -> MONTADOR DE ESTRUTURA METÁLICA COM ENCARGOS COMPLEMENTARES | E174: =LOWER(IF(I174="i",VLOOKUP(C174,'Ins SINAPI AL 03-2023 Onerado'!$A$8:$E$7500,3,0),VLOOKUP(C174,'Comp SINAPI AL 03-2023 Onerado'!$G$7:$K$7500,3,0))) -> h | F174: 320 | G174: =IF(I174="i",VLOOKUP(C174,'Ins SINAPI AL 03-2023 Onerado'!$A$8:$E$7500,5,0),VLOOKUP(C174,'Comp SINAPI AL 03-2023 Onerado'!$G$7:$K$7500,5,0)) -> 17.52 | H174: =ROUND(F174*G174,2) -> 5606.4 | I174: ca
A175: =B163 -> 5.4 | B175: SINAPI | C175: 88317 | D175: =IF(I175="i",VLOOKUP(C175,'Ins SINAPI AL 03-2023 Onerado'!$A$8:$E$7500,2,0),VLOOKUP(C175,'Comp SINAPI AL 03-2023 Onerado'!$G$7:$K$7500,2,0)) -> SOLDADOR COM ENCARGOS COMPLEMENTARES | E175: =LOWER(IF(I175="i",VLOOKUP(C175,'Ins SINAPI AL 03-2023 Onerado'!$A$8:$E$7500,3,0),VLOOKUP(C175,'Comp SINAPI AL 03-2023 Onerado'!$G$7:$K$7500,3,0))) -> h | F175: 96 | G175: =IF(I175="i",VLOOKUP(C175,'Ins SINAPI AL 03-2023 Onerado'!$A$8:$E$7500,5,0),VLOOKUP(C175,'Comp SINAPI AL 03-2023 Onerado'!$G$7:$K$7500,5,0)) -> 26.31 | H175: =ROUND(F175*G175,2) -> 2525.76 | I175: ca
A176: =B163 -> 5.4 | B176: SINAPI | C176: 88241 | D176: =IF(I176="i",VLOOKUP(C176,'Ins SINAPI AL 03-2023 Onerado'!$A$8:$E$7500,2,0),VLOOKUP(C176,'Comp SINAPI AL 03-2023 Onerado'!$G$7:$K$7500,2,0)) -> AJUDANTE DE OPERAÇÃO EM GERAL COM ENCARGOS COMPLEMENTARES | E176: =LOWER(IF(I176="i",VLOOKUP(C176,'Ins SINAPI AL 03-2023 Onerado'!$A$8:$E$7500,3,0),VLOOKUP(C176,'Comp SINAPI AL 03-2023 Onerado'!$G$7:$K$7500,3,0))) -> h | F176: 320 | G176: =IF(I176="i",VLOOKUP(C176,'Ins SINAPI AL 03-2023 Onerado'!$A$8:$E$7500,5,0),VLOOKUP(C176,'Comp SINAPI AL 03-2023 Onerado'!$G$7:$K$7500,5,0)) -> 17.93 | H176: =ROUND(F176*G176,2) -> 5737.6 | I176: ca
A177: =B163 -> 5.4 | B177: SINAPI | C177: 90778 | D177: ENGENHEIRO MECANICO DE OBRA PLENO COM ENCARGOS COMPLEMENTARES (BASEADO SINAPI 90778) | E177: h | F177: 2 | G177: =IF(I177="i",VLOOKUP(C177,'Ins SINAPI AL 03-2023 Onerado'!$A$8:$E$7500,5,0),VLOOKUP(C177,'Comp SINAPI AL 03-2023 Onerado'!$G$7:$K$7500,5,0)) -> 128.58 | H177: =ROUND(F177*G177,2) -> 257.16 | I177: ca
A178: =B178 -> 5.5 | B178: ='Planilha Orçamentária'!A46 -> 5.5 | C178: =VLOOKUP($B178,'Planilha Orçamentária'!$A$11:$K$104,3,) -> CPU.15 | D178: =VLOOKUP($B178,'Planilha Orçamentária'!$A$11:$K$104,4+2,) -> Concretagem das novas peças fixas | E178: =VLOOKUP($B178,'Planilha Orçamentária'!$A$11:$K$104,5+2) -> un | H178: =SUM(H179,H182,H184,H187) -> 7004.23 | I178: S
A179: =B178 -> 5.5 | B179: =B178 -> 5.5 | D179: MATERIAL | H179: =SUM(H180:H181) -> 196.86 | I179: SS
A180: =B178 -> 5.5 | B180: SINAPI | C180: 4491 | D180: =IF(I180="i",VLOOKUP(C180,'Ins SINAPI AL 03-2023 Onerado'!$A$8:$E$5189,2,0),VLOOKUP(C180,'Comp SINAPI AL 03-2023 Onerado'!$G$7:$K$6879,2,0)) -> PONTALETE *7,5 X 7,5* CM EM PINUS, MISTA OU EQUIVALENTE DA REGIAO - BRUTA | E180: =LOWER(IF(I180="i",VLOOKUP(C180,'Ins SINAPI AL 03-2023 Onerado'!$A$8:$E$7500,3,0),VLOOKUP(C180,'Comp SINAPI AL 03-2023 Onerado'!$G$7:$K$7500,3,0))) -> m | F180: 12 | G180: =IF(I180="i",VLOOKUP(C180,'Ins SINAPI AL 03-2023 Onerado'!$A$8:$E$5189,5,0),VLOOKUP(C180,'Comp SINAPI AL 03-2023 Onerado'!$G$7:$K$6879,5,0)) -> 12.66 | H180: =ROUND(F180*G180,2) -> 151.92 | I180: I
A181: =B178 -> 5.5 | B181: SINAPI | C181: 4509 | D181: =IF(I181="i",VLOOKUP(C181,'Ins SINAPI AL 03-2023 Onerado'!$A$8:$E$5189,2,0),VLOOKUP(C181,'Comp SINAPI AL 03-2023 Onerado'!$G$7:$K$6879,2,0)) -> SARRAFO *2,5 X 10* CM EM PINUS, MISTA OU EQUIVALENTE DA REGIAO - BRUTA | E181: =LOWER(IF(I181="i",VLOOKUP(C181,'Ins SINAPI AL 03-2023 Onerado'!$A$8:$E$7500,3,0),VLOOKUP(C181,'Comp SINAPI AL 03-2023 Onerado'!$G$7:$K$7500,3,0))) -> m | F181: 7 | G181: =IF(I181="i",VLOOKUP(C181,'Ins SINAPI AL 03-2023 Onerado'!$A$8:$E$5189,5,0),VLOOKUP(C181,'Comp SINAPI AL 03-2023 Onerado'!$G$7:$K$6879,5,0)) -> 6.42 | H181: =ROUND(F181*G181,2) -> 44.94 | I181: I
A182: =B178 -> 5.5 | B182: =B178 -> 5.5 | D182: EQUIPAMENTOS | H182: =SUM(H183:H183) -> 190.2 | I182: SS
A183: =B178 -> 5.5 | B183: SINAPI | C183: 90662 | D183: =IF(I183="i",VLOOKUP(C183,'Ins SINAPI AL 03-2023 Onerado'!$A$8:$E$5189,2,0),VLOOKUP(C183,'Comp SINAPI AL 03-2023 Onerado'!$G$7:$K$6879,2,0)) -> BOMBA DE PROJEÇÃO DE CONCRETO SECO, POTÊNCIA 10 CV, VAZÃO 6 M3/H - CHP DIURNO. AF_06/2015 | E183: =LOWER(IF(I183="i",VLOOKUP(C183,'Ins SINAPI AL 03-2023 Onerado'!$A$8:$E$7500,3,0),VLOOKUP(C183,'Comp SINAPI AL 03-2023 Onerado'!$G$7:$K$7500,3,0))) -> chp | F183: 12 | G183: =IF(I183="i",VLOOKUP(C183,'Ins SINAPI AL 03-2023 Onerado'!$A$8:$E$5189,5,0),VLOOKUP(C183,'Comp SINAPI AL 03-2023 Onerado'!$G$7:$K$6879,5,0)) -> 15.85 | H183: =ROUND(F183*G183,2) -> 190.2 | I183: ca
A184: =B178 -> 5.5 | B184: =B178 -> 5.5 | D184: SERVIÇOS | H184: =SUM(H185:H186) -> 5191.89 | I184: SS
A185: =B178 -> 5.5 | B185: SINAPI | C185: 92409 | D185: =IF(I185="i",VLOOKUP(C185,'Ins SINAPI AL 03-2023 Onerado'!$A$8:$E$5189,2,0),VLOOKUP(C185,'Comp SINAPI AL 03-2023 Onerado'!$G$7:$K$6879,2,0)) -> MONTAGEM E DESMONTAGEM DE FÔRMA DE PILARES RETANGULARES E ESTRUTURAS SIMILARES, PÉ-DIREITO SIMPLES, EM MADEIRA SERRADA, 1 UTILIZAÇÃO. AF_09/2020 | E185: =LOWER(IF(I185="i",VLOOKUP(C185,'Ins SINAPI AL 03-2023 Onerado'!$A$8:$E$7500,3,0),VLOOKUP(C185,'Comp SINAPI AL 03-2023 Onerado'!$G$7:$K$7500,3,0))) -> m2 | F185: 8.82 | G185: =IF(I185="i",VLOOKUP(C185,'Ins SINAPI AL 03-2023 Onerado'!$A$8:$E$5189,5,0),VLOOKUP(C185,'Comp SINAPI AL 03-2023 Onerado'!$G$7:$K$6879,5,0)) -> 260.43 | H185: =ROUND(F185*G185,2) -> 2296.99 | I185: ca
A186: =B178 -> 5.5 | B186: SINAPI | C186: 103669 | D186: =IF(I186="i",VLOOKUP(C186,'Ins SINAPI AL 03-2023 Onerado'!$A$8:$E$7500,2,0),VLOOKUP(C186,'Comp SINAPI AL 03-2023 Onerado'!$G$7:$K$7500,2,0)) -> CONCRETAGEM DE PILARES, FCK = 25 MPA, COM USO DE BALDES - LANÇAMENTO, ADENSAMENTO E ACABAMENTO. AF_02/2022 | E186: =LOWER(IF(I186="i",VLOOKUP(C186,'Ins SINAPI AL 03-2023 Onerado'!$A$8:$E$7500,3,0),VLOOKUP(C186,'Comp SINAPI AL 03-2023 Onerado'!$G$7:$K$7500,3,0))) -> m3 | F186: 3.354 | G186: =IF(I186="i",VLOOKUP(C186,'Ins SINAPI AL 03-2023 Onerado'!$A$8:$E$7500,5,0),VLOOKUP(C186,'Comp SINAPI AL 03-2023 Onerado'!$G$7:$K$7500,5,0)) -> 863.12 | H186: =ROUND(F186*G186,2) -> 2894.9 | I186: CA
A187: =B178 -> 5.5 | B187: =B178 -> 5.5 | D187: MÃO DE OBRA | H187: =SUM(H188:H189) -> 1425.28 | I187: MDO
A188: =B178 -> 5.5 | B188: SINAPI | C188: 88291 | D188: =IF(I188="i",VLOOKUP(C188,'Ins SINAPI AL 03-2023 Onerado'!$A$8:$E$7500,2,0),VLOOKUP(C188,'Comp SINAPI AL 03-2023 Onerado'!$G$7:$K$7500,2,0)) -> OPERADOR DE BETONEIRA (CAMINHÃO) COM ENCARGOS COMPLEMENTARES | E188: =LOWER(IF(I188="i",VLOOKUP(C188,'Ins SINAPI AL 03-2023 Onerado'!$A$8:$E$7500,3,0),VLOOKUP(C188,'Comp SINAPI AL 03-2023 Onerado'!$G$7:$K$7500,3,0))) -> h | F188: 16 | G188: =IF(I188="i",VLOOKUP(C188,'Ins SINAPI AL 03-2023 Onerado'!$A$8:$E$7500,5,0),VLOOKUP(C188,'Comp SINAPI AL 03-2023 Onerado'!$G$7:$K$7500,5,0)) -> 17.2 | H188: =ROUND(F188*G188,2) -> 275.2 | I188: ca
A189: =B178 -> 5.5 | B189: SINAPI | C189: 88242 | D189: =IF(I189="i",VLOOKUP(C189,'Ins SINAPI AL 03-2023 Onerado'!$A$8:$E$7500,2,0),VLOOKUP(C189,'Comp SINAPI AL 03-2023 Onerado'!$G$7:$K$7500,2,0)) -> AJUDANTE DE PEDREIRO COM ENCARGOS COMPLEMENTARES | E189: =LOWER(IF(I189="i",VLOOKUP(C189,'Ins SINAPI AL 03-2023 Onerado'!$A$8:$E$7500,3,0),VLOOKUP(C189,'Comp SINAPI AL 03-2023 Onerado'!$G$7:$K$7500,3,0))) -> h | F189: 64 | G189: =IF(I189="i",VLOOKUP(C189,'Ins SINAPI AL 03-2023 Onerado'!$A$8:$E$7500,5,0),VLOOKUP(C189,'Comp SINAPI AL 03-2023 Onerado'!$G$7:$K$7500,5,0)) -> 17.97 | H189: =ROUND(F189*G189,2) -> 1150.08 | I189: ca
I190: x
A191: =B191 -> 5.6 | B191: ='Planilha Orçamentária'!A47 -> 5.6 | C191: =VLOOKUP($B191,'Planilha Orçamentária'!$A$11:$K$104,3,) -> CPU.16 | D191: =VLOOKUP($B191,'Planilha Orçamentária'!$A$11:$K$104,4+2,) -> Retirada de formas das peças fixas | E191: =VLOOKUP($B191,'Planilha Orçamentária'!$A$11:$K$104,5+2,) -> un | H191: =SUM(H192,H193,H194,H197) -> 3538.13 | I191: S
A192: =B191 -> 5.6 | B192: =B191 -> 5.6 | D192: MATERIAL | H192: 0 | I192: SS
A193: =B191 -> 5.6 | B193: =B191 -> 5.6 | D193: EQUIPAMENTOS | H193: 0 | I193: SS
A194: =B191 -> 5.6 | B194: =B191 -> 5.6 | D194: SERVIÇOS | H194: =SUM(H195:H196) -> 2388.05 | I194: SS
A195: =B191 -> 5.6 | B195: SINAPI | C195: 92409 | D195: =IF(I195="i",VLOOKUP(C195,'Ins SINAPI AL 03-2023 Onerado'!$A$8:$E$5189,2,0),VLOOKUP(C195,'Comp SINAPI AL 03-2023 Onerado'!$G$7:$K$6879,2,0)) -> MONTAGEM E DESMONTAGEM DE FÔRMA DE PILARES RETANGULARES E ESTRUTURAS SIMILARES, PÉ-DIREITO SIMPLES, EM MADEIRA SERRADA, 1 UTILIZAÇÃO. AF_09/2020 | E195: =LOWER(IF(I195="i",VLOOKUP(C195,'Ins SINAPI AL 03-2023 Onerado'!$A$8:$E$7500,3,0),VLOOKUP(C195,'Comp SINAPI AL 03-2023 Onerado'!$G$7:$K$7500,3,0))) -> m2 | F195: 8.82 | G195: =IF(I195="i",VLOOKUP(C195,'Ins SINAPI AL 03-2023 Onerado'!$A$8:$E$7500,5,0),VLOOKUP(C195,'Comp SINAPI AL 03-2023 Onerado'!$G$7:$K$7500,5,0)) -> 260.43 | H195: =ROUND(F195*G195,2) -> 2296.99 | I195: ca
A196: =B191 -> 5.6 | B196: SINAPI | C196: 97914 | D196: =IF(I196="i",VLOOKUP(C196,'Ins SINAPI AL 03-2023 Onerado'!$A$8:$E$5189,2,0),VLOOKUP(C196,'Comp SINAPI AL 03-2023 Onerado'!$G$7:$K$7500,2,0)) -> TRANSPORTE COM CAMINHÃO BASCULANTE DE 6 M³, EM VIA URBANA PAVIMENTADA, DMT ATÉ 30 KM (UNIDADE: M3XKM). AF_07/2020 | E196: =LOWER(IF(I196="i",VLOOKUP(C196,'Ins SINAPI AL 03-2023 Onerado'!$A$8:$E$7500,3,0),VLOOKUP(C196,'Comp SINAPI AL 03-2023 Onerado'!$G$7:$K$7500,3,0))) -> m3xkm | F196: 33.6 | G196: =IF(I196="i",VLOOKUP(C196,'Ins SINAPI AL 03-2023 Onerado'!$A$8:$E$7500,5,0),VLOOKUP(C196,'Comp SINAPI AL 03-2023 Onerado'!$G$7:$K$7500,5,0)) -> 2.71 | H196: =ROUND(F196*G196,2) -> 91.06 | I196: ca
A197: =B191 -> 5.6 | B197: =B191 -> 5.6 | D197: MÃO DE OBRA | H197: =H198 -> 1150.08 | I197: MDO
A198: =B191 -> 5.6 | B198: SINAPI | C198: 88242 | D198: =IF(I198="i",VLOOKUP(C198,'Ins SINAPI AL 03-2023 Onerado'!$A$8:$E$5189,2,0),VLOOKUP(C198,'Comp SINAPI AL 03-2023 Onerado'!$G$7:$K$7500,2,0)) -> AJUDANTE DE PEDREIRO COM ENCARGOS COMPLEMENTARES | E198: =LOWER(IF(I198="i",VLOOKUP(C198,'Ins SINAPI AL 03-2023 Onerado'!$A$8:$E$7500,3,0),VLOOKUP(C198,'Comp SINAPI AL 03-2023 Onerado'!$G$7:$K$7500,3,0))) -> h | F198: 64 | G198: =IF(I198="i",VLOOKUP(C198,'Ins SINAPI AL 03-2023 Onerado'!$A$8:$E$7500,5,0),VLOOKUP(C198,'Comp SINAPI AL 03-2023 Onerado'!$G$7:$K$7500,5,0)) -> 17.97 | H198: =ROUND(F198*G198,2) -> 1150.08 | I198: ca
I199: x
A200: =B200 -> 5.7 | B200: ='Planilha Orçamentária'!A48 -> 5.7 | C200: =VLOOKUP($B200,'Planilha Orçamentária'!$A$11:$K$104,3,) -> CPU.17 | D200: =VLOOKUP($B200,'Planilha Orçamentária'!$A$11:$K$104,4+2,) -> Demolição da casa de comando das comportas segmento existente e transporte de entulho | E200: =VLOOKUP($B200,'Planilha Orçamentária'!$A$11:$K$104,5+2,) -> un | H200: =SUM(H201,H202,H203,H206) -> 8755.48 | I200: S
A201: =B200 -> 5.7 | B201: =B200 -> 5.7 | D201: MATERIAL | H201: 0 | I201: SS
A202: =B200 -> 5.7 | B202: =B200 -> 5.7 | D202: EQUIPAMENTOS | H202: 0 | I202: SS
A203: =B200 -> 5.7 | B203: =B200 -> 5.7 | D203: SERVIÇOS | H203: =SUM(H204:H205) -> 7030.36 | I203: ss
A204: =B200 -> 5.7 | B204: SINAPI | C204: 97627 | D204: =IF(I204="i",VLOOKUP(C204,'Ins SINAPI AL 03-2023 Onerado'!$A$8:$E$5189,2,0),VLOOKUP(C204,'Comp SINAPI AL 03-2023 Onerado'!$G$7:$K$6879,2,0)) -> DEMOLIÇÃO DE PILARES E VIGAS EM CONCRETO ARMADO, DE FORMA MECANIZADA COM MARTELETE, SEM REAPROVEITAMENTO. AF_12/2017 | E204: =LOWER(IF(I204="i",VLOOKUP(C204,'Ins SINAPI AL 03-2023 Onerado'!$A$8:$E$7500,3,0),VLOOKUP(C204,'Comp SINAPI AL 03-2023 Onerado'!$G$7:$K$7500,3,0))) -> m3 | F204: 12.12 | G204: =IF(I204="i",VLOOKUP(C204,'Ins SINAPI AL 03-2023 Onerado'!$A$8:$E$5189,5,0),VLOOKUP(C204,'Comp SINAPI AL 03-2023 Onerado'!$G$7:$K$6879,5,0)) -> 247.35 | H204: =ROUND(F204*G204,2) -> 2997.88 | I204: ca
A205: =B200 -> 5.7 | B205: SINAPI | C205: 97914 | D205: =IF(I205="i",VLOOKUP(C205,'Ins SINAPI AL 03-2023 Onerado'!$A$8:$E$5189,2,0),VLOOKUP(C205,'Comp SINAPI AL 03-2023 Onerado'!$G$7:$K$7500,2,0)) -> TRANSPORTE COM CAMINHÃO BASCULANTE DE 6 M³, EM VIA URBANA PAVIMENTADA, DMT ATÉ 30 KM (UNIDADE: M3XKM). AF_07/2020 | E205: =LOWER(IF(I205="i",VLOOKUP(C205,'Ins SINAPI AL 03-2023 Onerado'!$A$8:$E$7500,3,0),VLOOKUP(C205,'Comp SINAPI AL 03-2023 Onerado'!$G$7:$K$7500,3,0))) -> m3xkm | F205: 1488 | G205: =IF(I205="i",VLOOKUP(C205,'Ins SINAPI AL 03-2023 Onerado'!$A$8:$E$7500,5,0),VLOOKUP(C205,'Comp SINAPI AL 03-2023 Onerado'!$G$7:$K$7500,5,0)) -> 2.71 | H205: =ROUND(F205*G205,2) -> 4032.48 | I205: ca
A206: =B200 -> 5.7 | B206: =B200 -> 5.7 | D206: MÃO DE OBRA | H206: =H207 -> 1725.12 | I206: MDO
A207: =B200 -> 5.7 | B207: SINAPI | C207: 88242 | D207: =IF(I207="i",VLOOKUP(C207,'Ins SINAPI AL 03-2023 Onerado'!$A$8:$E$5189,2,0),VLOOKUP(C207,'Comp SINAPI AL 03-2023 Onerado'!$G$7:$K$7500,2,0)) -> AJUDANTE DE PEDREIRO COM ENCARGOS COMPLEMENTARES | E207: =LOWER(IF(I207="i",VLOOKUP(C207,'Ins SINAPI AL 03-2023 Onerado'!$A$8:$E$7500,3,0),VLOOKUP(C207,'Comp SINAPI AL 03-2023 Onerado'!$G$7:$K$7500,3,0))) -> h | F207: 96 | G207: =IF(I207="i",VLOOKUP(C207,'Ins SINAPI AL 03-2023 Onerado'!$A$8:$E$7500,5,0),VLOOKUP(C207,'Comp SINAPI AL 03-2023 Onerado'!$G$7:$K$7500,5,0)) -> 17.97 | H207: =ROUND(F207*G207,2) -> 1725.12 | I207: ca
... 189 more rows

Sheet CPU DESONERADO (hidden)
B1: Ministério do Desenvolvimento Regional
B2: Companhia de Desenvolvimento dos Vales do São Francisco e do Parnaíba
B4: COMPOSIÇÕES DE PREÇOS UNITÁRIOS - ORÇAMENTO DESONERADO
B5: OBRA: | C5: ='Planilha Orçamentária'!B5 -> SUBSTITUIÇÃO DAS COMPORTAS NA BARRAGEM DE BOACICA | E5: BDI (serv.): | F5: ='BDI serv Desonerado'!D23 -> 0.3243
B6: LOCAL: | C6: ='Planilha Orçamentária'!B6 -> BARRAGEM BOACICA (IGREJA NOVA - AL) | E6: BDI (forn.): | F6: ='BDI forn Desonerado'!E6 -> 0.2032
B7: DATA BASE: | C7: ='Planilha Orçamentária'!B7 -> 2023-05-01
B8: PRAZO: | C8: ='Planilha Orçamentária'!B8 -> 240 DIAS
B10: REFERÊNCIA | C10: CÓDIGO | D10: DESCRIÇÃO | E10: UNIDADE | F10: ÍNDICE | G10: CUSTO UNITÁRIO | H10: PREÇO TOTAL
A11: =B11 -> 1.1 | B11: ='Planilha Orçamentária Desoner'!A12 -> 1.1 | C11: =VLOOKUP($B11,'Planilha Orçamentária'!$A$11:$K$104,3,) -> CPU.01 | D11: =VLOOKUP($B11,'Planilha Orçamentária'!$A$11:$K$104,4,) -> 1341 | E11: mes | H11: =SUM(H12,H16,H13,H15) -> 22304.79 | I11: S
A12: =B11 -> 1.1 | B12: =B11 -> 1.1 | D12: MATERIAL | H12: 0 | I12: SS
A13: =B11 -> 1.1 | B13: =B11 -> 1.1 | D13: EQUIPAMENTOS | H13: =SUM(H14:H14) -> 5885.33 | I13: SS
A14: =A13 -> 1.1 | B14: CODEVASF | D14: CAMINHONETE | E14: mes | F14: 1 | G14: 5885.33 | H14: =ROUND(F14*G14,2) -> 5885.33 | I14: I
A15: =B11 -> 1.1 | B15: =B11 -> 1.1 | D15: SERVIÇOS | H15: 0 | I15: SS
A16: =B11 -> 1.1 | B16: =B11 -> 1.1 | D16: MÃO DE OBRA | H16: =SUM(H17:H21) -> 16419.46 | I16: MDO
A17: =B11 -> 1.1 | B17: SINAPI | C17: 90778 | D17: ENGENHEIRO CIVIL DE OBRA PLENO COM ENCARGOS COMPLEMENTARES | E17: =LOWER(IF(I17="i",VLOOKUP(C17,'Ins SINAPI AL 03-2023 Onerado'!$A$8:$E$7500,3,0),VLOOKUP(C17,'Comp SINAPI AL 03-2023 Onerado'!$G$7:$K$7500,3,0))) -> h | F17: 16 | G17: =IF(I17="i",VLOOKUP(C17,'Ins SINAPI AL 03-2023 Desonerad'!$A$8:$E$7500,5,0),VLOOKUP(C17,'Comp SINAPI AL 03-2023 Desoner'!$G$7:$K$7500,5,0)) -> 109.58 | H17: =ROUND(F17*G17,2) -> 1753.28 | I17: ca
A18: =B11 -> 1.1 | B18: SINAPI ADAPTADO | C18: 90778 | D18: ENGENHEIRO MECANICO DE OBRA PLENO COM ENCARGOS COMPLEMENTARES (BASEADO SINAPI 90778) | E18: =LOWER(IF(I18="i",VLOOKUP(C18,'Ins SINAPI AL 03-2023 Onerado'!$A$8:$E$7500,3,0),VLOOKUP(C18,'Comp SINAPI AL 03-2023 Onerado'!$G$7:$K$7500,3,0))) -> h | F18: 32 | G18: =IF(I18="i",VLOOKUP(C18,'Ins SINAPI AL 03-2023 Desonerad'!$A$8:$E$7500,5,0),VLOOKUP(C18,'Comp SINAPI AL 03-2023 Desoner'!$G$7:$K$7500,5,0)) -> 109.58 | H18: =ROUND(F18*G18,2) -> 3506.56 | I18: ca
A19: =B11 -> 1.1 | B19: SINAPI | C19: 93572 | D19: =IF(I19="i",VLOOKUP(C19,'Ins SINAPI AL 03-2023 Onerado'!$A$8:$E$5189,2,0),VLOOKUP(C19,'Comp SINAPI AL 03-2023 Onerado'!$G$7:$K$7500,2,0)) -> ENCARREGADO GERAL DE OBRAS COM ENCARGOS COMPLEMENTARES | E19: =LOWER(IF(I19="i",VLOOKUP(C19,'Ins SINAPI AL 03-2023 Onerado'!$A$8:$E$7500,3,0),VLOOKUP(C19,'Comp SINAPI AL 03-2023 Onerado'!$G$7:$K$7500,3,0))) -> mes | F19: 1 | G19: =IF(I19="i",VLOOKUP(C19,'Ins SINAPI AL 03-2023 Desonerad'!$A$8:$E$7500,5,0),VLOOKUP(C19,'Comp SINAPI AL 03-2023 Desoner'!$G$7:$K$7500,5,0)) -> 3832.41 | H19: =ROUND(F19*G19,2) -> 3832.41 | I19: ca
A20: =B11 -> 1.1 | B20: SINAPI | C20: 101390 | D20: =IF(I20="i",VLOOKUP(C20,'Ins SINAPI AL 03-2023 Onerado'!$A$8:$E$5189,2,0),VLOOKUP(C20,'Comp SINAPI AL 03-2023 Onerado'!$G$7:$K$7500,2,0)) -> AUXILIAR TÉCNICO / ASSISTENTE DE ENGENHARIA COM ENCARGOS COMPLEMENTARES | E20: =LOWER(IF(I20="i",VLOOKUP(C20,'Ins SINAPI AL 03-2023 Onerado'!$A$8:$E$7500,3,0),VLOOKUP(C20,'Comp SINAPI AL 03-2023 Onerado'!$G$7:$K$7500,3,0))) -> mes | F20: 1 | G20: =IF(I20="i",VLOOKUP(C20,'Ins SINAPI AL 03-2023 Desonerad'!$A$8:$E$7500,5,0),VLOOKUP(C20,'Comp SINAPI AL 03-2023 Desoner'!$G$7:$K$7500,5,0)) -> 4286.2 | H20: =ROUND(F20*G20,2) -> 4286.2 | I20: ca
A21: =B11 -> 1.1 | B21: SINAPI | C21: 101388 | D21: =IF(I21="i",VLOOKUP(C21,'Ins SINAPI AL 03-2023 Onerado'!$A$8:$E$5189,2,0),VLOOKUP(C21,'Comp SINAPI AL 03-2023 Onerado'!$G$7:$K$7500,2,0)) -> AUXILIAR DE SERVIÇOS GERAIS COM ENCARGOS COMPLEMENTARES | E21: =LOWER(IF(I21="i",VLOOKUP(C21,'Ins SINAPI AL 03-2023 Onerado'!$A$8:$E$7500,3,0),VLOOKUP(C21,'Comp SINAPI AL 03-2023 Onerado'!$G$7:$K$7500,3,0))) -> mes | F21: 1 | G21: =IF(I21="i",VLOOKUP(C21,'Ins SINAPI AL 03-2023 Desonerad'!$A$8:$E$7500,5,0),VLOOKUP(C21,'Comp SINAPI AL 03-2023 Desoner'!$G$7:$K$7500,5,0)) -> 3041.01 | H21: =ROUND(F21*G21,2) -> 3041.01 | I21: ca
I22: x
A23: =B23 -> 1.2 | B23: ='Planilha Orçamentária Desoner'!A13 -> 1.2 | C23: =VLOOKUP($B23,'Planilha Orçamentária'!$A$11:$K$104,3,) ->  | D23: =VLOOKUP($B23,'Planilha Orçamentária'!$A$11:$K$104,4,) ->  | E23: =VLOOKUP($B23,'Planilha Orçamentária'!$A$11:$K$104,5) -> Supervisão / gerenciamento / fiscalização - projeto constru-ção / obras civis | H23: =SUM(H24,H28,H26,H27) -> 254.59 | I23: S
A24: =B23 -> 1.2 | B24: =B23 -> 1.2 | D24: MATERIAL | H24: =SUM(H25:H25) -> 254.59 | I24: SS
A25: =B23 -> 1.2 | B25: CONFEA | C25: FX 3 (TAB A) | D25: ART para contrato acima de R$ 15.000,00 | E25: un | F25: 1 | G25: 254.59 | H25: =ROUND(F25*G25,2) -> 254.59 | I25: I
A26: =B23 -> 1.2 | B26: =B23 -> 1.2 | D26: EQUIPAMENTOS | H26: 0 | I26: SS
A27: =B23 -> 1.2 | B27: =B23 -> 1.2 | D27: SERVIÇOS | H27: 0 | I27: SS
A28: =B23 -> 1.2 | B28: =B23 -> 1.2 | D28: MÃO DE OBRA | H28: 0 | I28: MDO
I29: x
A30: =B30 -> 2.1.4 | B30: ='Planilha Orçamentária Desoner'!A20 -> 2.1.4 | C30: =VLOOKUP($B30,'Planilha Orçamentária'!$A$11:$K$104,3,) -> CPU.04 | D30: =VLOOKUP($B30,'Planilha Orçamentária'!$A$11:$K$104,4,) -> 0 | E30: un | H30: =SUM(H31,H42,H37,H38) -> 2590.38 | I30: S
A31: =B30 -> 2.1.4 | B31: =B30 -> 2.1.4 | D31: MATERIAL | H31: =SUM(H32:H36) -> 2080.38 | I31: SS
A32: =B30 -> 2.1.4 | B32: SINAPI | C32: 43680 | D32: =IF(I32="i",VLOOKUP(C32,'Ins SINAPI AL 03-2023 Onerado'!$A$8:$E$5189,2,0),VLOOKUP(C32,'Comp SINAPI AL 03-2023 Onerado'!$G$7:$K$7500,2,0)) -> CHAPA/PAINEL DE MADEIRA COMPENSADA PLASTIFICADA (MADEIRITE PLASTIFICADO) PARA FORMA DE CONCRETO, DE 2200 X 1100 MM, E = 20 MM | E32: =LOWER(IF(I32="i",VLOOKUP(C32,'Ins SINAPI AL 03-2023 Onerado'!$A$8:$E$7500,3,0),VLOOKUP(C32,'Comp SINAPI AL 03-2023 Onerado'!$G$7:$K$7500,3,0))) -> m2 | F32: 6 | G32: =IF(I32="i",VLOOKUP(C32,'Ins SINAPI AL 03-2023 Desonerad'!$A$8:$E$7500,5,0),VLOOKUP(C32,'Comp SINAPI AL 03-2023 Desoner'!$G$7:$K$7500,5,0)) -> 146.45 | H32: =ROUND(F32*G32,2) -> 878.7 | I32: i
A33: =B30 -> 2.1.4 | B33: SINAPI | C33: 5075 | D33: =IF(I33="i",VLOOKUP(C33,'Ins SINAPI AL 03-2023 Onerado'!$A$8:$E$5189,2,0),VLOOKUP(C33,'Comp SINAPI AL 03-2023 Onerado'!$G$7:$K$6879,2,0)) -> PREGO DE ACO POLIDO COM CABECA 18 X 30 (2 3/4 X 10) | E33: =LOWER(IF(I33="i",VLOOKUP(C33,'Ins SINAPI AL 03-2023 Onerado'!$A$8:$E$7500,3,0),VLOOKUP(C33,'Comp SINAPI AL 03-2023 Onerado'!$G$7:$K$7500,3,0))) -> kg | F33: 0.9657 | G33: =IF(I33="i",VLOOKUP(C33,'Ins SINAPI AL 03-2023 Desonerad'!$A$8:$E$7500,5,0),VLOOKUP(C33,'Comp SINAPI AL 03-2023 Desoner'!$G$7:$K$7500,5,0)) -> 24.16 | H33: =ROUND(F33*G33,2) -> 23.33 | I33: i
A34: =B30 -> 2.1.4 | B34: SINAPI | C34: 2747 | D34: =IF(I34="i",VLOOKUP(C34,'Ins SINAPI AL 03-2023 Onerado'!$A$8:$E$5189,2,0),VLOOKUP(C34,'Comp SINAPI AL 03-2023 Onerado'!$G$7:$K$6879,2,0)) -> MOURAO ROLICO DE MADEIRA TRATADA, D = 16 A 20 CM, H = 2,20 M, EM EUCALIPTO OU EQUIVALENTE DA REGIAO (PARA CERCA) | E34: =LOWER(IF(I34="i",VLOOKUP(C34,'Ins SINAPI AL 03-2023 Onerado'!$A$8:$E$7500,3,0),VLOOKUP(C34,'Comp SINAPI AL 03-2023 Onerado'!$G$7:$K$7500,3,0))) -> m | F34: 17.6 | G34: =IF(I34="i",VLOOKUP(C34,'Ins SINAPI AL 03-2023 Desonerad'!$A$8:$E$7500,5,0),VLOOKUP(C34,'Comp SINAPI AL 03-2023 Desoner'!$G$7:$K$7500,5,0)) -> 27.41 | H34: =ROUND(F34*G34,2) -> 482.42 | I34: I
A35: =B30 -> 2.1.4 | B35: SINAPI | C35: 94963 | D35: =IF(I35="i",VLOOKUP(C35,'Ins SINAPI AL 03-2023 Onerado'!$A$8:$E$5189,2,0),VLOOKUP(C35,'Comp SINAPI AL 03-2023 Onerado'!$G$7:$K$6879,2,0)) -> CONCRETO FCK = 15MPA, TRAÇO 1:3,4:3,5 (EM MASSA SECA DE CIMENTO/ AREIA MÉDIA/ BRITA 1) - PREPARO MECÂNICO COM BETONEIRA 400 L. AF_05/2021 | E35: =LOWER(IF(I35="i",VLOOKUP(C35,'Ins SINAPI AL 03-2023 Onerado'!$A$8:$E$7500,3,0),VLOOKUP(C35,'Comp SINAPI AL 03-2023 Onerado'!$G$7:$K$7500,3,0))) -> m3 | F35: 0.701 | G35: =IF(I35="i",VLOOKUP(C35,'Ins SINAPI AL 03-2023 Desonerad'!$A$8:$E$7500,5,0),VLOOKUP(C35,'Comp SINAPI AL 03-2023 Desoner'!$G$7:$K$7500,5,0)) -> 386.86 | H35: =ROUND(F35*G35,2) -> 271.19 | I35: ca
A36: =B30 -> 2.1.4 | B36: SINAPI | C36: 99059 | D36: =IF(I36="i",VLOOKUP(C36,'Ins SINAPI AL 03-2023 Onerado'!$A$8:$E$5189,2,0),VLOOKUP(C36,'Comp SINAPI AL 03-2023 Onerado'!$G$7:$K$6879,2,0)) -> LOCACAO CONVENCIONAL DE OBRA, UTILIZANDO GABARITO DE TÁBUAS CORRIDAS PONTALETADAS A CADA 2,00M - 2 UTILIZAÇÕES. AF_10/2018 | E36: =LOWER(IF(I36="i",VLOOKUP(C36,'Ins SINAPI AL 03-2023 Onerado'!$A$8:$E$7500,3,0),VLOOKUP(C36,'Comp SINAPI AL 03-2023 Onerado'!$G$7:$K$7500,3,0))) -> m | F36: 8.64 | G36: =IF(I36="i",VLOOKUP(C36,'Ins SINAPI AL 03-2023 Desonerad'!$A$8:$E$7500,5,0),VLOOKUP(C36,'Comp SINAPI AL 03-2023 Desoner'!$G$7:$K$7500,5,0)) -> 49.16 | H36: =ROUND(F36*G36,2) -> 424.74 | I36: ca
A37: =B30 -> 2.1.4 | B37: =B30 -> 2.1.4 | D37: EQUIPAMENTOS | H37: 0 | I37: SS
A38: =B30 -> 2.1.4 | B38: =B30 -> 2.1.4 | D38: SERVIÇOS | H38: =SUM(H39:H41) -> 261.05 | I38: SS
A39: =B30 -> 2.1.4 | B39: SINAPI | C39: 93358 | D39: =IF(I39="i",VLOOKUP(C39,'Ins SINAPI AL 03-2023 Onerado'!$A$8:$E$5189,2,0),VLOOKUP(C39,'Comp SINAPI AL 03-2023 Onerado'!$G$7:$K$7500,2,0)) -> ESCAVAÇÃO MANUAL DE VALA COM PROFUNDIDADE MENOR OU IGUAL A 1,30 M. AF_02/2021 | E39: =LOWER(IF(I39="i",VLOOKUP(C39,'Ins SINAPI AL 03-2023 Onerado'!$A$8:$E$7500,3,0),VLOOKUP(C39,'Comp SINAPI AL 03-2023 Onerado'!$G$7:$K$7500,3,0))) -> m3 | F39: 1.0014 | G39: =IF(I39="i",VLOOKUP(C39,'Ins SINAPI AL 03-2023 Desonerad'!$A$8:$E$7500,5,0),VLOOKUP(C39,'Comp SINAPI AL 03-2023 Desoner'!$G$7:$K$7500,5,0)) -> 64.75 | H39: =ROUND(F39*G39,2) -> 64.84 | I39: ca
A40: =B30 -> 2.1.4 | B40: SINAPI | C40: 96995 | D40: =IF(I40="i",VLOOKUP(C40,'Ins SINAPI AL 03-2023 Onerado'!$A$8:$E$5189,2,0),VLOOKUP(C40,'Comp SINAPI AL 03-2023 Onerado'!$G$7:$K$7500,2,0)) -> REATERRO MANUAL APILOADO COM SOQUETE. AF_10/2017 | E40: =LOWER(IF(I40="i",VLOOKUP(C40,'Ins SINAPI AL 03-2023 Onerado'!$A$8:$E$7500,3,0),VLOOKUP(C40,'Comp SINAPI AL 03-2023 Onerado'!$G$7:$K$7500,3,0))) -> m3 | F40: =F39 -> 1.0014 | G40: =IF(I40="i",VLOOKUP(C40,'Ins SINAPI AL 03-2023 Desonerad'!$A$8:$E$7500,5,0),VLOOKUP(C40,'Comp SINAPI AL 03-2023 Desoner'!$G$7:$K$7500,5,0)) -> 39.26 | H40: =ROUND(F40*G40,2) -> 39.31 | I40: ca
A41: =B30 -> 2.1.4 | B41: SINAPI | C41: 103670 | D41: =IF(I41="i",VLOOKUP(C41,'Ins SINAPI AL 03-2023 Onerado'!$A$8:$E$5189,2,0),VLOOKUP(C41,'Comp SINAPI AL 03-2023 Onerado'!$G$7:$K$7500,2,0)) -> LANÇAMENTO COM USO DE BALDES, ADENSAMENTO E ACABAMENTO DE CONCRETO EM ESTRUTURAS. AF_02/2022 | E41: =LOWER(IF(I41="i",VLOOKUP(C41,'Ins SINAPI AL 03-2023 Onerado'!$A$8:$E$7500,3,0),VLOOKUP(C41,'Comp SINAPI AL 03-2023 Onerado'!$G$7:$K$7500,3,0))) -> m3 | F41: =F35 -> 0.701 | G41: =IF(I41="i",VLOOKUP(C41,'Ins SINAPI AL 03-2023 Desonerad'!$A$8:$E$7500,5,0),VLOOKUP(C41,'Comp SINAPI AL 03-2023 Desoner'!$G$7:$K$7500,5,0)) -> 223.82 | H41: =ROUND(F41*G41,2) -> 156.9 | I41: ca
A42: =B30 -> 2.1.4 | B42: =B30 -> 2.1.4 | D42: MÃO DE OBRA | H42: =SUM(H43:H44) -> 248.95 | I42: MDO
A43: =B30 -> 2.1.4 | B43: SINAPI | C43: 88262 | D43: =IF(I43="i",VLOOKUP(C43,'Ins SINAPI AL 03-2023 Onerado'!$A$8:$E$5189,2,0),VLOOKUP(C43,'Comp SINAPI AL 03-2023 Onerado'!$G$7:$K$7500,2,0)) -> CARPINTEIRO DE FORMAS COM ENCARGOS COMPLEMENTARES | E43: =LOWER(IF(I43="i",VLOOKUP(C43,'Ins SINAPI AL 03-2023 Onerado'!$A$8:$E$7500,3,0),VLOOKUP(C43,'Comp SINAPI AL 03-2023 Onerado'!$G$7:$K$7500,3,0))) -> h | F43: 6.776 | G43: =IF(I43="i",VLOOKUP(C43,'Ins SINAPI AL 03-2023 Desonerad'!$A$8:$E$7500,5,0),VLOOKUP(C43,'Comp SINAPI AL 03-2023 Desoner'!$G$7:$K$7500,5,0)) -> 20.37 | H43: =ROUND(F43*G43,2) -> 138.03 | I43: ca
A44: =B30 -> 2.1.4 | B44: SINAPI | C44: 88316 | D44: =IF(I44="i",VLOOKUP(C44,'Ins SINAPI AL 03-2023 Onerado'!$A$8:$E$5189,2,0),VLOOKUP(C44,'Comp SINAPI AL 03-2023 Onerado'!$G$7:$K$7500,2,0)) -> SERVENTE COM ENCARGOS COMPLEMENTARES | E44: =LOWER(IF(I44="i",VLOOKUP(C44,'Ins SINAPI AL 03-2023 Onerado'!$A$8:$E$7500,3,0),VLOOKUP(C44,'Comp SINAPI AL 03-2023 Onerado'!$G$7:$K$7500,3,0))) -> h | F44: 6.776 | G44: =IF(I44="i",VLOOKUP(C44,'Ins SINAPI AL 03-2023 Desonerad'!$A$8:$E$7500,5,0),VLOOKUP(C44,'Comp SINAPI AL 03-2023 Desoner'!$G$7:$K$7500,5,0)) -> 16.37 | H44: =ROUND(F44*G44,2) -> 110.92 | I44: ca
I45: x
A46: =B46 -> 2.2.1 | B46: ='Planilha Orçamentária Desoner'!A27 -> 2.2.1 | C46: =VLOOKUP($B46,'Planilha Orçamentária'!$A$11:$K$104,3,) -> CPU.05 | D46: =VLOOKUP($B46,'Planilha Orçamentária'!$A$11:$K$104,4,) -> 13455 | E46: m² | H46: =SUM(H47,H54,H52,H53) -> 378.13 | I46: S
A47: =B46 -> 2.2.1 | B47: =B46 -> 2.2.1 | D47: MATERIAL | H47: =SUM(H48:H51) -> 325.02 | I47: SS
A48: =B46 -> 2.2.1 | B48: SINAPI | C48: 4430 | D48: =IF(I48="i",VLOOKUP(C48,'Ins SINAPI AL 03-2023 Onerado'!$A$8:$E$7500,2,0),VLOOKUP(C48,'Comp SINAPI AL 03-2023 Onerado'!$G$7:$K$7500,2,0)) -> CAIBRO NAO APARELHADO *5 X 6* CM, EM MACARANDUBA, ANGELIM OU EQUIVALENTE DA REGIAO - BRUTA | E48: =LOWER(IF(I48="i",VLOOKUP(C48,'Ins SINAPI AL 03-2023 Onerado'!$A$8:$E$7500,3,0),VLOOKUP(C48,'Comp SINAPI AL 03-2023 Onerado'!$G$7:$K$7500,3,0))) -> m | F48: 4 | G48: =IF(I48="i",VLOOKUP(C48,'Ins SINAPI AL 03-2023 Desonerad'!$A$8:$E$7500,5,0),VLOOKUP(C48,'Comp SINAPI AL 03-2023 Desoner'!$G$7:$K$7500,5,0)) -> 9.9 | H48: =ROUND(F48*G48,2) -> 39.6 | I48: I
A49: =B46 -> 2.2.1 | B49: SINAPI | C49: 4813 | D49: =IF(I49="i",VLOOKUP(C49,'Ins SINAPI AL 03-2023 Onerado'!$A$8:$E$7500,2,0),VLOOKUP(C49,'Comp SINAPI AL 03-2023 Onerado'!$G$7:$K$7500,2,0)) -> PLACA DE OBRA (PARA CONSTRUCAO CIVIL) EM CHAPA GALVANIZADA *N. 22*, ADESIVADA, DE *2,4 X 1,2* M (SEM POSTES PARA FIXACAO) | E49: =LOWER(IF(I49="i",VLOOKUP(C49,'Ins SINAPI AL 03-2023 Onerado'!$A$8:$E$7500,3,0),VLOOKUP(C49,'Comp SINAPI AL 03-2023 Onerado'!$G$7:$K$7500,3,0))) -> m2 | F49: 1 | G49: =IF(I49="i",VLOOKUP(C49,'Ins SINAPI AL 03-2023 Desonerad'!$A$8:$E$7500,5,0),VLOOKUP(C49,'Comp SINAPI AL 03-2023 Desoner'!$G$7:$K$7500,5,0)) -> 275 | H49: =ROUND(F49*G49,2) -> 275 | I49: I
A50: =B46 -> 2.2.1 | B50: SINAPI | C50: 20206 | D50: =IF(I50="i",VLOOKUP(C50,'Ins SINAPI AL 03-2023 Onerado'!$A$8:$E$7500,2,0),VLOOKUP(C50,'Comp SINAPI AL 03-2023 Onerado'!$G$7:$K$7500,2,0)) -> SARRAFO APARELHADO *2 X 10* CM, EM MACARANDUBA, ANGELIM OU EQUIVALENTE DA REGIAO | E50: =LOWER(IF(I50="i",VLOOKUP(C50,'Ins SINAPI AL 03-2023 Onerado'!$A$8:$E$7500,3,0),VLOOKUP(C50,'Comp SINAPI AL 03-2023 Onerado'!$G$7:$K$7500,3,0))) -> m | F50: 1 | G50: =IF(I50="i",VLOOKUP(C50,'Ins SINAPI AL 03-2023 Desonerad'!$A$8:$E$7500,5,0),VLOOKUP(C50,'Comp SINAPI AL 03-2023 Desoner'!$G$7:$K$7500,5,0)) -> 6.8 | H50: =ROUND(F50*G50,2) -> 6.8 | I50: I
A51: =B46 -> 2.2.1 | B51: SINAPI | C51: 5075 | D51: =IF(I51="i",VLOOKUP(C51,'Ins SINAPI AL 03-2023 Onerado'!$A$8:$E$7500,2,0),VLOOKUP(C51,'Comp SINAPI AL 03-2023 Onerado'!$G$7:$K$7500,2,0)) -> PREGO DE ACO POLIDO COM CABECA 18 X 30 (2 3/4 X 10) | E51: =LOWER(IF(I51="i",VLOOKUP(C51,'Ins SINAPI AL 03-2023 Onerado'!$A$8:$E$7500,3,0),VLOOKUP(C51,'Comp SINAPI AL 03-2023 Onerado'!$G$7:$K$7500,3,0))) -> kg | F51: 0.15 | G51: =IF(I51="i",VLOOKUP(C51,'Ins SINAPI AL 03-2023 Desonerad'!$A$8:$E$7500,5,0),VLOOKUP(C51,'Comp SINAPI AL 03-2023 Desoner'!$G$7:$K$7500,5,0)) -> 24.16 | H51: =ROUND(F51*G51,2) -> 3.62 | I51: I
A52: =B46 -> 2.2.1 | B52: =B46 -> 2.2.1 | D52: EQUIPAMENTOS | H52: 0 | I52: SS
A53: =B46 -> 2.2.1 | B53: =B46 -> 2.2.1 | D53: SERVIÇOS | H53: 0 | I53: SS
A54: =B46 -> 2.2.1 | B54: =B46 -> 2.2.1 | D54: MÃO DE OBRA | H54: =SUM(H55:H56) -> 53.11 | I54: MDO
A55: =B46 -> 2.2.1 | B55: SINAPI | C55: 88262 | D55: =IF(I55="i",VLOOKUP(C55,'Ins SINAPI AL 03-2023 Onerado'!$A$8:$E$7500,2,0),VLOOKUP(C55,'Comp SINAPI AL 03-2023 Onerado'!$G$7:$K$7500,2,0)) -> CARPINTEIRO DE FORMAS COM ENCARGOS COMPLEMENTARES | E55: =LOWER(IF(I55="i",VLOOKUP(C55,'Ins SINAPI AL 03-2023 Onerado'!$A$8:$E$7500,3,0),VLOOKUP(C55,'Comp SINAPI AL 03-2023 Onerado'!$G$7:$K$7500,3,0))) -> h | F55: 1 | G55: =IF(I55="i",VLOOKUP(C55,'Ins SINAPI AL 03-2023 Desonerad'!$A$8:$E$7500,5,0),VLOOKUP(C55,'Comp SINAPI AL 03-2023 Desoner'!$G$7:$K$7500,5,0)) -> 20.37 | H55: =ROUND(F55*G55,2) -> 20.37 | I55: ca
A56: =B46 -> 2.2.1 | B56: SINAPI | C56: 88316 | D56: =IF(I56="i",VLOOKUP(C56,'Ins SINAPI AL 03-2023 Onerado'!$A$8:$E$7500,2,0),VLOOKUP(C56,'Comp SINAPI AL 03-2023 Onerado'!$G$7:$K$7500,2,0)) -> SERVENTE COM ENCARGOS COMPLEMENTARES | E56: =LOWER(IF(I56="i",VLOOKUP(C56,'Ins SINAPI AL 03-2023 Onerado'!$A$8:$E$7500,3,0),VLOOKUP(C56,'Comp SINAPI AL 03-2023 Onerado'!$G$7:$K$7500,3,0))) -> h | F56: 2 | G56: =IF(I56="i",VLOOKUP(C56,'Ins SINAPI AL 03-2023 Desonerad'!$A$8:$E$7500,5,0),VLOOKUP(C56,'Comp SINAPI AL 03-2023 Desoner'!$G$7:$K$7500,5,0)) -> 16.37 | H56: =ROUND(F56*G56,2) -> 32.74 | I56: ca
I57: x
A58: =B58 -> 3.1.1 | B58: ='Planilha Orçamentária Desoner'!A31 -> 3.1.1 | C58: =VLOOKUP($B58,'Planilha Orçamentária'!$A$11:$K$104,3,) -> CPU.06 | D58: =VLOOKUP($B58,'Planilha Orçamentária'!$A$11:$K$104,4,) -> 25259 | E58: un | H58: =SUM(H59,H63,H60,H61) -> 41600 | I58: S
A59: =B58 -> 3.1.1 | B59: =B58 -> 3.1.1 | D59: MATERIAL | H59: 0 | I59: ss
A60: =B58 -> 3.1.1 | B60: =B58 -> 3.1.1 | D60: EQUIPAMENTOS | H60: 0 | I60: ss
A61: =B58 -> 3.1.1 | B61: =B58 -> 3.1.1 | D61: SERVIÇOS | H61: =H62 -> 41600 | I61: ss
A62: =B58 -> 3.1.1 | B62: 2023-05-01 | C62: COTAÇÃO | D62: Mobilização e desmobilização da Equipe, Camara Hiperbarica e todos os equipamentos de mergulho envolvidos na operação | E62: un | F62: 1 | G62: =2*(21000+22000+19400)/3 -> 41600 | H62: =ROUND(F62*G62,2) -> 41600 | I62: ca
A63: =B58 -> 3.1.1 | B63: =B58 -> 3.1.1 | D63: MÃO DE OBRA | H63: 0 | I63: ss
I64: x
A65: =B65 -> 4.1.1 | B65: ='Planilha Orçamentária Desoner'!A36 -> 4.1.1 | C65: =VLOOKUP($B65,'Planilha Orçamentária'!$A$11:$K$104,3) -> CPU.07 | D65: =VLOOKUP($B65,'Planilha Orçamentária'!$A$11:$K$104,4) -> 809 | E65: =VLOOKUP($B65,'Planilha Orçamentária'!$A$11:$K$104,5) -> Consultoria / assessoria - engenharia | H65: =SUM(H66,H71,H68,H70) -> 65977.17 | I65: S
A66: =B65 -> 4.1.1 | B66: =B65 -> 4.1.1 | D66: MATERIAL | H66: =H67 -> 4881.6 | I66: ss
A67: =B65 -> 4.1.1 | B67: CODE | C67: DP | D67: DIÁRIA | E67: dia | F67: =4*4 -> 16 | G67: 305.1 | H67: =ROUND(F67*G67,2) -> 4881.6 | I67: ca
A68: =B65 -> 4.1.1 | B68: =B65 -> 4.1.1 | D68: EQUIPAMENTOS | H68: =H69 -> 1471.33 | I68: ss
A69: 4.1.1 | B69: CODEVASF | D69: CAMINHONETE | E69: mes | F69: =1/4 -> 0.25 | G69: 5885.33 | H69: =ROUND(F69*G69,2) -> 1471.33 | I69: ca
A70: =B65 -> 4.1.1 | B70: =B65 -> 4.1.1 | D70: SERVIÇOS | I70: ss
A71: =B65 -> 4.1.1 | B71: =B65 -> 4.1.1 | D71: MÃO DE OBRA | H71: =SUM(H72:H75) -> 59624.24 | I71: ss
A72: 4.1.1 | B72: SINAPI | C72: 100320 | D72: =IF(I72="i",VLOOKUP(C72,'Ins SINAPI AL 03-2023 Onerado'!$A$8:$E$7500,2,0),VLOOKUP(C72,'Comp SINAPI AL 03-2023 Onerado'!$G$7:$K$7500,2,0)) -> ENGENHEIRO CIVIL PLENO COM ENCARGOS COMPLEMENTARES | E72: =LOWER(IF(I72="i",VLOOKUP(C72,'Ins SINAPI AL 03-2023 Onerado'!$A$8:$E$7500,3,0),VLOOKUP(C72,'Comp SINAPI AL 03-2023 Onerado'!$G$7:$K$7500,3,0))) -> mes | F72: 1 | G72: =IF(I72="i",VLOOKUP(C72,'Ins SINAPI AL 03-2023 Desonerad'!$A$8:$E$7500,5,0),VLOOKUP(C72,'Comp SINAPI AL 03-2023 Desoner'!$G$7:$K$7500,5,0)) -> 19105.51 | H72: =ROUND(F72*G72,2) -> 19105.51 | I72: ca
A73: 4.1.1 | B73: SINAPI | C73: 100320 | D73: ENGENHEIRO MECANICO DE OBRA PLENO COM ENCARGOS COMPLEMENTARES (BASEADO SINAPI 90778) | E73: =LOWER(IF(I73="i",VLOOKUP(C73,'Ins SINAPI AL 03-2023 Onerado'!$A$8:$E$7500,3,0),VLOOKUP(C73,'Comp SINAPI AL 03-2023 Onerado'!$G$7:$K$7500,3,0))) -> mes | F73: 1 | G73: =IF(I73="i",VLOOKUP(C73,'Ins SINAPI AL 03-2023 Desonerad'!$A$8:$E$7500,5,0),VLOOKUP(C73,'Comp SINAPI AL 03-2023 Desoner'!$G$7:$K$7500,5,0)) -> 19105.51 | H73: =ROUND(F73*G73,2) -> 19105.51 | I73: ca
A74: 4.1.1 | B74: SINAPI | C74: 100319 | D74: =IF(I74="i",VLOOKUP(C74,'Ins SINAPI AL 03-2023 Onerado'!$A$8:$E$7500,2,0),VLOOKUP(C74,'Comp SINAPI AL 03-2023 Onerado'!$G$7:$K$7500,2,0)) -> ENGENHEIRO CIVIL JUNIOR COM ENCARGOS COMPLEMENTARES | E74: =LOWER(IF(I74="i",VLOOKUP(C74,'Ins SINAPI AL 03-2023 Onerado'!$A$8:$E$7500,3,0),VLOOKUP(C74,'Comp SINAPI AL 03-2023 Onerado'!$G$7:$K$7500,3,0))) -> mes | F74: 1 | G74: =IF(I74="i",VLOOKUP(C74,'Ins SINAPI AL 03-2023 Desonerad'!$A$8:$E$7500,5,0),VLOOKUP(C74,'Comp SINAPI AL 03-2023 Desoner'!$G$7:$K$7500,5,0)) -> 16975.95 | H74: =ROUND(F74*G74,2) -> 16975.95 | I74: ca
B75: SICRO3 | C75: P9864 | D75: Engenheiro de segurança do trabalho | E75: mês | F75: =1/4 -> 0.25 | G75: 17749.0885 | H75: =ROUND(F75*G75,2) -> 4437.27 | I75: ca
I76: x
A77: =B77 -> 4.2.1 | B77: ='Planilha Orçamentária Desoner'!A38 -> 4.2.1 | C77: =VLOOKUP($B77,'Planilha Orçamentária'!$A$11:$K$104,3) -> CPU.08 | D77: =VLOOKUP($B77,'Planilha Orçamentária'!$A$11:$K$104,4) -> 2267 | E77: =VLOOKUP($B77,'Planilha Orçamentária'!$A$11:$K$104,5) -> Instalação e montagem de equipamentos mecânicos/eletromecânicos | H77: =SUM(H78,H93,H87,H89) -> 48885.37 | I77: S
A78: =B77 -> 4.2.1 | B78: =B77 -> 4.2.1 | D78: MATERIAL | H78: =SUM(H79:H86) -> 25805.4 | I78: ss
A79: =B77 -> 4.2.1 | B79: CODE | C79: DP | D79: DIÁRIA | E79: dia | F79: =15*3 -> 45 | G79: 305.1 | H79: =ROUND(F79*G79,2) -> 13729.5 | I79: i
A80: =B77 -> 4.2.1 | B80: SICRO | C80: E9043 | D80: Embarcação de alumínio com comprimento de 6 m e motor de popa - 18,60 kW | E80: h | F80: 80 | G80: =68.3007 -> 68.3007 | H80: =ROUND(F80*G80,2) -> 5464.06 | I80: i
A81: =B77 -> 4.2.1 | B81: SICRO | C81: E9243 | D81: Câmara hiperbárica com filtro, serpentina e reservatório de ar para mergulho raso - D= 1,80 m e H = 2,22 m. | E81: h | F81: 80 | G81: 58.9475 | H81: =ROUND(F81*G81,2) -> 4715.8
A82: =B77 -> 4.2.1 | B82: SICRO | C82: E9245 | D82: Estação transmissora de superfície para comunicação com fio | E82: h | F82: 80 | G82: 0.6413 | H82: 51.3
A83: =B77 -> 4.2.1 | B83: SICRO | C83: E9242 | D83: Estação transmissora de superfície para televisionamento | E83: h | F83: 80 | G83: 1.1511 | H83: 92.09
A84: =B77 -> 4.2.1 | B84: SICRO | C84: E9066 | D84: Grupo gerador - 14 kVA | E84: h | F84: 80 | G84: 10.4416 | H84: 835.33
A85: =B77 -> 4.2.1 | B85: SICRO | C85: E9246 | D85: Painel de controle de ar com manômetros e pneufatômetros | E85: h | F85: 80 | G85: 1.2307 | H85: 98.46
A86: =B77 -> 4.2.1 | B86: SICRO | C86: E9248 | D86: Sistema de ar comprimido para mergulho até 30 m com pressão de trabalho de 1,4 MPa - 7,46 kW | E86: h | F86: 80 | G86: 10.2357 | H86: 818.86
A87: =B77 -> 4.2.1 | B87: =B77 -> 4.2.1 | D87: EQUIPAMENTOS | H87: =SUM(H88) -> 5885.33 | I87: ss
A88: =B77 -> 4.2.1 | B88: CODEVASF | D88: CAMINHONETE | E88: mes | F88: 1 | G88: 5885.33 | H88: =ROUND(F88*G88,2) -> 5885.33 | I88: I
A89: =B77 -> 4.2.1 | B89: =B77 -> 4.2.1 | D89: SERVIÇOS | H89: =SUM(H90:H92) -> 3280.18 | I89: ss
A90: =B77 -> 4.2.1 | B90: SICRO | C90: 4915639 | D90: Limpeza em superfície de concreto com escova de aço | E90: m² | F90: =1.2*1.2*2 -> 2.88 | G90: 3.77 | H90: =ROUND(F90*G90,2) -> 10.86 | I90: ca
A91: =B77 -> 4.2.1 | B91: SICRO | C91: 2408068 | D91: Jateamento de chapa de aço com o uso de granalhas de aço Grau SA3 | E91: m² | F91: =1.2*1.2*2 -> 2.88 | G91: 15.7 | H91: =ROUND(F91*G91,2) -> 45.22 | I91: ca
A92: =B77 -> 4.2.1 | B92: SICRO | C92: E9058 | D92: Plataforma flutuante de 12 x 24 x 1,8 m com capacidade de 150 t | E92: h | F92: 80 | G92: 40.3012 | H92: =ROUND(F92*G92,2) -> 3224.1 | I92: i
A93: =B77 -> 4.2.1 | B93: =B77 -> 4.2.1 | D93: MÃO DE OBRA | H93: =SUM(H94:H96) -> 13914.46 | I93: ss
A94: =B78 -> 4.2.1 | B94: SICRO | C94: P9926 | D94: Mergulhador raso auxiliar de superfície | E94: h | F94: 80 | G94: 62.868 | H94: =ROUND(F94*G94,2) -> 5029.44
A95: =B78 -> 4.2.1 | B95: EMBASA | C95: B010000113 | D95: MERGULHADOR PROFISSIONAL | E95: h | F95: 80 | G95: 76.19 | H95: 6095.2
A96: =B78 -> 4.2.1 | B96: SICRO | C96: P9922 | D96: Mergulhador raso dependente de emergência | E96: h | F96: 80 | G96: 34.8727 | H96: 2789.82
A98: =B98 -> 4.2.2 | B98: ='Planilha Orçamentária Desoner'!A39 -> 4.2.2 | C98: =VLOOKUP($B98,'Planilha Orçamentária'!$A$11:$K$104,3,) -> CPU.09 | D98: =VLOOKUP($B98,'Planilha Orçamentária'!$A$11:$K$104,4,) -> 2267 | E98: =VLOOKUP($B98,'Planilha Orçamentária'!$A$11:$K$104,5) -> Instalação e montagem de equipamentos mecânicos/eletromecânicos | H98: =SUM(H99,H112,H109,H111) -> 156455.19 | I98: S
A99: =B98 -> 4.2.2 | B99: =B98 -> 4.2.2 | D99: MATERIAL | H99: =SUM(H100:H108) -> 136655.4 | I99: ss
A100: =B98 -> 4.2.2 | B100: CODE | C100: DP | D100: DIÁRIA | E100: dia | F100: =15*3 -> 45 | G100: 305.1 | H100: =ROUND(F100*G100,2) -> 13729.5 | I100: i
A101: =B98 -> 4.2.2 | B101: SICRO | C101: E9043 | D101: Embarcação de alumínio com comprimento de 6 m e motor de popa - 18,60 kW | E101: h | F101: 80 | G101: =68.3007 -> 68.3007 | H101: =ROUND(F101*G101,2) -> 5464.06 | I101: i
A102: =B98 -> 4.2.2 | B102: 2023-05-01 | C102: COTAÇÂO | D102: Bloqueador inflável completo DN>1200 mm com todos os acessórios necessários para a sua utilização e PN>20 mca | E102: un | F102: 1 | G102: =((173000)+(51520+2000)+(105450+580))/3 -> 110850 | H102: =ROUND(F102*G102,2) -> 110850 | I102: i
A103: =B99 -> 4.2.2 | B103: SICRO | C103: E9243 | D103: Câmara hiperbárica com filtro, serpentina e reservatório de ar para mergulho raso - D= 1,80 m e H = 2,22 m. | E103: h | F103: 80 | G103: 58.9475 | H103: =ROUND(F103*G103,2) -> 4715.8
A104: =B99 -> 4.2.2 | B104: SICRO | C104: E9245 | D104: Estação transmissora de superfície para comunicação com fio | E104: h | F104: 80 | G104: 0.6413 | H104: 51.3
A105: =B99 -> 4.2.2 | B105: SICRO | C105: E9242 | D105: Estação transmissora de superfície para televisionamento | E105: h | F105: 80 | G105: 1.1511 | H105: 92.09
A106: =B99 -> 4.2.2 | B106: SICRO | C106: E9066 | D106: Grupo gerador - 14 kVA | E106: h | F106: 80 | G106: 10.4416 | H106: 835.33
A107: =B99 -> 4.2.2 | B107: SICRO | C107: E9246 | D107: Painel de controle de ar com manômetros e pneufatômetros | E107: h | F107: 80 | G107: 1.2307 | H107: 98.46
A108: =B99 -> 4.2.2 | B108: SICRO | C108: E9248 | D108: Sistema de ar comprimido para mergulho até 30 m com pressão de trabalho de 1,4 MPa - 7,46 kW | E108: h | F108: 80 | G108: 10.2357 | H108: 818.86
A109: =B98 -> 4.2.2 | B109: =B98 -> 4.2.2 | D109: EQUIPAMENTOS | H109: =SUM(H110) -> 5885.33 | I109: ss
A110: =B98 -> 4.2.2 | B110: CODEVASF | D110: CAMINHONETE | E110: mes | F110: 1 | G110: 5885.33 | H110: =ROUND(F110*G110,2) -> 5885.33 | I110: I
A111: =B98 -> 4.2.2 | B111: =B98 -> 4.2.2 | D111: SERVIÇOS | H111: 0 | I111: ss
A112: =B98 -> 4.2.2 | B112: =B98 -> 4.2.2 | D112: MÃO DE OBRA | H112: =SUM(H113:H115) -> 13914.46 | I112: ss
A113: =B98 -> 4.2.2 | B113: SICRO | C113: P9926 | D113: Mergulhador raso auxiliar de superfície | E113: h | F113: 80 | G113: 62.868 | H113: =ROUND(F113*G113,2) -> 5029.44
A114: =B98 -> 4.2.2 | B114: EMBASA | C114: B010000113 | D114: MERGULHADOR PROFISSIONAL | E114: h | F114: 80 | G114: 76.19 | H114: 6095.2
A115: =B98 -> 4.2.2 | B115: SICRO | C115: P9922 | D115: Mergulhador raso dependente de emergência | E115: h | F115: 80 | G115: 34.8727 | H115: 2789.82
A117: =B117 -> 4.2.3 | B117: ='Planilha Orçamentária Desoner'!A40 -> 4.2.3 | C117: =VLOOKUP($B117,'Planilha Orçamentária'!$A$11:$K$104,3,) -> CPU.10 | D117: =VLOOKUP($B117,'Planilha Orçamentária'!$A$11:$K$104,4,) -> 2267 | E117: =VLOOKUP($B117,'Planilha Orçamentária'!$A$11:$K$104,5,) -> Instalação e montagem de equipamentos mecânicos/eletromecânicos | H117: =SUM(H118,H134,H128,H130) -> 91391.63 | I117: S
A118: =B117 -> 4.2.3 | B118: =B117 -> 4.2.3 | D118: MATERIAL | H118: =SUM(H119:H127) -> 65687.42 | I118: ss
A119: =B117 -> 4.2.3 | B119: CODE | C119: DP | D119: DIÁRIA | E119: dia | F119: =15*3 -> 45 | G119: 305.1 | H119: =ROUND(F119*G119,2) -> 13729.5 | I119: i
A120: =B117 -> 4.2.3 | B120: SICRO | C120: E9043 | D120: Embarcação de alumínio com comprimento de 6 m e motor de popa - 18,60 kW | E120: h | F120: 120 | G120: =68.3007 -> 68.3007 | H120: =ROUND(F120*G120,2) -> 8196.08 | I120: i
B121: SICRO | C121: 2408149 | D121: Estrutura em chapa de aço ASTM A36 corte, solda e montagem - fornecimento e instalação | E121: kg | F121: 2500 | G121: 14.86 | H121: =ROUND(F121*G121,2) -> 37150 | I121: I
A122: =B118 -> 4.2.3 | B122: SICRO | C122: E9243 | D122: Câmara hiperbárica com filtro, serpentina e reservatório de ar para mergulho raso - D= 1,80 m e H = 2,22 m. | E122: h | F122: 80 | G122: 58.9475 | H122: =ROUND(F122*G122,2) -> 4715.8
A123: =B118 -> 4.2.3 | B123: SICRO | C123: E9245 | D123: Estação transmissora de superfície para comunicação com fio | E123: h | F123: 80 | G123: 0.6413 | H123: 51.3
A124: =B118 -> 4.2.3 | B124: SICRO | C124: E9242 | D124: Estação transmissora de superfície para televisionamento | E124: h | F124: 80 | G124: 1.1511 | H124: 92.09
A125: =B118 -> 4.2.3 | B125: SICRO | C125: E9066 | D125: Grupo gerador - 14 kVA | E125: h | F125: 80 | G125: 10.4416 | H125: 835.33
A126: =B118 -> 4.2.3 | B126: SICRO | C126: E9246 | D126: Painel de controle de ar com manômetros e pneufatômetros | E126: h | F126: 80 | G126: 1.2307 | H126: 98.46
A127: =B118 -> 4.2.3 | B127: SICRO | C127: E9248 | D127: Sistema de ar comprimido para mergulho até 30 m com pressão de trabalho de 1,4 MPa - 7,46 kW | E127: h | F127: 80 | G127: 10.2357 | H127: 818.86
A128: =B117 -> 4.2.3 | B128: =B117 -> 4.2.3 | D128: EQUIPAMENTOS | H128: =SUM(H129) -> 5885.33 | I128: ss
A129: =B117 -> 4.2.3 | B129: CODEVASF | D129: CAMINHONETE | E129: mes | F129: 1 | G129: 5885.33 | H129: =ROUND(F129*G129,2) -> 5885.33 | I129: I
A130: =B117 -> 4.2.3 | B130: =B117 -> 4.2.3 | D130: SERVIÇOS | H130: =SUM(H131:H133) -> 5904.42 | I130: ss
B131: SICRO3 | C131: 3807863 | D131: Chumbador para concreto D = 12,5 mm tipo tecbolt - fornecimento e instalação | E131: un | F131: 72 | G131: 13.79 | H131: =ROUND(F131*G131,2) -> 992.88 | I131: ca
A132: =B117 -> 4.2.3 | B132: SICRO | C132: 4915639 | D132: Limpeza em superfície de concreto com escova de aço | E132: m² | F132: =5*4 -> 20 | G132: 3.77 | H132: =ROUND(F132*G132,2) -> 75.4 | I132: ca
A133: =B117 -> 4.2.3 | B133: SICRO | C133: E9058 | D133: Plataforma flutuante de 12 x 24 x 1,8 m com capacidade de 150 t | E133: h | F133: 120 | G133: 40.3012 | H133: =ROUND(F133*G133,2) -> 4836.14 | I133: i
A134: =B117 -> 4.2.3 | B134: =B117 -> 4.2.3 | D134: MÃO DE OBRA | H134: =SUM(H135:H137) -> 13914.46 | I134: ss
A135: =B117 -> 4.2.3 | B135: SICRO | C135: P9926 | D135: Mergulhador raso auxiliar de superfície | E135: h | F135: 80 | G135: 62.868 | H135: =ROUND(F135*G135,2) -> 5029.44
A136: =B117 -> 4.2.3 | B136: EMBASA | C136: B010000113 | D136: MERGULHADOR PROFISSIONAL | E136: h | F136: 80 | G136: 76.19 | H136: 6095.2
A137: =B117 -> 4.2.3 | B137: SICRO | C137: P9922 | D137: Mergulhador raso dependente de emergência | E137: h | F137: 80 | G137: 34.8727 | H137: 2789.82
A139: =B139 -> 5.1 | B139: ='Planilha Orçamentária Desoner'!A43 -> 5.1 | C139: =VLOOKUP($B139,'Planilha Orçamentária'!$A$11:$K$104,3,) -> CPU.11 | D139: =VLOOKUP($B139,'Planilha Orçamentária'!$A$11:$K$104,4) -> 2267 | E139: =VLOOKUP($B139,'Planilha Orçamentária'!$A$11:$K$104,5) -> Instalação e montagem de equipamentos mecânicos/eletromecânicos | H139: =SUM(H140,H143,H148,H149) -> 18246.11 | I139: S
A140: =B139 -> 5.1 | B140: =B139 -> 5.1 | D140: MATERIAL | H140: =SUM(H141:H142) -> 1656.75 | I140: SS
A141: =B139 -> 5.1 | B141: SINAPI | C141: 10997 | D141: =IF(I141="i",VLOOKUP(C141,'Ins SINAPI AL 03-2023 Onerado'!$A$8:$E$5189,2,0),VLOOKUP(C141,'Comp SINAPI AL 03-2023 Onerado'!$G$7:$K$6879,2,0)) -> ELETRODO REVESTIDO AWS - E7018, DIAMETRO IGUAL A 4,00 MM | E141: =LOWER(IF(I141="i",VLOOKUP(C141,'Ins SINAPI AL 03-2023 Onerado'!$A$8:$E$7500,3,0),VLOOKUP(C141,'Comp SINAPI AL 03-2023 Onerado'!$G$7:$K$7500,3,0))) -> kg | F141: 15 | G141: =IF(I141="i",VLOOKUP(C141,'Ins SINAPI AL 03-2023 Desonerad'!$A$8:$E$7500,5,0),VLOOKUP(C141,'Comp SINAPI AL 03-2023 Desoner'!$G$7:$K$7500,5,0)) -> 43.25 | H141: =ROUND(F141*G141,2) -> 648.75 | I141: i
A142: =B139 -> 5.1 | B142: SINAPI | C142: 1 | D142: =IF(I142="i",VLOOKUP(C142,'Ins SINAPI AL 03-2023 Onerado'!$A$8:$E$5189,2,0),VLOOKUP(C142,'Comp SINAPI AL 03-2023 Onerado'!$G$7:$K$6879,2,0)) -> ACETILENO (RECARGA DE GAS ACETILENO PARA CILINDRO DE CONJUNTO OXICORTE GRANDE) NAO INCLUI TROCA/MANUTENCAO DO CILINDRO | E142: =LOWER(IF(I142="i",VLOOKUP(C142,'Ins SINAPI AL 03-2023 Onerado'!$A$8:$E$7500,3,0),VLOOKUP(C142,'Comp SINAPI AL 03-2023 Onerado'!$G$7:$K$7500,3,0))) -> kg | F142: 16 | G142: =IF(I142="i",VLOOKUP(C142,'Ins SINAPI AL 03-2023 Desonerad'!$A$8:$E$7500,5,0),VLOOKUP(C142,'Comp SINAPI AL 03-2023 Desoner'!$G$7:$K$7500,5,0)) -> 63 | H142: =ROUND(F142*G142,2) -> 1008 | I142: i
A143: =B139 -> 5.1 | B143: =B139 -> 5.1 | D143: EQUIPAMENTOS | H143: =SUM(H144:H147) -> 12001.2 | I143: SS
A144: =B139 -> 5.1 | B144: SINAPI | C144: 83763 | D144: =IF(I144="i",VLOOKUP(C144,'Ins SINAPI AL 03-2023 Onerado'!$A$8:$E$5189,2,0),VLOOKUP(C144,'Comp SINAPI AL 03-2023 Onerado'!$G$7:$K$6879,2,0)) -> GRUPO DE SOLDAGEM COM GERADOR A DIESEL 60 CV PARA SOLDA ELÉTRICA, SOBRE 04 RODAS, COM MOTOR 4 CILINDROS 600 A - MATERIAIS NA OPERAÇÃO. AF_02/2016 | E144: =LOWER(IF(I144="i",VLOOKUP(C144,'Ins SINAPI AL 03-2023 Onerado'!$A$8:$E$7500,3,0),VLOOKUP(C144,'Comp SINAPI AL 03-2023 Onerado'!$G$7:$K$7500,3,0))) -> h | F144: 96 | G144: =IF(I144="i",VLOOKUP(C144,'Ins SINAPI AL 03-2023 Desonerad'!$A$8:$E$7500,5,0),VLOOKUP(C144,'Comp SINAPI AL 03-2023 Desoner'!$G$7:$K$7500,5,0)) -> 52.6 | H144: =ROUND(F144*G144,2) -> 5049.6 | I144: ca
A145: =B139 -> 5.1 | B145: SINAPI | C145: 92715 | D145: =IF(I145="i",VLOOKUP(C145,'Ins SINAPI AL 03-2023 Onerado'!$A$8:$E$5189,2,0),VLOOKUP(C145,'Comp SINAPI AL 03-2023 Onerado'!$G$7:$K$6879,2,0)) -> APARELHO PARA CORTE E SOLDA OXI-ACETILENO SOBRE RODAS, INCLUSIVE CILINDROS E MAÇARICOS - MATERIAIS NA OPERAÇÃO. AF_05/2023 | E145: =LOWER(IF(I145="i",VLOOKUP(C145,'Ins SINAPI AL 03-2023 Onerado'!$A$8:$E$7500,3,0),VLOOKUP(C145,'Comp SINAPI AL 03-2023 Onerado'!$G$7:$K$7500,3,0))) -> h | F145: 96 | G145: =IF(I145="i",VLOOKUP(C145,'Ins SINAPI AL 03-2023 Desonerad'!$A$8:$E$7500,5,0),VLOOKUP(C145,'Comp SINAPI AL 03-2023 Desoner'!$G$7:$K$7500,5,0)) -> 66.14 | H145: =ROUND(F145*G145,2) -> 6349.44 | I145: ca
A146: =B139 -> 5.1 | B146: SINAPI | C146: 10527 | D146: =IF(I146="i",VLOOKUP(C146,'Ins SINAPI AL 03-2023 Onerado'!$A$8:$E$5189,2,0),VLOOKUP(C146,'Comp SINAPI AL 03-2023 Onerado'!$G$7:$K$6879,2,0)) -> LOCACAO DE ANDAIME METALICO TUBULAR DE ENCAIXE, TIPO DE TORRE, CADA PAINEL COM LARGURA DE 1 ATE 1,5 M E ALTURA DE *1,00* M, INCLUINDO DIAGONAL, BARRAS DE LIGACAO, SAPATAS OU RODIZIOS E DEMAIS ITENS NECESSARIOS A MONTAGEM (NAO INCLUI INSTALACAO) | E146: =LOWER(IF(I146="i",VLOOKUP(C146,'Ins SINAPI AL 03-2023 Onerado'!$A$8:$E$7500,3,0),VLOOKUP(C146,'Comp SINAPI AL 03-2023 Onerado'!$G$7:$K$7500,3,0))) -> mxmes | F146: 12 | G146: =IF(I146="i",VLOOKUP(C146,'Ins SINAPI AL 03-2023 Desonerad'!$A$8:$E$7500,5,0),VLOOKUP(C146,'Comp SINAPI AL 03-2023 Desoner'!$G$7:$K$7500,5,0)) -> 26 | H146: =ROUND(F146*G146,2) -> 312 | I146: i
A147: =B139 -> 5.1 | B147: SINAPI | C147: 93286 | D147: =IF(I147="i",VLOOKUP(C147,'Ins SINAPI AL 03-2023 Onerado'!$A$8:$E$5189,2,0),VLOOKUP(C147,'Comp SINAPI AL 03-2023 Onerado'!$G$7:$K$6879,2,0)) -> GUINDASTE HIDRÁULICO AUTOPROPELIDO, COM LANÇA TELESCÓPICA 40 M, CAPACIDADE MÁXIMA 60 T, POTÊNCIA 260 KW - MATERIAIS NA OPERAÇÃO. AF_03/2016 | E147: =LOWER(IF(I147="i",VLOOKUP(C147,'Ins SINAPI AL 03-2023 Onerado'!$A$8:$E$7500,3,0),VLOOKUP(C147,'Comp SINAPI AL 03-2023 Onerado'!$G$7:$K$7500,3,0))) -> h | F147: 24 | G147: =IF(I147="i",VLOOKUP(C147,'Ins SINAPI AL 03-2023 Desonerad'!$A$8:$E$7500,5,0),VLOOKUP(C147,'Comp SINAPI AL 03-2023 Desoner'!$G$7:$K$7500,5,0)) -> 12.09 | H147: =ROUND(F147*G147,2) -> 290.16 | I147: ca
A148: =B139 -> 5.1 | B148: =B139 -> 5.1 | D148: SERVIÇOS | H148: 0 | I148: SS
A149: =B139 -> 5.1 | B149: =B139 -> 5.1 | D149: MÃO DE OBRA | H149: =SUM(H150:H151) -> 4588.16 | I149: MDO
A150: =B139 -> 5.1 | B150: SINAPI | C150: 88272 | D150: =IF(I150="i",VLOOKUP(C150,'Ins SINAPI AL 03-2023 Onerado'!$A$8:$E$5189,2,0),VLOOKUP(C150,'Comp SINAPI AL 03-2023 Onerado'!$G$7:$K$7500,2,0)) -> MACARIQUEIRO COM ENCARGOS COMPLEMENTARES | E150: =LOWER(IF(I150="i",VLOOKUP(C150,'Ins SINAPI AL 03-2023 Onerado'!$A$8:$E$7500,3,0),VLOOKUP(C150,'Comp SINAPI AL 03-2023 Onerado'!$G$7:$K$7500,3,0))) -> h | F150: ='MEM SERV'!H86 -> 64 | G150: =IF(I150="i",VLOOKUP(C150,'Ins SINAPI AL 03-2023 Desonerad'!$A$8:$E$7500,5,0),VLOOKUP(C150,'Comp SINAPI AL 03-2023 Desoner'!$G$7:$K$7500,5,0)) -> 23.18 | H150: =ROUND(F150*G150,2) -> 1483.52 | I150: ca
A151: =B139 -> 5.1 | B151: SINAPI | C151: 88241 | D151: =IF(I151="i",VLOOKUP(C151,'Ins SINAPI AL 03-2023 Onerado'!$A$8:$E$5189,2,0),VLOOKUP(C151,'Comp SINAPI AL 03-2023 Onerado'!$G$7:$K$7500,2,0)) -> AJUDANTE DE OPERAÇÃO EM GERAL COM ENCARGOS COMPLEMENTARES | E151: =LOWER(IF(I151="i",VLOOKUP(C151,'Ins SINAPI AL 03-2023 Onerado'!$A$8:$E$7500,3,0),VLOOKUP(C151,'Comp SINAPI AL 03-2023 Onerado'!$G$7:$K$7500,3,0))) -> h | F151: ='MEM SERV'!H87 -> 192 | G151: =IF(I151="i",VLOOKUP(C151,'Ins SINAPI AL 03-2023 Desonerad'!$A$8:$E$7500,5,0),VLOOKUP(C151,'Comp SINAPI AL 03-2023 Desoner'!$G$7:$K$7500,5,0)) -> 16.17 | H151: =ROUND(F151*G151,2) -> 3104.64 | I151: ca
A154: =B154 -> 5.2 | B154: ='Planilha Orçamentária Desoner'!A44 -> 5.2 | C154: =VLOOKUP($B154,'Planilha Orçamentária'!$A$11:$K$104,3,) -> CPU.12 | D154: =VLOOKUP($B154,'Planilha Orçamentária'!$A$11:$K$104,4,) -> 2267 | E154: =VLOOKUP($B154,'Planilha Orçamentária'!$A$11:$K$104,5,) -> Instalação e montagem de equipamentos mecânicos/eletromecânicos | H154: =SUM(H155,H156,H158,H162) -> 10419.55 | I154: S
A155: =B154 -> 5.2 | B155: =B154 -> 5.2 | D155: MATERIAL | H155: 0 | I155: SS
A156: =B154 -> 5.2 | B156: =B154 -> 5.2 | D156: EQUIPAMENTOS | H156: =SUM(H157:H157) -> 1984.2 | I156: SS
A157: =B154 -> 5.2 | B157: SINAPI | C157: 92715 | D157: =IF(I157="i",VLOOKUP(C157,'Ins SINAPI AL 03-2023 Onerado'!$A$8:$E$7500,2,0),VLOOKUP(C157,'Comp SINAPI AL 03-2023 Onerado'!$G$7:$K$7500,2,0)) -> APARELHO PARA CORTE E SOLDA OXI-ACETILENO SOBRE RODAS, INCLUSIVE CILINDROS E MAÇARICOS - MATERIAIS NA OPERAÇÃO. AF_05/2023 | E157: =LOWER(IF(I157="i",VLOOKUP(C157,'Ins SINAPI AL 03-2023 Onerado'!$A$8:$E$7500,3,0),VLOOKUP(C157,'Comp SINAPI AL 03-2023 Onerado'!$G$7:$K$7500,3,0))) -> h | F157: 30 | G157: =IF(I157="i",VLOOKUP(C157,'Ins SINAPI AL 03-2023 Desonerad'!$A$8:$E$7500,5,0),VLOOKUP(C157,'Comp SINAPI AL 03-2023 Desoner'!$G$7:$K$7500,5,0)) -> 66.14 | H157: =ROUND(F157*G157,2) -> 1984.2 | I157: ca
A158: =B154 -> 5.2 | B158: =B154 -> 5.2 | D158: SERVIÇOS | H158: =SUM(H159:H161) -> 1515.31 | I158: SS
A159: =B154 -> 5.2 | B159: SINAPI | C159: 97627 | D159: =IF(I159="i",VLOOKUP(C159,'Ins SINAPI AL 03-2023 Onerado'!$A$8:$E$7500,2,0),VLOOKUP(C159,'Comp SINAPI AL 03-2023 Onerado'!$G$7:$K$7500,2,0)) -> DEMOLIÇÃO DE PILARES E VIGAS EM CONCRETO ARMADO, DE FORMA MECANIZADA COM MARTELETE, SEM REAPROVEITAMENTO. AF_12/2017 | E159: =LOWER(IF(I159="i",VLOOKUP(C159,'Ins SINAPI AL 03-2023 Onerado'!$A$8:$E$7500,3,0),VLOOKUP(C159,'Comp SINAPI AL 03-2023 Onerado'!$G$7:$K$7500,3,0))) -> m3 | F159: 2.58 | G159: =IF(I159="i",VLOOKUP(C159,'Ins SINAPI AL 03-2023 Desonerad'!$A$8:$E$7500,5,0),VLOOKUP(C159,'Comp SINAPI AL 03-2023 Desoner'!$G$7:$K$7500,5,0)) -> 224.83 | H159: =ROUND(F159*G159,2) -> 580.06 | I159: ca
A160: =B154 -> 5.2 | B160: SINAPI | C160: 100235 | D160: =IF(I160="i",VLOOKUP(C160,'Ins SINAPI AL 03-2023 Onerado'!$A$8:$E$7500,2,0),VLOOKUP(C160,'Comp SINAPI AL 03-2023 Onerado'!$G$7:$K$7500,2,0)) -> TRANSPORTE VERTICAL MANUAL, 1 PAVIMENTO, DE LATA DE 18 LITROS (UNIDADE: L). AF_07/2019 | E160: =(IF(I160="i",VLOOKUP(C160,'Ins SINAPI AL 03-2023 Onerado'!$A$8:$E$7500,3,0),VLOOKUP(C160,'Comp SINAPI AL 03-2023 Onerado'!$G$7:$K$7500,3,0))) -> L | F160: 287 | G160: =IF(I160="i",VLOOKUP(C160,'Ins SINAPI AL 03-2023 Desonerad'!$A$8:$E$7500,5,0),VLOOKUP(C160,'Comp SINAPI AL 03-2023 Desoner'!$G$7:$K$7500,5,0)) -> 0.03 | H160: =ROUND(F160*G160,2) -> 8.61 | I160: ca
A161: =B154 -> 5.2 | B161: SINAPI | C161: 97914 | D161: =IF(I161="i",VLOOKUP(C161,'Ins SINAPI AL 03-2023 Onerado'!$A$8:$E$7500,2,0),VLOOKUP(C161,'Comp SINAPI AL 03-2023 Onerado'!$G$7:$K$7500,2,0)) -> TRANSPORTE COM CAMINHÃO BASCULANTE DE 6 M³, EM VIA URBANA PAVIMENTADA, DMT ATÉ 30 KM (UNIDADE: M3XKM). AF_07/2020 | E161: =LOWER(IF(I161="i",VLOOKUP(C161,'Ins SINAPI AL 03-2023 Onerado'!$A$8:$E$7500,3,0),VLOOKUP(C161,'Comp SINAPI AL 03-2023 Onerado'!$G$7:$K$7500,3,0))) -> m3xkm | F161: 343.2 | G161: =IF(I161="i",VLOOKUP(C161,'Ins SINAPI AL 03-2023 Desonerad'!$A$8:$E$7500,5,0),VLOOKUP(C161,'Comp SINAPI AL 03-2023 Desoner'!$G$7:$K$7500,5,0)) -> 2.7 | H161: =ROUND(F161*G161,2) -> 926.64 | I161: ca
A162: =B154 -> 5.2 | B162: =B154 -> 5.2 | D162: MÃO DE OBRA | H162: =SUM(H163:H164) -> 6920.04 | I162: MDO
A163: =B154 -> 5.2 | B163: SINAPI | C163: 88242 | D163: =IF(I163="i",VLOOKUP(C163,'Ins SINAPI AL 03-2023 Onerado'!$A$8:$E$7500,2,0),VLOOKUP(C163,'Comp SINAPI AL 03-2023 Onerado'!$G$7:$K$7500,2,0)) -> AJUDANTE DE PEDREIRO COM ENCARGOS COMPLEMENTARES | E163: =LOWER(IF(I163="i",VLOOKUP(C163,'Ins SINAPI AL 03-2023 Onerado'!$A$8:$E$7500,3,0),VLOOKUP(C163,'Comp SINAPI AL 03-2023 Onerado'!$G$7:$K$7500,3,0))) -> h | F163: 384 | G163: =IF(I163="i",VLOOKUP(C163,'Ins SINAPI AL 03-2023 Desonerad'!$A$8:$E$7500,5,0),VLOOKUP(C163,'Comp SINAPI AL 03-2023 Desoner'!$G$7:$K$7500,5,0)) -> 16.21 | H163: =ROUND(F163*G163,2) -> 6224.64 | I163: ca
A164: =B154 -> 5.2 | B164: SINAPI | C164: 88272 | D164: =IF(I164="i",VLOOKUP(C164,'Ins SINAPI AL 03-2023 Onerado'!$A$8:$E$7500,2,0),VLOOKUP(C164,'Comp SINAPI AL 03-2023 Onerado'!$G$7:$K$7500,2,0)) -> MACARIQUEIRO COM ENCARGOS COMPLEMENTARES | E164: =LOWER(IF(I164="i",VLOOKUP(C164,'Ins SINAPI AL 03-2023 Onerado'!$A$8:$E$7500,3,0),VLOOKUP(C164,'Comp SINAPI AL 03-2023 Onerado'!$G$7:$K$7500,3,0))) -> h | F164: 30 | G164: =IF(I164="i",VLOOKUP(C164,'Ins SINAPI AL 03-2023 Desonerad'!$A$8:$E$7500,5,0),VLOOKUP(C164,'Comp SINAPI AL 03-2023 Desoner'!$G$7:$K$7500,5,0)) -> 23.18 | H164: =ROUND(F164*G164,2) -> 695.4 | I164: ca
I165: x
A166: =B166 -> 5.3 | B166: ='Planilha Orçamentária Desoner'!A45 -> 5.3 | C166: =VLOOKUP($B166,'Planilha Orçamentária'!$A$11:$K$104,3) -> CPU.13 | D166: =VLOOKUP($B166,'Planilha Orçamentária'!$A$11:$K$104,4) -> 2267 | E166: =VLOOKUP($B166,'Planilha Orçamentária'!$A$11:$K$104,5) -> Instalação e montagem de equipamentos mecânicos/eletromecânicos | H166: =SUM(H167,H169,H170,H171) -> 5462.74 | I166: S
A167: =B166 -> 5.3 | B167: =B166 -> 5.3 | D167: MATERIAL | H167: =H168 -> 4425.3 | I167: SS
A168: =B166 -> 5.3 | B168: SINAPI | C168: 4049 | D168: =IF(I168="i",VLOOKUP(C168,'Ins SINAPI AL 03-2023 Onerado'!$A$8:$E$5189,2,0),VLOOKUP(C168,'Comp SINAPI AL 03-2023 Onerado'!$G$7:$K$6879,2,0)) -> MASSA EPOXI BICOMPONENTE (MASSA + CATALIZADOR) | E168: =LOWER(IF(I168="i",VLOOKUP(C168,'Ins SINAPI AL 03-2023 Onerado'!$A$8:$E$7500,3,0),VLOOKUP(C168,'Comp SINAPI AL 03-2023 Onerado'!$G$7:$K$7500,3,0))) -> l | F168: 90 | G168: =IF(I168="i",VLOOKUP(C168,'Ins SINAPI AL 03-2023 Desonerad'!$A$8:$E$7500,5,0),VLOOKUP(C168,'Comp SINAPI AL 03-2023 Desoner'!$G$7:$K$7500,5,0)) -> 49.17 | H168: =ROUND(F168*G168,2) -> 4425.3 | I168: i
A169: =B166 -> 5.3 | B169: =B166 -> 5.3 | D169: EQUIPAMENTOS | H169: 0 | I169: SS
A170: =B166 -> 5.3 | B170: =B166 -> 5.3 | D170: SERVIÇOS | H170: 0 | I170: SS
A171: =B166 -> 5.3 | B171: =B166 -> 5.3 | D171: MÃO DE OBRA | H171: =SUM(H172:H172) -> 1037.44 | I171: MDO
A172: =B166 -> 5.3 | B172: SINAPI | C172: 88242 | D172: =IF(I172="i",VLOOKUP(C172,'Ins SINAPI AL 03-2023 Onerado'!$A$8:$E$7500,2,0),VLOOKUP(C172,'Comp SINAPI AL 03-2023 Onerado'!$G$7:$K$7500,2,0)) -> AJUDANTE DE PEDREIRO COM ENCARGOS COMPLEMENTARES | E172: =LOWER(IF(I172="i",VLOOKUP(C172,'Ins SINAPI AL 03-2023 Onerado'!$A$8:$E$7500,3,0),VLOOKUP(C172,'Comp SINAPI AL 03-2023 Onerado'!$G$7:$K$7500,3,0))) -> h | F172: 64 | G172: =IF(I172="i",VLOOKUP(C172,'Ins SINAPI AL 03-2023 Desonerad'!$A$8:$E$7500,5,0),VLOOKUP(C172,'Comp SINAPI AL 03-2023 Desoner'!$G$7:$K$7500,5,0)) -> 16.21 | H172: =ROUND(F172*G172,2) -> 1037.44 | I172: ca
I173: x
A174: =B174 -> 5.4 | B174: ='Planilha Orçamentária Desoner'!A46 -> 5.4 | C174: =VLOOKUP($B174,'Planilha Orçamentária'!$A$11:$K$104,3,) -> CPU.14 | D174: =VLOOKUP($B174,'Planilha Orçamentária'!$A$11:$K$104,4,) -> 2267 | E174: =VLOOKUP($B174,'Planilha Orçamentária'!$A$11:$K$104,5,) -> Instalação e montagem de equipamentos mecânicos/eletromecânicos | H174: =SUM(H175,H178,H183,H184) -> 26261.42 | I174: S
A175: =B174 -> 5.4 | B175: =B174 -> 5.4 | D175: MATERIAL | H175: =SUM(H176:H177) -> 1927.5 | I175: SS
A176: =B174 -> 5.4 | B176: SINAPI | C176: 10997 | D176: =IF(I176="i",VLOOKUP(C176,'Ins SINAPI AL 03-2023 Onerado'!$A$8:$E$5189,2,0),VLOOKUP(C176,'Comp SINAPI AL 03-2023 Onerado'!$G$7:$K$6879,2,0)) -> ELETRODO REVESTIDO AWS - E7018, DIAMETRO IGUAL A 4,00 MM | E176: =LOWER(IF(I176="i",VLOOKUP(C176,'Ins SINAPI AL 03-2023 Onerado'!$A$8:$E$7500,3,0),VLOOKUP(C176,'Comp SINAPI AL 03-2023 Onerado'!$G$7:$K$7500,3,0))) -> kg | F176: 30 | G176: =IF(I176="i",VLOOKUP(C176,'Ins SINAPI AL 03-2023 Desonerad'!$A$8:$E$7500,5,0),VLOOKUP(C176,'Comp SINAPI AL 03-2023 Desoner'!$G$7:$K$7500,5,0)) -> 43.25 | H176: =ROUND(F176*G176,2) -> 1297.5 | I176: i
A177: =B174 -> 5.4 | B177: SINAPI | C177: 1 | D177: =IF(I177="i",VLOOKUP(C177,'Ins SINAPI AL 03-2023 Onerado'!$A$8:$E$5189,2,0),VLOOKUP(C177,'Comp SINAPI AL 03-2023 Onerado'!$G$7:$K$6879,2,0)) -> ACETILENO (RECARGA DE GAS ACETILENO PARA CILINDRO DE CONJUNTO OXICORTE GRANDE) NAO INCLUI TROCA/MANUTENCAO DO CILINDRO | E177: =LOWER(IF(I177="i",VLOOKUP(C177,'Ins SINAPI AL 03-2023 Onerado'!$A$8:$E$7500,3,0),VLOOKUP(C177,'Comp SINAPI AL 03-2023 Onerado'!$G$7:$K$7500,3,0))) -> kg | F177: 10 | G177: =IF(I177="i",VLOOKUP(C177,'Ins SINAPI AL 03-2023 Desonerad'!$A$8:$E$7500,5,0),VLOOKUP(C177,'Comp SINAPI AL 03-2023 Desoner'!$G$7:$K$7500,5,0)) -> 63 | H177: =ROUND(F177*G177,2) -> 630 | I177: i
A178: =B174 -> 5.4 | B178: =B174 -> 5.4 | D178: EQUIPAMENTOS | H178: =SUM(H179:H182) -> 11887.2 | I178: SS
A179: =B174 -> 5.4 | B179: SINAPI | C179: 83763 | D179: =IF(I179="i",VLOOKUP(C179,'Ins SINAPI AL 03-2023 Onerado'!$A$8:$E$7500,2,0),VLOOKUP(C179,'Comp SINAPI AL 03-2023 Onerado'!$G$7:$K$7500,2,0)) -> GRUPO DE SOLDAGEM COM GERADOR A DIESEL 60 CV PARA SOLDA ELÉTRICA, SOBRE 04 RODAS, COM MOTOR 4 CILINDROS 600 A - MATERIAIS NA OPERAÇÃO. AF_02/2016 | E179: =LOWER(IF(I179="i",VLOOKUP(C179,'Ins SINAPI AL 03-2023 Onerado'!$A$8:$E$7500,3,0),VLOOKUP(C179,'Comp SINAPI AL 03-2023 Onerado'!$G$7:$K$7500,3,0))) -> h | F179: 72 | G179: =IF(I179="i",VLOOKUP(C179,'Ins SINAPI AL 03-2023 Desonerad'!$A$8:$E$7500,5,0),VLOOKUP(C179,'Comp SINAPI AL 03-2023 Desoner'!$G$7:$K$7500,5,0)) -> 52.6 | H179: =ROUND(F179*G179,2) -> 3787.2 | I179: ca
A180: =B174 -> 5.4 | B180: SINAPI | C180: 92715 | D180: =IF(I180="i",VLOOKUP(C180,'Ins SINAPI AL 03-2023 Onerado'!$A$8:$E$7500,2,0),VLOOKUP(C180,'Comp SINAPI AL 03-2023 Onerado'!$G$7:$K$7500,2,0)) -> APARELHO PARA CORTE E SOLDA OXI-ACETILENO SOBRE RODAS, INCLUSIVE CILINDROS E MAÇARICOS - MATERIAIS NA OPERAÇÃO. AF_05/2023 | E180: =LOWER(IF(I180="i",VLOOKUP(C180,'Ins SINAPI AL 03-2023 Onerado'!$A$8:$E$7500,3,0),VLOOKUP(C180,'Comp SINAPI AL 03-2023 Onerado'!$G$7:$K$7500,3,0))) -> h | F180: 48 | G180: =IF(I180="i",VLOOKUP(C180,'Ins SINAPI AL 03-2023 Desonerad'!$A$8:$E$7500,5,0),VLOOKUP(C180,'Comp SINAPI AL 03-2023 Desoner'!$G$7:$K$7500,5,0)) -> 66.14 | H180: =ROUND(F180*G180,2) -> 3174.72 | I180: ca
A181: =B174 -> 5.4 | B181: SINAPI | C181: 10527 | D181: =IF(I181="i",VLOOKUP(C181,'Ins SINAPI AL 03-2023 Onerado'!$A$8:$E$7500,2,0),VLOOKUP(C181,'Comp SINAPI AL 03-2023 Onerado'!$G$7:$K$7500,2,0)) -> LOCACAO DE ANDAIME METALICO TUBULAR DE ENCAIXE, TIPO DE TORRE, CADA PAINEL COM LARGURA DE 1 ATE 1,5 M E ALTURA DE *1,00* M, INCLUINDO DIAGONAL, BARRAS DE LIGACAO, SAPATAS OU RODIZIOS E DEMAIS ITENS NECESSARIOS A MONTAGEM (NAO INCLUI INSTALACAO) | E181: =LOWER(IF(I181="i",VLOOKUP(C181,'Ins SINAPI AL 03-2023 Onerado'!$A$8:$E$7500,3,0),VLOOKUP(C181,'Comp SINAPI AL 03-2023 Onerado'!$G$7:$K$7500,3,0))) -> mxmes | F181: 12 | G181: =IF(I181="i",VLOOKUP(C181,'Ins SINAPI AL 03-2023 Desonerad'!$A$8:$E$7500,5,0),VLOOKUP(C181,'Comp SINAPI AL 03-2023 Desoner'!$G$7:$K$7500,5,0)) -> 26 | H181: =ROUND(F181*G181,2) -> 312 | I181: i
A182: =B174 -> 5.4 | B182: SINAPI | C182: 89272 | D182: =IF(I182="i",VLOOKUP(C182,'Ins SINAPI AL 03-2023 Onerado'!$A$8:$E$7500,2,0),VLOOKUP(C182,'Comp SINAPI AL 03-2023 Onerado'!$G$7:$K$7500,2,0)) -> GUINDASTE HIDRÁULICO AUTOPROPELIDO, COM LANÇA TELESCÓPICA 28,80 M, CAPACIDADE MÁXIMA 30 T, POTÊNCIA 97 KW, TRAÇÃO 4 X 4 - CHP DIURNO. AF_11/2014 | E182: =LOWER(IF(I182="i",VLOOKUP(C182,'Ins SINAPI AL 03-2023 Onerado'!$A$8:$E$7500,3,0),VLOOKUP(C182,'Comp SINAPI AL 03-2023 Onerado'!$G$7:$K$7500,3,0))) -> chp | F182: 24 | G182: =IF(I182="i",VLOOKUP(C182,'Ins SINAPI AL 03-2023 Desonerad'!$A$8:$E$7500,5,0),VLOOKUP(C182,'Comp SINAPI AL 03-2023 Desoner'!$G$7:$K$7500,5,0)) -> 192.22 | H182: =ROUND(F182*G182,2) -> 4613.28 | I182: ca
A183: =B174 -> 5.4 | B183: =B174 -> 5.4 | D183: SERVIÇOS | H183: 0 | I183: SS
A184: =B174 -> 5.4 | B184: =B174 -> 5.4 | D184: MÃO DE OBRA | H184: =SUM(H185:H187) -> 12446.72 | I184: MDO
A185: =B174 -> 5.4 | B185: SINAPI | C185: 88278 | D185: =IF(I185="i",VLOOKUP(C185,'Ins SINAPI AL 03-2023 Onerado'!$A$8:$E$7500,2,0),VLOOKUP(C185,'Comp SINAPI AL 03-2023 Onerado'!$G$7:$K$7500,2,0)) -> MONTADOR DE ESTRUTURA METÁLICA COM ENCARGOS COMPLEMENTARES | E185: =LOWER(IF(I185="i",VLOOKUP(C185,'Ins SINAPI AL 03-2023 Onerado'!$A$8:$E$7500,3,0),VLOOKUP(C185,'Comp SINAPI AL 03-2023 Onerado'!$G$7:$K$7500,3,0))) -> h | F185: 320 | G185: =IF(I185="i",VLOOKUP(C185,'Ins SINAPI AL 03-2023 Desonerad'!$A$8:$E$7500,5,0),VLOOKUP(C185,'Comp SINAPI AL 03-2023 Desoner'!$G$7:$K$7500,5,0)) -> 15.67 | H185: =ROUND(F185*G185,2) -> 5014.4 | I185: ca
A186: =B174 -> 5.4 | B186: SINAPI | C186: 88317 | D186: =IF(I186="i",VLOOKUP(C186,'Ins SINAPI AL 03-2023 Onerado'!$A$8:$E$7500,2,0),VLOOKUP(C186,'Comp SINAPI AL 03-2023 Onerado'!$G$7:$K$7500,2,0)) -> SOLDADOR COM ENCARGOS COMPLEMENTARES | E186: =LOWER(IF(I186="i",VLOOKUP(C186,'Ins SINAPI AL 03-2023 Onerado'!$A$8:$E$7500,3,0),VLOOKUP(C186,'Comp SINAPI AL 03-2023 Onerado'!$G$7:$K$7500,3,0))) -> h | F186: 96 | G186: =IF(I186="i",VLOOKUP(C186,'Ins SINAPI AL 03-2023 Desonerad'!$A$8:$E$7500,5,0),VLOOKUP(C186,'Comp SINAPI AL 03-2023 Desoner'!$G$7:$K$7500,5,0)) -> 23.52 | H186: =ROUND(F186*G186,2) -> 2257.92 | I186: ca
A187: =B174 -> 5.4 | B187: SINAPI | C187: 88241 | D187: =IF(I187="i",VLOOKUP(C187,'Ins SINAPI AL 03-2023 Onerado'!$A$8:$E$7500,2,0),VLOOKUP(C187,'Comp SINAPI AL 03-2023 Onerado'!$G$7:$K$7500,2,0)) -> AJUDANTE DE OPERAÇÃO EM GERAL COM ENCARGOS COMPLEMENTARES | E187: =LOWER(IF(I187="i",VLOOKUP(C187,'Ins SINAPI AL 03-2023 Onerado'!$A$8:$E$7500,3,0),VLOOKUP(C187,'Comp SINAPI AL 03-2023 Onerado'!$G$7:$K$7500,3,0))) -> h | F187: 320 | G187: =IF(I187="i",VLOOKUP(C187,'Ins SINAPI AL 03-2023 Desonerad'!$A$8:$E$7500,5,0),VLOOKUP(C187,'Comp SINAPI AL 03-2023 Desoner'!$G$7:$K$7500,5,0)) -> 16.17 | H187: =ROUND(F187*G187,2) -> 5174.4 | I187: ca
I188: x
A189: =B189 -> 5.5 | B189: ='Planilha Orçamentária Desoner'!A47 -> 5.5 | C189: =VLOOKUP($B189,'Planilha Orçamentária'!$A$11:$K$104,3,) -> CPU.15 | D189: =VLOOKUP($B189,'Planilha Orçamentária'!$A$11:$K$104,4,) -> 17140 | E189: =VLOOKUP($B189,'Planilha Orçamentária'!$A$11:$K$104,5,) -> Obras civis - concretagem | H189: =SUM(H190,H193,H195,H198) -> 6652.74 | I189: S
A190: =B189 -> 5.5 | B190: =B189 -> 5.5 | D190: MATERIAL | H190: =SUM(H191:H192) -> 206.35 | I190: SS
A191: =B189 -> 5.5 | B191: SINAPI | C191: 4491 | D191: =IF(I191="i",VLOOKUP(C191,'Ins SINAPI AL 03-2023 Onerado'!$A$8:$E$5189,2,0),VLOOKUP(C191,'Comp SINAPI AL 03-2023 Onerado'!$G$7:$K$6879,2,0)) -> PONTALETE *7,5 X 7,5* CM EM PINUS, MISTA OU EQUIVALENTE DA REGIAO - BRUTA | E191: =LOWER(IF(I191="i",VLOOKUP(C191,'Ins SINAPI AL 03-2023 Onerado'!$A$8:$E$7500,3,0),VLOOKUP(C191,'Comp SINAPI AL 03-2023 Onerado'!$G$7:$K$7500,3,0))) -> m | F191: 12 | G191: =IF(I191="i",VLOOKUP(C191,'Ins SINAPI AL 03-2023 Desonerad'!$A$8:$E$7500,5,0),VLOOKUP(C191,'Comp SINAPI AL 03-2023 Desoner'!$G$7:$K$7500,5,0)) -> 13.27 | H191: =ROUND(F191*G191,2) -> 159.24 | I191: I
A192: =B189 -> 5.5 | B192: SINAPI | C192: 4509 | D192: =IF(I192="i",VLOOKUP(C192,'Ins SINAPI AL 03-2023 Onerado'!$A$8:$E$5189,2,0),VLOOKUP(C192,'Comp SINAPI AL 03-2023 Onerado'!$G$7:$K$6879,2,0)) -> SARRAFO *2,5 X 10* CM EM PINUS, MISTA OU EQUIVALENTE DA REGIAO - BRUTA | E192: =LOWER(IF(I192="i",VLOOKUP(C192,'Ins SINAPI AL 03-2023 Onerado'!$A$8:$E$7500,3,0),VLOOKUP(C192,'Comp SINAPI AL 03-2023 Onerado'!$G$7:$K$7500,3,0))) -> m | F192: 7 | G192: =IF(I192="i",VLOOKUP(C192,'Ins SINAPI AL 03-2023 Desonerad'!$A$8:$E$7500,5,0),VLOOKUP(C192,'Comp SINAPI AL 03-2023 Desoner'!$G$7:$K$7500,5,0)) -> 6.73 | H192: =ROUND(F192*G192,2) -> 47.11 | I192: I
A193: =B189 -> 5.5 | B193: =B189 -> 5.5 | D193: EQUIPAMENTOS | H193: =SUM(H194:H194) -> 190.56 | I193: SS
A194: =B189 -> 5.5 | B194: SINAPI | C194: 90662 | D194: =IF(I194="i",VLOOKUP(C194,'Ins SINAPI AL 03-2023 Onerado'!$A$8:$E$5189,2,0),VLOOKUP(C194,'Comp SINAPI AL 03-2023 Onerado'!$G$7:$K$6879,2,0)) -> BOMBA DE PROJEÇÃO DE CONCRETO SECO, POTÊNCIA 10 CV, VAZÃO 6 M3/H - CHP DIURNO. AF_06/2015 | E194: =LOWER(IF(I194="i",VLOOKUP(C194,'Ins SINAPI AL 03-2023 Onerado'!$A$8:$E$7500,3,0),VLOOKUP(C194,'Comp SINAPI AL 03-2023 Onerado'!$G$7:$K$7500,3,0))) -> chp | F194: 12 | G194: =IF(I194="i",VLOOKUP(C194,'Ins SINAPI AL 03-2023 Desonerad'!$A$8:$E$7500,5,0),VLOOKUP(C194,'Comp SINAPI AL 03-2023 Desoner'!$G$7:$K$7500,5,0)) -> 15.88 | H194: =ROUND(F194*G194,2) -> 190.56 | I194: ca
A195: =B189 -> 5.5 | B195: =B189 -> 5.5 | D195: SERVIÇOS | H195: =SUM(H196:H197) -> 4972.15 | I195: SS
A196: =B189 -> 5.5 | B196: SINAPI | C196: 92409 | D196: =IF(I196="i",VLOOKUP(C196,'Ins SINAPI AL 03-2023 Onerado'!$A$8:$E$5189,2,0),VLOOKUP(C196,'Comp SINAPI AL 03-2023 Onerado'!$G$7:$K$6879,2,0)) -> MONTAGEM E DESMONTAGEM DE FÔRMA DE PILARES RETANGULARES E ESTRUTURAS SIMILARES, PÉ-DIREITO SIMPLES, EM MADEIRA SERRADA, 1 UTILIZAÇÃO. AF_09/2020 | E196: =LOWER(IF(I196="i",VLOOKUP(C196,'Ins SINAPI AL 03-2023 Onerado'!$A$8:$E$7500,3,0),VLOOKUP(C196,'Comp SINAPI AL 03-2023 Onerado'!$G$7:$K$7500,3,0))) -> m2 | F196: 8.82 | G196: =IF(I196="i",VLOOKUP(C196,'Ins SINAPI AL 03-2023 Desonerad'!$A$8:$E$7500,5,0),VLOOKUP(C196,'Comp SINAPI AL 03-2023 Desoner'!$G$7:$K$7500,5,0)) -> 250.59 | H196: =ROUND(F196*G196,2) -> 2210.2 | I196: ca
A197: =B189 -> 5.5 | B197: SINAPI | C197: 103669 | D197: =IF(I197="i",VLOOKUP(C197,'Ins SINAPI AL 03-2023 Onerado'!$A$8:$E$7500,2,0),VLOOKUP(C197,'Comp SINAPI AL 03-2023 Onerado'!$G$7:$K$7500,2,0)) -> CONCRETAGEM DE PILARES, FCK = 25 MPA, COM USO DE BALDES - LANÇAMENTO, ADENSAMENTO E ACABAMENTO. AF_02/2022 | E197: =LOWER(IF(I197="i",VLOOKUP(C197,'Ins SINAPI AL 03-2023 Onerado'!$A$8:$E$7500,3,0),VLOOKUP(C197,'Comp SINAPI AL 03-2023 Onerado'!$G$7:$K$7500,3,0))) -> m3 | F197: 3.354 | G197: =IF(I197="i",VLOOKUP(C197,'Ins SINAPI AL 03-2023 Desonerad'!$A$8:$E$7500,5,0),VLOOKUP(C197,'Comp SINAPI AL 03-2023 Desoner'!$G$7:$K$7500,5,0)) -> 823.48 | H197: =ROUND(F197*G197,2) -> 2761.95 | I197: CA
A198: =B189 -> 5.5 | B198: =B189 -> 5.5 | D198: MÃO DE OBRA | H198: =SUM(H199:H200) -> 1283.68 | I198: MDO
A199: =B189 -> 5.5 | B199: SINAPI | C199: 88291 | D199: =IF(I199="i",VLOOKUP(C199,'Ins SINAPI AL 03-2023 Onerado'!$A$8:$E$7500,2,0),VLOOKUP(C199,'Comp SINAPI AL 03-2023 Onerado'!$G$7:$K$7500,2,0)) -> OPERADOR DE BETONEIRA (CAMINHÃO) COM ENCARGOS COMPLEMENTARES | E199: =LOWER(IF(I199="i",VLOOKUP(C199,'Ins SINAPI AL 03-2023 Onerado'!$A$8:$E$7500,3,0),VLOOKUP(C199,'Comp SINAPI AL 03-2023 Onerado'!$G$7:$K$7500,3,0))) -> h | F199: 16 | G199: =IF(I199="i",VLOOKUP(C199,'Ins SINAPI AL 03-2023 Desonerad'!$A$8:$E$7500,5,0),VLOOKUP(C199,'Comp SINAPI AL 03-2023 Desoner'!$G$7:$K$7500,5,0)) -> 15.39 | H199: =ROUND(F199*G199,2) -> 246.24 | I199: ca
A200: =B189 -> 5.5 | B200: SINAPI | C200: 88242 | D200: =IF(I200="i",VLOOKUP(C200,'Ins SINAPI AL 03-2023 Onerado'!$A$8:$E$7500,2,0),VLOOKUP(C200,'Comp SINAPI AL 03-2023 Onerado'!$G$7:$K$7500,2,0)) -> AJUDANTE DE PEDREIRO COM ENCARGOS COMPLEMENTARES | E200: =LOWER(IF(I200="i",VLOOKUP(C200,'Ins SINAPI AL 03-2023 Onerado'!$A$8:$E$7500,3,0),VLOOKUP(C200,'Comp SINAPI AL 03-2023 Onerado'!$G$7:$K$7500,3,0))) -> h | F200: 64 | G200: =IF(I200="i",VLOOKUP(C200,'Ins SINAPI AL 03-2023 Desonerad'!$A$8:$E$7500,5,0),VLOOKUP(C200,'Comp SINAPI AL 03-2023 Desoner'!$G$7:$K$7500,5,0)) -> 16.21 | H200: =ROUND(F200*G200,2) -> 1037.44 | I200: ca
I201: x
A202: =B202 -> 5.6 | B202: ='Planilha Orçamentária Desoner'!A48 -> 5.6 | C202: =VLOOKUP($B202,'Planilha Orçamentária'!$A$11:$K$104,3,) -> CPU.16 | D202: =VLOOKUP($B202,'Planilha Orçamentária'!$A$11:$K$104,4,) -> 17140 | E202: =VLOOKUP($B202,'Planilha Orçamentária'!$A$11:$K$104,5,) -> Obras civis - concretagem | H202: =SUM(H203,H204,H205,H208) -> 3338.36 | I202: S
A203: =B202 -> 5.6 | B203: =B202 -> 5.6 | D203: MATERIAL | H203: 0 | I203: SS
A204: =B202 -> 5.6 | B204: =B202 -> 5.6 | D204: EQUIPAMENTOS | H204: 0 | I204: SS
A205: =B202 -> 5.6 | B205: =B202 -> 5.6 | D205: SERVIÇOS | H205: =SUM(H206:H207) -> 2300.92 | I205: SS
A206: =B202 -> 5.6 | B206: SINAPI | C206: 92409 | D206: =IF(I206="i",VLOOKUP(C206,'Ins SINAPI AL 03-2023 Onerado'!$A$8:$E$5189,2,0),VLOOKUP(C206,'Comp SINAPI AL 03-2023 Onerado'!$G$7:$K$6879,2,0)) -> MONTAGEM E DESMONTAGEM DE FÔRMA DE PILARES RETANGULARES E ESTRUTURAS SIMILARES, PÉ-DIREITO SIMPLES, EM MADEIRA SERRADA, 1 UTILIZAÇÃO. AF_09/2020 | E206: =LOWER(IF(I206="i",VLOOKUP(C206,'Ins SINAPI AL 03-2023 Onerado'!$A$8:$E$7500,3,0),VLOOKUP(C206,'Comp SINAPI AL 03-2023 Onerado'!$G$7:$K$7500,3,0))) -> m2 | F206: 8.82 | G206: =IF(I206="i",VLOOKUP(C206,'Ins SINAPI AL 03-2023 Desonerad'!$A$8:$E$7500,5,0),VLOOKUP(C206,'Comp SINAPI AL 03-2023 Desoner'!$G$7:$K$7500,5,0)) -> 250.59 | H206: =ROUND(F206*G206,2) -> 2210.2 | I206: ca
A207: =B202 -> 5.6 | B207: SINAPI | C207: 97914 | D207: =IF(I207="i",VLOOKUP(C207,'Ins SINAPI AL 03-2023 Onerado'!$A$8:$E$5189,2,0),VLOOKUP(C207,'Comp SINAPI AL 03-2023 Onerado'!$G$7:$K$7500,2,0)) -> TRANSPORTE COM CAMINHÃO BASCULANTE DE 6 M³, EM VIA URBANA PAVIMENTADA, DMT ATÉ 30 KM (UNIDADE: M3XKM). AF_07/2020 | E207: =LOWER(IF(I207="i",VLOOKUP(C207,'Ins SINAPI AL 03-2023 Onerado'!$A$8:$E$7500,3,0),VLOOKUP(C207,'Comp SINAPI AL 03-2023 Onerado'!$G$7:$K$7500,3,0))) -> m3xkm | F207: 33.6 | G207: =IF(I207="i",VLOOKUP(C207,'Ins SINAPI AL 03-2023 Desonerad'!$A$8:$E$7500,5,0),VLOOKUP(C207,'Comp SINAPI AL 03-2023 Desoner'!$G$7:$K$7500,5,0)) -> 2.7 | H207: =ROUND(F207*G207,2) -> 90.72 | I207: ca
... 201 more rows

Sheet BDI serv
A1: Ministério do Desenvolvimento Regional
A2: Companhia de Desenvolvimento dos Vales do São Francisco e do Parnaíba
A3: ='Planilha Orçamentária'!A3:K3 -> 0
A4: COMPOSIÇÃO DE BDI - SERVIÇOS - ONERADO
A5: OBRA: | B5: ='Planilha Orçamentária'!B5 -> SUBSTITUIÇÃO DAS COMPORTAS NA BARRAGEM DE BOACICA | D5: BDI (serv.): | E5: =D23 -> 0.2591
A6: LOCAL: | B6: ='Planilha Orçamentária'!B6 -> BARRAGEM BOACICA (IGREJA NOVA - AL) | D6: BDI (forn.): | E6: ='BDI forn'!D23 -> 0.147
A7: DATA BASE: | B7: 2023-07-01
A8: PRAZO: | B8: ='Planilha Orçamentária'!B8 -> 240 DIAS
A9: ITEM | B9: DESCRIÇÃO | C9: SIGLA | D9: % APLICADO | E9: REFERÊNCIA TCU (ACÓRDÃO Nº 2622/2013)
E10: 1º QUARTIL | F10: 2º QUARTIL | G10: 3º QUARTIL
A11: 1 | B11: ADMINISTRAÇÃO CENTRAL | C11: AC | D11: =E11 -> 0.04 | E11: 0.04 | F11: 0.0552 | G11: 0.0785
A12: 2 | B12: IMPOSTOS | C12: T | D12: =SUM(D13:D16) -> 0.0865
A13: 2.1 | B13: ISS (*) | D13: 0.05 | E13: - | F13: - | G13: -
A14: 2.2 | B14: PIS | D14: 0.0065 | E14: - | F14: - | G14: -
A15: 2.3 | B15: Cofins | D15: 0.03 | E15: - | F15: - | G15: -
A16: 2.4 | B16: Contribuição previdênciária sobre a receita bruta (CPRB) | E16: - | F16: - | G16: -
A17: 3 | B17: SEGURO, GARANTIA E RISCO | D17: =SUM(D18:D20) -> 0.0227
A18: 3.1 | B18: Seguro | C18: S | D18: =E18 -> 0.0081 | E18: 0.0081 | F18: 0.0122 | G18: 0.0199
A19: 3.2 | B19: Garantia | C19: G
A20: 3.3 | B20: Risco | C20: R | D20: =E20 -> 0.0146 | E20: 0.0146 | F20: 0.0232 | G20: 0.0316
A21: 4 | B21: DESPESAS FINANCEIRAS | C21: DF | D21: =F21 -> 0.0102 | E21: 0.0094 | F21: 0.0102 | G21: 0.01363
A22: 5 | B22: LUCRO | C22: L | D22: =E22 -> 0.0714 | E22: 0.0714 | F22: 0.084 | G22: 0.1043
B23: BDI ADOTADO: | D23: =ROUND(((((1+D11+D17)*(1+D21)*(1+D22))/(1-D12))-1),4) -> 0.2591
A24: Considerações: O BDI foi calculado através da seguinte fórmula, regulamentada pelo Acórdão Nº 2622/2013 – TCU.
H173: =SUM(H174:H177) -> 0
D177: mec | F177: 2 | G177: 128

Sheet BDI serv Desonerado (hidden)
A1: Ministério do Desenvolvimento Regional
A2: Companhia de Desenvolvimento dos Vales do São Francisco e do Parnaíba
A3: ='Planilha Orçamentária'!A3:K3 -> 0
A4: COMPOSIÇÃO DE BDI - SERVIÇOS - DESONERADO
A5: OBRA: | B5: ='Planilha Orçamentária'!B5 -> SUBSTITUIÇÃO DAS COMPORTAS NA BARRAGEM DE BOACICA | D5: BDI (serv.): | E5: =D23 -> 0.3243
A6: LOCAL: | B6: ='Planilha Orçamentária'!B6 -> BARRAGEM BOACICA (IGREJA NOVA - AL) | D6: BDI (forn.): | E6: ='BDI forn Desonerado'!E6 -> 0.2032
A7: DATA BASE: | B7: ='Planilha Orçamentária'!B7 -> 2023-05-01
A8: PRAZO: | B8: ='Planilha Orçamentária'!B8 -> 240 DIAS
A9: ITEM | B9: DESCRIÇÃO | C9: SIGLA | D9: % APLICADO | E9: REFERÊNCIA TCU (ACÓRDÃO Nº 2622/2013)
E10: 1º QUARTIL | F10: 2º QUARTIL | G10: 3º QUARTIL
A11: 1 | B11: ADMINISTRAÇÃO CENTRAL | C11: AC | D11: =E11 -> 0.04 | E11: 0.04 | F11: 0.0552 | G11: 0.0785
A12: 2 | B12: IMPOSTOS | C12: T | D12: =SUM(D13:D16) -> 0.1315
A13: 2.1 | B13: ISS (*) | D13: 0.05 | E13: - | F13: - | G13: -
A14: 2.2 | B14: PIS | D14: 0.0065 | E14: - | F14: - | G14: -
A15: 2.3 | B15: Cofins | D15: 0.03 | E15: - | F15: - | G15: -
A16: 2.4 | B16: Contribuição previdênciária sobre a receita bruta (CPRB) | D16: 0.045 | E16: - | F16: - | G16: -
A17: 3 | B17: SEGURO, GARANTIA E RISCO | D17: =SUM(D18:D20) -> 0.0227
A18: 3.1 | B18: Seguro | C18: S | D18: =E18 -> 0.0081 | E18: 0.0081 | F18: 0.0122 | G18: 0.0199
A19: 3.2 | B19: Garantia | C19: G
A20: 3.3 | B20: Risco | C20: R | D20: =E20 -> 0.0146 | E20: 0.0146 | F20: 0.0232 | G20: 0.0316
A21: 4 | B21: DESPESAS FINANCEIRAS | C21: DF | D21: =F21 -> 0.0102 | E21: 0.0094 | F21: 0.0102 | G21: 0.01363
A22: 5 | B22: LUCRO | C22: L | D22: =E22 -> 0.0714 | E22: 0.0714 | F22: 0.084 | G22: 0.1043
B23: BDI ADOTADO: | D23: =ROUND(((((1+D11+D17)*(1+D21)*(1+D22))/(1-D12))-1),4) -> 0.3243
A24: Considerações: O BDI foi calculado através da seguinte fórmula, regulamentada pelo Acórdão Nº 2622/2013 – TCU.

Sheet BDI forn
A1: Ministério do Desenvolvimento Regional
A2: Companhia de Desenvolvimento dos Vales do São Francisco e do Parnaíba
A3: ='Planilha Orçamentária'!A3:K3 -> 0
A4: COMPOSIÇÃO DE BDI - FORNECIMENTO - ONERADO
A5: OBRA: | B5: ='Planilha Orçamentária'!B5 -> SUBSTITUIÇÃO DAS COMPORTAS NA BARRAGEM DE BOACICA | D5: BDI (serv.): | E5: ='BDI serv'!D23 -> 0.2591
A6: LOCAL: | B6: ='Planilha Orçamentária'!B6 -> BARRAGEM BOACICA (IGREJA NOVA - AL) | D6: BDI (forn.): | E6: =D23 -> 0.147
A7: DATA BASE: | B7: 2023-07-01
A8: PRAZO: | B8: ='Planilha Orçamentária'!B8 -> 240 DIAS
A9: ITEM | B9: DESCRIÇÃO | C9: SIGLA | D9: % APLICADO | E9: REFERÊNCIA TCU (ACÓRDÃO Nº 2622/2013)
E10: 1º QUARTIL | F10: 2º QUARTIL | G10: 3º QUARTIL
A11: 1 | B11: ADMINISTRAÇÃO CENTRAL | C11: AC | D11: 0.04 | E11: 0.015 | F11: 0.0345 | G11: 0.0449
A12: 2 | B12: IMPOSTOS | C12: T | D12: =SUM(D13:D16) -> 0.0365
A13: 2.1 | B13: ISS (*) | E13: - | F13: - | G13: -
A14: 2.2 | B14: PIS | D14: 0.0065 | E14: - | F14: - | G14: -
A15: 2.3 | B15: Cofins | D15: 0.03 | E15: - | F15: - | G15: -
A16: 2.4 | B16: Contribuição previdênciária sobre a receita bruta (CPRB) | E16: - | F16: - | G16: -
A17: 3 | B17: SEGURO, GARANTIA E RISCO | D17: =SUM(D18:D20) -> 0.0086
A18: 3.1 | B18: Seguro | C18: S | D18: =E18 -> 0.003 | E18: 0.003 | F18: 0.0048 | G18: 0.0082
A19: 3.2 | B19: Garantia | C19: G
A20: 3.3 | B20: Risco | C20: R | D20: =E20 -> 0.0056 | E20: 0.0056 | F20: 0.0085 | G20: 0.0089
A21: 4 | B21: DESPESAS FINANCEIRAS | C21: DF | D21: =F21 -> 0.0085 | E21: 0.0085 | F21: 0.0085 | G21: 0.0111
A22: 5 | B22: LUCRO | C22: L | D22: 0.045 | E22: 0.035 | F22: 0.0511 | G22: 0.0622
B23: BDI ADOTADO: | D23: =ROUND(((((1+D11+D17)*(1+D21)*(1+D22))/(1-D12))-1),4) -> 0.147
A24: Considerações: O BDI foi calculado através da seguinte fórmula, regulamentada pelo Acórdão Nº 2622/2013 – TCU.
H173: =SUM(H174:H177) -> 0
D177: mec | F177: 2 | G177: 128

Sheet BDI forn Desonerado (hidden)
A1: Ministério do Desenvolvimento Regional
A2: Companhia de Desenvolvimento dos Vales do São Francisco e do Parnaíba
A3: ='Planilha Orçamentária'!A3:K3 -> 0
A4: COMPOSIÇÃO DE BDI - FORNECIMENTO - DESONERADO
A5: OBRA: | B5: ='Planilha Orçamentária'!B5 -> SUBSTITUIÇÃO DAS COMPORTAS NA BARRAGEM DE BOACICA | D5: BDI (serv.): | E5: ='BDI serv Desonerado'!E5 -> 0.3243
A6: LOCAL: | B6: ='Planilha Orçamentária'!B6 -> BARRAGEM BOACICA (IGREJA NOVA - AL) | D6: BDI (forn.): | E6: =D23 -> 0.2032
A7: DATA BASE: | B7: ='Planilha Orçamentária'!B7 -> 2023-05-01
A8: PRAZO: | B8: ='Planilha Orçamentária'!B8 -> 240 DIAS
A9: ITEM | B9: DESCRIÇÃO | C9: SIGLA | D9: % APLICADO | E9: REFERÊNCIA TCU (ACÓRDÃO Nº 2622/2013)
E10: 1º QUARTIL | F10: 2º QUARTIL | G10: 3º QUARTIL
A11: 1 | B11: ADMINISTRAÇÃO CENTRAL | C11: AC | D11: 0.04 | E11: 0.015 | F11: 0.0345 | G11: 0.0449
A12: 2 | B12: IMPOSTOS | C12: T | D12: =SUM(D13:D16) -> 0.0815
A13: 2.1 | B13: ISS (*) | E13: - | F13: - | G13: -
A14: 2.2 | B14: PIS | D14: 0.0065 | E14: - | F14: - | G14: -
A15: 2.3 | B15: Cofins | D15: 0.03 | E15: - | F15: - | G15: -
A16: 2.4 | B16: Contribuição previdênciária sobre a receita bruta (CPRB) | D16: 0.045 | E16: - | F16: - | G16: -
A17: 3 | B17: SEGURO, GARANTIA E RISCO | D17: =SUM(D18:D20) -> 0.0086
A18: 3.1 | B18: Seguro | C18: S | D18: =E18 -> 0.003 | E18: 0.003 | F18: 0.0048 | G18: 0.0082
A19: 3.2 | B19: Garantia | C19: G
A20: 3.3 | B20: Risco | C20: R | D20: =E20 -> 0.0056 | E20: 0.0056 | F20: 0.0085 | G20: 0.0089
A21: 4 | B21: DESPESAS FINANCEIRAS | C21: DF | D21: =F21 -> 0.0085 | E21: 0.0085 | F21: 0.0085 | G21: 0.0111
A22: 5 | B22: LUCRO | C22: L | D22: 0.045 | E22: 0.035 | F22: 0.0511 | G22: 0.0622
B23: BDI ADOTADO: | D23: =ROUND(((((1+D11+D17)*(1+D21)*(1+D22))/(1-D12))-1),4) -> 0.2032
A24: Considerações: O BDI foi calculado através da seguinte fórmula, regulamentada pelo Acórdão Nº 2622/2013 – TCU.

Sheet Encargos Sociais
A1: Ministério do Desenvolvimento Regional
A2: Companhia de Desenvolvimento dos Vales do São Francisco e do Parnaíba
A3: ='Planilha Orçamentária'!A3:K3 -> 0
A4: COMPOSIÇÃO DE ENCARGOS SOCIAIS SOBRE A MÃO DE OBRA - ALAGOAS
A5: OBRA: | B5: ='Planilha Orçamentária'!B5 -> SUBSTITUIÇÃO DAS COMPORTAS NA BARRAGEM DE BOACICA | D5: BDI (serv.): | E5: ='BDI serv'!D23 -> 0.2591
A6: LOCAL: | B6: ='Planilha Orçamentária'!B6 -> BARRAGEM BOACICA (IGREJA NOVA - AL) | D6: BDI (forn.): | E6: ='BDI forn'!E6 -> 0.147
A7: DATA BASE: | B7: 2023-07-01
A8: PRAZO: | B8: ='Planilha Orçamentária'!B8 -> 240 DIAS
A9: CÓDIGO | B9: DESCRIÇÃO | C9: COM DESONERAÇÃO | E9: SEM DESONERAÇÃO
C10: HORISTA % | D10: MENSALISTA % | E10: HORISTA % | F10: MENSALISTA %
A11: GRUPO A
A12: A1 | B12: INSS | C12: 0 | D12: 0 | E12: 0.2 | F12: 0.2
A13: A2 | B13: SESI | C13: 0.015 | D13: 0.015 | E13: 0.015 | F13: 0.015
A14: A3 | B14: SENAI | C14: 0.01 | D14: 0.01 | E14: 0.01 | F14: 0.01
A15: A4 | B15: INCRA | C15: 0.002 | D15: 0.002 | E15: 0.002 | F15: 0.002
A16: A5 | B16: SEBRAE | C16: 0.006 | D16: 0.006 | E16: 0.006 | F16: 0.006
A17: A6 | B17: Salário Educação | C17: 0.025 | D17: 0.025 | E17: 0.025 | F17: 0.025
A18: A7 | B18: Seguro Contra Acidentes de Trabalho | C18: 0.03 | D18: 0.03 | E18: 0.03 | F18: 0.03
A19: A8 | B19: FGTS | C19: 0.08 | D19: 0.08 | E19: 0.08 | F19: 0.08
A20: A9 | B20: SECONCI | C20: 0 | D20: 0 | E20: 0 | F20: 0
A21: A | B21: Total | C21: =SUM(C12:C20) -> 0.168 | D21: =SUM(D12:D20) -> 0.168 | E21: =SUM(E12:E20) -> 0.368 | F21: =SUM(F12:F20) -> 0.368
A22: GRUPO B
A23: B1 | B23: Repouso Semanal Remunerado | C23: 0.1806 | D23: Não incide | E23: 0.1806 | F23: Não incide
A24: B2 | B24: Feriados | C24: 0.0468 | D24: Não incide | E24: 0.0468 | F24: Não incide
A25: B3 | B25: Auxílio - Enfermidade | C25: 0.0087 | D25: 0.0066 | E25: 0.0087 | F25: 0.0066
A26: B4 | B26: 13º Salário | C26: 0.1107 | D26: 0.0833 | E26: 0.1107 | F26: 0.0833
A27: B5 | B27: Licença Paternidade | C27: 0.0007 | D27: 0.0005 | E27: 0.0007 | F27: 0.0005
A28: B6 | B28: Faltas Justificadas | C28: 0.0074 | D28: 0.0056 | E28: 0.0074 | F28: 0.0056
A29: B7 | B29: Dias de Chuvas | C29: 0.0188 | D29: Não incide | E29: 0.0188 | F29: Não incide
A30: B8 | B30: Auxílio Acidente de Trabalho | C30: 0.0011 | D30: 0.0008 | E30: 0.0011 | F30: 0.0008
A31: B9 | B31: Férias Gozadas | C31: 0.1116 | D31: 0.084 | E31: 0.1116 | F31: 0.084
A32: B10 | B32: Salário Maternidade | C32: 0.0004 | D32: 0.0003 | E32: 0.0004 | F32: 0.0003
A33: B | B33: Total | C33: =SUM(C23:C32) -> 0.4868 | D33: =SUM(D23:D32) -> 0.1811 | E33: =SUM(E23:E32) -> 0.4868 | F33: =SUM(F23:F32) -> 0.1811
A34: GRUPO C
A35: C1 | B35: Aviso Prévio Indenizado | C35: 0.0481 | D35: 0.0362 | E35: 0.0481 | F35: 0.0362
A36: C2 | B36: Aviso Prévio Trabalhado | C36: 0.0011 | D36: 0.0009 | E36: 0.0011 | F36: 0.0009
A37: C3 | B37: Férias Indenizadas | C37: 0.0298 | D37: 0.0224 | E37: 0.0298 | F37: 0.0224
A38: C4 | B38: Depósito Rescisão Sem Justa Causa | C38: 0.0278 | D38: 0.0209 | E38: 0.0278 | F38: 0.0209
A39: C5 | B39: Indenização Adicional | C39: 0.004 | D39: 0.003 | E39: 0.004 | F39: 0.003
A40: C | B40: Total | C40: =SUM(C35:C39) -> 0.1108 | D40: =SUM(D35:D39) -> 0.0834 | E40: =SUM(E35:E39) -> 0.1108 | F40: =SUM(F35:F39) -> 0.0834
A41: GRUPO D
A42: D1 | B42: Reincidência de Grupo A sobre Grupo B | C42: 0.0818 | D42: 0.0304 | E42: 0.1791 | F42: 0.0666
A43: D2 | B43: Reincidência de Grupo A sobre Aviso Prévio Trabalhado e Reincidência do FGTS sobre Aviso Prévio Indenizado | C43: 0.004 | D43: 0.003 | E43: 0.0043 | F43: 0.0032
A44: D | B44: Total | C44: =SUM(C42:C43) -> 0.0858 | D44: =SUM(D42:D43) -> 0.0334 | E44: =SUM(E42:E43) -> 0.1834 | F44: =SUM(F42:F43) -> 0.0698
A45: TOTAL(A+B+C+D) | C45: =C44+C40+C33+C21 -> 0.8514 | D45: =D44+D40+D33+D21 -> 0.4659 | E45: =E44+E40+E33+E21 -> 1.149 | F45: =F44+F40+F33+F21 -> 0.7023
H173: =SUM(H174:H177) -> 0
D177: mec | F177: 2 | G177: 128

Sheet Cronograma-não desonerado
A1: Ministério do Desenvolvimento Regional | B1: Ministério do Desenvolvimento Regional
A2: Companhia de Desenvolvimento dos Vales do São Francisco e do Parnaíba | B2: Companhia de Desenvolvimento dos Vales do São Francisco e do Parnaíba
A3: ='Planilha Orçamentária'!A3:K3 -> 0
A4: CRONOGRAMA FÍSICO-FINANCEIRO DO ORÇAMENTO NÃO DESONERADO
A5: OBRA: | B5: ='Planilha Orçamentária'!B5 -> SUBSTITUIÇÃO DAS COMPORTAS NA BARRAGEM DE BOACICA | D5: BDI (serv.): | E5: ='BDI serv'!D23 -> 0.2591
A6: LOCAL: | B6: ='Planilha Orçamentária'!B6 -> BARRAGEM BOACICA (IGREJA NOVA - AL) | D6: BDI (forn.): | E6: ='BDI forn'!E6 -> 0.147
A7: DATA BASE: | B7: 2023-05-01
A8: PRAZO: | B8: ='Planilha Orçamentária'!B8 -> 240 DIAS
A9: ITEM | B9: DESCRIÇÃO | C9: TOTAL POR ETAPA | D9: MESES | L9: TOTAL
D10: 1 | E10: 2 | F10: 3 | G10: 4 | H10: 5 | I10: 6 | J10: 7 | K10: 8
A11: 1 | B11: =VLOOKUP(A11,'Planilha Orçamentária'!$A$11:$F$104,4) -> 0 | C11: =SUMIF('Planilha Orçamentária'!$A$11:$A$104,A11,'Planilha Orçamentária'!$K$11:$K$104) -> 93036.81283 | D11: =$C11*D12 -> 16402.36095 | E11: 26042.01989 | F11: 19896.95929 | G11: 4184.001488 | H11: 2566.856408 | I11: 5862.576904 | J11: 6205.924376 | K11: 11876.11353 | L11: =SUM(D11:K11) -> 93036.81283 | M11: R$
C12: 1 | D12: =D29 -> 0.1762996866 | E12: =D30-D29+E29 -> 0.2799109202 | F12: =E30-E29+F29 -> 0.2138611447 | G12: 0.04497146195 | H12: 0.02758968553 | I12: 0.06301351825 | J12: 0.06670396574 | K12: =1-SUM(D12:J12) -> 0.1276496171 | L12: 1 | M12: %
A13: 2 | B13: =VLOOKUP(A13,'Planilha Orçamentária'!$A$11:$F$104,4) -> 0 | C13: =SUMIF('Planilha Orçamentária'!$A$11:$A$104,A13,'Planilha Orçamentária'!$K$11:$K$104) -> 92550.25668 | D13: =$C13*D14 -> 92550.25668 | L13: 92550.25668 | M13: R$
C14: 1 | D14: 1 | L14: 1 | M14: %
A15: 3 | B15: =VLOOKUP(A15,'Planilha Orçamentária'!$A$11:$F$104,4) -> 0 | C15: =SUMIF('Planilha Orçamentária'!$A$11:$A$104,A15,'Planilha Orçamentária'!$K$11:$K$104) -> 66822.9552 | D15: =$C15*D16 -> 66822.9552 | L15: 66822.9552 | M15: R$
C16: 1 | D16: 1 | L16: 1 | M16: %
A17: 4.1 | B17: =VLOOKUP(A17,'Planilha Orçamentária'!$A$11:$F$104,4) -> 0 | C17: =SUMIF('Planilha Orçamentária'!$A$11:$A$104,A17,'Planilha Orçamentária'!$K$11:$K$104) -> 69348.01729 | E17: =$C17*E18 -> 69348.01729 | L17: 69348.01729 | M17: R$
C18: 1 | E18: 1 | L18: 1 | M18: %
A19: 4.2 | B19: =VLOOKUP(A19,'Planilha Orçamentária'!$A$11:$F$104,4) -> 0 | C19: =SUMIF('Planilha Orçamentária'!$A$11:$A$104,A19,'Planilha Orçamentária'!$K$11:$K$104) -> 334572.7736 | E19: =$C19*E20 -> 167286.3868 | F19: =$C19*F20 -> 167286.3868 | L19: 334572.7736 | M19: R$
C20: 1 | E20: 0.5 | F20: 0.5 | L20: 1 | M20: %
A21: 5 | B21: =VLOOKUP(A21,'Planilha Orçamentária'!$A$11:$F$104,4) -> 0 | C21: =SUMIF('Planilha Orçamentária'!$A$11:$A$104,A21,'Planilha Orçamentária'!$K$11:$K$104) -> 103784.0372 | G21: =$C21*G22 -> 20756.80743 | H21: =$C21*H22 -> 20756.80743 | I21: =$C21*I22 -> 20756.80743 | J21: =$C21*J22 -> 20756.80743 | K21: =$C21*K22 -> 20756.80743 | L21: 103784.0372 | M21: R$
C22: 1 | G22: 0.2 | H22: 0.2 | I22: 0.2 | J22: 0.2 | K22: 0.2 | L22: 1 | M22: %
A23: 6 | B23: =VLOOKUP(A23,'Planilha Orçamentária'!$A$11:$F$104,4) -> 0 | C23: =SUMIF('Planilha Orçamentária'!$A$11:$A$104,A23,'Planilha Orçamentária'!$K$11:$K$104) -> 101020.8628 | I23: =$C23*I24 -> 33639.94731 | J23: =$C23*J24 -> 33680.35566 | K23: =$C23*K24 -> 33700.55983 | L23: 101020.8628 | M23: R$
C24: 1 | I24: 0.333 | J24: 0.3334 | K24: 0.3336 | L24: 1 | M24: %
A25: 7 | B25: =VLOOKUP(A25,'Planilha Orçamentária'!$A$11:$F$104,4) -> 0 | C25: =SUMIF('Planilha Orçamentária'!$A$11:$A$104,A25,'Planilha Orçamentária'!$K$11:$K$104) -> 42854.61428 | K25: =$C25*K26 -> 42854.61428 | L25: 42854.61428 | M25: R$
C26: 1 | K26: 1 | L26: 1 | M26: %
B27: VALOR TOTAL: | C27: =SUMIF($M$11:$M$26,"R$",C$11:C$26) -> 903990.3299 | D27: 175775.5728 | E27: 262676.424 | F27: 187183.3461 | G27: 24940.80892 | H27: 23323.66384 | I27: 60259.33165 | J27: 60643.08746 | K27: 109188.0951 | L27: 903990.3299
B28: VALOR ACUMULADO: | D28: =D27 -> 175775.5728 | E28: =E27+D28 -> 438451.9968 | F28: 625635.3429 | G28: 650576.1518 | H28: 673899.8157 | I28: 734159.1473 | J28: 794802.2348 | K28: 903990.3299 | L28: =L27 -> 903990.3299
B29: FÍSICO PARCIAL: | D29: =SUMIF($M$13:$M$26,"R$",D$13:D$26)/$C$27 -> 0.1762996866 | E29: =SUMIF($M$13:$M$26,"R$",E$13:E$26)/$C$27 -> 0.2617665215 | F29: 0.1850532924 | G29: 0.02296131579 | H29: 0.02296131579 | I29: 0.06017404495 | J29: 0.06021874492 | K29: 0.1076471488 | L29: =L27/$C$27 -> 1
B30: AVANÇO FÍSICO: | D30: =D27/$C$27 -> 0.1944440853 | E30: =E27/$C$27 -> 0.2905743738 | F30: 0.2070634385 | G30: 0.02758968553 | H30: 0.02580078909 | I30: 0.06665926576 | J30: 0.06708377895 | K30: 0.120784583
H173: =SUM(H174:H177) -> 0
D177: mec | F177: 2 | G177: 128

Sheet Cronograma-desonerado (hidden)
A1: Ministério do Desenvolvimento Regional | B1: Ministério do Desenvolvimento Regional
A2: Companhia de Desenvolvimento dos Vales do São Francisco e do Parnaíba | B2: Companhia de Desenvolvimento dos Vales do São Francisco e do Parnaíba
A3: ='Planilha Orçamentária'!A3:K3 -> 0
A4: CRONOGRAMA FÍSICO-FINANCEIRO DO ORÇAMENTO DESONERADO
A5: OBRA: | B5: ='Planilha Orçamentária'!B5 -> SUBSTITUIÇÃO DAS COMPORTAS NA BARRAGEM DE BOACICA | D5: BDI (serv.): | E5: ='BDI serv Desonerado'!D23 -> 0.3243
A6: LOCAL: | B6: ='Planilha Orçamentária'!B6 -> BARRAGEM BOACICA (IGREJA NOVA - AL) | D6: BDI (forn.): | E6: ='BDI forn Desonerado'!E6 -> 0.2032
A7: DATA BASE: | B7: ='Planilha Orçamentária'!B7 -> 2023-05-01
A8: PRAZO: | B8: ='Planilha Orçamentária'!B8 -> 240 DIAS
A9: ITEM | B9: DESCRIÇÃO | C9: TOTAL POR ETAPA | D9: MESES | L9: TOTAL
D10: 1 | E10: 2 | F10: 3 | G10: 4 | H10: 5 | I10: 6 | J10: 7 | K10: 8
A11: 1 | B11: =VLOOKUP(A11,'Planilha Orçamentária Desoner'!$A$11:$D$105,4) -> ADMINISTRAÇÃO LOCAL | C11: =SUMIF('Planilha Orçamentária Desoner'!$A$11:$A$105,A11,'Planilha Orçamentária Desoner'!$I$11:$I$105) -> 236643.0207 | D11: =$C11*D12 -> 29580.37759 | E11: 29580.37759 | F11: 29580.37759 | G11: 29580.37759 | H11: 29580.37759 | I11: 29580.37759 | J11: 29580.37759 | K11: 29580.37759 | L11: =SUM(D11:K11) -> 236643.0207 | M11: R$
C12: 1 | D12: =$C12/8 -> 0.125 | E12: 0.125 | F12: 0.125 | G12: 0.125 | H12: 0.125 | I12: 0.125 | J12: 0.125 | K12: 0.125 | L12: 1 | M12: %
A13: 2 | B13: =VLOOKUP(A13,'Planilha Orçamentária Desoner'!$A$11:$D$105,4) -> SERVIÇOS PRELIMINARES | C13: =SUMIF('Planilha Orçamentária Desoner'!$A$11:$A$105,A13,'Planilha Orçamentária Desoner'!$I$11:$I$105) -> 160622.7271 | D13: =$C13*D14 -> 160622.7271 | L13: 160622.7271 | M13: R$
C14: 1 | D14: 1 | L14: 1 | M14: %
A15: 3 | B15: =VLOOKUP(A15,'Planilha Orçamentária Desoner'!$A$11:$D$105,4) -> VISITA TÉCNICA NA REGIÃO DA COMPORTA DA TOMADA D’ÁGUA E COMPORTA SEGMENTO | C15: =SUMIF('Planilha Orçamentária Desoner'!$A$11:$A$105,A15,'Planilha Orçamentária Desoner'!$I$11:$I$105) -> 69753.5296 | D15: =$C15*D16 -> 69753.5296 | L15: 69753.5296 | M15: R$
C16: 1 | D16: 1 | L16: 1 | M16: %
A17: 4.1 | B17: =VLOOKUP(A17,'Planilha Orçamentária Desoner'!$A$11:$D$105,4) -> Elaboração de plano para substituição da comporta | C17: =SUMIF('Planilha Orçamentária Desoner'!$A$11:$A$105,A17,'Planilha Orçamentária Desoner'!$I$11:$I$105) -> 87373.56623 | E17: =$C17*E18 -> 87373.56623 | L17: 87373.56623 | M17: R$
C18: 1 | E18: 1 | L18: 1 | M18: %
A19: 4.2 | B19: =VLOOKUP(A19,'Planilha Orçamentária Desoner'!$A$11:$D$105,4) -> Método de execução de substituição das comportas | C19: =SUMIF('Planilha Orçamentária Desoner'!$A$11:$A$105,A19,'Planilha Orçamentária Desoner'!$I$11:$I$105) -> 392962.4392 | E19: =$C19*E20 -> 196481.2196 | F19: =$C19*F20 -> 196481.2196 | L19: 392962.4392 | M19: R$
C20: 1 | E20: 0.5 | F20: 0.5 | L20: 1 | M20: %
A21: 5 | B21: =VLOOKUP(A21,'Planilha Orçamentária Desoner'!$A$11:$D$105,4) -> COMPORTA SEGMENTO | C21: =SUMIF('Planilha Orçamentária Desoner'!$A$11:$A$105,A21,'Planilha Orçamentária Desoner'!$I$11:$I$105) -> 104195.4208 | G21: =$C21*G22 -> 20839.08415 | H21: =$C21*H22 -> 20839.08415 | I21: =$C21*I22 -> 20839.08415 | J21: =$C21*J22 -> 20839.08415 | K21: =$C21*K22 -> 20839.08415 | L21: 104195.4208 | M21: R$
C22: 1 | G22: 0.2 | H22: 0.2 | I22: 0.2 | J22: 0.2 | K22: 0.2 | L22: 1 | M22: %
A23: 6 | B23: =VLOOKUP(A23,'Planilha Orçamentária Desoner'!$A$11:$D$105,4) -> CASA DE COMANDO | C23: =SUMIF('Planilha Orçamentária Desoner'!$A$11:$A$105,A23,'Planilha Orçamentária Desoner'!$I$11:$I$105) -> 101733.0636 | I23: =$C23*I24 -> 33877.11019 | J23: =$C23*J24 -> 33917.80341 | K23: =$C23*K24 -> 33938.15003 | L23: 101733.0636 | M23: R$
C24: 1 | I24: 0.333 | J24: 0.3334 | K24: 0.3336 | L24: 1 | M24: %
A25: 7 | B25: =VLOOKUP(A25,'Planilha Orçamentária Desoner'!$A$11:$D$105,4) -> SERVIÇOS COMPLEMENTARES | C25: =SUMIF('Planilha Orçamentária Desoner'!$A$11:$A$105,A25,'Planilha Orçamentária Desoner'!$I$11:$I$105) -> 107300.4937 | K25: =$C25*K26 -> 107300.4937 | L25: 107300.4937 | M25: R$
C26: 1 | K26: 1 | L26: 1 | M26: %
B27: VALOR TOTAL: | C27: =SUMIF($M$11:$M$26,"R$",C$11:C$26) -> 1260584.261 | D27: 259956.6343 | E27: 313435.1634 | F27: 226061.5972 | G27: 50419.46174 | H27: 50419.46174 | I27: 84296.57193 | J27: 84337.26516 | K27: 191658.1055 | L27: 1260584.261
B28: VALOR ACUMULADO: | D28: =D27 -> 259956.6343 | E28: =E27+D28 -> 573391.7977 | F28: 799453.3949 | G28: 849872.8567 | H28: 900292.3184 | I28: 984588.8903 | J28: 1068926.156 | K28: 1260584.261 | L28: =L27 -> 1260584.261
B29: FÍSICO TOTAL: | D29: =D27/$C$27 -> 0.2062191655 | E29: 0.2486427708 | F29: 0.1793308105 | G29: 0.0399968993 | H29: 0.0399968993 | I29: 0.06687103317 | J29: 0.06690331441 | K29: 0.1520391071 | L29: 1
B30: AVANÇO FÍSICO ACUMULADO: | D30: =D29 -> 0.2062191655 | E30: =E29+D30 -> 0.4548619362 | F30: 0.6341927467 | G30: 0.674189646 | H30: 0.7141865453 | I30: 0.7810575785 | J30: 0.8479608929 | K30: 1

Sheet Comp SINAPI AL 03-2023 Onerado (hidden)
A1: PCI.817.01 - CUSTO DE COMPOSIÇÕES - SINTÉTICO DATA DE EMISSÃO: 20/06/2023 16:20:20 DATA DE RT: 20/06/2023
A2: ENCARGOS SOCIAIS SOBRE PREÇOS DA MÃO-DE-OBRA: 114,90%(HORA) 70,23%(MÊS)
A3: ABRANGÊNCIA : NACIONAL LOCALIDADE : MACEIO DATA DE PREÇO : 05/2023 REFERÊNCIA COLETA : MEDIANO
A5: DESCRICAO DA CLASSE | B5: SIGLA DA CLASSE | C5: DESCRICAO DO TIPO 1 | D5: SIGLA DO TIPO 1 | E5: CODIGO DO AGRUPADOR | F5: DESCRICAO DO AGRUPADOR | G5: CODIGO DA COMPOSICAO | H5: DESCRICAO DA COMPOSICAO | I5: UNIDADE | J5: ORIGEM DE PREÇO | K5: CUSTO TOTAL | L5: VINCULO
A7: ASSENTAMENTO DE TUBOS E PECAS | B7: ASTU | C7: FORNEC E/OU ASSENT DE TUBO DE FERRO FUNDIDO JUNTA ELASTICA | D7: 45 | G7: 97141 | H7: ASSENTAMENTO DE TUBO DE FERRO FUNDIDO PARA REDE DE ÁGUA, DN 80 MM, JUNTA ELÁSTICA, INSTALADO EM LOCAL COM NÍVEL ALTO DE INTERFERÊNCIAS (NÃO INCLUI FORNECIMENTO). AF_11/2017 | I7: M | J7: ATRIBUÍDO SÃO PAULO | K7: 7 | L7: CAIXA REFERENCIAL
A8: ASSENTAMENTO DE TUBOS E PECAS | B8: ASTU | C8: FORNEC E/OU ASSENT DE TUBO DE FERRO FUNDIDO JUNTA ELASTICA | D8: 45 | G8: 97142 | H8: ASSENTAMENTO DE TUBO DE FERRO FUNDIDO PARA REDE DE ÁGUA, DN 100 MM, JUNTA ELÁSTICA, INSTALADO EM LOCAL COM NÍVEL ALTO DE INTERFERÊNCIAS (NÃO INCLUI FORNECIMENTO). AF_11/2017 | I8: M | J8: ATRIBUÍDO SÃO PAULO | K8: 7.79 | L8: CAIXA REFERENCIAL
A9: ASSENTAMENTO DE TUBOS E PECAS | B9: ASTU | C9: FORNEC E/OU ASSENT DE TUBO DE FERRO FUNDIDO JUNTA ELASTICA | D9: 45 | G9: 97143 | H9: ASSENTAMENTO DE TUBO DE FERRO FUNDIDO PARA REDE DE ÁGUA, DN 150 MM, JUNTA ELÁSTICA, INSTALADO EM LOCAL COM NÍVEL ALTO DE INTERFERÊNCIAS (NÃO INCLUI FORNECIMENTO). AF_11/2017 | I9: M | J9: ATRIBUÍDO SÃO PAULO | K9: 9.76 | L9: CAIXA REFERENCIAL
A10: ASSENTAMENTO DE TUBOS E PECAS | B10: ASTU | C10: FORNEC E/OU ASSENT DE TUBO DE FERRO FUNDIDO JUNTA ELASTICA | D10: 45 | G10: 97144 | H10: ASSENTAMENTO DE TUBO DE FERRO FUNDIDO PARA REDE DE ÁGUA, DN 200 MM, JUNTA ELÁSTICA, INSTALADO EM LOCAL COM NÍVEL ALTO DE INTERFERÊNCIAS (NÃO INCLUI FORNECIMENTO). AF_11/2017 | I10: M | J10: ATRIBUÍDO SÃO PAULO | K10: 11.72 | L10: CAIXA REFERENCIAL
A11: ASSENTAMENTO DE TUBOS E PECAS | B11: ASTU | C11: FORNEC E/OU ASSENT DE TUBO DE FERRO FUNDIDO JUNTA ELASTICA | D11: 45 | G11: 97145 | H11: ASSENTAMENTO DE TUBO DE FERRO FUNDIDO PARA REDE DE ÁGUA, DN 250 MM, JUNTA ELÁSTICA, INSTALADO EM LOCAL COM NÍVEL ALTO DE INTERFERÊNCIAS (NÃO INCLUI FORNECIMENTO). AF_11/2017 | I11: M | J11: ATRIBUÍDO SÃO PAULO | K11: 13.72 | L11: CAIXA REFERENCIAL
A12: ASSENTAMENTO DE TUBOS E PECAS | B12: ASTU | C12: FORNEC E/OU ASSENT DE TUBO DE FERRO FUNDIDO JUNTA ELASTICA | D12: 45 | G12: 97146 | H12: ASSENTAMENTO DE TUBO DE FERRO FUNDIDO PARA REDE DE ÁGUA, DN 300 MM, JUNTA ELÁSTICA, INSTALADO EM LOCAL COM NÍVEL ALTO DE INTERFERÊNCIAS (NÃO INCLUI FORNECIMENTO). AF_11/2017 | I12: M | J12: ATRIBUÍDO SÃO PAULO | K12: 15.69 | L12: CAIXA REFERENCIAL
A13: ASSENTAMENTO DE TUBOS E PECAS | B13: ASTU | C13: FORNEC E/OU ASSENT DE TUBO DE FERRO FUNDIDO JUNTA ELASTICA | D13: 45 | G13: 97147 | H13: ASSENTAMENTO DE TUBO DE FERRO FUNDIDO PARA REDE DE ÁGUA, DN 350 MM, JUNTA ELÁSTICA, INSTALADO EM LOCAL COM NÍVEL ALTO DE INTERFERÊNCIAS (NÃO INCLUI FORNECIMENTO). AF_11/2017 | I13: M | J13: ATRIBUÍDO SÃO PAULO | K13: 17.69 | L13: CAIXA REFERENCIAL
A14: ASSENTAMENTO DE TUBOS E PECAS | B14: ASTU | C14: FORNEC E/OU ASSENT DE TUBO DE FERRO FUNDIDO JUNTA ELASTICA | D14: 45 | G14: 97148 | H14: ASSENTAMENTO DE TUBO DE FERRO FUNDIDO PARA REDE DE ÁGUA, DN 400 MM, JUNTA ELÁSTICA, INSTALADO EM LOCAL COM NÍVEL ALTO DE INTERFERÊNCIAS (NÃO INCLUI FORNECIMENTO). AF_11/2017 | I14: M | J14: ATRIBUÍDO SÃO PAULO | K14: 19.66 | L14: CAIXA REFERENCIAL
A15: ASSENTAMENTO DE TUBOS E PECAS | B15: ASTU | C15: FORNEC E/OU ASSENT DE TUBO DE FERRO FUNDIDO JUNTA ELASTICA | D15: 45 | G15: 97149 | H15: ASSENTAMENTO DE TUBO DE FERRO FUNDIDO PARA REDE DE ÁGUA, DN 450 MM, JUNTA ELÁSTICA, INSTALADO EM LOCAL COM NÍVEL ALTO DE INTERFERÊNCIAS (NÃO INCLUI FORNECIMENTO). AF_11/2017 | I15: M | J15: ATRIBUÍDO SÃO PAULO | K15: 21.67 | L15: CAIXA REFERENCIAL
A16: ASSENTAMENTO DE TUBOS E PECAS | B16: ASTU | C16: FORNEC E/OU ASSENT DE TUBO DE FERRO FUNDIDO JUNTA ELASTICA | D16: 45 | G16: 97150 | H16: ASSENTAMENTO DE TUBO DE FERRO FUNDIDO PARA REDE DE ÁGUA, DN 500 MM, JUNTA ELÁSTICA, INSTALADO EM LOCAL COM NÍVEL ALTO DE INTERFERÊNCIAS (NÃO INCLUI FORNECIMENTO). AF_11/2017 | I16: M | J16: ATRIBUÍDO SÃO PAULO | K16: 28.14 | L16: CAIXA REFERENCIAL
A17: ASSENTAMENTO DE TUBOS E PECAS | B17: ASTU | C17: FORNEC E/OU ASSENT DE TUBO DE FERRO FUNDIDO JUNTA ELASTICA | D17: 45 | G17: 97151 | H17: ASSENTAMENTO DE TUBO DE FERRO FUNDIDO PARA REDE DE ÁGUA, DN 600 MM, JUNTA ELÁSTICA, INSTALADO EM LOCAL COM NÍVEL ALTO DE INTERFERÊNCIAS (NÃO INCLUI FORNECIMENTO). AF_11/2017 | I17: M | J17: ATRIBUÍDO SÃO PAULO | K17: 32.77 | L17: CAIXA REFERENCIAL
A18: ASSENTAMENTO DE TUBOS E PECAS | B18: ASTU | C18: FORNEC E/OU ASSENT DE TUBO DE FERRO FUNDIDO JUNTA ELASTICA | D18: 45 | G18: 97152 | H18: ASSENTAMENTO DE TUBO DE FERRO FUNDIDO PARA REDE DE ÁGUA, DN 700 MM, JUNTA ELÁSTICA, INSTALADO EM LOCAL COM NÍVEL ALTO DE INTERFERÊNCIAS (NÃO INCLUI FORNECIMENTO). AF_11/2017 | I18: M | J18: ATRIBUÍDO SÃO PAULO | K18: 37.21 | L18: CAIXA REFERENCIAL
A19: ASSENTAMENTO DE TUBOS E PECAS | B19: ASTU | C19: FORNEC E/OU ASSENT DE TUBO DE FERRO FUNDIDO JUNTA ELASTICA | D19: 45 | G19: 97153 | H19: ASSENTAMENTO DE TUBO DE FERRO FUNDIDO PARA REDE DE ÁGUA, DN 800 MM, JUNTA ELÁSTICA, INSTALADO EM LOCAL COM NÍVEL ALTO DE INTERFERÊNCIAS (NÃO INCLUI FORNECIMENTO). AF_11/2017 | I19: M | J19: ATRIBUÍDO SÃO PAULO | K19: 41.77 | L19: CAIXA REFERENCIAL
A20: ASSENTAMENTO DE TUBOS E PECAS | B20: ASTU | C20: FORNEC E/OU ASSENT DE TUBO DE FERRO FUNDIDO JUNTA ELASTICA | D20: 45 | G20: 97154 | H20: ASSENTAMENTO DE TUBO DE FERRO FUNDIDO PARA REDE DE ÁGUA, DN 900 MM, JUNTA ELÁSTICA, INSTALADO EM LOCAL COM NÍVEL ALTO DE INTERFERÊNCIAS (NÃO INCLUI FORNECIMENTO). AF_11/2017 | I20: M | J20: ATRIBUÍDO SÃO PAULO | K20: 46.37 | L20: CAIXA REFERENCIAL
A21: ASSENTAMENTO DE TUBOS E PECAS | B21: ASTU | C21: FORNEC E/OU ASSENT DE TUBO DE FERRO FUNDIDO JUNTA ELASTICA | D21: 45 | G21: 97155 | H21: ASSENTAMENTO DE TUBO DE FERRO FUNDIDO PARA REDE DE ÁGUA, DN 1000 MM, JUNTA ELÁSTICA, INSTALADO EM LOCAL COM NÍVEL ALTO DE INTERFERÊNCIAS (NÃO INCLUI FORNECIMENTO). AF_11/2017 | I21: M | J21: ATRIBUÍDO SÃO PAULO | K21: 50.94 | L21: CAIXA REFERENCIAL
A22: ASSENTAMENTO DE TUBOS E PECAS | B22: ASTU | C22: FORNEC E/OU ASSENT DE TUBO DE FERRO FUNDIDO JUNTA ELASTICA | D22: 45 | G22: 97156 | H22: ASSENTAMENTO DE TUBO DE FERRO FUNDIDO PARA REDE DE ÁGUA, DN 1200 MM, JUNTA ELÁSTICA, INSTALADO EM LOCAL COM NÍVEL ALTO DE INTERFERÊNCIAS (NÃO INCLUI FORNECIMENTO). AF_11/2017 | I22: M | J22: ATRIBUÍDO SÃO PAULO | K22: 60.43 | L22: CAIXA REFERENCIAL
A23: ASSENTAMENTO DE TUBOS E PECAS | B23: ASTU | C23: FORNEC E/OU ASSENT DE TUBO DE FERRO FUNDIDO JUNTA ELASTICA | D23: 45 | G23: 97157 | H23: ASSENTAMENTO DE TUBO DE FERRO FUNDIDO PARA REDE DE ÁGUA, DN 80 MM, JUNTA ELÁSTICA, INSTALADO EM LOCAL COM NÍVEL BAIXO DE INTERFERÊNCIAS (NÃO INCLUI FORNECIMENTO). AF_11/2017 | I23: M | J23: ATRIBUÍDO SÃO PAULO | K23: 4.29 | L23: CAIXA REFERENCIAL
A24: ASSENTAMENTO DE TUBOS E PECAS | B24: ASTU | C24: FORNEC E/OU ASSENT DE TUBO DE FERRO FUNDIDO JUNTA ELASTICA | D24: 45 | G24: 97158 | H24: ASSENTAMENTO DE TUBO DE FERRO FUNDIDO PARA REDE DE ÁGUA, DN 100 MM, JUNTA ELÁSTICA, INSTALADO EM LOCAL COM NÍVEL BAIXO DE INTERFERÊNCIAS (NÃO INCLUI FORNECIMENTO). AF_11/2017 | I24: M | J24: ATRIBUÍDO SÃO PAULO | K24: 4.79 | L24: CAIXA REFERENCIAL
A25: ASSENTAMENTO DE TUBOS E PECAS | B25: ASTU | C25: FORNEC E/OU ASSENT DE TUBO DE FERRO FUNDIDO JUNTA ELASTICA | D25: 45 | G25: 97159 | H25: ASSENTAMENTO DE TUBO DE FERRO FUNDIDO PARA REDE DE ÁGUA, DN 150 MM, JUNTA ELÁSTICA, INSTALADO EM LOCAL COM NÍVEL BAIXO DE INTERFERÊNCIAS (NÃO INCLUI FORNECIMENTO). AF_11/2017 | I25: M | J25: ATRIBUÍDO SÃO PAULO | K25: 5.98 | L25: CAIXA REFERENCIAL
A26: ASSENTAMENTO DE TUBOS E PECAS | B26: ASTU | C26: FORNEC E/OU ASSENT DE TUBO DE FERRO FUNDIDO JUNTA ELASTICA | D26: 45 | G26: 97160 | H26: ASSENTAMENTO DE TUBO DE FERRO FUNDIDO PARA REDE DE ÁGUA, DN 200 MM, JUNTA ELÁSTICA, INSTALADO EM LOCAL COM NÍVEL BAIXO DE INTERFERÊNCIAS (NÃO INCLUI FORNECIMENTO). AF_11/2017 | I26: M | J26: ATRIBUÍDO SÃO PAULO | K26: 7.18 | L26: CAIXA REFERENCIAL
A27: ASSENTAMENTO DE TUBOS E PECAS | B27: ASTU | C27: FORNEC E/OU ASSENT DE TUBO DE FERRO FUNDIDO JUNTA ELASTICA | D27: 45 | G27: 97161 | H27: ASSENTAMENTO DE TUBO DE FERRO FUNDIDO PARA REDE DE ÁGUA, DN 250 MM, JUNTA ELÁSTICA, INSTALADO EM LOCAL COM NÍVEL BAIXO DE INTERFERÊNCIAS (NÃO INCLUI FORNECIMENTO). AF_11/2017 | I27: M | J27: ATRIBUÍDO SÃO PAULO | K27: 8.43 | L27: CAIXA REFERENCIAL
A28: ASSENTAMENTO DE TUBOS E PECAS | B28: ASTU | C28: FORNEC E/OU ASSENT DE TUBO DE FERRO FUNDIDO JUNTA ELASTICA | D28: 45 | G28: 97162 | H28: ASSENTAMENTO DE TUBO DE FERRO FUNDIDO PARA REDE DE ÁGUA, DN 300 MM, JUNTA ELÁSTICA, INSTALADO EM LOCAL COM NÍVEL BAIXO DE INTERFERÊNCIAS (NÃO INCLUI FORNECIMENTO). AF_11/2017 | I28: M | J28: ATRIBUÍDO SÃO PAULO | K28: 9.63 | L28: CAIXA REFERENCIAL
A29: ASSENTAMENTO DE TUBOS E PECAS | B29: ASTU | C29: FORNEC E/OU ASSENT DE TUBO DE FERRO FUNDIDO JUNTA ELASTICA | D29: 45 | G29: 97163 | H29: ASSENTAMENTO DE TUBO DE FERRO FUNDIDO PARA REDE DE ÁGUA, DN 350 MM, JUNTA ELÁSTICA, INSTALADO EM LOCAL COM NÍVEL BAIXO DE INTERFERÊNCIAS (NÃO INCLUI FORNECIMENTO). AF_11/2017 | I29: M | J29: ATRIBUÍDO SÃO PAULO | K29: 10.88 | L29: CAIXA REFERENCIAL
A30: ASSENTAMENTO DE TUBOS E PECAS | B30: ASTU | C30: FORNEC E/OU ASSENT DE TUBO DE FERRO FUNDIDO JUNTA ELASTICA | D30: 45 | G30: 97164 | H30: ASSENTAMENTO DE TUBO DE FERRO FUNDIDO PARA REDE DE ÁGUA, DN 400 MM, JUNTA ELÁSTICA, INSTALADO EM LOCAL COM NÍVEL BAIXO DE INTERFERÊNCIAS (NÃO INCLUI FORNECIMENTO). AF_11/2017 | I30: M | J30: ATRIBUÍDO SÃO PAULO | K30: 12.09 | L30: CAIXA REFERENCIAL
A31: ASSENTAMENTO DE TUBOS E PECAS | B31: ASTU | C31: FORNEC E/OU ASSENT DE TUBO DE FERRO FUNDIDO JUNTA ELASTICA | D31: 45 | G31: 97165 | H31: ASSENTAMENTO DE TUBO DE FERRO FUNDIDO PARA REDE DE ÁGUA, DN 450 MM, JUNTA ELÁSTICA, INSTALADO EM LOCAL COM NÍVEL BAIXO DE INTERFERÊNCIAS (NÃO INCLUI FORNECIMENTO). AF_11/2017 | I31: M | J31: ATRIBUÍDO SÃO PAULO | K31: 13.34 | L31: CAIXA REFERENCIAL
A32: ASSENTAMENTO DE TUBOS E PECAS | B32: ASTU | C32: FORNEC E/OU ASSENT DE TUBO DE FERRO FUNDIDO JUNTA ELASTICA | D32: 45 | G32: 97166 | H32: ASSENTAMENTO DE TUBO DE FERRO FUNDIDO PARA REDE DE ÁGUA, DN 500 MM, JUNTA ELÁSTICA, INSTALADO EM LOCAL COM NÍVEL BAIXO DE INTERFERÊNCIAS (NÃO INCLUI FORNECIMENTO). AF_11/2017 | I32: M | J32: ATRIBUÍDO SÃO PAULO | K32: 17.31 | L32: CAIXA REFERENCIAL
A33: ASSENTAMENTO DE TUBOS E PECAS | B33: ASTU | C33: FORNEC E/OU ASSENT DE TUBO DE FERRO FUNDIDO JUNTA ELASTICA | D33: 45 | G33: 97167 | H33: ASSENTAMENTO DE TUBO DE FERRO FUNDIDO PARA REDE DE ÁGUA, DN 600 MM, JUNTA ELÁSTICA, INSTALADO EM LOCAL COM NÍVEL BAIXO DE INTERFERÊNCIAS (NÃO INCLUI FORNECIMENTO). AF_11/2017 | I33: M | J33: ATRIBUÍDO SÃO PAULO | K33: 20.18 | L33: CAIXA REFERENCIAL
A34: ASSENTAMENTO DE TUBOS E PECAS | B34: ASTU | C34: FORNEC E/OU ASSENT DE TUBO DE FERRO FUNDIDO JUNTA ELASTICA | D34: 45 | G34: 97168 | H34: ASSENTAMENTO DE TUBO DE FERRO FUNDIDO PARA REDE DE ÁGUA, DN 700 MM, JUNTA ELÁSTICA, INSTALADO EM LOCAL COM NÍVEL BAIXO DE INTERFERÊNCIAS (NÃO INCLUI FORNECIMENTO). AF_11/2017 | I34: M | J34: ATRIBUÍDO SÃO PAULO | K34: 22.87 | L34: CAIXA REFERENCIAL
A35: ASSENTAMENTO DE TUBOS E PECAS | B35: ASTU | C35: FORNEC E/OU ASSENT DE TUBO DE FERRO FUNDIDO JUNTA ELASTICA | D35: 45 | G35: 97169 | H35: ASSENTAMENTO DE TUBO DE FERRO FUNDIDO PARA REDE DE ÁGUA, DN 800 MM, JUNTA ELÁSTICA, INSTALADO EM LOCAL COM NÍVEL BAIXO DE INTERFERÊNCIAS (NÃO INCLUI FORNECIMENTO). AF_11/2017 | I35: M | J35: ATRIBUÍDO SÃO PAULO | K35: 25.66 | L35: CAIXA REFERENCIAL
A36: ASSENTAMENTO DE TUBOS E PECAS | B36: ASTU | C36: FORNEC E/OU ASSENT DE TUBO DE FERRO FUNDIDO JUNTA ELASTICA | D36: 45 | G36: 97170 | H36: ASSENTAMENTO DE TUBO DE FERRO FUNDIDO PARA REDE DE ÁGUA, DN 900 MM, JUNTA ELÁSTICA, INSTALADO EM LOCAL COM NÍVEL BAIXO DE INTERFERÊNCIAS (NÃO INCLUI FORNECIMENTO). AF_11/2017 | I36: M | J36: ATRIBUÍDO SÃO PAULO | K36: 28.49 | L36: CAIXA REFERENCIAL
A37: ASSENTAMENTO DE TUBOS E PECAS | B37: ASTU | C37: FORNEC E/OU ASSENT DE TUBO DE FERRO FUNDIDO JUNTA ELASTICA | D37: 45 | G37: 97171 | H37: ASSENTAMENTO DE TUBO DE FERRO FUNDIDO PARA REDE DE ÁGUA, DN 1000 MM, JUNTA ELÁSTICA, INSTALADO EM LOCAL COM NÍVEL BAIXO DE INTERFERÊNCIAS (NÃO INCLUI FORNECIMENTO). AF_11/2017 | I37: M | J37: ATRIBUÍDO SÃO PAULO | K37: 31.31 | L37: CAIXA REFERENCIAL
A38: ASSENTAMENTO DE TUBOS E PECAS | B38: ASTU | C38: FORNEC E/OU ASSENT DE TUBO DE FERRO FUNDIDO JUNTA ELASTICA | D38: 45 | G38: 97172 | H38: ASSENTAMENTO DE TUBO DE FERRO FUNDIDO PARA REDE DE ÁGUA, DN 1200 MM, JUNTA ELÁSTICA, INSTALADO EM LOCAL COM NÍVEL BAIXO DE INTERFERÊNCIAS (NÃO INCLUI FORNECIMENTO). AF_11/2017 | I38: M | J38: ATRIBUÍDO SÃO PAULO | K38: 37.27 | L38: CAIXA REFERENCIAL
A39: ASSENTAMENTO DE TUBOS E PECAS | B39: ASTU | C39: FORNEC E/OU ASSENT DE TUBO DE ACO COM JUNTA SOLDADA | D39: 46 | G39: 97173 | H39: ASSENTAMENTO DE TUBO DE AÇO CARBONO PARA REDE DE ÁGUA, DN 600 MM (24), JUNTA SOLDADA, INSTALADO EM LOCAL COM NÍVEL ALTO DE INTERFERÊNCIAS (NÃO INCLUI FORNECIMENTO). AF_11/2017 | I39: M | J39: ATRIBUÍDO SÃO PAULO | K39: 36.96 | L39: CAIXA REFERENCIAL
A40: ASSENTAMENTO DE TUBOS E PECAS | B40: ASTU | C40: FORNEC E/OU ASSENT DE TUBO DE ACO COM JUNTA SOLDADA | D40: 46 | G40: 97174 | H40: ASSENTAMENTO DE TUBO DE AÇO CARBONO PARA REDE DE ÁGUA, DN 700 MM (28), JUNTA SOLDADA, INSTALADO EM LOCAL COM NÍVEL ALTO DE INTERFERÊNCIAS (NÃO INCLUI FORNECIMENTO). AF_11/2017 | I40: M | J40: ATRIBUÍDO SÃO PAULO | K40: 42.86 | L40: CAIXA REFERENCIAL
A41: ASSENTAMENTO DE TUBOS E PECAS | B41: ASTU | C41: FORNEC E/OU ASSENT DE TUBO DE ACO COM JUNTA SOLDADA | D41: 46 | G41: 97175 | H41: ASSENTAMENTO DE TUBO DE AÇO CARBONO PARA REDE DE ÁGUA, DN 800 MM (32), JUNTA SOLDADA, INSTALADO EM LOCAL COM NÍVEL ALTO DE INTERFERÊNCIAS (NÃO INCLUI FORNECIMENTO). AF_11/2017 | I41: M | J41: ATRIBUÍDO SÃO PAULO | K41: 48.74 | L41: CAIXA REFERENCIAL
A42: ASSENTAMENTO DE TUBOS E PECAS | B42: ASTU | C42: FORNEC E/OU ASSENT DE TUBO DE ACO COM JUNTA SOLDADA | D42: 46 | G42: 97176 | H42: ASSENTAMENTO DE TUBO DE AÇO CARBONO PARA REDE DE ÁGUA, DN 900 MM (36), JUNTA SOLDADA, INSTALADO EM LOCAL COM NÍVEL ALTO DE INTERFERÊNCIAS (NÃO INCLUI FORNECIMENTO). AF_11/2017 | I42: M | J42: ATRIBUÍDO SÃO PAULO | K42: 54.62 | L42: CAIXA REFERENCIAL
A43: ASSENTAMENTO DE TUBOS E PECAS | B43: ASTU | C43: FORNEC E/OU ASSENT DE TUBO DE ACO COM JUNTA SOLDADA | D43: 46 | G43: 97177 | H43: ASSENTAMENTO DE TUBO DE AÇO CARBONO PARA REDE DE ÁGUA, DN 1000 MM (40) OU DN 1100 MM (44), JUNTA SOLDADA, INSTALADO EM LOCAL COM NÍVEL ALTO DE INTERFERÊNCIAS (NÃO INCLUI FORNECIMENTO). AF_11/2017 | I43: M | J43: ATRIBUÍDO SÃO PAULO | K43: 66.39 | L43: CAIXA REFERENCIAL
A44: ASSENTAMENTO DE TUBOS E PECAS | B44: ASTU | C44: FORNEC E/OU ASSENT DE TUBO DE ACO COM JUNTA SOLDADA | D44: 46 | G44: 97178 | H44: ASSENTAMENTO DE TUBO DE AÇO CARBONO PARA REDE DE ÁGUA, DN 1200 MM (48) OU DN 1300 MM (52), JUNTA SOLDADA, INSTALADO EM LOCAL COM NÍVEL ALTO DE INTERFERÊNCIAS (NÃO INCLUI FORNECIMENTO). AF_11/2017 | I44: M | J44: ATRIBUÍDO SÃO PAULO | K44: 78.16 | L44: CAIXA REFERENCIAL
A45: ASSENTAMENTO DE TUBOS E PECAS | B45: ASTU | C45: FORNEC E/OU ASSENT DE TUBO DE ACO COM JUNTA SOLDADA | D45: 46 | G45: 97179 | H45: ASSENTAMENTO DE TUBO DE AÇO CARBONO PARA REDE DE ÁGUA, DN 1400 MM (56'') OU DN 1500 MM (60), JUNTA SOLDADA, INSTALADO EM LOCAL COM NÍVEL ALTO DE INTERFERÊNCIAS (NÃO INCLUI FORNECIMENTO). AF_11/2017 | I45: M | J45: ATRIBUÍDO SÃO PAULO | K45: 89.92 | L45: CAIXA REFERENCIAL
A46: ASSENTAMENTO DE TUBOS E PECAS | B46: ASTU | C46: FORNEC E/OU ASSENT DE TUBO DE ACO COM JUNTA SOLDADA | D46: 46 | G46: 97180 | H46: ASSENTAMENTO DE TUBO DE AÇO CARBONO PARA REDE DE ÁGUA, DN 1600 MM (64) OU DN 1700 MM (68), JUNTA SOLDADA, INSTALADO EM LOCAL COM NÍVEL ALTO DE INTERFERÊNCIAS (NÃO INCLUI FORNECIMENTO). AF_11/2017 | I46: M | J46: ATRIBUÍDO SÃO PAULO | K46: 101.71 | L46: CAIXA REFERENCIAL
A47: ASSENTAMENTO DE TUBOS E PECAS | B47: ASTU | C47: FORNEC E/OU ASSENT DE TUBO DE ACO COM JUNTA SOLDADA | D47: 46 | G47: 97181 | H47: ASSENTAMENTO DE TUBO DE AÇO CARBONO PARA REDE DE ÁGUA, DN 1800 MM (72) OU DN 1900 MM (76), JUNTA SOLDADA, INSTALADO EM LOCAL COM NÍVEL ALTO DE INTERFERÊNCIAS (NÃO INCLUI FORNECIMENTO). AF_11/2017 | I47: M | J47: ATRIBUÍDO SÃO PAULO | K47: 117.8 | L47: CAIXA REFERENCIAL
A48: ASSENTAMENTO DE TUBOS E PECAS | B48: ASTU | C48: FORNEC E/OU ASSENT DE TUBO DE ACO COM JUNTA SOLDADA | D48: 46 | G48: 97182 | H48: ASSENTAMENTO DE TUBO DE AÇO CARBONO PARA REDE DE ÁGUA, DN 2000 MM (80) OU DN 2100 MM (84), JUNTA SOLDADA, INSTALADO EM LOCAL COM NÍVEL ALTO DE INTERFERÊNCIAS (NÃO INCLUI FORNECIMENTO). AF_11/2017 | I48: M | J48: ATRIBUÍDO SÃO PAULO | K48: 130.03 | L48: CAIXA REFERENCIAL
A49: ASSENTAMENTO DE TUBOS E PECAS | B49: ASTU | C49: FORNEC E/OU ASSENT DE TUBO DE ACO COM JUNTA SOLDADA | D49: 46 | G49: 97183 | H49: ASSENTAMENTO DE TUBO DE AÇO CARBONO PARA REDE DE ÁGUA, DN 600 MM (24), JUNTA SOLDADA, INSTALADO EM LOCAL COM NÍVEL BAIXO DE INTERFERÊNCIAS (NÃO INCLUI FORNECIMENTO). AF_11/2017 | I49: M | J49: ATRIBUÍDO SÃO PAULO | K49: 30.93 | L49: CAIXA REFERENCIAL
A50: ASSENTAMENTO DE TUBOS E PECAS | B50: ASTU | C50: FORNEC E/OU ASSENT DE TUBO DE ACO COM JUNTA SOLDADA | D50: 46 | G50: 97184 | H50: ASSENTAMENTO DE TUBO DE AÇO CARBONO PARA REDE DE ÁGUA, DN 700 MM (28), JUNTA SOLDADA, INSTALADO EM LOCAL COM NÍVEL BAIXO DE INTERFERÊNCIAS (NÃO INCLUI FORNECIMENTO). AF_11/2017 | I50: M | J50: ATRIBUÍDO SÃO PAULO | K50: 35.92 | L50: CAIXA REFERENCIAL
A51: ASSENTAMENTO DE TUBOS E PECAS | B51: ASTU | C51: FORNEC E/OU ASSENT DE TUBO DE ACO COM JUNTA SOLDADA | D51: 46 | G51: 97185 | H51: ASSENTAMENTO DE TUBO DE AÇO CARBONO PARA REDE DE ÁGUA, DN 800 MM (32), JUNTA SOLDADA, INSTALADO EM LOCAL COM NÍVEL BAIXO DE INTERFERÊNCIAS (NÃO INCLUI FORNECIMENTO). AF_11/2017 | I51: M | J51: ATRIBUÍDO SÃO PAULO | K51: 40.91 | L51: CAIXA REFERENCIAL
A52: ASSENTAMENTO DE TUBOS E PECAS | B52: ASTU | C52: FORNEC E/OU ASSENT DE TUBO DE ACO COM JUNTA SOLDADA | D52: 46 | G52: 97186 | H52: ASSENTAMENTO DE TUBO DE AÇO CARBONO PARA REDE DE ÁGUA, DN 900 MM (36), JUNTA SOLDADA, INSTALADO EM LOCAL COM NÍVEL BAIXO DE INTERFERÊNCIAS (NÃO INCLUI FORNECIMENTO). AF_11/2017 | I52: M | J52: ATRIBUÍDO SÃO PAULO | K52: 45.91 | L52: CAIXA REFERENCIAL
A53: ASSENTAMENTO DE TUBOS E PECAS | B53: ASTU | C53: FORNEC E/OU ASSENT DE TUBO DE ACO COM JUNTA SOLDADA | D53: 46 | G53: 97187 | H53: ASSENTAMENTO DE TUBO DE AÇO CARBONO PARA REDE DE ÁGUA, DN 1000 MM (40 ) OU DN 1100 MM (44 ), JUNTA SOLDADA, INSTALADO EM LOCAL COM NÍVEL BAIXO DE INTERFERÊNCIAS (NÃO INCLUI FORNECIMENTO). AF_11/2017 | I53: M | J53: ATRIBUÍDO SÃO PAULO | K53: 55.88 | L53: CAIXA REFERENCIAL
A54: ASSENTAMENTO DE TUBOS E PECAS | B54: ASTU | C54: FORNEC E/OU ASSENT DE TUBO DE ACO COM JUNTA SOLDADA | D54: 46 | G54: 97188 | H54: ASSENTAMENTO DE TUBO DE AÇO CARBONO PARA REDE DE ÁGUA, DN 1200 MM (48) OU DN 1300 MM (52), JUNTA SOLDADA, INSTALADO EM LOCAL COM NÍVEL BAIXO DE INTERFERÊNCIAS (NÃO INCLUI FORNECIMENTO). AF_11/2017 | I54: M | J54: ATRIBUÍDO SÃO PAULO | K54: 65.85 | L54: CAIXA REFERENCIAL
A55: ASSENTAMENTO DE TUBOS E PECAS | B55: ASTU | C55: FORNEC E/OU ASSENT DE TUBO DE ACO COM JUNTA SOLDADA | D55: 46 | G55: 97189 | H55: ASSENTAMENTO DE TUBO DE AÇO CARBONO PARA REDE DE ÁGUA, DN 1400 MM (56'') OU DN 1500 MM (60), JUNTA SOLDADA, INSTALADO EM LOCAL COM NÍVEL BAIXO DE INTERFERÊNCIAS (NÃO INCLUI FORNECIMENTO). AF_11/2017 | I55: M | J55: ATRIBUÍDO SÃO PAULO | K55: 75.83 | L55: CAIXA REFERENCIAL
A56: ASSENTAMENTO DE TUBOS E PECAS | B56: ASTU | C56: FORNEC E/OU ASSENT DE TUBO DE ACO COM JUNTA SOLDADA | D56: 46 | G56: 97190 | H56: ASSENTAMENTO DE TUBO DE AÇO CARBONO PARA REDE DE ÁGUA, DN 1600 MM (64) OU DN 1700 MM (68), JUNTA SOLDADA, INSTALADO EM LOCAL COM NÍVEL BAIXO DE INTERFERÊNCIAS (NÃO INCLUI FORNECIMENTO). AF_11/2017 | I56: M | J56: ATRIBUÍDO SÃO PAULO | K56: 85.81 | L56: CAIXA REFERENCIAL
A57: ASSENTAMENTO DE TUBOS E PECAS | B57: ASTU | C57: FORNEC E/OU ASSENT DE TUBO DE ACO COM JUNTA SOLDADA | D57: 46 | G57: 97191 | H57: ASSENTAMENTO DE TUBO DE AÇO CARBONO PARA REDE DE ÁGUA, DN 1800 MM (72) OU DN 1900 MM (76), JUNTA SOLDADA, INSTALADO EM LOCAL COM NÍVEL BAIXO DE INTERFERÊNCIAS (NÃO INCLUI FORNECIMENTO). AF_11/2017 | I57: M | J57: ATRIBUÍDO SÃO PAULO | K57: 99.02 | L57: CAIXA REFERENCIAL
A58: ASSENTAMENTO DE TUBOS E PECAS | B58: ASTU | C58: FORNEC E/OU ASSENT DE TUBO DE ACO COM JUNTA SOLDADA | D58: 46 | G58: 97192 | H58: ASSENTAMENTO DE TUBO DE AÇO CARBONO PARA REDE DE ÁGUA, DN 2000 MM (80) OU DN 2100 MM (84), JUNTA SOLDADA, INSTALADO EM LOCAL COM NÍVEL BAIXO DE INTERFERÊNCIAS (NÃO INCLUI FORNECIMENTO). AF_11/2017 | I58: M | J58: ATRIBUÍDO SÃO PAULO | K58: 109.33 | L58: CAIXA REFERENCIAL
A59: ASSENTAMENTO DE TUBOS E PECAS | B59: ASTU | C59: FORNEC E/OU ASSENT DE TUBO DE PVC COM JUNTA ELASTICA | D59: 48 | G59: 90694 | H59: TUBO DE PVC PARA REDE COLETORA DE ESGOTO DE PAREDE MACIÇA, DN 100 MM, JUNTA ELÁSTICA - FORNECIMENTO E ASSENTAMENTO. AF_01/2021 | I59: M | J59: COEFICIENTE DE REPRESENTATIVIDADE | K59: 47.09 | L59: CAIXA REFERENCIAL
A60: ASSENTAMENTO DE TUBOS E PECAS | B60: ASTU | C60: FORNEC E/OU ASSENT DE TUBO DE PVC COM JUNTA ELASTICA | D60: 48 | G60: 90695 | H60: TUBO DE PVC PARA REDE COLETORA DE ESGOTO DE PAREDE MACIÇA, DN 150 MM, JUNTA ELÁSTICA - FORNECIMENTO E ASSENTAMENTO. AF_01/2021 | I60: M | J60: COEFICIENTE DE REPRESENTATIVIDADE | K60: 90.1 | L60: CAIXA REFERENCIAL
A61: ASSENTAMENTO DE TUBOS E PECAS | B61: ASTU | C61: FORNEC E/OU ASSENT DE TUBO DE PVC COM JUNTA ELASTICA | D61: 48 | G61: 90696 | H61: TUBO DE PVC PARA REDE COLETORA DE ESGOTO DE PAREDE MACIÇA, DN 200 MM, JUNTA ELÁSTICA - FORNECIMENTO E ASSENTAMENTO. AF_01/2021 | I61: M | J61: COEFICIENTE DE REPRESENTATIVIDADE | K61: 151.05 | L61: CAIXA REFERENCIAL
A62: ASSENTAMENTO DE TUBOS E PECAS | B62: ASTU | C62: FORNEC E/OU ASSENT DE TUBO DE PVC COM JUNTA ELASTICA | D62: 48 | G62: 90697 | H62: TUBO DE PVC PARA REDE COLETORA DE ESGOTO DE PAREDE MACIÇA, DN 250 MM, JUNTA ELÁSTICA - FORNECIMENTO E ASSENTAMENTO. AF_01/2021 | I62: M | J62: COEFICIENTE DE REPRESENTATIVIDADE | K62: 234.84 | L62: CAIXA REFERENCIAL
A63: ASSENTAMENTO DE TUBOS E PECAS | B63: ASTU | C63: FORNEC E/OU ASSENT DE TUBO DE PVC COM JUNTA ELASTICA | D63: 48 | G63: 90698 | H63: TUBO DE PVC PARA REDE COLETORA DE ESGOTO DE PAREDE MACIÇA, DN 300 MM, JUNTA ELÁSTICA, FORNECIMENTO E ASSENTAMENTO. AF_01/2021 | I63: M | J63: COEFICIENTE DE REPRESENTATIVIDADE | K63: 359.52 | L63: CAIXA REFERENCIAL
A64: ASSENTAMENTO DE TUBOS E PECAS | B64: ASTU | C64: FORNEC E/OU ASSENT DE TUBO DE PVC COM JUNTA ELASTICA | D64: 48 | G64: 90699 | H64: TUBO DE PVC PARA REDE COLETORA DE ESGOTO DE PAREDE MACIÇA, DN 350 MM, JUNTA ELÁSTICA - FORNECIMENTO E ASSENTAMENTO. AF_01/2021 | I64: M | J64: COEFICIENTE DE REPRESENTATIVIDADE | K64: 506.5 | L64: CAIXA REFERENCIAL
A65: ASSENTAMENTO DE TUBOS E PECAS | B65: ASTU | C65: FORNEC E/OU ASSENT DE TUBO DE PVC COM JUNTA ELASTICA | D65: 48 | G65: 90700 | H65: TUBO DE PVC PARA REDE COLETORA DE ESGOTO DE PAREDE MACIÇA, DN 400 MM, JUNTA ELÁSTICA FORNECIMENTO E ASSENTAMENTO. AF_01/2021 | I65: M | J65: ATRIBUÍDO SÃO PAULO | K65: 591.37 | L65: CAIXA REFERENCIAL
A66: ASSENTAMENTO DE TUBOS E PECAS | B66: ASTU | C66: FORNEC E/OU ASSENT DE TUBO DE PVC COM JUNTA ELASTICA | D66: 48 | G66: 90701 | H66: TUBO DE PVC CORRUGADO DE DUPLA PAREDE PARA REDE COLETORA DE ESGOTO, DN 150 MM, JUNTA ELÁSTICA - FORNECIMENTO E ASSENTAMENTO. AF_01/2021 | I66: M | J66: COEFICIENTE DE REPRESENTATIVIDADE | K66: 70.85 | L66: CAIXA REFERENCIAL
A67: ASSENTAMENTO DE TUBOS E PECAS | B67: ASTU | C67: FORNEC E/OU ASSENT DE TUBO DE PVC COM JUNTA ELASTICA | D67: 48 | G67: 90702 | H67: TUBO DE PVC CORRUGADO DE DUPLA PAREDE PARA REDE COLETORA DE ESGOTO, DN 200 MM, JUNTA ELÁSTICA - FORNECIMENTO E ASSENTAMENTO. AF_01/2021 | I67: M | J67: COEFICIENTE DE REPRESENTATIVIDADE | K67: 117.81 | L67: CAIXA REFERENCIAL
A68: ASSENTAMENTO DE TUBOS E PECAS | B68: ASTU | C68: FORNEC E/OU ASSENT DE TUBO DE PVC COM JUNTA ELASTICA | D68: 48 | G68: 90703 | H68: TUBO DE PVC CORRUGADO DE DUPLA PAREDE PARA REDE COLETORA DE ESGOTO, DN 250 MM, JUNTA ELÁSTICA - FORNECIMENTO E ASSENTAMENTO. AF_01/2021 | I68: M | J68: COEFICIENTE DE REPRESENTATIVIDADE | K68: 185.74 | L68: CAIXA REFERENCIAL
A69: ASSENTAMENTO DE TUBOS E PECAS | B69: ASTU | C69: FORNEC E/OU ASSENT DE TUBO DE PVC COM JUNTA ELASTICA | D69: 48 | G69: 90704 | H69: TUBO DE PVC CORRUGADO DE DUPLA PAREDE PARA REDE COLETORA DE ESGOTO, DN 300 MM, JUNTA ELÁSTICA - FORNECIMENTO E ASSENTAMENTO. AF_01/2021 | I69: M | J69: COEFICIENTE DE REPRESENTATIVIDADE | K69: 277.78 | L69: CAIXA REFERENCIAL
A70: ASSENTAMENTO DE TUBOS E PECAS | B70: ASTU | C70: FORNEC E/OU ASSENT DE TUBO DE PVC COM JUNTA ELASTICA | D70: 48 | G70: 90705 | H70: TUBO DE PVC CORRUGADO DE DUPLA PAREDE PARA REDE COLETORA DE ESGOTO, DN 350 MM, JUNTA ELÁSTICA - FORNECIMENTO E ASSENTAMENTO. AF_01/2021 | I70: M | J70: COEFICIENTE DE REPRESENTATIVIDADE | K70: 361.41 | L70: CAIXA REFERENCIAL
A71: ASSENTAMENTO DE TUBOS E PECAS | B71: ASTU | C71: FORNEC E/OU ASSENT DE TUBO DE PVC COM JUNTA ELASTICA | D71: 48 | G71: 90706 | H71: TUBO DE PVC CORRUGADO DE DUPLA PAREDE PARA REDE COLETORA DE ESGOTO, DN 400 MM, JUNTA ELÁSTICA - FORNECIMENTO E ASSENTAMENTO. AF_01/2021 | I71: M | J71: ATRIBUÍDO SÃO PAULO | K71: 479.22 | L71: CAIXA REFERENCIAL
A72: ASSENTAMENTO DE TUBOS E PECAS | B72: ASTU | C72: FORNEC E/OU ASSENT DE TUBO DE PVC COM JUNTA ELASTICA | D72: 48 | G72: 90708 | H72: TUBO DE PEAD CORRUGADO DE DUPLA PAREDE PARA REDE COLETORA DE ESGOTO, DN 600 MM, JUNTA ELÁSTICA INTEGRADA - FORNECIMENTO E ASSENTAMENTO. AF_01/2021 | I72: M | J72: ATRIBUÍDO SÃO PAULO | K72: 758 | L72: CAIXA REFERENCIAL
